Workbook

Sheet EKIPE I IGRAČI (hidden)
A1: Popis ekipa (A2:A13) | B1: Broj ekipa (auto) | C1: =A2 -> ARENA FERRO | D1: =A3 -> BROVINJE 2 | E1: =A4 -> BUZET 1 | F1: =A5 -> BUZET 2 | G1: =A6 -> MAESTRAL 2 | H1: =A7 -> PAZIN | I1: =A8 -> VAL SHARK | J1: =A9 -> 0 | K1: =A10 -> 0 | L1: =A11 -> 0 | M1: =A12 -> 0 | N1: =A13 -> 0
A2: ARENA FERRO | B2: =MAX(0,COUNTA($A$2:$A$13)) -> 7 | C2: CINKOPAN Eduard | D2: BASIACO Leonida | E2: BERDNYK Stanislav | F2: BOŠNJAKOVIĆ Dubravko | G2: MILAKOVIĆ Borna | H2: LUKEZ Goran | I2: INFANTOLINO Davide
A3: BROVINJE 2 | C3: CINKOPAN Kristijan | D3: DOBRIĆ Raymond | E3: KRANČIĆ Filip | F3: DRAŠĆIĆ Petar | G3: BRAJKOVIĆ Danko | H3: LUKEZ Kristijan | I3: DELEVIĆ Predrag
A4: BUZET 1 | C4: KELEMEN Mićo | D4: GASPARI HUDOLETNJAK Matija | E4: PAULUS Michael | F4: FLEGO Valter | G4: SRŠA Branko | H4: NADIŠIĆ Mauro | I4: IVINIĆ Fabio
A5: BUZET 2 | C5: KRIŠTO Tomislav | D5: RAJKOVIĆ Karlo | E5: SIROTIĆ Aleš | F5: KOS Dino | G5: SINČIĆ Luana | H5: BAKŠA Alen | I5: IVINIĆ Serđo
A6: MAESTRAL 2 | C6: PEKICA Bartol | D6: BENAZIĆ Sandro | E6: SIROTIĆ Kevin | F6: KRBAVČIĆ Dragan | G6: VIŽINTIN Marino | H6: FABRIS Karlo | I6: HRVANOVIĆ Jasmin
A7: PAZIN | C7: VINOVRŠKI Jenisej | D7: JURIŠIĆ Ivan | E7: BERDNYK S., PAULUS M. | F7: PAVLETIĆ Guido | G7: SMAIĆ Bruno | H7: FABIJAN Damir | I7: MEDAKOVIĆ Željko
A8: VAL SHARK | C8: VALE Damir | D8: STIPIĆ Matea | E8: SIROTIĆ A., KRANČIĆ F. | F8: DRAŠĆIĆ P., PAVLETIĆ G. | G8: POSEDEL Branko | H8: GLAVINIĆ Denis | I8: HRVANOVIĆ J., IVINIĆ S.
C9: KRANJC Dino | D9: BERNAZ Sara | E9: SIROTIĆ K., BERDNYK S. | F9: KOS D., PAVLETIĆ G. | G9: HANZL Tomislav | H9: TONČIĆ Miro | I9: INFANTOLINO D., HRVANOVIĆ J.
C10: CINKOPAN K., PEKICA B. | D10: BENAZIĆ S., BASIACO L. | E10: SIROTIĆ A., BERDNYK S. | F10: DRAŠĆIĆ P., KOS D. | G10: BELUŠIĆ Zoran | H10: PUŽAR Dražen | I10: DELEVIĆ P., IVINIĆ S.
C11: CINKOPAN K., KELEMEN M. | D11: BASIACO L., GASPARI HUDOLETNJAK | E11: 1 | F11: FLEGO V., KOS D. | G11: PEROŠ Ana | H11: LUKEZ Leo | I11: HRVANOVIĆ J., IVINIĆ S.
C12: CINKOPAN K., KRANJC D. | D12: BENAZIĆ S., GASPARI HUDOLETNJAK | E12: 2 | F12: 1 | G12: SREBRNIĆ BANKO Ivana | H12: LUKEZ Ana | I12: 1
C13: KELEMEN M., KRANJC D. | D13: 1 | E13: 3 | F13: 2 | G13: LAKIĆ Marija | H13: LABAŠ Tomo Anton | I13: 2
C14: 1 | D14: 2 | E14: 4 | F14: 3 | G14: MILAKOVIĆ B., SINČIĆ L. | H14: GLAVINIĆ D., LUKEZ G. | I14: 3
C15: 2 | D15: 3 | E15: 5 | F15: 4 | G15: KMET T., HANZL T. | H15: GLAVINIĆ D., FABIJAN D. | I15: 4
C16: 3 | D16: 4 | E16: 6 | F16: 5 | G16: KMET Teo | H16: 1 | I16: 5
C17: 4 | D17: 5 | E17: 7 | F17: 6 | G17: KMET T., SINČIĆ L. | H17: 2 | I17: 6
C18: 5 | D18: 6 | E18: 8 | F18: 7 | G18: KMET T., VIŽINTIN M. | H18: 3 | I18: 7
C19: 6 | D19: 7 | E19: 9 | F19: 8 | G19: SINČIĆ L., PEROŠ A. | H19: 4 | I19: 8
C20: 7 | D20: 8 | E20: 10 | F20: 9 | G20: 1 | H20: 5 | I20: 9
C21: 8 | D21: 9 | E21: 11 | F21: 10 | G21: 2 | H21: 6 | I21: 10
C22: 9 | D22: 10 | E22: 12 | F22: 11 | G22: 3 | H22: 7 | I22: 11
C23: 10 | D23: 11 | E23: 13 | F23: 12 | G23: 4 | H23: 8 | I23: 12
C24: 11 | D24: 12 | E24: 14 | F24: 13 | G24: 5 | H24: 9 | I24: 13

Sheet UPUTE
B1: UPUTE ZA UPISIVANJE REZULTATA U SUDAC_ZAPISNIK
A2: 1. | B2: U Zapisniku imaš nekoliko padajućih popisa koje samo trebaš odabrati.
A3: 2. | B3: Polje B3 – kad klikneš na polje sa strane se pojavi strelica. Klikom ti se otvara mogućnost da odabereš grad gdje se igralo.
A4: 3. | B4: Polje E3 – na isti način izaberi dvoranu
A5: 4. | B5: Polje J3 – izaberi kolo
A6: 5. | B6: Polje N3 – izaberi datum
A7: 6. | B7: Polje T3 – izaberi sat
A8: 7. | B8: Polje B4 – izaberi ekipu domaćina iz padajućeg popisa. Najprije moraš izabrati ekipu da bi mogao dodati igrače. Na poljima B5:B9 iz padajućeg popisa izaberi igrače domaćina. Isto to ponoviš na poljima B12:B20. Do polja B20 samo ako je ukupni rezultat npr 4 : 3 to znači da je odigrano svih sedam mečeva. Na poljima B16 i B17 izaberi igrače u paru. Bitno je da isti par uvijek birate istim redom kako bi se mogao raditi i rangiranje parova. Ako u drugom kolu navedete imena obrnuto program to tretira kao novi par.
A9: 8. | B9: Polje E4 –izaberi ekipu gostiju iz padajućeg popisa. Najprije moraš izabrati ekipu da bi mogao dodati igrače. Na poljima E5:E9 iz padajućeg popisa izaberi igrače gostiju. Isto to ponoviš na poljima E12:E20. Do polja E20 samo ako je ukupni rezultat npr 4 : 3 to znači da je odigrano svih sedam mečeva. Na poljima E16 i E17 biraš igrače u paru. Bitno je da isti par uvijek birate istim redom kako bi se mogao raditi i rangiranje parova. Ako u drugom kolu navedete imena obrnuto program to tretira kao novi par.
A10: 9. | B10: Rezultate po setovima upisuješ u plava polja počevši od polja F13. Znači poene upisuješ u širim stupcima F, H, I, K, L, N, O, Q, R, T. Najlakše ćete to napraviti pomoću tipke TAB (vidi sliku). 1. Klikni u polje F13. 2. Upiši poene za prvi set domaćeg igrača 3. Pritisni tipku TAB, automatski te prebacuje u polje H13 za upisivanje poena za prvi set gostujućeg igrača ... Sve ostalo se izračunava automatski. Kad upišeš sve poene u prvom meču, klikneš na polje F14 za upisivanje poena drugog meča itd.
A11: 10. | B11: Ispunjeni zapisnik poslati na mail liga@stsiz.hr
B14: UPUTE ZA UPISIVANJE NOVIH IGRAČA U SUDAC_EKIPE
A15: 1. | B15: Ako imate novog igrača koji nije do sada igrao i nije u bazi igrača i ne pojavljuje se u padajućem popisu, možete ga sami dodati. Stavite napomenu u mailu tako da ga ja mogu dodati u glavnu bazu igrača.
A16: 2. | B16: Svaki klub ima svoj stupac počevši od Arene Ferro u stupcu C nadalje. Nove igrače upisujete točno u stupcu ispod imena kluba na prvo slobodno polje. Nemojte preskakati redove.
A17: 3. | B17: Igrače upisujete PREZIME Ime. Dakle npr. DOBRIĆ Igor. Nemojte pisati sve velikim slovima nego TOČNO ovako kako sam dao u primjeru. Pazite da vam ne ostane razmak ispred ili iza, pazite da između prezimena i imene ne lupite dva razmaka. Svaku takvu stvar program vodi kao novog igrača pa će biti krive rang liste igrača.
A18: 4. | B18: Vodite računa da ne može igrati igrač bez valjanog liječničkog pregleda.
A19: 5. | B19: Kad igrača upišete u SUDAC_EKIPE, moći ćete ga odabrati na popisu u SUDAC_ZAPISNIK.
A20: 6. | B20: Ne upisujte skupa igrače u paru. Sad se biraju kao pojedinci na poljima B16:B17 odnosno E16:E17 u SUDAC_ZAPISNIK. Ovo što vidite na popisu gdje su parovi upisani u isto polje je iz prvog dijela sezone. Dakle, u drugom dijelu sezone par birate s popisa igrača pojedinačno.
A21: 7. | B21: POMOĆ: Igor Dobrić, tel: 091 556 48 54; mail: liga@stsiz.hr

Sheet SUDAC_EKIPE
A1: Popis ekipa (A2:A13) | B1: Broj ekipa (auto) | C1: =A2 -> ARENA FERRO | D1: =A3 -> BROVINJE 2 | E1: =A4 -> BUZET 1 | F1: =A5 -> BUZET 2 | G1: =A6 -> MAESTRAL 2 | H1: =A7 -> PAZIN | I1: =A8 -> VAL SHARK | J1: =A9 -> 0 | K1: =A10 -> 0 | L1: =A11 -> 0 | M1: =A12 -> 0 | N1: =A13 -> 0
A2: ARENA FERRO | B2: =MAX(0,COUNTA($A$2:$A$13)) -> 7 | C2: CINKOPAN Eduard | D2: BASIACO Leonida | E2: BERDNYK Stanislav | F2: BOŠNJAKOVIĆ Dubravko | G2: MILAKOVIĆ Borna | H2: LUKEZ Goran | I2: INFANTOLINO Davide
A3: BROVINJE 2 | C3: CINKOPAN Kristijan | D3: DOBRIĆ Raymond | E3: KRANČIĆ Filip | F3: DRAŠĆIĆ Petar | G3: BRAJKOVIĆ Danko | H3: LUKEZ Kristijan | I3: DELEVIĆ Predrag
A4: BUZET 1 | C4: KELEMEN Mićo | D4: GASPARI HUDOLETNJAK Matija | E4: PAULUS Michael | F4: FLEGO Valter | G4: SRŠA Branko | H4: NADIŠIĆ Mauro | I4: IVINIĆ Fabio
A5: BUZET 2 | C5: KRIŠTO Tomislav | D5: RAJKOVIĆ Karlo | E5: SIROTIĆ Aleš | F5: KOS Dino | G5: SINČIĆ Luana | H5: BAKŠA Alen | I5: IVINIĆ Serđo
A6: MAESTRAL 2 | C6: PEKICA Bartol | D6: BENAZIĆ Sandro | E6: SIROTIĆ Kevin | F6: KRBAVČIĆ Dragan | G6: VIŽINTIN Marino | H6: FABRIS Karlo | I6: HRVANOVIĆ Jasmin
A7: PAZIN | C7: VINOVRŠKI Jenisej | D7: JURIŠIĆ Ivan | E7: BERDNYK S., PAULUS M. | F7: PAVLETIĆ Guido | G7: SMAIĆ Bruno | H7: FABIJAN Damir | I7: MEDAKOVIĆ Željko
A8: VAL SHARK | C8: VALE Damir | D8: STIPIĆ Matea | E8: SIROTIĆ A., KRANČIĆ F. | F8: DRAŠĆIĆ P., PAVLETIĆ G. | G8: POSEDEL Branko | H8: GLAVINIĆ Denis | I8: HRVANOVIĆ J., IVINIĆ S.
C9: KRANJC Dino | D9: BERNAZ Sara | E9: SIROTIĆ K., BERDNYK S. | F9: KOS D., PAVLETIĆ G. | G9: HANZL Tomislav | H9: TONČIĆ Miro | I9: INFANTOLINO D., HRVANOVIĆ J.
C10: CINKOPAN K., PEKICA B. | D10: BENAZIĆ S., BASIACO L. | E10: SIROTIĆ A., BERDNYK S. | F10: DRAŠĆIĆ P., KOS D. | G10: BELUŠIĆ Zoran | H10: PUŽAR Dražen | I10: DELEVIĆ P., IVINIĆ S.
C11: CINKOPAN K., KELEMEN M. | D11: BASIACO L., GASPARI HUDOLETNJAK | F11: FLEGO V., KOS D. | G11: PEROŠ Ana | H11: LUKEZ Leo | I11: HRVANOVIĆ J., IVINIĆ S.
C12: CINKOPAN K., KRANJC D. | D12: BENAZIĆ S., GASPARI HUDOLETNJAK | G12: SREBRNIĆ BANKO Ivana | H12: LUKEZ Ana
C13: KELEMEN M., KRANJC D. | G13: LAKIĆ Marija | H13: LABAŠ Tomo Anton
G14: MILAKOVIĆ B., SINČIĆ L. | H14: GLAVINIĆ D., LUKEZ G.
G15: KMET T., HANZL T. | H15: GLAVINIĆ D., FABIJAN D.
G16: KMET Teo
G17: KMET T., SINČIĆ L.
G18: KMET T., VIŽINTIN M.
G19: SINČIĆ L., PEROŠ A.

Sheet ZAPISNIK MEČA (hidden)
A1: ŽUPANIJSKA LIGA STSIŽ 2025./2026. | AV1: EDIT
B2: GRAD DOMAĆIN | E2: DVORANA | J2: KOLO | N2: DATUM | T2: SAT | AH2: ='EKIPE I IGRAČI'!$C$1 -> ARENA FERRO | AI2: =IFERROR(INDEX('EKIPE I IGRAČI'!$C$2:$N$51, ROWS($A$1:A1), MATCH($B$4, 'EKIPE I IGRAČI'!$C$1:$N$1, 0)), "") -> 0 | AJ2: =IFERROR(INDEX('EKIPE I IGRAČI'!$C$2:$N$51, ROWS($A$1:A1), MATCH($E$4, 'EKIPE I IGRAČI'!$C$1:$N$1, 0)), "") -> 0 | AK2: =IFERROR(INDEX('EKIPE I IGRAČI'!$C$2:$N$51, ROWS($A$1:A1), MATCH($B$12, 'EKIPE I IGRAČI'!$C$1:$N$1, 0)), "") -> LUKEZ Goran | AL2: =IFERROR(INDEX('EKIPE I IGRAČI'!$C$2:$N$51, ROWS($A$1:A1), MATCH($E$12, 'EKIPE I IGRAČI'!$C$1:$N$1, 0)), "") -> 0
B3: - | E3: - | J3: - | N3: 1. 9. 2025. | AH3: ='EKIPE I IGRAČI'!$D$1 -> BROVINJE 2 | AI3: =IFERROR(INDEX('EKIPE I IGRAČI'!$C$2:$N$51, ROWS($A$1:A2), MATCH($B$4, 'EKIPE I IGRAČI'!$C$1:$N$1, 0)), "") -> 0 | AJ3: =IFERROR(INDEX('EKIPE I IGRAČI'!$C$2:$N$51, ROWS($A$1:A2), MATCH($E$4, 'EKIPE I IGRAČI'!$C$1:$N$1, 0)), "") -> 0 | AK3: =IFERROR(INDEX('EKIPE I IGRAČI'!$C$2:$N$51, ROWS($A$1:A2), MATCH($B$12, 'EKIPE I IGRAČI'!$C$1:$N$1, 0)), "") -> LUKEZ Kristijan | AL3: =IFERROR(INDEX('EKIPE I IGRAČI'!$C$2:$N$51, ROWS($A$1:A2), MATCH($E$12, 'EKIPE I IGRAČI'!$C$1:$N$1, 0)), "") -> 0
A4: Domaćin | B4: 0 | D4: Gost | E4: 0 | N4: Gost | AH4: ='EKIPE I IGRAČI'!$E$1 -> BUZET 1 | AI4: =IFERROR(INDEX('EKIPE I IGRAČI'!$C$2:$N$51, ROWS($A$1:A3), MATCH($B$4, 'EKIPE I IGRAČI'!$C$1:$N$1, 0)), "") -> 0 | AJ4: =IFERROR(INDEX('EKIPE I IGRAČI'!$C$2:$N$51, ROWS($A$1:A3), MATCH($E$4, 'EKIPE I IGRAČI'!$C$1:$N$1, 0)), "") -> 0 | AK4: =IFERROR(INDEX('EKIPE I IGRAČI'!$C$2:$N$51, ROWS($A$1:A3), MATCH($B$12, 'EKIPE I IGRAČI'!$C$1:$N$1, 0)), "") -> NADIŠIĆ Mauro | AL4: =IFERROR(INDEX('EKIPE I IGRAČI'!$C$2:$N$51, ROWS($A$1:A3), MATCH($E$12, 'EKIPE I IGRAČI'!$C$1:$N$1, 0)), "") -> 0
A5: A | D5: X | AH5: ='EKIPE I IGRAČI'!$F$1 -> BUZET 2 | AI5: =IFERROR(INDEX('EKIPE I IGRAČI'!$C$2:$N$51, ROWS($A$1:A4), MATCH($B$4, 'EKIPE I IGRAČI'!$C$1:$N$1, 0)), "") -> 0 | AJ5: =IFERROR(INDEX('EKIPE I IGRAČI'!$C$2:$N$51, ROWS($A$1:A4), MATCH($E$4, 'EKIPE I IGRAČI'!$C$1:$N$1, 0)), "") -> 0 | AK5: =IFERROR(INDEX('EKIPE I IGRAČI'!$C$2:$N$51, ROWS($A$1:A4), MATCH($B$12, 'EKIPE I IGRAČI'!$C$1:$N$1, 0)), "") -> BAKŠA Alen | AL5: =IFERROR(INDEX('EKIPE I IGRAČI'!$C$2:$N$51, ROWS($A$1:A4), MATCH($E$12, 'EKIPE I IGRAČI'!$C$1:$N$1, 0)), "") -> 0
A6: B | D6: Y | AH6: ='EKIPE I IGRAČI'!$G$1 -> MAESTRAL 2 | AI6: =IFERROR(INDEX('EKIPE I IGRAČI'!$C$2:$N$51, ROWS($A$1:A5), MATCH($B$4, 'EKIPE I IGRAČI'!$C$1:$N$1, 0)), "") -> 0 | AJ6: =IFERROR(INDEX('EKIPE I IGRAČI'!$C$2:$N$51, ROWS($A$1:A5), MATCH($E$4, 'EKIPE I IGRAČI'!$C$1:$N$1, 0)), "") -> 0 | AK6: =IFERROR(INDEX('EKIPE I IGRAČI'!$C$2:$N$51, ROWS($A$1:A5), MATCH($B$12, 'EKIPE I IGRAČI'!$C$1:$N$1, 0)), "") -> FABRIS Karlo | AL6: =IFERROR(INDEX('EKIPE I IGRAČI'!$C$2:$N$51, ROWS($A$1:A5), MATCH($E$12, 'EKIPE I IGRAČI'!$C$1:$N$1, 0)), "") -> 0
A7: C | D7: Z | AH7: ='EKIPE I IGRAČI'!$H$1 -> PAZIN | AI7: =IFERROR(INDEX('EKIPE I IGRAČI'!$C$2:$N$51, ROWS($A$1:A6), MATCH($B$4, 'EKIPE I IGRAČI'!$C$1:$N$1, 0)), "") -> 0 | AJ7: =IFERROR(INDEX('EKIPE I IGRAČI'!$C$2:$N$51, ROWS($A$1:A6), MATCH($E$4, 'EKIPE I IGRAČI'!$C$1:$N$1, 0)), "") -> 0 | AK7: =IFERROR(INDEX('EKIPE I IGRAČI'!$C$2:$N$51, ROWS($A$1:A6), MATCH($B$12, 'EKIPE I IGRAČI'!$C$1:$N$1, 0)), "") -> FABIJAN Damir | AL7: =IFERROR(INDEX('EKIPE I IGRAČI'!$C$2:$N$51, ROWS($A$1:A6), MATCH($E$12, 'EKIPE I IGRAČI'!$C$1:$N$1, 0)), "") -> 0
A8: R1 | D8: R1 | AH8: ='EKIPE I IGRAČI'!$I$1 -> VAL SHARK | AI8: =IFERROR(INDEX('EKIPE I IGRAČI'!$C$2:$N$51, ROWS($A$1:A7), MATCH($B$4, 'EKIPE I IGRAČI'!$C$1:$N$1, 0)), "") -> 0 | AJ8: =IFERROR(INDEX('EKIPE I IGRAČI'!$C$2:$N$51, ROWS($A$1:A7), MATCH($E$4, 'EKIPE I IGRAČI'!$C$1:$N$1, 0)), "") -> 0 | AK8: =IFERROR(INDEX('EKIPE I IGRAČI'!$C$2:$N$51, ROWS($A$1:A7), MATCH($B$12, 'EKIPE I IGRAČI'!$C$1:$N$1, 0)), "") -> GLAVINIĆ Denis | AL8: =IFERROR(INDEX('EKIPE I IGRAČI'!$C$2:$N$51, ROWS($A$1:A7), MATCH($E$12, 'EKIPE I IGRAČI'!$C$1:$N$1, 0)), "") -> 0
A9: R2 | D9: R2 | AH9: ='EKIPE I IGRAČI'!$J$1 -> 0 | AI9: =IFERROR(INDEX('EKIPE I IGRAČI'!$C$2:$N$51, ROWS($A$1:A8), MATCH($B$4, 'EKIPE I IGRAČI'!$C$1:$N$1, 0)), "") -> 0 | AJ9: =IFERROR(INDEX('EKIPE I IGRAČI'!$C$2:$N$51, ROWS($A$1:A8), MATCH($E$4, 'EKIPE I IGRAČI'!$C$1:$N$1, 0)), "") -> 0 | AK9: =IFERROR(INDEX('EKIPE I IGRAČI'!$C$2:$N$51, ROWS($A$1:A8), MATCH($B$12, 'EKIPE I IGRAČI'!$C$1:$N$1, 0)), "") -> TONČIĆ Miro | AL9: =IFERROR(INDEX('EKIPE I IGRAČI'!$C$2:$N$51, ROWS($A$1:A8), MATCH($E$12, 'EKIPE I IGRAČI'!$C$1:$N$1, 0)), "") -> 0
AH10: ='EKIPE I IGRAČI'!$K$1 -> 0 | AI10: =IFERROR(INDEX('EKIPE I IGRAČI'!$C$2:$N$51, ROWS($A$1:A9), MATCH($B$4, 'EKIPE I IGRAČI'!$C$1:$N$1, 0)), "") -> 0 | AJ10: =IFERROR(INDEX('EKIPE I IGRAČI'!$C$2:$N$51, ROWS($A$1:A9), MATCH($E$4, 'EKIPE I IGRAČI'!$C$1:$N$1, 0)), "") -> 0 | AK10: =IFERROR(INDEX('EKIPE I IGRAČI'!$C$2:$N$51, ROWS($A$1:A9), MATCH($B$12, 'EKIPE I IGRAČI'!$C$1:$N$1, 0)), "") -> PUŽAR Dražen | AL10: =IFERROR(INDEX('EKIPE I IGRAČI'!$C$2:$N$51, ROWS($A$1:A9), MATCH($E$12, 'EKIPE I IGRAČI'!$C$1:$N$1, 0)), "") -> 0
B11: DOMAĆIN | E11: GOST | AH11: ='EKIPE I IGRAČI'!$L$1 -> 0 | AI11: =IFERROR(INDEX('EKIPE I IGRAČI'!$C$2:$N$51, ROWS($A$1:A10), MATCH($B$4, 'EKIPE I IGRAČI'!$C$1:$N$1, 0)), "") -> 0 | AJ11: =IFERROR(INDEX('EKIPE I IGRAČI'!$C$2:$N$51, ROWS($A$1:A10), MATCH($E$4, 'EKIPE I IGRAČI'!$C$1:$N$1, 0)), "") -> 0 | AK11: =IFERROR(INDEX('EKIPE I IGRAČI'!$C$2:$N$51, ROWS($A$1:A10), MATCH($B$12, 'EKIPE I IGRAČI'!$C$1:$N$1, 0)), "") -> LUKEZ Leo | AL11: =IFERROR(INDEX('EKIPE I IGRAČI'!$C$2:$N$51, ROWS($A$1:A10), MATCH($E$12, 'EKIPE I IGRAČI'!$C$1:$N$1, 0)), "") -> 0
B12: PAZIN | E12: 0 | AH12: ='EKIPE I IGRAČI'!$M$1 -> 0 | AI12: =IFERROR(INDEX('EKIPE I IGRAČI'!$C$2:$N$51, ROWS($A$1:A11), MATCH($B$4, 'EKIPE I IGRAČI'!$C$1:$N$1, 0)), "") -> 0 | AJ12: =IFERROR(INDEX('EKIPE I IGRAČI'!$C$2:$N$51, ROWS($A$1:A11), MATCH($E$4, 'EKIPE I IGRAČI'!$C$1:$N$1, 0)), "") -> 0 | AK12: =IFERROR(INDEX('EKIPE I IGRAČI'!$C$2:$N$51, ROWS($A$1:A11), MATCH($B$12, 'EKIPE I IGRAČI'!$C$1:$N$1, 0)), "") -> LUKEZ Ana | AL12: =IFERROR(INDEX('EKIPE I IGRAČI'!$C$2:$N$51, ROWS($A$1:A11), MATCH($E$12, 'EKIPE I IGRAČI'!$C$1:$N$1, 0)), "") -> 0
C13: A | D13: X | G13: : | J13: : | M13: : | P13: : | S13: : | V13: =IF(COUNTA(F13:T13)=0,"",_xlfn.LET(_xlpm.h,CHOOSE({1,2,3,4,5},F13,I13,L13,O13,R13),_xlpm.a,CHOOSE({1,2,3,4,5},H13,K13,N13,Q13,T13),SUM((_xlpm.h>_xlpm.a)*(_xlpm.h<>"")*(_xlpm.a<>"")))) -> 0 | W13: : | X13: =IF(COUNTA(F13:T13)=0,"",_xlfn.LET(_xlpm.h,CHOOSE({1,2,3,4,5},F13,I13,L13,O13,R13),_xlpm.a,CHOOSE({1,2,3,4,5},H13,K13,N13,Q13,T13),SUM((_xlpm.a>_xlpm.h)*(_xlpm.h<>"")*(_xlpm.a<>"")))) -> 0 | Y13: =IF(OR(V13="",X13=""),"",IF(MAX(V13,X13)<3,"",SUMPRODUCT(--($V$13:V13>$X$13:X13),--(($V$13:V13>=3)+($X$13:X13>=3)>0)))) ->  | Z13: : | AA13: =IF(OR(V13="",X13=""),"",IF(MAX(V13,X13)<3,"",SUMPRODUCT(--($X$13:X13>$V$13:V13),--(($V$13:V13>=3)+($X$13:X13>=3)>0)))) ->  | AH13: ='EKIPE I IGRAČI'!$N$1 -> 0 | AI13: =IFERROR(INDEX('EKIPE I IGRAČI'!$C$2:$N$51, ROWS($A$1:A12), MATCH($B$4, 'EKIPE I IGRAČI'!$C$1:$N$1, 0)), "") -> 0 | AJ13: =IFERROR(INDEX('EKIPE I IGRAČI'!$C$2:$N$51, ROWS($A$1:A12), MATCH($E$4, 'EKIPE I IGRAČI'!$C$1:$N$1, 0)), "") -> 0 | AK13: =IFERROR(INDEX('EKIPE I IGRAČI'!$C$2:$N$51, ROWS($A$1:A12), MATCH($B$12, 'EKIPE I IGRAČI'!$C$1:$N$1, 0)), "") -> LABAŠ Tomo Anton | AL13: =IFERROR(INDEX('EKIPE I IGRAČI'!$C$2:$N$51, ROWS($A$1:A12), MATCH($E$12, 'EKIPE I IGRAČI'!$C$1:$N$1, 0)), "") -> 0
C14: B | D14: Y | G14: : | J14: : | M14: : | P14: : | S14: : | V14: =IF(COUNTA(F14:T14)=0,"",_xlfn.LET(_xlpm.h,CHOOSE({1,2,3,4,5},F14,I14,L14,O14,R14),_xlpm.a,CHOOSE({1,2,3,4,5},H14,K14,N14,Q14,T14),SUM((_xlpm.h>_xlpm.a)*(_xlpm.h<>"")*(_xlpm.a<>"")))) -> 0 | W14: : | X14: =IF(COUNTA(F14:T14)=0,"",_xlfn.LET(_xlpm.h,CHOOSE({1,2,3,4,5},F14,I14,L14,O14,R14),_xlpm.a,CHOOSE({1,2,3,4,5},H14,K14,N14,Q14,T14),SUM((_xlpm.a>_xlpm.h)*(_xlpm.h<>"")*(_xlpm.a<>"")))) -> 0 | Y14: =IF(OR(V14="",X14=""),"",IF(MAX(V14,X14)<3,"",SUMPRODUCT(--($V$13:V14>$X$13:X14),--(($V$13:V14>=3)+($X$13:X14>=3)>0)))) ->  | Z14: : | AA14: =IF(OR(V14="",X14=""),"",IF(MAX(V14,X14)<3,"",SUMPRODUCT(--($X$13:X14>$V$13:V14),--(($V$13:V14>=3)+($X$13:X14>=3)>0)))) ->  | AI14: =IFERROR(INDEX('EKIPE I IGRAČI'!$C$2:$N$51, ROWS($A$1:A13), MATCH($B$4, 'EKIPE I IGRAČI'!$C$1:$N$1, 0)), "") -> 0 | AJ14: =IFERROR(INDEX('EKIPE I IGRAČI'!$C$2:$N$51, ROWS($A$1:A13), MATCH($E$4, 'EKIPE I IGRAČI'!$C$1:$N$1, 0)), "") -> 0 | AK14: =IFERROR(INDEX('EKIPE I IGRAČI'!$C$2:$N$51, ROWS($A$1:A13), MATCH($B$12, 'EKIPE I IGRAČI'!$C$1:$N$1, 0)), "") -> GLAVINIĆ D., LUKEZ G. | AL14: =IFERROR(INDEX('EKIPE I IGRAČI'!$C$2:$N$51, ROWS($A$1:A13), MATCH($E$12, 'EKIPE I IGRAČI'!$C$1:$N$1, 0)), "") -> 0
C15: C | D15: Z | G15: : | J15: : | M15: : | P15: : | S15: : | V15: =IF(COUNTA(F15:T15)=0,"",_xlfn.LET(_xlpm.h,CHOOSE({1,2,3,4,5},F15,I15,L15,O15,R15),_xlpm.a,CHOOSE({1,2,3,4,5},H15,K15,N15,Q15,T15),SUM((_xlpm.h>_xlpm.a)*(_xlpm.h<>"")*(_xlpm.a<>"")))) -> 0 | W15: : | X15: =IF(COUNTA(F15:T15)=0,"",_xlfn.LET(_xlpm.h,CHOOSE({1,2,3,4,5},F15,I15,L15,O15,R15),_xlpm.a,CHOOSE({1,2,3,4,5},H15,K15,N15,Q15,T15),SUM((_xlpm.a>_xlpm.h)*(_xlpm.h<>"")*(_xlpm.a<>"")))) -> 0 | Y15: =IF(OR(V15="",X15=""),"",IF(MAX(V15,X15)<3,"",SUMPRODUCT(--($V$13:V15>$X$13:X15),--(($V$13:V15>=3)+($X$13:X15>=3)>0)))) ->  | Z15: : | AA15: =IF(OR(V15="",X15=""),"",IF(MAX(V15,X15)<3,"",SUMPRODUCT(--($X$13:X15>$V$13:V15),--(($V$13:V15>=3)+($X$13:X15>=3)>0)))) ->  | AI15: =IFERROR(INDEX('EKIPE I IGRAČI'!$C$2:$N$51, ROWS($A$1:A14), MATCH($B$4, 'EKIPE I IGRAČI'!$C$1:$N$1, 0)), "") -> 0 | AJ15: =IFERROR(INDEX('EKIPE I IGRAČI'!$C$2:$N$51, ROWS($A$1:A14), MATCH($E$4, 'EKIPE I IGRAČI'!$C$1:$N$1, 0)), "") -> 0 | AK15: =IFERROR(INDEX('EKIPE I IGRAČI'!$C$2:$N$51, ROWS($A$1:A14), MATCH($B$12, 'EKIPE I IGRAČI'!$C$1:$N$1, 0)), "") -> GLAVINIĆ D., FABIJAN D. | AL15: =IFERROR(INDEX('EKIPE I IGRAČI'!$C$2:$N$51, ROWS($A$1:A14), MATCH($E$12, 'EKIPE I IGRAČI'!$C$1:$N$1, 0)), "") -> 0
B16: 0 | C16: PAR | D16: PAR | E16: 0 | G16: : | J16: : | M16: : | P16: : | S16: : | V16: =IF(COUNTA(F16:T16)=0,"",_xlfn.LET(_xlpm.h,CHOOSE({1,2,3,4,5},F16,I16,L16,O16,R16),_xlpm.a,CHOOSE({1,2,3,4,5},H16,K16,N16,Q16,T16),SUM((_xlpm.h>_xlpm.a)*(_xlpm.h<>"")*(_xlpm.a<>"")))) -> 0 | W16: : | X16: =IF(COUNTA(F16:T16)=0,"",_xlfn.LET(_xlpm.h,CHOOSE({1,2,3,4,5},F16,I16,L16,O16,R16),_xlpm.a,CHOOSE({1,2,3,4,5},H16,K16,N16,Q16,T16),SUM((_xlpm.a>_xlpm.h)*(_xlpm.h<>"")*(_xlpm.a<>"")))) -> 0 | Y16: =IF(OR(V16="",X16=""),"",IF(MAX(V16,X16)<3,"",SUMPRODUCT(--($V$13:V16>$X$13:X16),--(($V$13:V16>=3)+($X$13:X16>=3)>0)))) ->  | Z16: : | AA16: =IF(OR(V16="",X16=""),"",IF(MAX(V16,X16)<3,"",SUMPRODUCT(--($X$13:X16>$V$13:V16),--(($V$13:V16>=3)+($X$13:X16>=3)>0)))) ->  | AI16: =IFERROR(INDEX('EKIPE I IGRAČI'!$C$2:$N$51, ROWS($A$1:A15), MATCH($B$4, 'EKIPE I IGRAČI'!$C$1:$N$1, 0)), "") -> 0 | AJ16: =IFERROR(INDEX('EKIPE I IGRAČI'!$C$2:$N$51, ROWS($A$1:A15), MATCH($E$4, 'EKIPE I IGRAČI'!$C$1:$N$1, 0)), "") -> 0 | AK16: =IFERROR(INDEX('EKIPE I IGRAČI'!$C$2:$N$51, ROWS($A$1:A15), MATCH($B$12, 'EKIPE I IGRAČI'!$C$1:$N$1, 0)), "") -> 1 | AL16: =IFERROR(INDEX('EKIPE I IGRAČI'!$C$2:$N$51, ROWS($A$1:A15), MATCH($E$12, 'EKIPE I IGRAČI'!$C$1:$N$1, 0)), "") -> 0
B17: 0 | C17: PAR | D17: PAR | E17: 0 | G17: : | J17: : | M17: : | P17: : | S17: : | V17: =IF(COUNTA(F17:T17)=0,"",_xlfn.LET(_xlpm.h,CHOOSE({1,2,3,4,5},F17,I17,L17,O17,R17),_xlpm.a,CHOOSE({1,2,3,4,5},H17,K17,N17,Q17,T17),SUM((_xlpm.h>_xlpm.a)*(_xlpm.h<>"")*(_xlpm.a<>"")))) -> 0 | W17: : | X17: =IF(COUNTA(F17:T17)=0,"",_xlfn.LET(_xlpm.h,CHOOSE({1,2,3,4,5},F17,I17,L17,O17,R17),_xlpm.a,CHOOSE({1,2,3,4,5},H17,K17,N17,Q17,T17),SUM((_xlpm.a>_xlpm.h)*(_xlpm.h<>"")*(_xlpm.a<>"")))) -> 0 | Y17: =IF(OR(V17="",X17=""),"",IF(MAX(V17,X17)<3,"",SUMPRODUCT(--($V$13:V17>$X$13:X17),--(($V$13:V17>=3)+($X$13:X17>=3)>0)))) ->  | Z17: : | AA17: =IF(OR(V17="",X17=""),"",IF(MAX(V17,X17)<3,"",SUMPRODUCT(--($X$13:X17>$V$13:V17),--(($V$13:V17>=3)+($X$13:X17>=3)>0)))) ->  | AI17: =IFERROR(INDEX('EKIPE I IGRAČI'!$C$2:$N$51, ROWS($A$1:A16), MATCH($B$4, 'EKIPE I IGRAČI'!$C$1:$N$1, 0)), "") -> 0 | AJ17: =IFERROR(INDEX('EKIPE I IGRAČI'!$C$2:$N$51, ROWS($A$1:A16), MATCH($E$4, 'EKIPE I IGRAČI'!$C$1:$N$1, 0)), "") -> 0 | AK17: =IFERROR(INDEX('EKIPE I IGRAČI'!$C$2:$N$51, ROWS($A$1:A16), MATCH($B$12, 'EKIPE I IGRAČI'!$C$1:$N$1, 0)), "") -> 2 | AL17: =IFERROR(INDEX('EKIPE I IGRAČI'!$C$2:$N$51, ROWS($A$1:A16), MATCH($E$12, 'EKIPE I IGRAČI'!$C$1:$N$1, 0)), "") -> 0
C18: A | D18: Y | G18: : | J18: : | M18: : | P18: : | S18: : | V18: =IF(COUNTA(F18:T18)=0,"",_xlfn.LET(_xlpm.h,CHOOSE({1,2,3,4,5},F18,I18,L18,O18,R18),_xlpm.a,CHOOSE({1,2,3,4,5},H18,K18,N18,Q18,T18),SUM((_xlpm.h>_xlpm.a)*(_xlpm.h<>"")*(_xlpm.a<>"")))) -> 0 | W18: : | X18: =IF(COUNTA(F18:T18)=0,"",_xlfn.LET(_xlpm.h,CHOOSE({1,2,3,4,5},F18,I18,L18,O18,R18),_xlpm.a,CHOOSE({1,2,3,4,5},H18,K18,N18,Q18,T18),SUM((_xlpm.a>_xlpm.h)*(_xlpm.h<>"")*(_xlpm.a<>"")))) -> 0 | Y18: =IF(OR(V18="",X18=""),"",IF(MAX(V18,X18)<3,"",SUMPRODUCT(--($V$13:V18>$X$13:X18),--(($V$13:V18>=3)+($X$13:X18>=3)>0)))) ->  | Z18: : | AA18: =IF(OR(V18="",X18=""),"",IF(MAX(V18,X18)<3,"",SUMPRODUCT(--($X$13:X18>$V$13:V18),--(($V$13:V18>=3)+($X$13:X18>=3)>0)))) ->  | AI18: =IFERROR(INDEX('EKIPE I IGRAČI'!$C$2:$N$51, ROWS($A$1:A17), MATCH($B$4, 'EKIPE I IGRAČI'!$C$1:$N$1, 0)), "") -> 0 | AJ18: =IFERROR(INDEX('EKIPE I IGRAČI'!$C$2:$N$51, ROWS($A$1:A17), MATCH($E$4, 'EKIPE I IGRAČI'!$C$1:$N$1, 0)), "") -> 0 | AK18: =IFERROR(INDEX('EKIPE I IGRAČI'!$C$2:$N$51, ROWS($A$1:A17), MATCH($B$12, 'EKIPE I IGRAČI'!$C$1:$N$1, 0)), "") -> 3 | AL18: =IFERROR(INDEX('EKIPE I IGRAČI'!$C$2:$N$51, ROWS($A$1:A17), MATCH($E$12, 'EKIPE I IGRAČI'!$C$1:$N$1, 0)), "") -> 0
C19: C | D19: X | G19: : | J19: : | M19: : | P19: : | S19: : | V19: =IF(COUNTA(F19:T19)=0,"",_xlfn.LET(_xlpm.h,CHOOSE({1,2,3,4,5},F19,I19,L19,O19,R19),_xlpm.a,CHOOSE({1,2,3,4,5},H19,K19,N19,Q19,T19),SUM((_xlpm.h>_xlpm.a)*(_xlpm.h<>"")*(_xlpm.a<>"")))) -> 0 | W19: : | X19: =IF(COUNTA(F19:T19)=0,"",_xlfn.LET(_xlpm.h,CHOOSE({1,2,3,4,5},F19,I19,L19,O19,R19),_xlpm.a,CHOOSE({1,2,3,4,5},H19,K19,N19,Q19,T19),SUM((_xlpm.a>_xlpm.h)*(_xlpm.h<>"")*(_xlpm.a<>"")))) -> 0 | Y19: =IF(OR(V19="",X19=""),"",IF(MAX(V19,X19)<3,"",SUMPRODUCT(--($V$13:V19>$X$13:X19),--(($V$13:V19>=3)+($X$13:X19>=3)>0)))) ->  | Z19: : | AA19: =IF(OR(V19="",X19=""),"",IF(MAX(V19,X19)<3,"",SUMPRODUCT(--($X$13:X19>$V$13:V19),--(($V$13:V19>=3)+($X$13:X19>=3)>0)))) ->  | AI19: =IFERROR(INDEX('EKIPE I IGRAČI'!$C$2:$N$51, ROWS($A$1:A18), MATCH($B$4, 'EKIPE I IGRAČI'!$C$1:$N$1, 0)), "") -> 0 | AJ19: =IFERROR(INDEX('EKIPE I IGRAČI'!$C$2:$N$51, ROWS($A$1:A18), MATCH($E$4, 'EKIPE I IGRAČI'!$C$1:$N$1, 0)), "") -> 0 | AK19: =IFERROR(INDEX('EKIPE I IGRAČI'!$C$2:$N$51, ROWS($A$1:A18), MATCH($B$12, 'EKIPE I IGRAČI'!$C$1:$N$1, 0)), "") -> 4 | AL19: =IFERROR(INDEX('EKIPE I IGRAČI'!$C$2:$N$51, ROWS($A$1:A18), MATCH($E$12, 'EKIPE I IGRAČI'!$C$1:$N$1, 0)), "") -> 0
C20: B | D20: Z | G20: : | J20: : | M20: : | P20: : | S20: : | V20: =IF(COUNTA(F20:T20)=0,"",_xlfn.LET(_xlpm.h,CHOOSE({1,2,3,4,5},F20,I20,L20,O20,R20),_xlpm.a,CHOOSE({1,2,3,4,5},H20,K20,N20,Q20,T20),SUM((_xlpm.h>_xlpm.a)*(_xlpm.h<>"")*(_xlpm.a<>"")))) -> 0 | W20: : | X20: =IF(COUNTA(F20:T20)=0,"",_xlfn.LET(_xlpm.h,CHOOSE({1,2,3,4,5},F20,I20,L20,O20,R20),_xlpm.a,CHOOSE({1,2,3,4,5},H20,K20,N20,Q20,T20),SUM((_xlpm.a>_xlpm.h)*(_xlpm.h<>"")*(_xlpm.a<>"")))) -> 0 | Y20: =IF(OR(V20="",X20=""),"",IF(MAX(V20,X20)<3,"",SUMPRODUCT(--($V$13:V20>$X$13:X20),--(($V$13:V20>=3)+($X$13:X20>=3)>0)))) ->  | Z20: : | AA20: =IF(OR(V20="",X20=""),"",IF(MAX(V20,X20)<3,"",SUMPRODUCT(--($X$13:X20>$V$13:V20),--(($V$13:V20>=3)+($X$13:X20>=3)>0)))) ->  | AI20: =IFERROR(INDEX('EKIPE I IGRAČI'!$C$2:$N$51, ROWS($A$1:A19), MATCH($B$4, 'EKIPE I IGRAČI'!$C$1:$N$1, 0)), "") -> 0 | AJ20: =IFERROR(INDEX('EKIPE I IGRAČI'!$C$2:$N$51, ROWS($A$1:A19), MATCH($E$4, 'EKIPE I IGRAČI'!$C$1:$N$1, 0)), "") -> 0 | AK20: =IFERROR(INDEX('EKIPE I IGRAČI'!$C$2:$N$51, ROWS($A$1:A19), MATCH($B$12, 'EKIPE I IGRAČI'!$C$1:$N$1, 0)), "") -> 5 | AL20: =IFERROR(INDEX('EKIPE I IGRAČI'!$C$2:$N$51, ROWS($A$1:A19), MATCH($E$12, 'EKIPE I IGRAČI'!$C$1:$N$1, 0)), "") -> 0
B21: =IF(OR(B16="",B17=""),"",IF(B16<B17,B16&" – "&B17,B17&" – "&B16)) -> 0 – 0 | E21: =IF(OR(E16="",E17=""),"",IF(E16<E17,E16&" – "&E17,E17&" – "&E16)) -> 0 – 0 | AI21: =IFERROR(INDEX('EKIPE I IGRAČI'!$C$2:$N$51, ROWS($A$1:A20), MATCH($B$4, 'EKIPE I IGRAČI'!$C$1:$N$1, 0)), "") -> 0 | AJ21: =IFERROR(INDEX('EKIPE I IGRAČI'!$C$2:$N$51, ROWS($A$1:A20), MATCH($E$4, 'EKIPE I IGRAČI'!$C$1:$N$1, 0)), "") -> 0 | AK21: =IFERROR(INDEX('EKIPE I IGRAČI'!$C$2:$N$51, ROWS($A$1:A20), MATCH($B$12, 'EKIPE I IGRAČI'!$C$1:$N$1, 0)), "") -> 6 | AL21: =IFERROR(INDEX('EKIPE I IGRAČI'!$C$2:$N$51, ROWS($A$1:A20), MATCH($E$12, 'EKIPE I IGRAČI'!$C$1:$N$1, 0)), "") -> 0
B22: =B4 -> 0 | C22: : | E22: =E4 -> 0 | F22: =MAX(Y13:Y20) -> 0 | G22: : | H22: =MAX(AA13:AA20) -> 0 | AI22: =IFERROR(INDEX('EKIPE I IGRAČI'!$C$2:$N$51, ROWS($A$1:A21), MATCH($B$4, 'EKIPE I IGRAČI'!$C$1:$N$1, 0)), "") -> 0 | AJ22: =IFERROR(INDEX('EKIPE I IGRAČI'!$C$2:$N$51, ROWS($A$1:A21), MATCH($E$4, 'EKIPE I IGRAČI'!$C$1:$N$1, 0)), "") -> 0 | AK22: =IFERROR(INDEX('EKIPE I IGRAČI'!$C$2:$N$51, ROWS($A$1:A21), MATCH($B$12, 'EKIPE I IGRAČI'!$C$1:$N$1, 0)), "") -> 7 | AL22: =IFERROR(INDEX('EKIPE I IGRAČI'!$C$2:$N$51, ROWS($A$1:A21), MATCH($E$12, 'EKIPE I IGRAČI'!$C$1:$N$1, 0)), "") -> 0
E23: SETOVI | F23: =SUM(V13:V20) -> 0 | G23: : | H23: =SUM(X13:X20) -> 0 | AI23: =IFERROR(INDEX('EKIPE I IGRAČI'!$C$2:$N$51, ROWS($A$1:A22), MATCH($B$4, 'EKIPE I IGRAČI'!$C$1:$N$1, 0)), "") -> 0 | AJ23: =IFERROR(INDEX('EKIPE I IGRAČI'!$C$2:$N$51, ROWS($A$1:A22), MATCH($E$4, 'EKIPE I IGRAČI'!$C$1:$N$1, 0)), "") -> 0 | AK23: =IFERROR(INDEX('EKIPE I IGRAČI'!$C$2:$N$51, ROWS($A$1:A22), MATCH($B$12, 'EKIPE I IGRAČI'!$C$1:$N$1, 0)), "") -> 8 | AL23: =IFERROR(INDEX('EKIPE I IGRAČI'!$C$2:$N$51, ROWS($A$1:A22), MATCH($E$12, 'EKIPE I IGRAČI'!$C$1:$N$1, 0)), "") -> 0
E24: POENI | F24: =SUM(F13:F20, I13:I20, L13:L20, O13:O20, R13:R20) -> 0 | G24: : | H24: =SUM(H13:H20, K13:K20, N13:N20, Q13:Q20, T13:T20) -> 0 | AI24: =IFERROR(INDEX('EKIPE I IGRAČI'!$C$2:$N$51, ROWS($A$1:A23), MATCH($B$4, 'EKIPE I IGRAČI'!$C$1:$N$1, 0)), "") -> 0 | AJ24: =IFERROR(INDEX('EKIPE I IGRAČI'!$C$2:$N$51, ROWS($A$1:A23), MATCH($E$4, 'EKIPE I IGRAČI'!$C$1:$N$1, 0)), "") -> 0 | AK24: =IFERROR(INDEX('EKIPE I IGRAČI'!$C$2:$N$51, ROWS($A$1:A23), MATCH($B$12, 'EKIPE I IGRAČI'!$C$1:$N$1, 0)), "") -> 9 | AL24: =IFERROR(INDEX('EKIPE I IGRAČI'!$C$2:$N$51, ROWS($A$1:A23), MATCH($E$12, 'EKIPE I IGRAČI'!$C$1:$N$1, 0)), "") -> 0
AI25: =IFERROR(INDEX('EKIPE I IGRAČI'!$C$2:$N$51, ROWS($A$1:A24), MATCH($B$4, 'EKIPE I IGRAČI'!$C$1:$N$1, 0)), "") -> 0 | AJ25: =IFERROR(INDEX('EKIPE I IGRAČI'!$C$2:$N$51, ROWS($A$1:A24), MATCH($E$4, 'EKIPE I IGRAČI'!$C$1:$N$1, 0)), "") -> 0 | AK25: =IFERROR(INDEX('EKIPE I IGRAČI'!$C$2:$N$51, ROWS($A$1:A24), MATCH($B$12, 'EKIPE I IGRAČI'!$C$1:$N$1, 0)), "") -> 0 | AL25: =IFERROR(INDEX('EKIPE I IGRAČI'!$C$2:$N$51, ROWS($A$1:A24), MATCH($E$12, 'EKIPE I IGRAČI'!$C$1:$N$1, 0)), "") -> 0
AI26: =IFERROR(INDEX('EKIPE I IGRAČI'!$C$2:$N$51, ROWS($A$1:A25), MATCH($B$4, 'EKIPE I IGRAČI'!$C$1:$N$1, 0)), "") -> 0 | AJ26: =IFERROR(INDEX('EKIPE I IGRAČI'!$C$2:$N$51, ROWS($A$1:A25), MATCH($E$4, 'EKIPE I IGRAČI'!$C$1:$N$1, 0)), "") -> 0 | AK26: =IFERROR(INDEX('EKIPE I IGRAČI'!$C$2:$N$51, ROWS($A$1:A25), MATCH($B$12, 'EKIPE I IGRAČI'!$C$1:$N$1, 0)), "") -> 0 | AL26: =IFERROR(INDEX('EKIPE I IGRAČI'!$C$2:$N$51, ROWS($A$1:A25), MATCH($E$12, 'EKIPE I IGRAČI'!$C$1:$N$1, 0)), "") -> 0
AI27: =IFERROR(INDEX('EKIPE I IGRAČI'!$C$2:$N$51, ROWS($A$1:A26), MATCH($B$4, 'EKIPE I IGRAČI'!$C$1:$N$1, 0)), "") -> 0 | AJ27: =IFERROR(INDEX('EKIPE I IGRAČI'!$C$2:$N$51, ROWS($A$1:A26), MATCH($E$4, 'EKIPE I IGRAČI'!$C$1:$N$1, 0)), "") -> 0 | AK27: =IFERROR(INDEX('EKIPE I IGRAČI'!$C$2:$N$51, ROWS($A$1:A26), MATCH($B$12, 'EKIPE I IGRAČI'!$C$1:$N$1, 0)), "") -> 0 | AL27: =IFERROR(INDEX('EKIPE I IGRAČI'!$C$2:$N$51, ROWS($A$1:A26), MATCH($E$12, 'EKIPE I IGRAČI'!$C$1:$N$1, 0)), "") -> 0
AI28: =IFERROR(INDEX('EKIPE I IGRAČI'!$C$2:$N$51, ROWS($A$1:A27), MATCH($B$4, 'EKIPE I IGRAČI'!$C$1:$N$1, 0)), "") -> 0 | AJ28: =IFERROR(INDEX('EKIPE I IGRAČI'!$C$2:$N$51, ROWS($A$1:A27), MATCH($E$4, 'EKIPE I IGRAČI'!$C$1:$N$1, 0)), "") -> 0 | AK28: =IFERROR(INDEX('EKIPE I IGRAČI'!$C$2:$N$51, ROWS($A$1:A27), MATCH($B$12, 'EKIPE I IGRAČI'!$C$1:$N$1, 0)), "") -> 0 | AL28: =IFERROR(INDEX('EKIPE I IGRAČI'!$C$2:$N$51, ROWS($A$1:A27), MATCH($E$12, 'EKIPE I IGRAČI'!$C$1:$N$1, 0)), "") -> 0
AI29: =IFERROR(INDEX('EKIPE I IGRAČI'!$C$2:$N$51, ROWS($A$1:A28), MATCH($B$4, 'EKIPE I IGRAČI'!$C$1:$N$1, 0)), "") -> 0 | AJ29: =IFERROR(INDEX('EKIPE I IGRAČI'!$C$2:$N$51, ROWS($A$1:A28), MATCH($E$4, 'EKIPE I IGRAČI'!$C$1:$N$1, 0)), "") -> 0 | AK29: =IFERROR(INDEX('EKIPE I IGRAČI'!$C$2:$N$51, ROWS($A$1:A28), MATCH($B$12, 'EKIPE I IGRAČI'!$C$1:$N$1, 0)), "") -> 0 | AL29: =IFERROR(INDEX('EKIPE I IGRAČI'!$C$2:$N$51, ROWS($A$1:A28), MATCH($E$12, 'EKIPE I IGRAČI'!$C$1:$N$1, 0)), "") -> 0
AI30: =IFERROR(INDEX('EKIPE I IGRAČI'!$C$2:$N$51, ROWS($A$1:A29), MATCH($B$4, 'EKIPE I IGRAČI'!$C$1:$N$1, 0)), "") -> 0 | AJ30: =IFERROR(INDEX('EKIPE I IGRAČI'!$C$2:$N$51, ROWS($A$1:A29), MATCH($E$4, 'EKIPE I IGRAČI'!$C$1:$N$1, 0)), "") -> 0 | AK30: =IFERROR(INDEX('EKIPE I IGRAČI'!$C$2:$N$51, ROWS($A$1:A29), MATCH($B$12, 'EKIPE I IGRAČI'!$C$1:$N$1, 0)), "") -> 0 | AL30: =IFERROR(INDEX('EKIPE I IGRAČI'!$C$2:$N$51, ROWS($A$1:A29), MATCH($E$12, 'EKIPE I IGRAČI'!$C$1:$N$1, 0)), "") -> 0
AI31: =IFERROR(INDEX('EKIPE I IGRAČI'!$C$2:$N$51, ROWS($A$1:A30), MATCH($B$4, 'EKIPE I IGRAČI'!$C$1:$N$1, 0)), "") -> 0 | AJ31: =IFERROR(INDEX('EKIPE I IGRAČI'!$C$2:$N$51, ROWS($A$1:A30), MATCH($E$4, 'EKIPE I IGRAČI'!$C$1:$N$1, 0)), "") -> 0 | AK31: =IFERROR(INDEX('EKIPE I IGRAČI'!$C$2:$N$51, ROWS($A$1:A30), MATCH($B$12, 'EKIPE I IGRAČI'!$C$1:$N$1, 0)), "") -> 0 | AL31: =IFERROR(INDEX('EKIPE I IGRAČI'!$C$2:$N$51, ROWS($A$1:A30), MATCH($E$12, 'EKIPE I IGRAČI'!$C$1:$N$1, 0)), "") -> 0
AI32: =IFERROR(INDEX('EKIPE I IGRAČI'!$C$2:$N$51, ROWS($A$1:A31), MATCH($B$4, 'EKIPE I IGRAČI'!$C$1:$N$1, 0)), "") -> 0 | AJ32: =IFERROR(INDEX('EKIPE I IGRAČI'!$C$2:$N$51, ROWS($A$1:A31), MATCH($E$4, 'EKIPE I IGRAČI'!$C$1:$N$1, 0)), "") -> 0 | AK32: =IFERROR(INDEX('EKIPE I IGRAČI'!$C$2:$N$51, ROWS($A$1:A31), MATCH($B$12, 'EKIPE I IGRAČI'!$C$1:$N$1, 0)), "") -> 0 | AL32: =IFERROR(INDEX('EKIPE I IGRAČI'!$C$2:$N$51, ROWS($A$1:A31), MATCH($E$12, 'EKIPE I IGRAČI'!$C$1:$N$1, 0)), "") -> 0
AI33: =IFERROR(INDEX('EKIPE I IGRAČI'!$C$2:$N$51, ROWS($A$1:A32), MATCH($B$4, 'EKIPE I IGRAČI'!$C$1:$N$1, 0)), "") -> 0 | AJ33: =IFERROR(INDEX('EKIPE I IGRAČI'!$C$2:$N$51, ROWS($A$1:A32), MATCH($E$4, 'EKIPE I IGRAČI'!$C$1:$N$1, 0)), "") -> 0 | AK33: =IFERROR(INDEX('EKIPE I IGRAČI'!$C$2:$N$51, ROWS($A$1:A32), MATCH($B$12, 'EKIPE I IGRAČI'!$C$1:$N$1, 0)), "") -> 0 | AL33: =IFERROR(INDEX('EKIPE I IGRAČI'!$C$2:$N$51, ROWS($A$1:A32), MATCH($E$12, 'EKIPE I IGRAČI'!$C$1:$N$1, 0)), "") -> 0
AI34: =IFERROR(INDEX('EKIPE I IGRAČI'!$C$2:$N$51, ROWS($A$1:A33), MATCH($B$4, 'EKIPE I IGRAČI'!$C$1:$N$1, 0)), "") -> 0 | AJ34: =IFERROR(INDEX('EKIPE I IGRAČI'!$C$2:$N$51, ROWS($A$1:A33), MATCH($E$4, 'EKIPE I IGRAČI'!$C$1:$N$1, 0)), "") -> 0 | AK34: =IFERROR(INDEX('EKIPE I IGRAČI'!$C$2:$N$51, ROWS($A$1:A33), MATCH($B$12, 'EKIPE I IGRAČI'!$C$1:$N$1, 0)), "") -> 0 | AL34: =IFERROR(INDEX('EKIPE I IGRAČI'!$C$2:$N$51, ROWS($A$1:A33), MATCH($E$12, 'EKIPE I IGRAČI'!$C$1:$N$1, 0)), "") -> 0
AI35: =IFERROR(INDEX('EKIPE I IGRAČI'!$C$2:$N$51, ROWS($A$1:A34), MATCH($B$4, 'EKIPE I IGRAČI'!$C$1:$N$1, 0)), "") -> 0 | AJ35: =IFERROR(INDEX('EKIPE I IGRAČI'!$C$2:$N$51, ROWS($A$1:A34), MATCH($E$4, 'EKIPE I IGRAČI'!$C$1:$N$1, 0)), "") -> 0 | AK35: =IFERROR(INDEX('EKIPE I IGRAČI'!$C$2:$N$51, ROWS($A$1:A34), MATCH($B$12, 'EKIPE I IGRAČI'!$C$1:$N$1, 0)), "") -> 0 | AL35: =IFERROR(INDEX('EKIPE I IGRAČI'!$C$2:$N$51, ROWS($A$1:A34), MATCH($E$12, 'EKIPE I IGRAČI'!$C$1:$N$1, 0)), "") -> 0
AI36: =IFERROR(INDEX('EKIPE I IGRAČI'!$C$2:$N$51, ROWS($A$1:A35), MATCH($B$4, 'EKIPE I IGRAČI'!$C$1:$N$1, 0)), "") -> 0 | AJ36: =IFERROR(INDEX('EKIPE I IGRAČI'!$C$2:$N$51, ROWS($A$1:A35), MATCH($E$4, 'EKIPE I IGRAČI'!$C$1:$N$1, 0)), "") -> 0 | AK36: =IFERROR(INDEX('EKIPE I IGRAČI'!$C$2:$N$51, ROWS($A$1:A35), MATCH($B$12, 'EKIPE I IGRAČI'!$C$1:$N$1, 0)), "") -> 0 | AL36: =IFERROR(INDEX('EKIPE I IGRAČI'!$C$2:$N$51, ROWS($A$1:A35), MATCH($E$12, 'EKIPE I IGRAČI'!$C$1:$N$1, 0)), "") -> 0
AI37: =IFERROR(INDEX('EKIPE I IGRAČI'!$C$2:$N$51, ROWS($A$1:A36), MATCH($B$4, 'EKIPE I IGRAČI'!$C$1:$N$1, 0)), "") -> 0 | AJ37: =IFERROR(INDEX('EKIPE I IGRAČI'!$C$2:$N$51, ROWS($A$1:A36), MATCH($E$4, 'EKIPE I IGRAČI'!$C$1:$N$1, 0)), "") -> 0 | AK37: =IFERROR(INDEX('EKIPE I IGRAČI'!$C$2:$N$51, ROWS($A$1:A36), MATCH($B$12, 'EKIPE I IGRAČI'!$C$1:$N$1, 0)), "") -> 0 | AL37: =IFERROR(INDEX('EKIPE I IGRAČI'!$C$2:$N$51, ROWS($A$1:A36), MATCH($E$12, 'EKIPE I IGRAČI'!$C$1:$N$1, 0)), "") -> 0
AI38: =IFERROR(INDEX('EKIPE I IGRAČI'!$C$2:$N$51, ROWS($A$1:A37), MATCH($B$4, 'EKIPE I IGRAČI'!$C$1:$N$1, 0)), "") -> 0 | AJ38: =IFERROR(INDEX('EKIPE I IGRAČI'!$C$2:$N$51, ROWS($A$1:A37), MATCH($E$4, 'EKIPE I IGRAČI'!$C$1:$N$1, 0)), "") -> 0 | AK38: =IFERROR(INDEX('EKIPE I IGRAČI'!$C$2:$N$51, ROWS($A$1:A37), MATCH($B$12, 'EKIPE I IGRAČI'!$C$1:$N$1, 0)), "") -> 0 | AL38: =IFERROR(INDEX('EKIPE I IGRAČI'!$C$2:$N$51, ROWS($A$1:A37), MATCH($E$12, 'EKIPE I IGRAČI'!$C$1:$N$1, 0)), "") -> 0
AI39: =IFERROR(INDEX('EKIPE I IGRAČI'!$C$2:$N$51, ROWS($A$1:A38), MATCH($B$4, 'EKIPE I IGRAČI'!$C$1:$N$1, 0)), "") -> 0 | AJ39: =IFERROR(INDEX('EKIPE I IGRAČI'!$C$2:$N$51, ROWS($A$1:A38), MATCH($E$4, 'EKIPE I IGRAČI'!$C$1:$N$1, 0)), "") -> 0 | AK39: =IFERROR(INDEX('EKIPE I IGRAČI'!$C$2:$N$51, ROWS($A$1:A38), MATCH($B$12, 'EKIPE I IGRAČI'!$C$1:$N$1, 0)), "") -> 0 | AL39: =IFERROR(INDEX('EKIPE I IGRAČI'!$C$2:$N$51, ROWS($A$1:A38), MATCH($E$12, 'EKIPE I IGRAČI'!$C$1:$N$1, 0)), "") -> 0
AI40: =IFERROR(INDEX('EKIPE I IGRAČI'!$C$2:$N$51, ROWS($A$1:A39), MATCH($B$4, 'EKIPE I IGRAČI'!$C$1:$N$1, 0)), "") -> 0 | AJ40: =IFERROR(INDEX('EKIPE I IGRAČI'!$C$2:$N$51, ROWS($A$1:A39), MATCH($E$4, 'EKIPE I IGRAČI'!$C$1:$N$1, 0)), "") -> 0 | AK40: =IFERROR(INDEX('EKIPE I IGRAČI'!$C$2:$N$51, ROWS($A$1:A39), MATCH($B$12, 'EKIPE I IGRAČI'!$C$1:$N$1, 0)), "") -> 0 | AL40: =IFERROR(INDEX('EKIPE I IGRAČI'!$C$2:$N$51, ROWS($A$1:A39), MATCH($E$12, 'EKIPE I IGRAČI'!$C$1:$N$1, 0)), "") -> 0
AI41: =IFERROR(INDEX('EKIPE I IGRAČI'!$C$2:$N$51, ROWS($A$1:A40), MATCH($B$4, 'EKIPE I IGRAČI'!$C$1:$N$1, 0)), "") -> 0 | AJ41: =IFERROR(INDEX('EKIPE I IGRAČI'!$C$2:$N$51, ROWS($A$1:A40), MATCH($E$4, 'EKIPE I IGRAČI'!$C$1:$N$1, 0)), "") -> 0 | AK41: =IFERROR(INDEX('EKIPE I IGRAČI'!$C$2:$N$51, ROWS($A$1:A40), MATCH($B$12, 'EKIPE I IGRAČI'!$C$1:$N$1, 0)), "") -> 0 | AL41: =IFERROR(INDEX('EKIPE I IGRAČI'!$C$2:$N$51, ROWS($A$1:A40), MATCH($E$12, 'EKIPE I IGRAČI'!$C$1:$N$1, 0)), "") -> 0
AI42: =IFERROR(INDEX('EKIPE I IGRAČI'!$C$2:$N$51, ROWS($A$1:A41), MATCH($B$4, 'EKIPE I IGRAČI'!$C$1:$N$1, 0)), "") -> 0 | AJ42: =IFERROR(INDEX('EKIPE I IGRAČI'!$C$2:$N$51, ROWS($A$1:A41), MATCH($E$4, 'EKIPE I IGRAČI'!$C$1:$N$1, 0)), "") -> 0 | AK42: =IFERROR(INDEX('EKIPE I IGRAČI'!$C$2:$N$51, ROWS($A$1:A41), MATCH($B$12, 'EKIPE I IGRAČI'!$C$1:$N$1, 0)), "") -> 0 | AL42: =IFERROR(INDEX('EKIPE I IGRAČI'!$C$2:$N$51, ROWS($A$1:A41), MATCH($E$12, 'EKIPE I IGRAČI'!$C$1:$N$1, 0)), "") -> 0
AI43: =IFERROR(INDEX('EKIPE I IGRAČI'!$C$2:$N$51, ROWS($A$1:A42), MATCH($B$4, 'EKIPE I IGRAČI'!$C$1:$N$1, 0)), "") -> 0 | AJ43: =IFERROR(INDEX('EKIPE I IGRAČI'!$C$2:$N$51, ROWS($A$1:A42), MATCH($E$4, 'EKIPE I IGRAČI'!$C$1:$N$1, 0)), "") -> 0 | AK43: =IFERROR(INDEX('EKIPE I IGRAČI'!$C$2:$N$51, ROWS($A$1:A42), MATCH($B$12, 'EKIPE I IGRAČI'!$C$1:$N$1, 0)), "") -> 0 | AL43: =IFERROR(INDEX('EKIPE I IGRAČI'!$C$2:$N$51, ROWS($A$1:A42), MATCH($E$12, 'EKIPE I IGRAČI'!$C$1:$N$1, 0)), "") -> 0
AI44: =IFERROR(INDEX('EKIPE I IGRAČI'!$C$2:$N$51, ROWS($A$1:A43), MATCH($B$4, 'EKIPE I IGRAČI'!$C$1:$N$1, 0)), "") -> 0 | AJ44: =IFERROR(INDEX('EKIPE I IGRAČI'!$C$2:$N$51, ROWS($A$1:A43), MATCH($E$4, 'EKIPE I IGRAČI'!$C$1:$N$1, 0)), "") -> 0 | AK44: =IFERROR(INDEX('EKIPE I IGRAČI'!$C$2:$N$51, ROWS($A$1:A43), MATCH($B$12, 'EKIPE I IGRAČI'!$C$1:$N$1, 0)), "") -> 0 | AL44: =IFERROR(INDEX('EKIPE I IGRAČI'!$C$2:$N$51, ROWS($A$1:A43), MATCH($E$12, 'EKIPE I IGRAČI'!$C$1:$N$1, 0)), "") -> 0
AI45: =IFERROR(INDEX('EKIPE I IGRAČI'!$C$2:$N$51, ROWS($A$1:A44), MATCH($B$4, 'EKIPE I IGRAČI'!$C$1:$N$1, 0)), "") -> 0 | AJ45: =IFERROR(INDEX('EKIPE I IGRAČI'!$C$2:$N$51, ROWS($A$1:A44), MATCH($E$4, 'EKIPE I IGRAČI'!$C$1:$N$1, 0)), "") -> 0 | AK45: =IFERROR(INDEX('EKIPE I IGRAČI'!$C$2:$N$51, ROWS($A$1:A44), MATCH($B$12, 'EKIPE I IGRAČI'!$C$1:$N$1, 0)), "") -> 0 | AL45: =IFERROR(INDEX('EKIPE I IGRAČI'!$C$2:$N$51, ROWS($A$1:A44), MATCH($E$12, 'EKIPE I IGRAČI'!$C$1:$N$1, 0)), "") -> 0
AI46: =IFERROR(INDEX('EKIPE I IGRAČI'!$C$2:$N$51, ROWS($A$1:A45), MATCH($B$4, 'EKIPE I IGRAČI'!$C$1:$N$1, 0)), "") -> 0 | AJ46: =IFERROR(INDEX('EKIPE I IGRAČI'!$C$2:$N$51, ROWS($A$1:A45), MATCH($E$4, 'EKIPE I IGRAČI'!$C$1:$N$1, 0)), "") -> 0 | AK46: =IFERROR(INDEX('EKIPE I IGRAČI'!$C$2:$N$51, ROWS($A$1:A45), MATCH($B$12, 'EKIPE I IGRAČI'!$C$1:$N$1, 0)), "") -> 0 | AL46: =IFERROR(INDEX('EKIPE I IGRAČI'!$C$2:$N$51, ROWS($A$1:A45), MATCH($E$12, 'EKIPE I IGRAČI'!$C$1:$N$1, 0)), "") -> 0
AI47: =IFERROR(INDEX('EKIPE I IGRAČI'!$C$2:$N$51, ROWS($A$1:A46), MATCH($B$4, 'EKIPE I IGRAČI'!$C$1:$N$1, 0)), "") -> 0 | AJ47: =IFERROR(INDEX('EKIPE I IGRAČI'!$C$2:$N$51, ROWS($A$1:A46), MATCH($E$4, 'EKIPE I IGRAČI'!$C$1:$N$1, 0)), "") -> 0 | AK47: =IFERROR(INDEX('EKIPE I IGRAČI'!$C$2:$N$51, ROWS($A$1:A46), MATCH($B$12, 'EKIPE I IGRAČI'!$C$1:$N$1, 0)), "") -> 0 | AL47: =IFERROR(INDEX('EKIPE I IGRAČI'!$C$2:$N$51, ROWS($A$1:A46), MATCH($E$12, 'EKIPE I IGRAČI'!$C$1:$N$1, 0)), "") -> 0
AI48: =IFERROR(INDEX('EKIPE I IGRAČI'!$C$2:$N$51, ROWS($A$1:A47), MATCH($B$4, 'EKIPE I IGRAČI'!$C$1:$N$1, 0)), "") -> 0 | AJ48: =IFERROR(INDEX('EKIPE I IGRAČI'!$C$2:$N$51, ROWS($A$1:A47), MATCH($E$4, 'EKIPE I IGRAČI'!$C$1:$N$1, 0)), "") -> 0 | AK48: =IFERROR(INDEX('EKIPE I IGRAČI'!$C$2:$N$51, ROWS($A$1:A47), MATCH($B$12, 'EKIPE I IGRAČI'!$C$1:$N$1, 0)), "") -> 0 | AL48: =IFERROR(INDEX('EKIPE I IGRAČI'!$C$2:$N$51, ROWS($A$1:A47), MATCH($E$12, 'EKIPE I IGRAČI'!$C$1:$N$1, 0)), "") -> 0
AI49: =IFERROR(INDEX('EKIPE I IGRAČI'!$C$2:$N$51, ROWS($A$1:A48), MATCH($B$4, 'EKIPE I IGRAČI'!$C$1:$N$1, 0)), "") -> 0 | AJ49: =IFERROR(INDEX('EKIPE I IGRAČI'!$C$2:$N$51, ROWS($A$1:A48), MATCH($E$4, 'EKIPE I IGRAČI'!$C$1:$N$1, 0)), "") -> 0 | AK49: =IFERROR(INDEX('EKIPE I IGRAČI'!$C$2:$N$51, ROWS($A$1:A48), MATCH($B$12, 'EKIPE I IGRAČI'!$C$1:$N$1, 0)), "") -> 0 | AL49: =IFERROR(INDEX('EKIPE I IGRAČI'!$C$2:$N$51, ROWS($A$1:A48), MATCH($E$12, 'EKIPE I IGRAČI'!$C$1:$N$1, 0)), "") -> 0
AI50: =IFERROR(INDEX('EKIPE I IGRAČI'!$C$2:$N$51, ROWS($A$1:A49), MATCH($B$4, 'EKIPE I IGRAČI'!$C$1:$N$1, 0)), "") -> 0 | AJ50: =IFERROR(INDEX('EKIPE I IGRAČI'!$C$2:$N$51, ROWS($A$1:A49), MATCH($E$4, 'EKIPE I IGRAČI'!$C$1:$N$1, 0)), "") -> 0 | AK50: =IFERROR(INDEX('EKIPE I IGRAČI'!$C$2:$N$51, ROWS($A$1:A49), MATCH($B$12, 'EKIPE I IGRAČI'!$C$1:$N$1, 0)), "") -> 0 | AL50: =IFERROR(INDEX('EKIPE I IGRAČI'!$C$2:$N$51, ROWS($A$1:A49), MATCH($E$12, 'EKIPE I IGRAČI'!$C$1:$N$1, 0)), "") -> 0
AI51: =IFERROR(INDEX('EKIPE I IGRAČI'!$C$2:$N$51, ROWS($A$1:A50), MATCH($B$4, 'EKIPE I IGRAČI'!$C$1:$N$1, 0)), "") -> 0 | AJ51: =IFERROR(INDEX('EKIPE I IGRAČI'!$C$2:$N$51, ROWS($A$1:A50), MATCH($E$4, 'EKIPE I IGRAČI'!$C$1:$N$1, 0)), "") -> 0 | AK51: =IFERROR(INDEX('EKIPE I IGRAČI'!$C$2:$N$51, ROWS($A$1:A50), MATCH($B$12, 'EKIPE I IGRAČI'!$C$1:$N$1, 0)), "") -> 0 | AL51: =IFERROR(INDEX('EKIPE I IGRAČI'!$C$2:$N$51, ROWS($A$1:A50), MATCH($E$12, 'EKIPE I IGRAČI'!$C$1:$N$1, 0)), "") -> 0

Sheet SUDAC_ZAPISNIK
A1: ŽUPANIJSKA LIGA STSIŽ 2025./2026. | AV1: EDIT
B2: GRAD DOMAĆIN | E2: DVORANA | J2: KOLO | N2: DATUM | T2: SAT | AH2: =SUDAC_EKIPE!$C$1 -> ARENA FERRO | AI2: =IFERROR(INDEX(SUDAC_EKIPE!$C$2:$N$51, ROWS($A$1:A1), MATCH($B$4, SUDAC_EKIPE!$C$1:$N$1, 0)), "") -> 0 | AJ2: =IFERROR(INDEX(SUDAC_EKIPE!$C$2:$N$51, ROWS($A$1:A1), MATCH($E$4, SUDAC_EKIPE!$C$1:$N$1, 0)), "") -> 0 | AK2: =IFERROR(INDEX(SUDAC_EKIPE!$C$2:$N$51, ROWS($A$1:A1), MATCH($B$12, SUDAC_EKIPE!$C$1:$N$1, 0)), "") -> 0 | AL2: =IFERROR(INDEX(SUDAC_EKIPE!$C$2:$N$51, ROWS($A$1:A1), MATCH($E$12, SUDAC_EKIPE!$C$1:$N$1, 0)), "") -> 0
B3: - | E3: - | J3: - | N3: 1. 9. 2025. | AH3: =SUDAC_EKIPE!$D$1 -> BROVINJE 2 | AI3: =IFERROR(INDEX(SUDAC_EKIPE!$C$2:$N$51, ROWS($A$1:A2), MATCH($B$4, SUDAC_EKIPE!$C$1:$N$1, 0)), "") -> 0 | AJ3: =IFERROR(INDEX(SUDAC_EKIPE!$C$2:$N$51, ROWS($A$1:A2), MATCH($E$4, SUDAC_EKIPE!$C$1:$N$1, 0)), "") -> 0 | AK3: =IFERROR(INDEX(SUDAC_EKIPE!$C$2:$N$51, ROWS($A$1:A2), MATCH($B$12, SUDAC_EKIPE!$C$1:$N$1, 0)), "") -> 0 | AL3: =IFERROR(INDEX(SUDAC_EKIPE!$C$2:$N$51, ROWS($A$1:A2), MATCH($E$12, SUDAC_EKIPE!$C$1:$N$1, 0)), "") -> 0
A4: Domaćin | D4: Gost | N4: Gost | AH4: =SUDAC_EKIPE!$E$1 -> BUZET 1 | AI4: =IFERROR(INDEX(SUDAC_EKIPE!$C$2:$N$51, ROWS($A$1:A3), MATCH($B$4, SUDAC_EKIPE!$C$1:$N$1, 0)), "") -> 0 | AJ4: =IFERROR(INDEX(SUDAC_EKIPE!$C$2:$N$51, ROWS($A$1:A3), MATCH($E$4, SUDAC_EKIPE!$C$1:$N$1, 0)), "") -> 0 | AK4: =IFERROR(INDEX(SUDAC_EKIPE!$C$2:$N$51, ROWS($A$1:A3), MATCH($B$12, SUDAC_EKIPE!$C$1:$N$1, 0)), "") -> 0 | AL4: =IFERROR(INDEX(SUDAC_EKIPE!$C$2:$N$51, ROWS($A$1:A3), MATCH($E$12, SUDAC_EKIPE!$C$1:$N$1, 0)), "") -> 0
A5: A | D5: X | AH5: =SUDAC_EKIPE!$F$1 -> BUZET 2 | AI5: =IFERROR(INDEX(SUDAC_EKIPE!$C$2:$N$51, ROWS($A$1:A4), MATCH($B$4, SUDAC_EKIPE!$C$1:$N$1, 0)), "") -> 0 | AJ5: =IFERROR(INDEX(SUDAC_EKIPE!$C$2:$N$51, ROWS($A$1:A4), MATCH($E$4, SUDAC_EKIPE!$C$1:$N$1, 0)), "") -> 0 | AK5: =IFERROR(INDEX(SUDAC_EKIPE!$C$2:$N$51, ROWS($A$1:A4), MATCH($B$12, SUDAC_EKIPE!$C$1:$N$1, 0)), "") -> 0 | AL5: =IFERROR(INDEX(SUDAC_EKIPE!$C$2:$N$51, ROWS($A$1:A4), MATCH($E$12, SUDAC_EKIPE!$C$1:$N$1, 0)), "") -> 0
A6: B | D6: Y | AH6: =SUDAC_EKIPE!$G$1 -> MAESTRAL 2 | AI6: =IFERROR(INDEX(SUDAC_EKIPE!$C$2:$N$51, ROWS($A$1:A5), MATCH($B$4, SUDAC_EKIPE!$C$1:$N$1, 0)), "") -> 0 | AJ6: =IFERROR(INDEX(SUDAC_EKIPE!$C$2:$N$51, ROWS($A$1:A5), MATCH($E$4, SUDAC_EKIPE!$C$1:$N$1, 0)), "") -> 0 | AK6: =IFERROR(INDEX(SUDAC_EKIPE!$C$2:$N$51, ROWS($A$1:A5), MATCH($B$12, SUDAC_EKIPE!$C$1:$N$1, 0)), "") -> 0 | AL6: =IFERROR(INDEX(SUDAC_EKIPE!$C$2:$N$51, ROWS($A$1:A5), MATCH($E$12, SUDAC_EKIPE!$C$1:$N$1, 0)), "") -> 0
A7: C | D7: Z | AH7: =SUDAC_EKIPE!$H$1 -> PAZIN | AI7: =IFERROR(INDEX(SUDAC_EKIPE!$C$2:$N$51, ROWS($A$1:A6), MATCH($B$4, SUDAC_EKIPE!$C$1:$N$1, 0)), "") -> 0 | AJ7: =IFERROR(INDEX(SUDAC_EKIPE!$C$2:$N$51, ROWS($A$1:A6), MATCH($E$4, SUDAC_EKIPE!$C$1:$N$1, 0)), "") -> 0 | AK7: =IFERROR(INDEX(SUDAC_EKIPE!$C$2:$N$51, ROWS($A$1:A6), MATCH($B$12, SUDAC_EKIPE!$C$1:$N$1, 0)), "") -> 0 | AL7: =IFERROR(INDEX(SUDAC_EKIPE!$C$2:$N$51, ROWS($A$1:A6), MATCH($E$12, SUDAC_EKIPE!$C$1:$N$1, 0)), "") -> 0
A8: R1 | D8: R1 | AH8: =SUDAC_EKIPE!$I$1 -> VAL SHARK | AI8: =IFERROR(INDEX(SUDAC_EKIPE!$C$2:$N$51, ROWS($A$1:A7), MATCH($B$4, SUDAC_EKIPE!$C$1:$N$1, 0)), "") -> 0 | AJ8: =IFERROR(INDEX(SUDAC_EKIPE!$C$2:$N$51, ROWS($A$1:A7), MATCH($E$4, SUDAC_EKIPE!$C$1:$N$1, 0)), "") -> 0 | AK8: =IFERROR(INDEX(SUDAC_EKIPE!$C$2:$N$51, ROWS($A$1:A7), MATCH($B$12, SUDAC_EKIPE!$C$1:$N$1, 0)), "") -> 0 | AL8: =IFERROR(INDEX(SUDAC_EKIPE!$C$2:$N$51, ROWS($A$1:A7), MATCH($E$12, SUDAC_EKIPE!$C$1:$N$1, 0)), "") -> 0
A9: R2 | D9: R2 | AH9: =SUDAC_EKIPE!$J$1 -> 0 | AI9: =IFERROR(INDEX(SUDAC_EKIPE!$C$2:$N$51, ROWS($A$1:A8), MATCH($B$4, SUDAC_EKIPE!$C$1:$N$1, 0)), "") -> 0 | AJ9: =IFERROR(INDEX(SUDAC_EKIPE!$C$2:$N$51, ROWS($A$1:A8), MATCH($E$4, SUDAC_EKIPE!$C$1:$N$1, 0)), "") -> 0 | AK9: =IFERROR(INDEX(SUDAC_EKIPE!$C$2:$N$51, ROWS($A$1:A8), MATCH($B$12, SUDAC_EKIPE!$C$1:$N$1, 0)), "") -> 0 | AL9: =IFERROR(INDEX(SUDAC_EKIPE!$C$2:$N$51, ROWS($A$1:A8), MATCH($E$12, SUDAC_EKIPE!$C$1:$N$1, 0)), "") -> 0
AH10: =SUDAC_EKIPE!$K$1 -> 0 | AI10: =IFERROR(INDEX(SUDAC_EKIPE!$C$2:$N$51, ROWS($A$1:A9), MATCH($B$4, SUDAC_EKIPE!$C$1:$N$1, 0)), "") -> 0 | AJ10: =IFERROR(INDEX(SUDAC_EKIPE!$C$2:$N$51, ROWS($A$1:A9), MATCH($E$4, SUDAC_EKIPE!$C$1:$N$1, 0)), "") -> 0 | AK10: =IFERROR(INDEX(SUDAC_EKIPE!$C$2:$N$51, ROWS($A$1:A9), MATCH($B$12, SUDAC_EKIPE!$C$1:$N$1, 0)), "") -> 0 | AL10: =IFERROR(INDEX(SUDAC_EKIPE!$C$2:$N$51, ROWS($A$1:A9), MATCH($E$12, SUDAC_EKIPE!$C$1:$N$1, 0)), "") -> 0
B11: DOMAĆIN | E11: GOST | AH11: =SUDAC_EKIPE!$L$1 -> 0 | AI11: =IFERROR(INDEX(SUDAC_EKIPE!$C$2:$N$51, ROWS($A$1:A10), MATCH($B$4, SUDAC_EKIPE!$C$1:$N$1, 0)), "") -> 0 | AJ11: =IFERROR(INDEX(SUDAC_EKIPE!$C$2:$N$51, ROWS($A$1:A10), MATCH($E$4, SUDAC_EKIPE!$C$1:$N$1, 0)), "") -> 0 | AK11: =IFERROR(INDEX(SUDAC_EKIPE!$C$2:$N$51, ROWS($A$1:A10), MATCH($B$12, SUDAC_EKIPE!$C$1:$N$1, 0)), "") -> 0 | AL11: =IFERROR(INDEX(SUDAC_EKIPE!$C$2:$N$51, ROWS($A$1:A10), MATCH($E$12, SUDAC_EKIPE!$C$1:$N$1, 0)), "") -> 0
AH12: =SUDAC_EKIPE!$M$1 -> 0 | AI12: =IFERROR(INDEX(SUDAC_EKIPE!$C$2:$N$51, ROWS($A$1:A11), MATCH($B$4, SUDAC_EKIPE!$C$1:$N$1, 0)), "") -> 0 | AJ12: =IFERROR(INDEX(SUDAC_EKIPE!$C$2:$N$51, ROWS($A$1:A11), MATCH($E$4, SUDAC_EKIPE!$C$1:$N$1, 0)), "") -> 0 | AK12: =IFERROR(INDEX(SUDAC_EKIPE!$C$2:$N$51, ROWS($A$1:A11), MATCH($B$12, SUDAC_EKIPE!$C$1:$N$1, 0)), "") -> 0 | AL12: =IFERROR(INDEX(SUDAC_EKIPE!$C$2:$N$51, ROWS($A$1:A11), MATCH($E$12, SUDAC_EKIPE!$C$1:$N$1, 0)), "") -> 0
C13: A | D13: X | G13: : | J13: : | M13: : | P13: : | S13: : | V13: =IF(COUNTA(F13:T13)=0,"",_xlfn.LET(_xlpm.h,CHOOSE({1,2,3,4,5},F13,I13,L13,O13,R13),_xlpm.a,CHOOSE({1,2,3,4,5},H13,K13,N13,Q13,T13),SUM((_xlpm.h>_xlpm.a)*(_xlpm.h<>"")*(_xlpm.a<>"")))) -> 0 | W13: : | X13: =IF(COUNTA(F13:T13)=0,"",_xlfn.LET(_xlpm.h,CHOOSE({1,2,3,4,5},F13,I13,L13,O13,R13),_xlpm.a,CHOOSE({1,2,3,4,5},H13,K13,N13,Q13,T13),SUM((_xlpm.a>_xlpm.h)*(_xlpm.h<>"")*(_xlpm.a<>"")))) -> 0 | Y13: =IF(OR(V13="",X13=""),"",IF(MAX(V13,X13)<3,"",SUMPRODUCT(--($V$13:V13>$X$13:X13),--(($V$13:V13>=3)+($X$13:X13>=3)>0)))) ->  | Z13: : | AA13: =IF(OR(V13="",X13=""),"",IF(MAX(V13,X13)<3,"",SUMPRODUCT(--($X$13:X13>$V$13:V13),--(($V$13:V13>=3)+($X$13:X13>=3)>0)))) ->  | AH13: =SUDAC_EKIPE!$N$1 -> 0 | AI13: =IFERROR(INDEX(SUDAC_EKIPE!$C$2:$N$51, ROWS($A$1:A12), MATCH($B$4, SUDAC_EKIPE!$C$1:$N$1, 0)), "") -> 0 | AJ13: =IFERROR(INDEX(SUDAC_EKIPE!$C$2:$N$51, ROWS($A$1:A12), MATCH($E$4, SUDAC_EKIPE!$C$1:$N$1, 0)), "") -> 0 | AK13: =IFERROR(INDEX(SUDAC_EKIPE!$C$2:$N$51, ROWS($A$1:A12), MATCH($B$12, SUDAC_EKIPE!$C$1:$N$1, 0)), "") -> 0 | AL13: =IFERROR(INDEX(SUDAC_EKIPE!$C$2:$N$51, ROWS($A$1:A12), MATCH($E$12, SUDAC_EKIPE!$C$1:$N$1, 0)), "") -> 0
C14: B | D14: Y | G14: : | J14: : | M14: : | P14: : | S14: : | V14: =IF(COUNTA(F14:T14)=0,"",_xlfn.LET(_xlpm.h,CHOOSE({1,2,3,4,5},F14,I14,L14,O14,R14),_xlpm.a,CHOOSE({1,2,3,4,5},H14,K14,N14,Q14,T14),SUM((_xlpm.h>_xlpm.a)*(_xlpm.h<>"")*(_xlpm.a<>"")))) -> 0 | W14: : | X14: =IF(COUNTA(F14:T14)=0,"",_xlfn.LET(_xlpm.h,CHOOSE({1,2,3,4,5},F14,I14,L14,O14,R14),_xlpm.a,CHOOSE({1,2,3,4,5},H14,K14,N14,Q14,T14),SUM((_xlpm.a>_xlpm.h)*(_xlpm.h<>"")*(_xlpm.a<>"")))) -> 0 | Y14: =IF(OR(V14="",X14=""),"",IF(MAX(V14,X14)<3,"",SUMPRODUCT(--($V$13:V14>$X$13:X14),--(($V$13:V14>=3)+($X$13:X14>=3)>0)))) ->  | Z14: : | AA14: =IF(OR(V14="",X14=""),"",IF(MAX(V14,X14)<3,"",SUMPRODUCT(--($X$13:X14>$V$13:V14),--(($V$13:V14>=3)+($X$13:X14>=3)>0)))) ->  | AI14: =IFERROR(INDEX(SUDAC_EKIPE!$C$2:$N$51, ROWS($A$1:A13), MATCH($B$4, SUDAC_EKIPE!$C$1:$N$1, 0)), "") -> 0 | AJ14: =IFERROR(INDEX(SUDAC_EKIPE!$C$2:$N$51, ROWS($A$1:A13), MATCH($E$4, SUDAC_EKIPE!$C$1:$N$1, 0)), "") -> 0 | AK14: =IFERROR(INDEX(SUDAC_EKIPE!$C$2:$N$51, ROWS($A$1:A13), MATCH($B$12, SUDAC_EKIPE!$C$1:$N$1, 0)), "") -> 0 | AL14: =IFERROR(INDEX(SUDAC_EKIPE!$C$2:$N$51, ROWS($A$1:A13), MATCH($E$12, SUDAC_EKIPE!$C$1:$N$1, 0)), "") -> 0
C15: C | D15: Z | G15: : | J15: : | M15: : | P15: : | S15: : | V15: =IF(COUNTA(F15:T15)=0,"",_xlfn.LET(_xlpm.h,CHOOSE({1,2,3,4,5},F15,I15,L15,O15,R15),_xlpm.a,CHOOSE({1,2,3,4,5},H15,K15,N15,Q15,T15),SUM((_xlpm.h>_xlpm.a)*(_xlpm.h<>"")*(_xlpm.a<>"")))) -> 0 | W15: : | X15: =IF(COUNTA(F15:T15)=0,"",_xlfn.LET(_xlpm.h,CHOOSE({1,2,3,4,5},F15,I15,L15,O15,R15),_xlpm.a,CHOOSE({1,2,3,4,5},H15,K15,N15,Q15,T15),SUM((_xlpm.a>_xlpm.h)*(_xlpm.h<>"")*(_xlpm.a<>"")))) -> 0 | Y15: =IF(OR(V15="",X15=""),"",IF(MAX(V15,X15)<3,"",SUMPRODUCT(--($V$13:V15>$X$13:X15),--(($V$13:V15>=3)+($X$13:X15>=3)>0)))) ->  | Z15: : | AA15: =IF(OR(V15="",X15=""),"",IF(MAX(V15,X15)<3,"",SUMPRODUCT(--($X$13:X15>$V$13:V15),--(($V$13:V15>=3)+($X$13:X15>=3)>0)))) ->  | AI15: =IFERROR(INDEX(SUDAC_EKIPE!$C$2:$N$51, ROWS($A$1:A14), MATCH($B$4, SUDAC_EKIPE!$C$1:$N$1, 0)), "") -> 0 | AJ15: =IFERROR(INDEX(SUDAC_EKIPE!$C$2:$N$51, ROWS($A$1:A14), MATCH($E$4, SUDAC_EKIPE!$C$1:$N$1, 0)), "") -> 0 | AK15: =IFERROR(INDEX(SUDAC_EKIPE!$C$2:$N$51, ROWS($A$1:A14), MATCH($B$12, SUDAC_EKIPE!$C$1:$N$1, 0)), "") -> 0 | AL15: =IFERROR(INDEX(SUDAC_EKIPE!$C$2:$N$51, ROWS($A$1:A14), MATCH($E$12, SUDAC_EKIPE!$C$1:$N$1, 0)), "") -> 0
C16: PAR | D16: PAR | G16: : | J16: : | M16: : | P16: : | S16: : | V16: =IF(COUNTA(F16:T16)=0,"",_xlfn.LET(_xlpm.h,CHOOSE({1,2,3,4,5},F16,I16,L16,O16,R16),_xlpm.a,CHOOSE({1,2,3,4,5},H16,K16,N16,Q16,T16),SUM((_xlpm.h>_xlpm.a)*(_xlpm.h<>"")*(_xlpm.a<>"")))) -> 0 | W16: : | X16: =IF(COUNTA(F16:T16)=0,"",_xlfn.LET(_xlpm.h,CHOOSE({1,2,3,4,5},F16,I16,L16,O16,R16),_xlpm.a,CHOOSE({1,2,3,4,5},H16,K16,N16,Q16,T16),SUM((_xlpm.a>_xlpm.h)*(_xlpm.h<>"")*(_xlpm.a<>"")))) -> 0 | Y16: =IF(OR(V16="",X16=""),"",IF(MAX(V16,X16)<3,"",SUMPRODUCT(--($V$13:V16>$X$13:X16),--(($V$13:V16>=3)+($X$13:X16>=3)>0)))) ->  | Z16: : | AA16: =IF(OR(V16="",X16=""),"",IF(MAX(V16,X16)<3,"",SUMPRODUCT(--($X$13:X16>$V$13:V16),--(($V$13:V16>=3)+($X$13:X16>=3)>0)))) ->  | AI16: =IFERROR(INDEX(SUDAC_EKIPE!$C$2:$N$51, ROWS($A$1:A15), MATCH($B$4, SUDAC_EKIPE!$C$1:$N$1, 0)), "") -> 0 | AJ16: =IFERROR(INDEX(SUDAC_EKIPE!$C$2:$N$51, ROWS($A$1:A15), MATCH($E$4, SUDAC_EKIPE!$C$1:$N$1, 0)), "") -> 0 | AK16: =IFERROR(INDEX(SUDAC_EKIPE!$C$2:$N$51, ROWS($A$1:A15), MATCH($B$12, SUDAC_EKIPE!$C$1:$N$1, 0)), "") -> 0 | AL16: =IFERROR(INDEX(SUDAC_EKIPE!$C$2:$N$51, ROWS($A$1:A15), MATCH($E$12, SUDAC_EKIPE!$C$1:$N$1, 0)), "") -> 0
C17: PAR | D17: PAR | G17: : | J17: : | M17: : | P17: : | S17: : | V17: =IF(COUNTA(F17:T17)=0,"",_xlfn.LET(_xlpm.h,CHOOSE({1,2,3,4,5},F17,I17,L17,O17,R17),_xlpm.a,CHOOSE({1,2,3,4,5},H17,K17,N17,Q17,T17),SUM((_xlpm.h>_xlpm.a)*(_xlpm.h<>"")*(_xlpm.a<>"")))) -> 0 | W17: : | X17: =IF(COUNTA(F17:T17)=0,"",_xlfn.LET(_xlpm.h,CHOOSE({1,2,3,4,5},F17,I17,L17,O17,R17),_xlpm.a,CHOOSE({1,2,3,4,5},H17,K17,N17,Q17,T17),SUM((_xlpm.a>_xlpm.h)*(_xlpm.h<>"")*(_xlpm.a<>"")))) -> 0 | Y17: =IF(OR(V17="",X17=""),"",IF(MAX(V17,X17)<3,"",SUMPRODUCT(--($V$13:V17>$X$13:X17),--(($V$13:V17>=3)+($X$13:X17>=3)>0)))) ->  | Z17: : | AA17: =IF(OR(V17="",X17=""),"",IF(MAX(V17,X17)<3,"",SUMPRODUCT(--($X$13:X17>$V$13:V17),--(($V$13:V17>=3)+($X$13:X17>=3)>0)))) ->  | AI17: =IFERROR(INDEX(SUDAC_EKIPE!$C$2:$N$51, ROWS($A$1:A16), MATCH($B$4, SUDAC_EKIPE!$C$1:$N$1, 0)), "") -> 0 | AJ17: =IFERROR(INDEX(SUDAC_EKIPE!$C$2:$N$51, ROWS($A$1:A16), MATCH($E$4, SUDAC_EKIPE!$C$1:$N$1, 0)), "") -> 0 | AK17: =IFERROR(INDEX(SUDAC_EKIPE!$C$2:$N$51, ROWS($A$1:A16), MATCH($B$12, SUDAC_EKIPE!$C$1:$N$1, 0)), "") -> 0 | AL17: =IFERROR(INDEX(SUDAC_EKIPE!$C$2:$N$51, ROWS($A$1:A16), MATCH($E$12, SUDAC_EKIPE!$C$1:$N$1, 0)), "") -> 0
C18: A | D18: Y | G18: : | J18: : | M18: : | P18: : | S18: : | V18: =IF(COUNTA(F18:T18)=0,"",_xlfn.LET(_xlpm.h,CHOOSE({1,2,3,4,5},F18,I18,L18,O18,R18),_xlpm.a,CHOOSE({1,2,3,4,5},H18,K18,N18,Q18,T18),SUM((_xlpm.h>_xlpm.a)*(_xlpm.h<>"")*(_xlpm.a<>"")))) -> 0 | W18: : | X18: =IF(COUNTA(F18:T18)=0,"",_xlfn.LET(_xlpm.h,CHOOSE({1,2,3,4,5},F18,I18,L18,O18,R18),_xlpm.a,CHOOSE({1,2,3,4,5},H18,K18,N18,Q18,T18),SUM((_xlpm.a>_xlpm.h)*(_xlpm.h<>"")*(_xlpm.a<>"")))) -> 0 | Y18: =IF(OR(V18="",X18=""),"",IF(MAX(V18,X18)<3,"",SUMPRODUCT(--($V$13:V18>$X$13:X18),--(($V$13:V18>=3)+($X$13:X18>=3)>0)))) ->  | Z18: : | AA18: =IF(OR(V18="",X18=""),"",IF(MAX(V18,X18)<3,"",SUMPRODUCT(--($X$13:X18>$V$13:V18),--(($V$13:V18>=3)+($X$13:X18>=3)>0)))) ->  | AI18: =IFERROR(INDEX(SUDAC_EKIPE!$C$2:$N$51, ROWS($A$1:A17), MATCH($B$4, SUDAC_EKIPE!$C$1:$N$1, 0)), "") -> 0 | AJ18: =IFERROR(INDEX(SUDAC_EKIPE!$C$2:$N$51, ROWS($A$1:A17), MATCH($E$4, SUDAC_EKIPE!$C$1:$N$1, 0)), "") -> 0 | AK18: =IFERROR(INDEX(SUDAC_EKIPE!$C$2:$N$51, ROWS($A$1:A17), MATCH($B$12, SUDAC_EKIPE!$C$1:$N$1, 0)), "") -> 0 | AL18: =IFERROR(INDEX(SUDAC_EKIPE!$C$2:$N$51, ROWS($A$1:A17), MATCH($E$12, SUDAC_EKIPE!$C$1:$N$1, 0)), "") -> 0
C19: C | D19: X | G19: : | J19: : | M19: : | P19: : | S19: : | V19: =IF(COUNTA(F19:T19)=0,"",_xlfn.LET(_xlpm.h,CHOOSE({1,2,3,4,5},F19,I19,L19,O19,R19),_xlpm.a,CHOOSE({1,2,3,4,5},H19,K19,N19,Q19,T19),SUM((_xlpm.h>_xlpm.a)*(_xlpm.h<>"")*(_xlpm.a<>"")))) -> 0 | W19: : | X19: =IF(COUNTA(F19:T19)=0,"",_xlfn.LET(_xlpm.h,CHOOSE({1,2,3,4,5},F19,I19,L19,O19,R19),_xlpm.a,CHOOSE({1,2,3,4,5},H19,K19,N19,Q19,T19),SUM((_xlpm.a>_xlpm.h)*(_xlpm.h<>"")*(_xlpm.a<>"")))) -> 0 | Y19: =IF(OR(V19="",X19=""),"",IF(MAX(V19,X19)<3,"",SUMPRODUCT(--($V$13:V19>$X$13:X19),--(($V$13:V19>=3)+($X$13:X19>=3)>0)))) ->  | Z19: : | AA19: =IF(OR(V19="",X19=""),"",IF(MAX(V19,X19)<3,"",SUMPRODUCT(--($X$13:X19>$V$13:V19),--(($V$13:V19>=3)+($X$13:X19>=3)>0)))) ->  | AI19: =IFERROR(INDEX(SUDAC_EKIPE!$C$2:$N$51, ROWS($A$1:A18), MATCH($B$4, SUDAC_EKIPE!$C$1:$N$1, 0)), "") -> 0 | AJ19: =IFERROR(INDEX(SUDAC_EKIPE!$C$2:$N$51, ROWS($A$1:A18), MATCH($E$4, SUDAC_EKIPE!$C$1:$N$1, 0)), "") -> 0 | AK19: =IFERROR(INDEX(SUDAC_EKIPE!$C$2:$N$51, ROWS($A$1:A18), MATCH($B$12, SUDAC_EKIPE!$C$1:$N$1, 0)), "") -> 0 | AL19: =IFERROR(INDEX(SUDAC_EKIPE!$C$2:$N$51, ROWS($A$1:A18), MATCH($E$12, SUDAC_EKIPE!$C$1:$N$1, 0)), "") -> 0
C20: B | D20: Z | G20: : | J20: : | M20: : | P20: : | S20: : | V20: =IF(COUNTA(F20:T20)=0,"",_xlfn.LET(_xlpm.h,CHOOSE({1,2,3,4,5},F20,I20,L20,O20,R20),_xlpm.a,CHOOSE({1,2,3,4,5},H20,K20,N20,Q20,T20),SUM((_xlpm.h>_xlpm.a)*(_xlpm.h<>"")*(_xlpm.a<>"")))) -> 0 | W20: : | X20: =IF(COUNTA(F20:T20)=0,"",_xlfn.LET(_xlpm.h,CHOOSE({1,2,3,4,5},F20,I20,L20,O20,R20),_xlpm.a,CHOOSE({1,2,3,4,5},H20,K20,N20,Q20,T20),SUM((_xlpm.a>_xlpm.h)*(_xlpm.h<>"")*(_xlpm.a<>"")))) -> 0 | Y20: =IF(OR(V20="",X20=""),"",IF(MAX(V20,X20)<3,"",SUMPRODUCT(--($V$13:V20>$X$13:X20),--(($V$13:V20>=3)+($X$13:X20>=3)>0)))) ->  | Z20: : | AA20: =IF(OR(V20="",X20=""),"",IF(MAX(V20,X20)<3,"",SUMPRODUCT(--($X$13:X20>$V$13:V20),--(($V$13:V20>=3)+($X$13:X20>=3)>0)))) ->  | AI20: =IFERROR(INDEX(SUDAC_EKIPE!$C$2:$N$51, ROWS($A$1:A19), MATCH($B$4, SUDAC_EKIPE!$C$1:$N$1, 0)), "") -> 0 | AJ20: =IFERROR(INDEX(SUDAC_EKIPE!$C$2:$N$51, ROWS($A$1:A19), MATCH($E$4, SUDAC_EKIPE!$C$1:$N$1, 0)), "") -> 0 | AK20: =IFERROR(INDEX(SUDAC_EKIPE!$C$2:$N$51, ROWS($A$1:A19), MATCH($B$12, SUDAC_EKIPE!$C$1:$N$1, 0)), "") -> 0 | AL20: =IFERROR(INDEX(SUDAC_EKIPE!$C$2:$N$51, ROWS($A$1:A19), MATCH($E$12, SUDAC_EKIPE!$C$1:$N$1, 0)), "") -> 0
AI21: =IFERROR(INDEX(SUDAC_EKIPE!$C$2:$N$51, ROWS($A$1:A20), MATCH($B$4, SUDAC_EKIPE!$C$1:$N$1, 0)), "") -> 0 | AJ21: =IFERROR(INDEX(SUDAC_EKIPE!$C$2:$N$51, ROWS($A$1:A20), MATCH($E$4, SUDAC_EKIPE!$C$1:$N$1, 0)), "") -> 0 | AK21: =IFERROR(INDEX(SUDAC_EKIPE!$C$2:$N$51, ROWS($A$1:A20), MATCH($B$12, SUDAC_EKIPE!$C$1:$N$1, 0)), "") -> 0 | AL21: =IFERROR(INDEX(SUDAC_EKIPE!$C$2:$N$51, ROWS($A$1:A20), MATCH($E$12, SUDAC_EKIPE!$C$1:$N$1, 0)), "") -> 0
B22: =B4 -> 0 | C22: : | E22: =E4 -> 0 | F22: =MAX(Y13:Y20) -> 0 | G22: : | H22: =MAX(AA13:AA20) -> 0 | AI22: =IFERROR(INDEX(SUDAC_EKIPE!$C$2:$N$51, ROWS($A$1:A21), MATCH($B$4, SUDAC_EKIPE!$C$1:$N$1, 0)), "") -> 0 | AJ22: =IFERROR(INDEX(SUDAC_EKIPE!$C$2:$N$51, ROWS($A$1:A21), MATCH($E$4, SUDAC_EKIPE!$C$1:$N$1, 0)), "") -> 0 | AK22: =IFERROR(INDEX(SUDAC_EKIPE!$C$2:$N$51, ROWS($A$1:A21), MATCH($B$12, SUDAC_EKIPE!$C$1:$N$1, 0)), "") -> 0 | AL22: =IFERROR(INDEX(SUDAC_EKIPE!$C$2:$N$51, ROWS($A$1:A21), MATCH($E$12, SUDAC_EKIPE!$C$1:$N$1, 0)), "") -> 0
E23: SETOVI | F23: =SUM(V13:V20) -> 0 | G23: : | H23: =SUM(X13:X20) -> 0 | AI23: =IFERROR(INDEX(SUDAC_EKIPE!$C$2:$N$51, ROWS($A$1:A22), MATCH($B$4, SUDAC_EKIPE!$C$1:$N$1, 0)), "") -> 0 | AJ23: =IFERROR(INDEX(SUDAC_EKIPE!$C$2:$N$51, ROWS($A$1:A22), MATCH($E$4, SUDAC_EKIPE!$C$1:$N$1, 0)), "") -> 0 | AK23: =IFERROR(INDEX(SUDAC_EKIPE!$C$2:$N$51, ROWS($A$1:A22), MATCH($B$12, SUDAC_EKIPE!$C$1:$N$1, 0)), "") -> 0 | AL23: =IFERROR(INDEX(SUDAC_EKIPE!$C$2:$N$51, ROWS($A$1:A22), MATCH($E$12, SUDAC_EKIPE!$C$1:$N$1, 0)), "") -> 0
E24: POENI | F24: =SUM(F13:F20, I13:I20, L13:L20, O13:O20, R13:R20) -> 0 | G24: : | H24: =SUM(H13:H20, K13:K20, N13:N20, Q13:Q20, T13:T20) -> 0 | AI24: =IFERROR(INDEX(SUDAC_EKIPE!$C$2:$N$51, ROWS($A$1:A23), MATCH($B$4, SUDAC_EKIPE!$C$1:$N$1, 0)), "") -> 0 | AJ24: =IFERROR(INDEX(SUDAC_EKIPE!$C$2:$N$51, ROWS($A$1:A23), MATCH($E$4, SUDAC_EKIPE!$C$1:$N$1, 0)), "") -> 0 | AK24: =IFERROR(INDEX(SUDAC_EKIPE!$C$2:$N$51, ROWS($A$1:A23), MATCH($B$12, SUDAC_EKIPE!$C$1:$N$1, 0)), "") -> 0 | AL24: =IFERROR(INDEX(SUDAC_EKIPE!$C$2:$N$51, ROWS($A$1:A23), MATCH($E$12, SUDAC_EKIPE!$C$1:$N$1, 0)), "") -> 0
AI25: =IFERROR(INDEX(SUDAC_EKIPE!$C$2:$N$51, ROWS($A$1:A24), MATCH($B$4, SUDAC_EKIPE!$C$1:$N$1, 0)), "") -> 0 | AJ25: =IFERROR(INDEX(SUDAC_EKIPE!$C$2:$N$51, ROWS($A$1:A24), MATCH($E$4, SUDAC_EKIPE!$C$1:$N$1, 0)), "") -> 0 | AK25: =IFERROR(INDEX(SUDAC_EKIPE!$C$2:$N$51, ROWS($A$1:A24), MATCH($B$12, SUDAC_EKIPE!$C$1:$N$1, 0)), "") -> 0 | AL25: =IFERROR(INDEX(SUDAC_EKIPE!$C$2:$N$51, ROWS($A$1:A24), MATCH($E$12, SUDAC_EKIPE!$C$1:$N$1, 0)), "") -> 0
AI26: =IFERROR(INDEX(SUDAC_EKIPE!$C$2:$N$51, ROWS($A$1:A25), MATCH($B$4, SUDAC_EKIPE!$C$1:$N$1, 0)), "") -> 0 | AJ26: =IFERROR(INDEX(SUDAC_EKIPE!$C$2:$N$51, ROWS($A$1:A25), MATCH($E$4, SUDAC_EKIPE!$C$1:$N$1, 0)), "") -> 0 | AK26: =IFERROR(INDEX(SUDAC_EKIPE!$C$2:$N$51, ROWS($A$1:A25), MATCH($B$12, SUDAC_EKIPE!$C$1:$N$1, 0)), "") -> 0 | AL26: =IFERROR(INDEX(SUDAC_EKIPE!$C$2:$N$51, ROWS($A$1:A25), MATCH($E$12, SUDAC_EKIPE!$C$1:$N$1, 0)), "") -> 0
AI27: =IFERROR(INDEX(SUDAC_EKIPE!$C$2:$N$51, ROWS($A$1:A26), MATCH($B$4, SUDAC_EKIPE!$C$1:$N$1, 0)), "") -> 0 | AJ27: =IFERROR(INDEX(SUDAC_EKIPE!$C$2:$N$51, ROWS($A$1:A26), MATCH($E$4, SUDAC_EKIPE!$C$1:$N$1, 0)), "") -> 0 | AK27: =IFERROR(INDEX(SUDAC_EKIPE!$C$2:$N$51, ROWS($A$1:A26), MATCH($B$12, SUDAC_EKIPE!$C$1:$N$1, 0)), "") -> 0 | AL27: =IFERROR(INDEX(SUDAC_EKIPE!$C$2:$N$51, ROWS($A$1:A26), MATCH($E$12, SUDAC_EKIPE!$C$1:$N$1, 0)), "") -> 0
AI28: =IFERROR(INDEX(SUDAC_EKIPE!$C$2:$N$51, ROWS($A$1:A27), MATCH($B$4, SUDAC_EKIPE!$C$1:$N$1, 0)), "") -> 0 | AJ28: =IFERROR(INDEX(SUDAC_EKIPE!$C$2:$N$51, ROWS($A$1:A27), MATCH($E$4, SUDAC_EKIPE!$C$1:$N$1, 0)), "") -> 0 | AK28: =IFERROR(INDEX(SUDAC_EKIPE!$C$2:$N$51, ROWS($A$1:A27), MATCH($B$12, SUDAC_EKIPE!$C$1:$N$1, 0)), "") -> 0 | AL28: =IFERROR(INDEX(SUDAC_EKIPE!$C$2:$N$51, ROWS($A$1:A27), MATCH($E$12, SUDAC_EKIPE!$C$1:$N$1, 0)), "") -> 0
AI29: =IFERROR(INDEX(SUDAC_EKIPE!$C$2:$N$51, ROWS($A$1:A28), MATCH($B$4, SUDAC_EKIPE!$C$1:$N$1, 0)), "") -> 0 | AJ29: =IFERROR(INDEX(SUDAC_EKIPE!$C$2:$N$51, ROWS($A$1:A28), MATCH($E$4, SUDAC_EKIPE!$C$1:$N$1, 0)), "") -> 0 | AK29: =IFERROR(INDEX(SUDAC_EKIPE!$C$2:$N$51, ROWS($A$1:A28), MATCH($B$12, SUDAC_EKIPE!$C$1:$N$1, 0)), "") -> 0 | AL29: =IFERROR(INDEX(SUDAC_EKIPE!$C$2:$N$51, ROWS($A$1:A28), MATCH($E$12, SUDAC_EKIPE!$C$1:$N$1, 0)), "") -> 0
AI30: =IFERROR(INDEX(SUDAC_EKIPE!$C$2:$N$51, ROWS($A$1:A29), MATCH($B$4, SUDAC_EKIPE!$C$1:$N$1, 0)), "") -> 0 | AJ30: =IFERROR(INDEX(SUDAC_EKIPE!$C$2:$N$51, ROWS($A$1:A29), MATCH($E$4, SUDAC_EKIPE!$C$1:$N$1, 0)), "") -> 0 | AK30: =IFERROR(INDEX(SUDAC_EKIPE!$C$2:$N$51, ROWS($A$1:A29), MATCH($B$12, SUDAC_EKIPE!$C$1:$N$1, 0)), "") -> 0 | AL30: =IFERROR(INDEX(SUDAC_EKIPE!$C$2:$N$51, ROWS($A$1:A29), MATCH($E$12, SUDAC_EKIPE!$C$1:$N$1, 0)), "") -> 0
AI31: =IFERROR(INDEX(SUDAC_EKIPE!$C$2:$N$51, ROWS($A$1:A30), MATCH($B$4, SUDAC_EKIPE!$C$1:$N$1, 0)), "") -> 0 | AJ31: =IFERROR(INDEX(SUDAC_EKIPE!$C$2:$N$51, ROWS($A$1:A30), MATCH($E$4, SUDAC_EKIPE!$C$1:$N$1, 0)), "") -> 0 | AK31: =IFERROR(INDEX(SUDAC_EKIPE!$C$2:$N$51, ROWS($A$1:A30), MATCH($B$12, SUDAC_EKIPE!$C$1:$N$1, 0)), "") -> 0 | AL31: =IFERROR(INDEX(SUDAC_EKIPE!$C$2:$N$51, ROWS($A$1:A30), MATCH($E$12, SUDAC_EKIPE!$C$1:$N$1, 0)), "") -> 0
AI32: =IFERROR(INDEX(SUDAC_EKIPE!$C$2:$N$51, ROWS($A$1:A31), MATCH($B$4, SUDAC_EKIPE!$C$1:$N$1, 0)), "") -> 0 | AJ32: =IFERROR(INDEX(SUDAC_EKIPE!$C$2:$N$51, ROWS($A$1:A31), MATCH($E$4, SUDAC_EKIPE!$C$1:$N$1, 0)), "") -> 0 | AK32: =IFERROR(INDEX(SUDAC_EKIPE!$C$2:$N$51, ROWS($A$1:A31), MATCH($B$12, SUDAC_EKIPE!$C$1:$N$1, 0)), "") -> 0 | AL32: =IFERROR(INDEX(SUDAC_EKIPE!$C$2:$N$51, ROWS($A$1:A31), MATCH($E$12, SUDAC_EKIPE!$C$1:$N$1, 0)), "") -> 0
AI33: =IFERROR(INDEX(SUDAC_EKIPE!$C$2:$N$51, ROWS($A$1:A32), MATCH($B$4, SUDAC_EKIPE!$C$1:$N$1, 0)), "") -> 0 | AJ33: =IFERROR(INDEX(SUDAC_EKIPE!$C$2:$N$51, ROWS($A$1:A32), MATCH($E$4, SUDAC_EKIPE!$C$1:$N$1, 0)), "") -> 0 | AK33: =IFERROR(INDEX(SUDAC_EKIPE!$C$2:$N$51, ROWS($A$1:A32), MATCH($B$12, SUDAC_EKIPE!$C$1:$N$1, 0)), "") -> 0 | AL33: =IFERROR(INDEX(SUDAC_EKIPE!$C$2:$N$51, ROWS($A$1:A32), MATCH($E$12, SUDAC_EKIPE!$C$1:$N$1, 0)), "") -> 0
AI34: =IFERROR(INDEX(SUDAC_EKIPE!$C$2:$N$51, ROWS($A$1:A33), MATCH($B$4, SUDAC_EKIPE!$C$1:$N$1, 0)), "") -> 0 | AJ34: =IFERROR(INDEX(SUDAC_EKIPE!$C$2:$N$51, ROWS($A$1:A33), MATCH($E$4, SUDAC_EKIPE!$C$1:$N$1, 0)), "") -> 0 | AK34: =IFERROR(INDEX(SUDAC_EKIPE!$C$2:$N$51, ROWS($A$1:A33), MATCH($B$12, SUDAC_EKIPE!$C$1:$N$1, 0)), "") -> 0 | AL34: =IFERROR(INDEX(SUDAC_EKIPE!$C$2:$N$51, ROWS($A$1:A33), MATCH($E$12, SUDAC_EKIPE!$C$1:$N$1, 0)), "") -> 0
AI35: =IFERROR(INDEX(SUDAC_EKIPE!$C$2:$N$51, ROWS($A$1:A34), MATCH($B$4, SUDAC_EKIPE!$C$1:$N$1, 0)), "") -> 0 | AJ35: =IFERROR(INDEX(SUDAC_EKIPE!$C$2:$N$51, ROWS($A$1:A34), MATCH($E$4, SUDAC_EKIPE!$C$1:$N$1, 0)), "") -> 0 | AK35: =IFERROR(INDEX(SUDAC_EKIPE!$C$2:$N$51, ROWS($A$1:A34), MATCH($B$12, SUDAC_EKIPE!$C$1:$N$1, 0)), "") -> 0 | AL35: =IFERROR(INDEX(SUDAC_EKIPE!$C$2:$N$51, ROWS($A$1:A34), MATCH($E$12, SUDAC_EKIPE!$C$1:$N$1, 0)), "") -> 0
AI36: =IFERROR(INDEX(SUDAC_EKIPE!$C$2:$N$51, ROWS($A$1:A35), MATCH($B$4, SUDAC_EKIPE!$C$1:$N$1, 0)), "") -> 0 | AJ36: =IFERROR(INDEX(SUDAC_EKIPE!$C$2:$N$51, ROWS($A$1:A35), MATCH($E$4, SUDAC_EKIPE!$C$1:$N$1, 0)), "") -> 0 | AK36: =IFERROR(INDEX(SUDAC_EKIPE!$C$2:$N$51, ROWS($A$1:A35), MATCH($B$12, SUDAC_EKIPE!$C$1:$N$1, 0)), "") -> 0 | AL36: =IFERROR(INDEX(SUDAC_EKIPE!$C$2:$N$51, ROWS($A$1:A35), MATCH($E$12, SUDAC_EKIPE!$C$1:$N$1, 0)), "") -> 0
AI37: =IFERROR(INDEX(SUDAC_EKIPE!$C$2:$N$51, ROWS($A$1:A36), MATCH($B$4, SUDAC_EKIPE!$C$1:$N$1, 0)), "") -> 0 | AJ37: =IFERROR(INDEX(SUDAC_EKIPE!$C$2:$N$51, ROWS($A$1:A36), MATCH($E$4, SUDAC_EKIPE!$C$1:$N$1, 0)), "") -> 0 | AK37: =IFERROR(INDEX(SUDAC_EKIPE!$C$2:$N$51, ROWS($A$1:A36), MATCH($B$12, SUDAC_EKIPE!$C$1:$N$1, 0)), "") -> 0 | AL37: =IFERROR(INDEX(SUDAC_EKIPE!$C$2:$N$51, ROWS($A$1:A36), MATCH($E$12, SUDAC_EKIPE!$C$1:$N$1, 0)), "") -> 0
AI38: =IFERROR(INDEX(SUDAC_EKIPE!$C$2:$N$51, ROWS($A$1:A37), MATCH($B$4, SUDAC_EKIPE!$C$1:$N$1, 0)), "") -> 0 | AJ38: =IFERROR(INDEX(SUDAC_EKIPE!$C$2:$N$51, ROWS($A$1:A37), MATCH($E$4, SUDAC_EKIPE!$C$1:$N$1, 0)), "") -> 0 | AK38: =IFERROR(INDEX(SUDAC_EKIPE!$C$2:$N$51, ROWS($A$1:A37), MATCH($B$12, SUDAC_EKIPE!$C$1:$N$1, 0)), "") -> 0 | AL38: =IFERROR(INDEX(SUDAC_EKIPE!$C$2:$N$51, ROWS($A$1:A37), MATCH($E$12, SUDAC_EKIPE!$C$1:$N$1, 0)), "") -> 0
AI39: =IFERROR(INDEX(SUDAC_EKIPE!$C$2:$N$51, ROWS($A$1:A38), MATCH($B$4, SUDAC_EKIPE!$C$1:$N$1, 0)), "") -> 0 | AJ39: =IFERROR(INDEX(SUDAC_EKIPE!$C$2:$N$51, ROWS($A$1:A38), MATCH($E$4, SUDAC_EKIPE!$C$1:$N$1, 0)), "") -> 0 | AK39: =IFERROR(INDEX(SUDAC_EKIPE!$C$2:$N$51, ROWS($A$1:A38), MATCH($B$12, SUDAC_EKIPE!$C$1:$N$1, 0)), "") -> 0 | AL39: =IFERROR(INDEX(SUDAC_EKIPE!$C$2:$N$51, ROWS($A$1:A38), MATCH($E$12, SUDAC_EKIPE!$C$1:$N$1, 0)), "") -> 0
AI40: =IFERROR(INDEX(SUDAC_EKIPE!$C$2:$N$51, ROWS($A$1:A39), MATCH($B$4, SUDAC_EKIPE!$C$1:$N$1, 0)), "") -> 0 | AJ40: =IFERROR(INDEX(SUDAC_EKIPE!$C$2:$N$51, ROWS($A$1:A39), MATCH($E$4, SUDAC_EKIPE!$C$1:$N$1, 0)), "") -> 0 | AK40: =IFERROR(INDEX(SUDAC_EKIPE!$C$2:$N$51, ROWS($A$1:A39), MATCH($B$12, SUDAC_EKIPE!$C$1:$N$1, 0)), "") -> 0 | AL40: =IFERROR(INDEX(SUDAC_EKIPE!$C$2:$N$51, ROWS($A$1:A39), MATCH($E$12, SUDAC_EKIPE!$C$1:$N$1, 0)), "") -> 0
AI41: =IFERROR(INDEX(SUDAC_EKIPE!$C$2:$N$51, ROWS($A$1:A40), MATCH($B$4, SUDAC_EKIPE!$C$1:$N$1, 0)), "") -> 0 | AJ41: =IFERROR(INDEX(SUDAC_EKIPE!$C$2:$N$51, ROWS($A$1:A40), MATCH($E$4, SUDAC_EKIPE!$C$1:$N$1, 0)), "") -> 0 | AK41: =IFERROR(INDEX(SUDAC_EKIPE!$C$2:$N$51, ROWS($A$1:A40), MATCH($B$12, SUDAC_EKIPE!$C$1:$N$1, 0)), "") -> 0 | AL41: =IFERROR(INDEX(SUDAC_EKIPE!$C$2:$N$51, ROWS($A$1:A40), MATCH($E$12, SUDAC_EKIPE!$C$1:$N$1, 0)), "") -> 0
AI42: =IFERROR(INDEX(SUDAC_EKIPE!$C$2:$N$51, ROWS($A$1:A41), MATCH($B$4, SUDAC_EKIPE!$C$1:$N$1, 0)), "") -> 0 | AJ42: =IFERROR(INDEX(SUDAC_EKIPE!$C$2:$N$51, ROWS($A$1:A41), MATCH($E$4, SUDAC_EKIPE!$C$1:$N$1, 0)), "") -> 0 | AK42: =IFERROR(INDEX(SUDAC_EKIPE!$C$2:$N$51, ROWS($A$1:A41), MATCH($B$12, SUDAC_EKIPE!$C$1:$N$1, 0)), "") -> 0 | AL42: =IFERROR(INDEX(SUDAC_EKIPE!$C$2:$N$51, ROWS($A$1:A41), MATCH($E$12, SUDAC_EKIPE!$C$1:$N$1, 0)), "") -> 0
AI43: =IFERROR(INDEX(SUDAC_EKIPE!$C$2:$N$51, ROWS($A$1:A42), MATCH($B$4, SUDAC_EKIPE!$C$1:$N$1, 0)), "") -> 0 | AJ43: =IFERROR(INDEX(SUDAC_EKIPE!$C$2:$N$51, ROWS($A$1:A42), MATCH($E$4, SUDAC_EKIPE!$C$1:$N$1, 0)), "") -> 0 | AK43: =IFERROR(INDEX(SUDAC_EKIPE!$C$2:$N$51, ROWS($A$1:A42), MATCH($B$12, SUDAC_EKIPE!$C$1:$N$1, 0)), "") -> 0 | AL43: =IFERROR(INDEX(SUDAC_EKIPE!$C$2:$N$51, ROWS($A$1:A42), MATCH($E$12, SUDAC_EKIPE!$C$1:$N$1, 0)), "") -> 0
AI44: =IFERROR(INDEX(SUDAC_EKIPE!$C$2:$N$51, ROWS($A$1:A43), MATCH($B$4, SUDAC_EKIPE!$C$1:$N$1, 0)), "") -> 0 | AJ44: =IFERROR(INDEX(SUDAC_EKIPE!$C$2:$N$51, ROWS($A$1:A43), MATCH($E$4, SUDAC_EKIPE!$C$1:$N$1, 0)), "") -> 0 | AK44: =IFERROR(INDEX(SUDAC_EKIPE!$C$2:$N$51, ROWS($A$1:A43), MATCH($B$12, SUDAC_EKIPE!$C$1:$N$1, 0)), "") -> 0 | AL44: =IFERROR(INDEX(SUDAC_EKIPE!$C$2:$N$51, ROWS($A$1:A43), MATCH($E$12, SUDAC_EKIPE!$C$1:$N$1, 0)), "") -> 0
AI45: =IFERROR(INDEX(SUDAC_EKIPE!$C$2:$N$51, ROWS($A$1:A44), MATCH($B$4, SUDAC_EKIPE!$C$1:$N$1, 0)), "") -> 0 | AJ45: =IFERROR(INDEX(SUDAC_EKIPE!$C$2:$N$51, ROWS($A$1:A44), MATCH($E$4, SUDAC_EKIPE!$C$1:$N$1, 0)), "") -> 0 | AK45: =IFERROR(INDEX(SUDAC_EKIPE!$C$2:$N$51, ROWS($A$1:A44), MATCH($B$12, SUDAC_EKIPE!$C$1:$N$1, 0)), "") -> 0 | AL45: =IFERROR(INDEX(SUDAC_EKIPE!$C$2:$N$51, ROWS($A$1:A44), MATCH($E$12, SUDAC_EKIPE!$C$1:$N$1, 0)), "") -> 0
AI46: =IFERROR(INDEX(SUDAC_EKIPE!$C$2:$N$51, ROWS($A$1:A45), MATCH($B$4, SUDAC_EKIPE!$C$1:$N$1, 0)), "") -> 0 | AJ46: =IFERROR(INDEX(SUDAC_EKIPE!$C$2:$N$51, ROWS($A$1:A45), MATCH($E$4, SUDAC_EKIPE!$C$1:$N$1, 0)), "") -> 0 | AK46: =IFERROR(INDEX(SUDAC_EKIPE!$C$2:$N$51, ROWS($A$1:A45), MATCH($B$12, SUDAC_EKIPE!$C$1:$N$1, 0)), "") -> 0 | AL46: =IFERROR(INDEX(SUDAC_EKIPE!$C$2:$N$51, ROWS($A$1:A45), MATCH($E$12, SUDAC_EKIPE!$C$1:$N$1, 0)), "") -> 0
AI47: =IFERROR(INDEX(SUDAC_EKIPE!$C$2:$N$51, ROWS($A$1:A46), MATCH($B$4, SUDAC_EKIPE!$C$1:$N$1, 0)), "") -> 0 | AJ47: =IFERROR(INDEX(SUDAC_EKIPE!$C$2:$N$51, ROWS($A$1:A46), MATCH($E$4, SUDAC_EKIPE!$C$1:$N$1, 0)), "") -> 0 | AK47: =IFERROR(INDEX(SUDAC_EKIPE!$C$2:$N$51, ROWS($A$1:A46), MATCH($B$12, SUDAC_EKIPE!$C$1:$N$1, 0)), "") -> 0 | AL47: =IFERROR(INDEX(SUDAC_EKIPE!$C$2:$N$51, ROWS($A$1:A46), MATCH($E$12, SUDAC_EKIPE!$C$1:$N$1, 0)), "") -> 0
AI48: =IFERROR(INDEX(SUDAC_EKIPE!$C$2:$N$51, ROWS($A$1:A47), MATCH($B$4, SUDAC_EKIPE!$C$1:$N$1, 0)), "") -> 0 | AJ48: =IFERROR(INDEX(SUDAC_EKIPE!$C$2:$N$51, ROWS($A$1:A47), MATCH($E$4, SUDAC_EKIPE!$C$1:$N$1, 0)), "") -> 0 | AK48: =IFERROR(INDEX(SUDAC_EKIPE!$C$2:$N$51, ROWS($A$1:A47), MATCH($B$12, SUDAC_EKIPE!$C$1:$N$1, 0)), "") -> 0 | AL48: =IFERROR(INDEX(SUDAC_EKIPE!$C$2:$N$51, ROWS($A$1:A47), MATCH($E$12, SUDAC_EKIPE!$C$1:$N$1, 0)), "") -> 0
AI49: =IFERROR(INDEX(SUDAC_EKIPE!$C$2:$N$51, ROWS($A$1:A48), MATCH($B$4, SUDAC_EKIPE!$C$1:$N$1, 0)), "") -> 0 | AJ49: =IFERROR(INDEX(SUDAC_EKIPE!$C$2:$N$51, ROWS($A$1:A48), MATCH($E$4, SUDAC_EKIPE!$C$1:$N$1, 0)), "") -> 0 | AK49: =IFERROR(INDEX(SUDAC_EKIPE!$C$2:$N$51, ROWS($A$1:A48), MATCH($B$12, SUDAC_EKIPE!$C$1:$N$1, 0)), "") -> 0 | AL49: =IFERROR(INDEX(SUDAC_EKIPE!$C$2:$N$51, ROWS($A$1:A48), MATCH($E$12, SUDAC_EKIPE!$C$1:$N$1, 0)), "") -> 0
AI50: =IFERROR(INDEX(SUDAC_EKIPE!$C$2:$N$51, ROWS($A$1:A49), MATCH($B$4, SUDAC_EKIPE!$C$1:$N$1, 0)), "") -> 0 | AJ50: =IFERROR(INDEX(SUDAC_EKIPE!$C$2:$N$51, ROWS($A$1:A49), MATCH($E$4, SUDAC_EKIPE!$C$1:$N$1, 0)), "") -> 0 | AK50: =IFERROR(INDEX(SUDAC_EKIPE!$C$2:$N$51, ROWS($A$1:A49), MATCH($B$12, SUDAC_EKIPE!$C$1:$N$1, 0)), "") -> 0 | AL50: =IFERROR(INDEX(SUDAC_EKIPE!$C$2:$N$51, ROWS($A$1:A49), MATCH($E$12, SUDAC_EKIPE!$C$1:$N$1, 0)), "") -> 0
AI51: =IFERROR(INDEX(SUDAC_EKIPE!$C$2:$N$51, ROWS($A$1:A50), MATCH($B$4, SUDAC_EKIPE!$C$1:$N$1, 0)), "") -> 0 | AJ51: =IFERROR(INDEX(SUDAC_EKIPE!$C$2:$N$51, ROWS($A$1:A50), MATCH($E$4, SUDAC_EKIPE!$C$1:$N$1, 0)), "") -> 0 | AK51: =IFERROR(INDEX(SUDAC_EKIPE!$C$2:$N$51, ROWS($A$1:A50), MATCH($B$12, SUDAC_EKIPE!$C$1:$N$1, 0)), "") -> 0 | AL51: =IFERROR(INDEX(SUDAC_EKIPE!$C$2:$N$51, ROWS($A$1:A50), MATCH($E$12, SUDAC_EKIPE!$C$1:$N$1, 0)), "") -> 0

Sheet ZAPISNIK_1_1 (hidden)
A1: ŽUPANIJSKA LIGA STSIŽ 2025./2026 | AV1: EDIT
B2: GRAD DOMAĆIN | E2: DVORANA | J2: KOLO | N2: DATUM | T2: SAT
B3: PAZIN | E3: Sportska dvorana Pazin | J3: 1. | N3: 18. 10. 2025. | T3: 17:00:00
A4: Domaćin | B4: PAZIN | D4: Gost | E4: MAESTRAL 2
A5: A | B5: GLAVINIĆ Denis | D5: X | E5: MILAKOVIĆ Borna
A6: B | B6: FABRIS Karlo | D6: Y | E6: SINČIĆ Luana
A7: C | B7: LUKEZ Goran | D7: Z | E7: SMAIĆ Bruno
A8: R1 | D8: R1
A9: R2 | D9: R2
B11: DOMAĆIN | E11: GOST
B12: PAZIN | E12: MAESTRAL 2
B13: GLAVINIĆ Denis | C13: A | D13: X | E13: MILAKOVIĆ Borna | F13: 12 | H13: 10 | I13: 11 | K13: 6 | L13: 11 | N13: 9 | V13: =IF(COUNTA(F13:T13)=0,"",_xlfn.LET(_xlpm.h,CHOOSE({1,2,3,4,5},F13,I13,L13,O13,R13),_xlpm.a,CHOOSE({1,2,3,4,5},H13,K13,N13,Q13,T13),SUM((_xlpm.h>_xlpm.a)*(_xlpm.h<>"")*(_xlpm.a<>"")))) -> 3 | W13: : | X13: =IF(COUNTA(F13:T13)=0,"",_xlfn.LET(_xlpm.h,CHOOSE({1,2,3,4,5},F13,I13,L13,O13,R13),_xlpm.a,CHOOSE({1,2,3,4,5},H13,K13,N13,Q13,T13),SUM((_xlpm.a>_xlpm.h)*(_xlpm.h<>"")*(_xlpm.a<>"")))) -> 0 | Y13: =IF(OR(V13="",X13=""),"",IF(MAX(V13,X13)<3,"",SUMPRODUCT(--($V$13:V13>$X$13:X13),--(($V$13:V13>=3)+($X$13:X13>=3)>0)))) -> 1 | Z13: : | AA13: =IF(OR(V13="",X13=""),"",IF(MAX(V13,X13)<3,"",SUMPRODUCT(--($X$13:X13>$V$13:V13),--(($V$13:V13>=3)+($X$13:X13>=3)>0)))) -> 0
B14: FABRIS Karlo | C14: B | D14: Y | E14: SINČIĆ Luana | F14: 6 | H14: 11 | I14: 11 | K14: 5 | L14: 11 | N14: 5 | O14: 11 | Q14: 2 | V14: =IF(COUNTA(F14:T14)=0,"",_xlfn.LET(_xlpm.h,CHOOSE({1,2,3,4,5},F14,I14,L14,O14,R14),_xlpm.a,CHOOSE({1,2,3,4,5},H14,K14,N14,Q14,T14),SUM((_xlpm.h>_xlpm.a)*(_xlpm.h<>"")*(_xlpm.a<>"")))) -> 3 | W14: : | X14: =IF(COUNTA(F14:T14)=0,"",_xlfn.LET(_xlpm.h,CHOOSE({1,2,3,4,5},F14,I14,L14,O14,R14),_xlpm.a,CHOOSE({1,2,3,4,5},H14,K14,N14,Q14,T14),SUM((_xlpm.a>_xlpm.h)*(_xlpm.h<>"")*(_xlpm.a<>"")))) -> 1 | Y14: =IF(OR(V14="",X14=""),"",IF(MAX(V14,X14)<3,"",SUMPRODUCT(--($V$13:V14>$X$13:X14),--(($V$13:V14>=3)+($X$13:X14>=3)>0)))) -> 2 | Z14: : | AA14: =IF(OR(V14="",X14=""),"",IF(MAX(V14,X14)<3,"",SUMPRODUCT(--($X$13:X14>$V$13:V14),--(($V$13:V14>=3)+($X$13:X14>=3)>0)))) -> 0
B15: LUKEZ Goran | C15: C | D15: Z | E15: SMAIĆ Bruno | F15: 9 | H15: 11 | I15: 11 | K15: 2 | L15: 11 | N15: 8 | O15: 11 | Q15: 5 | V15: =IF(COUNTA(F15:T15)=0,"",_xlfn.LET(_xlpm.h,CHOOSE({1,2,3,4,5},F15,I15,L15,O15,R15),_xlpm.a,CHOOSE({1,2,3,4,5},H15,K15,N15,Q15,T15),SUM((_xlpm.h>_xlpm.a)*(_xlpm.h<>"")*(_xlpm.a<>"")))) -> 3 | W15: : | X15: =IF(COUNTA(F15:T15)=0,"",_xlfn.LET(_xlpm.h,CHOOSE({1,2,3,4,5},F15,I15,L15,O15,R15),_xlpm.a,CHOOSE({1,2,3,4,5},H15,K15,N15,Q15,T15),SUM((_xlpm.a>_xlpm.h)*(_xlpm.h<>"")*(_xlpm.a<>"")))) -> 1 | Y15: =IF(OR(V15="",X15=""),"",IF(MAX(V15,X15)<3,"",SUMPRODUCT(--($V$13:V15>$X$13:X15),--(($V$13:V15>=3)+($X$13:X15>=3)>0)))) -> 3 | Z15: : | AA15: =IF(OR(V15="",X15=""),"",IF(MAX(V15,X15)<3,"",SUMPRODUCT(--($X$13:X15>$V$13:V15),--(($V$13:V15>=3)+($X$13:X15>=3)>0)))) -> 0
B16: GLAVINIĆ D., LUKEZ G. | C16: PAR | D16: PAR | E16: MILAKOVIĆ B., SINČIĆ L. | F16: 11 | H16: 6 | I16: 11 | K16: 7 | L16: 11 | N16: 5 | V16: =IF(COUNTA(F16:T16)=0,"",_xlfn.LET(_xlpm.h,CHOOSE({1,2,3,4,5},F16,I16,L16,O16,R16),_xlpm.a,CHOOSE({1,2,3,4,5},H16,K16,N16,Q16,T16),SUM((_xlpm.h>_xlpm.a)*(_xlpm.h<>"")*(_xlpm.a<>"")))) -> 3 | W16: : | X16: =IF(COUNTA(F16:T16)=0,"",_xlfn.LET(_xlpm.h,CHOOSE({1,2,3,4,5},F16,I16,L16,O16,R16),_xlpm.a,CHOOSE({1,2,3,4,5},H16,K16,N16,Q16,T16),SUM((_xlpm.a>_xlpm.h)*(_xlpm.h<>"")*(_xlpm.a<>"")))) -> 0 | Y16: =IF(OR(V16="",X16=""),"",IF(MAX(V16,X16)<3,"",SUMPRODUCT(--($V$13:V16>$X$13:X16),--(($V$13:V16>=3)+($X$13:X16>=3)>0)))) -> 4 | Z16: : | AA16: =IF(OR(V16="",X16=""),"",IF(MAX(V16,X16)<3,"",SUMPRODUCT(--($X$13:X16>$V$13:V16),--(($V$13:V16>=3)+($X$13:X16>=3)>0)))) -> 0
B17: 1 | V17: =IF(COUNTA(F17:T17)=0,"",_xlfn.LET(_xlpm.h,CHOOSE({1,2,3,4,5},F17,I17,L17,O17,R17),_xlpm.a,CHOOSE({1,2,3,4,5},H17,K17,N17,Q17,T17),SUM((_xlpm.h>_xlpm.a)*(_xlpm.h<>"")*(_xlpm.a<>"")))) ->  | W17: : | X17: =IF(COUNTA(F17:T17)=0,"",_xlfn.LET(_xlpm.h,CHOOSE({1,2,3,4,5},F17,I17,L17,O17,R17),_xlpm.a,CHOOSE({1,2,3,4,5},H17,K17,N17,Q17,T17),SUM((_xlpm.a>_xlpm.h)*(_xlpm.h<>"")*(_xlpm.a<>"")))) ->  | Y17: =IF(OR(V17="",X17=""),"",IF(MAX(V17,X17)<3,"",SUMPRODUCT(--($V$13:V17>$X$13:X17),--(($V$13:V17>=3)+($X$13:X17>=3)>0)))) ->  | Z17: : | AA17: =IF(OR(V17="",X17=""),"",IF(MAX(V17,X17)<3,"",SUMPRODUCT(--($X$13:X17>$V$13:V17),--(($V$13:V17>=3)+($X$13:X17>=3)>0)))) -> 
C18: A | D18: Y | V18: =IF(COUNTA(F18:T18)=0,"",_xlfn.LET(_xlpm.h,CHOOSE({1,2,3,4,5},F18,I18,L18,O18,R18),_xlpm.a,CHOOSE({1,2,3,4,5},H18,K18,N18,Q18,T18),SUM((_xlpm.h>_xlpm.a)*(_xlpm.h<>"")*(_xlpm.a<>"")))) ->  | W18: : | X18: =IF(COUNTA(F18:T18)=0,"",_xlfn.LET(_xlpm.h,CHOOSE({1,2,3,4,5},F18,I18,L18,O18,R18),_xlpm.a,CHOOSE({1,2,3,4,5},H18,K18,N18,Q18,T18),SUM((_xlpm.a>_xlpm.h)*(_xlpm.h<>"")*(_xlpm.a<>"")))) ->  | Y18: =IF(OR(V18="",X18=""),"",IF(MAX(V18,X18)<3,"",SUMPRODUCT(--($V$13:V18>$X$13:X18),--(($V$13:V18>=3)+($X$13:X18>=3)>0)))) ->  | Z18: : | AA18: =IF(OR(V18="",X18=""),"",IF(MAX(V18,X18)<3,"",SUMPRODUCT(--($X$13:X18>$V$13:V18),--(($V$13:V18>=3)+($X$13:X18>=3)>0)))) -> 
C19: C | D19: X | V19: =IF(COUNTA(F19:T19)=0,"",_xlfn.LET(_xlpm.h,CHOOSE({1,2,3,4,5},F19,I19,L19,O19,R19),_xlpm.a,CHOOSE({1,2,3,4,5},H19,K19,N19,Q19,T19),SUM((_xlpm.h>_xlpm.a)*(_xlpm.h<>"")*(_xlpm.a<>"")))) ->  | W19: : | X19: =IF(COUNTA(F19:T19)=0,"",_xlfn.LET(_xlpm.h,CHOOSE({1,2,3,4,5},F19,I19,L19,O19,R19),_xlpm.a,CHOOSE({1,2,3,4,5},H19,K19,N19,Q19,T19),SUM((_xlpm.a>_xlpm.h)*(_xlpm.h<>"")*(_xlpm.a<>"")))) ->  | Y19: =IF(OR(V19="",X19=""),"",IF(MAX(V19,X19)<3,"",SUMPRODUCT(--($V$13:V19>$X$13:X19),--(($V$13:V19>=3)+($X$13:X19>=3)>0)))) ->  | Z19: : | AA19: =IF(OR(V19="",X19=""),"",IF(MAX(V19,X19)<3,"",SUMPRODUCT(--($X$13:X19>$V$13:V19),--(($V$13:V19>=3)+($X$13:X19>=3)>0)))) -> 
C20: B | D20: Z | V20: =IF(COUNTA(F20:T20)=0,"",_xlfn.LET(_xlpm.h,CHOOSE({1,2,3,4,5},F20,I20,L20,O20,R20),_xlpm.a,CHOOSE({1,2,3,4,5},H20,K20,N20,Q20,T20),SUM((_xlpm.h>_xlpm.a)*(_xlpm.h<>"")*(_xlpm.a<>"")))) ->  | W20: : | X20: =IF(COUNTA(F20:T20)=0,"",_xlfn.LET(_xlpm.h,CHOOSE({1,2,3,4,5},F20,I20,L20,O20,R20),_xlpm.a,CHOOSE({1,2,3,4,5},H20,K20,N20,Q20,T20),SUM((_xlpm.a>_xlpm.h)*(_xlpm.h<>"")*(_xlpm.a<>"")))) ->  | Y20: =IF(OR(V20="",X20=""),"",IF(MAX(V20,X20)<3,"",SUMPRODUCT(--($V$13:V20>$X$13:X20),--(($V$13:V20>=3)+($X$13:X20>=3)>0)))) ->  | Z20: : | AA20: =IF(OR(V20="",X20=""),"",IF(MAX(V20,X20)<3,"",SUMPRODUCT(--($X$13:X20>$V$13:V20),--(($V$13:V20>=3)+($X$13:X20>=3)>0)))) -> 
B22: =B4 -> PAZIN | C22: : | E22: =E4 -> MAESTRAL 2 | F22: =MAX(Y13:Y20) -> 4 | G22: : | H22: =MAX(AA13:AA20) -> 0
E23: SETOVI | F23: =SUM(V13:V20) -> 12 | G23: : | H23: =SUM(X13:X20) -> 2
E24: POENI | F24: =SUM(F13:F20, I13:I20, L13:L20, O13:O20, R13:R20) -> 148 | G24: : | H24: =SUM(H13:H20, K13:K20, N13:N20, Q13:Q20, T13:T20) -> 92

Sheet ZAPISNIK_1_2 (hidden)
A1: ŽUPANIJSKA LIGA STSIŽ 2025./2026 | AV1: EDIT
B2: GRAD DOMAĆIN | E2: DVORANA | J2: KOLO | N2: DATUM | T2: SAT
B3: BUZET | E3: SD Buzet | J3: 1. | N3: 7. 10. 2025. | T3: 20:30:00
A4: Domaćin | B4: BUZET 1 | D4: Gost | E4: BUZET 2
A5: A | B5: PAULUS Michael | D5: X | E5: DRAŠĆIĆ Petar
A6: B | B6: BERDNYK Stanislav | D6: Y | E6: PAVLETIĆ Guido
A7: C | B7: SIROTIĆ Kevin | D7: Z | E7: KOS Dino
A8: R1 | D8: R1
A9: R2 | D9: R2
B11: DOMAĆIN | E11: GOST
B12: BUZET 1 | E12: BUZET 2
B13: PAULUS Michael | C13: A | D13: X | E13: DRAŠĆIĆ Petar | F13: 11 | G13: : | H13: 13 | I13: 7 | J13: : | K13: 11 | L13: 5 | M13: : | N13: 11 | P13: : | S13: : | V13: =IF(COUNTA(F13:T13)=0,"",_xlfn.LET(_xlpm.h,CHOOSE({1,2,3,4,5},F13,I13,L13,O13,R13),_xlpm.a,CHOOSE({1,2,3,4,5},H13,K13,N13,Q13,T13),SUM((_xlpm.h>_xlpm.a)*(_xlpm.h<>"")*(_xlpm.a<>"")))) -> 0 | W13: : | X13: =IF(COUNTA(F13:T13)=0,"",_xlfn.LET(_xlpm.h,CHOOSE({1,2,3,4,5},F13,I13,L13,O13,R13),_xlpm.a,CHOOSE({1,2,3,4,5},H13,K13,N13,Q13,T13),SUM((_xlpm.a>_xlpm.h)*(_xlpm.h<>"")*(_xlpm.a<>"")))) -> 3 | Y13: =IF(OR(V13="",X13=""),"",IF(MAX(V13,X13)<3,"",SUMPRODUCT(--($V$13:V13>$X$13:X13),--(($V$13:V13>=3)+($X$13:X13>=3)>0)))) -> 0 | Z13: : | AA13: =IF(OR(V13="",X13=""),"",IF(MAX(V13,X13)<3,"",SUMPRODUCT(--($X$13:X13>$V$13:V13),--(($V$13:V13>=3)+($X$13:X13>=3)>0)))) -> 1
B14: BERDNYK Stanislav | C14: B | D14: Y | E14: PAVLETIĆ Guido | F14: 11 | G14: : | H14: 4 | I14: 11 | J14: : | K14: 8 | L14: 11 | M14: : | N14: 7 | P14: : | S14: : | V14: =IF(COUNTA(F14:T14)=0,"",_xlfn.LET(_xlpm.h,CHOOSE({1,2,3,4,5},F14,I14,L14,O14,R14),_xlpm.a,CHOOSE({1,2,3,4,5},H14,K14,N14,Q14,T14),SUM((_xlpm.h>_xlpm.a)*(_xlpm.h<>"")*(_xlpm.a<>"")))) -> 3 | W14: : | X14: =IF(COUNTA(F14:T14)=0,"",_xlfn.LET(_xlpm.h,CHOOSE({1,2,3,4,5},F14,I14,L14,O14,R14),_xlpm.a,CHOOSE({1,2,3,4,5},H14,K14,N14,Q14,T14),SUM((_xlpm.a>_xlpm.h)*(_xlpm.h<>"")*(_xlpm.a<>"")))) -> 0 | Y14: =IF(OR(V14="",X14=""),"",IF(MAX(V14,X14)<3,"",SUMPRODUCT(--($V$13:V14>$X$13:X14),--(($V$13:V14>=3)+($X$13:X14>=3)>0)))) -> 1 | Z14: : | AA14: =IF(OR(V14="",X14=""),"",IF(MAX(V14,X14)<3,"",SUMPRODUCT(--($X$13:X14>$V$13:V14),--(($V$13:V14>=3)+($X$13:X14>=3)>0)))) -> 1
B15: SIROTIĆ Kevin | C15: C | D15: Z | E15: KOS Dino | F15: 11 | G15: : | H15: 6 | I15: 13 | J15: : | K15: 11 | L15: 11 | M15: : | N15: 8 | P15: : | S15: : | V15: =IF(COUNTA(F15:T15)=0,"",_xlfn.LET(_xlpm.h,CHOOSE({1,2,3,4,5},F15,I15,L15,O15,R15),_xlpm.a,CHOOSE({1,2,3,4,5},H15,K15,N15,Q15,T15),SUM((_xlpm.h>_xlpm.a)*(_xlpm.h<>"")*(_xlpm.a<>"")))) -> 3 | W15: : | X15: =IF(COUNTA(F15:T15)=0,"",_xlfn.LET(_xlpm.h,CHOOSE({1,2,3,4,5},F15,I15,L15,O15,R15),_xlpm.a,CHOOSE({1,2,3,4,5},H15,K15,N15,Q15,T15),SUM((_xlpm.a>_xlpm.h)*(_xlpm.h<>"")*(_xlpm.a<>"")))) -> 0 | Y15: =IF(OR(V15="",X15=""),"",IF(MAX(V15,X15)<3,"",SUMPRODUCT(--($V$13:V15>$X$13:X15),--(($V$13:V15>=3)+($X$13:X15>=3)>0)))) -> 2 | Z15: : | AA15: =IF(OR(V15="",X15=""),"",IF(MAX(V15,X15)<3,"",SUMPRODUCT(--($X$13:X15>$V$13:V15),--(($V$13:V15>=3)+($X$13:X15>=3)>0)))) -> 1
B16: BERDNYK S., PAULUS M. | C16: PAR | D16: PAR | E16: DRAŠĆIĆ P., PAVLETIĆ G. | F16: 11 | G16: : | H16: 4 | I16: 12 | J16: : | K16: 10 | L16: 11 | M16: : | N16: 5 | P16: : | S16: : | V16: =IF(COUNTA(F16:T16)=0,"",_xlfn.LET(_xlpm.h,CHOOSE({1,2,3,4,5},F16,I16,L16,O16,R16),_xlpm.a,CHOOSE({1,2,3,4,5},H16,K16,N16,Q16,T16),SUM((_xlpm.h>_xlpm.a)*(_xlpm.h<>"")*(_xlpm.a<>"")))) -> 3 | W16: : | X16: =IF(COUNTA(F16:T16)=0,"",_xlfn.LET(_xlpm.h,CHOOSE({1,2,3,4,5},F16,I16,L16,O16,R16),_xlpm.a,CHOOSE({1,2,3,4,5},H16,K16,N16,Q16,T16),SUM((_xlpm.a>_xlpm.h)*(_xlpm.h<>"")*(_xlpm.a<>"")))) -> 0 | Y16: =IF(OR(V16="",X16=""),"",IF(MAX(V16,X16)<3,"",SUMPRODUCT(--($V$13:V16>$X$13:X16),--(($V$13:V16>=3)+($X$13:X16>=3)>0)))) -> 3 | Z16: : | AA16: =IF(OR(V16="",X16=""),"",IF(MAX(V16,X16)<3,"",SUMPRODUCT(--($X$13:X16>$V$13:V16),--(($V$13:V16>=3)+($X$13:X16>=3)>0)))) -> 1
V17: =IF(COUNTA(F17:T17)=0,"",_xlfn.LET(_xlpm.h,CHOOSE({1,2,3,4,5},F17,I17,L17,O17,R17),_xlpm.a,CHOOSE({1,2,3,4,5},H17,K17,N17,Q17,T17),SUM((_xlpm.h>_xlpm.a)*(_xlpm.h<>"")*(_xlpm.a<>"")))) ->  | W17: : | X17: =IF(COUNTA(F17:T17)=0,"",_xlfn.LET(_xlpm.h,CHOOSE({1,2,3,4,5},F17,I17,L17,O17,R17),_xlpm.a,CHOOSE({1,2,3,4,5},H17,K17,N17,Q17,T17),SUM((_xlpm.a>_xlpm.h)*(_xlpm.h<>"")*(_xlpm.a<>"")))) ->  | Y17: =IF(OR(V17="",X17=""),"",IF(MAX(V17,X17)<3,"",SUMPRODUCT(--($V$13:V17>$X$13:X17),--(($V$13:V17>=3)+($X$13:X17>=3)>0)))) ->  | Z17: : | AA17: =IF(OR(V17="",X17=""),"",IF(MAX(V17,X17)<3,"",SUMPRODUCT(--($X$13:X17>$V$13:V17),--(($V$13:V17>=3)+($X$13:X17>=3)>0)))) -> 
B18: PAULUS Michael | C18: A | D18: Y | E18: PAVLETIĆ Guido | F18: 10 | G18: : | H18: 12 | I18: 11 | J18: : | K18: 5 | L18: 11 | M18: : | N18: 9 | O18: 11 | P18: : | Q18: 4 | S18: : | V18: =IF(COUNTA(F18:T18)=0,"",_xlfn.LET(_xlpm.h,CHOOSE({1,2,3,4,5},F18,I18,L18,O18,R18),_xlpm.a,CHOOSE({1,2,3,4,5},H18,K18,N18,Q18,T18),SUM((_xlpm.h>_xlpm.a)*(_xlpm.h<>"")*(_xlpm.a<>"")))) -> 3 | W18: : | X18: =IF(COUNTA(F18:T18)=0,"",_xlfn.LET(_xlpm.h,CHOOSE({1,2,3,4,5},F18,I18,L18,O18,R18),_xlpm.a,CHOOSE({1,2,3,4,5},H18,K18,N18,Q18,T18),SUM((_xlpm.a>_xlpm.h)*(_xlpm.h<>"")*(_xlpm.a<>"")))) -> 1 | Y18: =IF(OR(V18="",X18=""),"",IF(MAX(V18,X18)<3,"",SUMPRODUCT(--($V$13:V18>$X$13:X18),--(($V$13:V18>=3)+($X$13:X18>=3)>0)))) -> 4 | Z18: : | AA18: =IF(OR(V18="",X18=""),"",IF(MAX(V18,X18)<3,"",SUMPRODUCT(--($X$13:X18>$V$13:V18),--(($V$13:V18>=3)+($X$13:X18>=3)>0)))) -> 1
C19: C | D19: X | G19: : | J19: : | M19: : | P19: : | S19: : | V19: =IF(COUNTA(F19:T19)=0,"",_xlfn.LET(_xlpm.h,CHOOSE({1,2,3,4,5},F19,I19,L19,O19,R19),_xlpm.a,CHOOSE({1,2,3,4,5},H19,K19,N19,Q19,T19),SUM((_xlpm.h>_xlpm.a)*(_xlpm.h<>"")*(_xlpm.a<>"")))) -> 0 | W19: : | X19: =IF(COUNTA(F19:T19)=0,"",_xlfn.LET(_xlpm.h,CHOOSE({1,2,3,4,5},F19,I19,L19,O19,R19),_xlpm.a,CHOOSE({1,2,3,4,5},H19,K19,N19,Q19,T19),SUM((_xlpm.a>_xlpm.h)*(_xlpm.h<>"")*(_xlpm.a<>"")))) -> 0 | Y19: =IF(OR(V19="",X19=""),"",IF(MAX(V19,X19)<3,"",SUMPRODUCT(--($V$13:V19>$X$13:X19),--(($V$13:V19>=3)+($X$13:X19>=3)>0)))) ->  | Z19: : | AA19: =IF(OR(V19="",X19=""),"",IF(MAX(V19,X19)<3,"",SUMPRODUCT(--($X$13:X19>$V$13:V19),--(($V$13:V19>=3)+($X$13:X19>=3)>0)))) -> 
C20: B | D20: Z | G20: : | J20: : | M20: : | P20: : | S20: : | V20: =IF(COUNTA(F20:T20)=0,"",_xlfn.LET(_xlpm.h,CHOOSE({1,2,3,4,5},F20,I20,L20,O20,R20),_xlpm.a,CHOOSE({1,2,3,4,5},H20,K20,N20,Q20,T20),SUM((_xlpm.h>_xlpm.a)*(_xlpm.h<>"")*(_xlpm.a<>"")))) -> 0 | W20: : | X20: =IF(COUNTA(F20:T20)=0,"",_xlfn.LET(_xlpm.h,CHOOSE({1,2,3,4,5},F20,I20,L20,O20,R20),_xlpm.a,CHOOSE({1,2,3,4,5},H20,K20,N20,Q20,T20),SUM((_xlpm.a>_xlpm.h)*(_xlpm.h<>"")*(_xlpm.a<>"")))) -> 0 | Y20: =IF(OR(V20="",X20=""),"",IF(MAX(V20,X20)<3,"",SUMPRODUCT(--($V$13:V20>$X$13:X20),--(($V$13:V20>=3)+($X$13:X20>=3)>0)))) ->  | Z20: : | AA20: =IF(OR(V20="",X20=""),"",IF(MAX(V20,X20)<3,"",SUMPRODUCT(--($X$13:X20>$V$13:V20),--(($V$13:V20>=3)+($X$13:X20>=3)>0)))) -> 
B22: =B4 -> BUZET 1 | C22: : | E22: =E4 -> BUZET 2 | F22: =MAX(Y13:Y20) -> 4 | G22: : | H22: =MAX(AA13:AA20) -> 1
E23: SETOVI | F23: =SUM(V13:V20) -> 12 | G23: : | H23: =SUM(X13:X20) -> 4
E24: POENI | F24: =SUM(F13:F20, I13:I20, L13:L20, O13:O20, R13:R20) -> 168 | G24: : | H24: =SUM(H13:H20, K13:K20, N13:N20, Q13:Q20, T13:T20) -> 128

Sheet ZAPISNIK_1_3 (hidden)
A1: ŽUPANIJSKA LIGA STSIŽ 2025./2026 | AV1: EDIT
B2: GRAD DOMAĆIN | E2: DVORANA | J2: KOLO | N2: DATUM | T2: SAT
B3: PULA | E3: Dvorana STK Arena Ferro, Rojc | J3: 1. | N3: 15. 10. 2025. | T3: 17:30:00
A4: Domaćin | B4: ARENA FERRO | D4: Gost | E4: VAL SHARK
A5: A | B5: CINKOPAN Kristijan | D5: X | E5: INFANTOLINO Davide
A6: B | B6: KRANJC Dino | D6: Y | E6: HRVANOVIĆ Jasmin
A7: C | B7: PEKICA Bartol | D7: Z | E7: IVINIĆ Serđo
A8: R1 | D8: R1
A9: R2 | D9: R2
B11: DOMAĆIN | E11: GOST
B12: ARENA FERRO | E12: VAL SHARK
B13: CINKOPAN Kristijan | C13: A | D13: X | E13: INFANTOLINO Davide | F13: 9 | G13: : | H13: 11 | I13: 11 | J13: : | K13: 4 | L13: 1 | M13: : | N13: 11 | O13: 20 | P13: : | Q13: 18 | R13: 11 | S13: : | T13: 9 | V13: =IF(COUNTA(F13:T13)=0,"",_xlfn.LET(_xlpm.h,CHOOSE({1,2,3,4,5},F13,I13,L13,O13,R13),_xlpm.a,CHOOSE({1,2,3,4,5},H13,K13,N13,Q13,T13),SUM((_xlpm.h>_xlpm.a)*(_xlpm.h<>"")*(_xlpm.a<>"")))) -> 3 | W13: : | X13: =IF(COUNTA(F13:T13)=0,"",_xlfn.LET(_xlpm.h,CHOOSE({1,2,3,4,5},F13,I13,L13,O13,R13),_xlpm.a,CHOOSE({1,2,3,4,5},H13,K13,N13,Q13,T13),SUM((_xlpm.a>_xlpm.h)*(_xlpm.h<>"")*(_xlpm.a<>"")))) -> 2 | Y13: =IF(OR(V13="",X13=""),"",IF(MAX(V13,X13)<3,"",SUMPRODUCT(--($V$13:V13>$X$13:X13),--(($V$13:V13>=3)+($X$13:X13>=3)>0)))) -> 1 | Z13: : | AA13: =IF(OR(V13="",X13=""),"",IF(MAX(V13,X13)<3,"",SUMPRODUCT(--($X$13:X13>$V$13:V13),--(($V$13:V13>=3)+($X$13:X13>=3)>0)))) -> 0
B14: KRANJC Dino | C14: B | D14: Y | E14: HRVANOVIĆ Jasmin | F14: 11 | G14: : | H14: 6 | I14: 11 | J14: : | K14: 9 | L14: 11 | M14: : | N14: 3 | P14: : | S14: : | V14: =IF(COUNTA(F14:T14)=0,"",_xlfn.LET(_xlpm.h,CHOOSE({1,2,3,4,5},F14,I14,L14,O14,R14),_xlpm.a,CHOOSE({1,2,3,4,5},H14,K14,N14,Q14,T14),SUM((_xlpm.h>_xlpm.a)*(_xlpm.h<>"")*(_xlpm.a<>"")))) -> 3 | W14: : | X14: =IF(COUNTA(F14:T14)=0,"",_xlfn.LET(_xlpm.h,CHOOSE({1,2,3,4,5},F14,I14,L14,O14,R14),_xlpm.a,CHOOSE({1,2,3,4,5},H14,K14,N14,Q14,T14),SUM((_xlpm.a>_xlpm.h)*(_xlpm.h<>"")*(_xlpm.a<>"")))) -> 0 | Y14: =IF(OR(V14="",X14=""),"",IF(MAX(V14,X14)<3,"",SUMPRODUCT(--($V$13:V14>$X$13:X14),--(($V$13:V14>=3)+($X$13:X14>=3)>0)))) -> 2 | Z14: : | AA14: =IF(OR(V14="",X14=""),"",IF(MAX(V14,X14)<3,"",SUMPRODUCT(--($X$13:X14>$V$13:V14),--(($V$13:V14>=3)+($X$13:X14>=3)>0)))) -> 0
B15: PEKICA Bartol | C15: C | D15: Z | E15: IVINIĆ Serđo | F15: 11 | G15: : | H15: 9 | I15: 5 | J15: : | K15: 11 | L15: 11 | M15: : | N15: 6 | O15: 11 | P15: : | Q15: 8 | S15: : | V15: =IF(COUNTA(F15:T15)=0,"",_xlfn.LET(_xlpm.h,CHOOSE({1,2,3,4,5},F15,I15,L15,O15,R15),_xlpm.a,CHOOSE({1,2,3,4,5},H15,K15,N15,Q15,T15),SUM((_xlpm.h>_xlpm.a)*(_xlpm.h<>"")*(_xlpm.a<>"")))) -> 3 | W15: : | X15: =IF(COUNTA(F15:T15)=0,"",_xlfn.LET(_xlpm.h,CHOOSE({1,2,3,4,5},F15,I15,L15,O15,R15),_xlpm.a,CHOOSE({1,2,3,4,5},H15,K15,N15,Q15,T15),SUM((_xlpm.a>_xlpm.h)*(_xlpm.h<>"")*(_xlpm.a<>"")))) -> 1 | Y15: =IF(OR(V15="",X15=""),"",IF(MAX(V15,X15)<3,"",SUMPRODUCT(--($V$13:V15>$X$13:X15),--(($V$13:V15>=3)+($X$13:X15>=3)>0)))) -> 3 | Z15: : | AA15: =IF(OR(V15="",X15=""),"",IF(MAX(V15,X15)<3,"",SUMPRODUCT(--($X$13:X15>$V$13:V15),--(($V$13:V15>=3)+($X$13:X15>=3)>0)))) -> 0
B16: CINKOPAN K., PEKICA B. | C16: PAR | D16: PAR | E16: HRVANOVIĆ J., IVINIĆ S. | F16: 11 | G16: : | H16: 9 | I16: 6 | J16: : | K16: 11 | L16: 11 | M16: : | N16: 7 | O16: 11 | P16: : | Q16: 4 | S16: : | V16: =IF(COUNTA(F16:T16)=0,"",_xlfn.LET(_xlpm.h,CHOOSE({1,2,3,4,5},F16,I16,L16,O16,R16),_xlpm.a,CHOOSE({1,2,3,4,5},H16,K16,N16,Q16,T16),SUM((_xlpm.h>_xlpm.a)*(_xlpm.h<>"")*(_xlpm.a<>"")))) -> 3 | W16: : | X16: =IF(COUNTA(F16:T16)=0,"",_xlfn.LET(_xlpm.h,CHOOSE({1,2,3,4,5},F16,I16,L16,O16,R16),_xlpm.a,CHOOSE({1,2,3,4,5},H16,K16,N16,Q16,T16),SUM((_xlpm.a>_xlpm.h)*(_xlpm.h<>"")*(_xlpm.a<>"")))) -> 1 | Y16: =IF(OR(V16="",X16=""),"",IF(MAX(V16,X16)<3,"",SUMPRODUCT(--($V$13:V16>$X$13:X16),--(($V$13:V16>=3)+($X$13:X16>=3)>0)))) -> 4 | Z16: : | AA16: =IF(OR(V16="",X16=""),"",IF(MAX(V16,X16)<3,"",SUMPRODUCT(--($X$13:X16>$V$13:V16),--(($V$13:V16>=3)+($X$13:X16>=3)>0)))) -> 0
V17: =IF(COUNTA(F17:T17)=0,"",_xlfn.LET(_xlpm.h,CHOOSE({1,2,3,4,5},F17,I17,L17,O17,R17),_xlpm.a,CHOOSE({1,2,3,4,5},H17,K17,N17,Q17,T17),SUM((_xlpm.h>_xlpm.a)*(_xlpm.h<>"")*(_xlpm.a<>"")))) ->  | W17: : | X17: =IF(COUNTA(F17:T17)=0,"",_xlfn.LET(_xlpm.h,CHOOSE({1,2,3,4,5},F17,I17,L17,O17,R17),_xlpm.a,CHOOSE({1,2,3,4,5},H17,K17,N17,Q17,T17),SUM((_xlpm.a>_xlpm.h)*(_xlpm.h<>"")*(_xlpm.a<>"")))) ->  | Y17: =IF(OR(V17="",X17=""),"",IF(MAX(V17,X17)<3,"",SUMPRODUCT(--($V$13:V17>$X$13:X17),--(($V$13:V17>=3)+($X$13:X17>=3)>0)))) ->  | Z17: : | AA17: =IF(OR(V17="",X17=""),"",IF(MAX(V17,X17)<3,"",SUMPRODUCT(--($X$13:X17>$V$13:V17),--(($V$13:V17>=3)+($X$13:X17>=3)>0)))) -> 
C18: A | D18: Y | G18: : | J18: : | M18: : | P18: : | S18: : | V18: =IF(COUNTA(F18:T18)=0,"",_xlfn.LET(_xlpm.h,CHOOSE({1,2,3,4,5},F18,I18,L18,O18,R18),_xlpm.a,CHOOSE({1,2,3,4,5},H18,K18,N18,Q18,T18),SUM((_xlpm.h>_xlpm.a)*(_xlpm.h<>"")*(_xlpm.a<>"")))) -> 0 | W18: : | X18: =IF(COUNTA(F18:T18)=0,"",_xlfn.LET(_xlpm.h,CHOOSE({1,2,3,4,5},F18,I18,L18,O18,R18),_xlpm.a,CHOOSE({1,2,3,4,5},H18,K18,N18,Q18,T18),SUM((_xlpm.a>_xlpm.h)*(_xlpm.h<>"")*(_xlpm.a<>"")))) -> 0 | Y18: =IF(OR(V18="",X18=""),"",IF(MAX(V18,X18)<3,"",SUMPRODUCT(--($V$13:V18>$X$13:X18),--(($V$13:V18>=3)+($X$13:X18>=3)>0)))) ->  | Z18: : | AA18: =IF(OR(V18="",X18=""),"",IF(MAX(V18,X18)<3,"",SUMPRODUCT(--($X$13:X18>$V$13:V18),--(($V$13:V18>=3)+($X$13:X18>=3)>0)))) -> 
C19: C | D19: X | G19: : | J19: : | M19: : | P19: : | S19: : | V19: =IF(COUNTA(F19:T19)=0,"",_xlfn.LET(_xlpm.h,CHOOSE({1,2,3,4,5},F19,I19,L19,O19,R19),_xlpm.a,CHOOSE({1,2,3,4,5},H19,K19,N19,Q19,T19),SUM((_xlpm.h>_xlpm.a)*(_xlpm.h<>"")*(_xlpm.a<>"")))) -> 0 | W19: : | X19: =IF(COUNTA(F19:T19)=0,"",_xlfn.LET(_xlpm.h,CHOOSE({1,2,3,4,5},F19,I19,L19,O19,R19),_xlpm.a,CHOOSE({1,2,3,4,5},H19,K19,N19,Q19,T19),SUM((_xlpm.a>_xlpm.h)*(_xlpm.h<>"")*(_xlpm.a<>"")))) -> 0 | Y19: =IF(OR(V19="",X19=""),"",IF(MAX(V19,X19)<3,"",SUMPRODUCT(--($V$13:V19>$X$13:X19),--(($V$13:V19>=3)+($X$13:X19>=3)>0)))) ->  | Z19: : | AA19: =IF(OR(V19="",X19=""),"",IF(MAX(V19,X19)<3,"",SUMPRODUCT(--($X$13:X19>$V$13:V19),--(($V$13:V19>=3)+($X$13:X19>=3)>0)))) -> 
C20: B | D20: Z | G20: : | J20: : | M20: : | P20: : | S20: : | V20: =IF(COUNTA(F20:T20)=0,"",_xlfn.LET(_xlpm.h,CHOOSE({1,2,3,4,5},F20,I20,L20,O20,R20),_xlpm.a,CHOOSE({1,2,3,4,5},H20,K20,N20,Q20,T20),SUM((_xlpm.h>_xlpm.a)*(_xlpm.h<>"")*(_xlpm.a<>"")))) -> 0 | W20: : | X20: =IF(COUNTA(F20:T20)=0,"",_xlfn.LET(_xlpm.h,CHOOSE({1,2,3,4,5},F20,I20,L20,O20,R20),_xlpm.a,CHOOSE({1,2,3,4,5},H20,K20,N20,Q20,T20),SUM((_xlpm.a>_xlpm.h)*(_xlpm.h<>"")*(_xlpm.a<>"")))) -> 0 | Y20: =IF(OR(V20="",X20=""),"",IF(MAX(V20,X20)<3,"",SUMPRODUCT(--($V$13:V20>$X$13:X20),--(($V$13:V20>=3)+($X$13:X20>=3)>0)))) ->  | Z20: : | AA20: =IF(OR(V20="",X20=""),"",IF(MAX(V20,X20)<3,"",SUMPRODUCT(--($X$13:X20>$V$13:V20),--(($V$13:V20>=3)+($X$13:X20>=3)>0)))) -> 
B22: =B4 -> ARENA FERRO | C22: : | E22: =E4 -> VAL SHARK | F22: =MAX(Y13:Y20) -> 4 | G22: : | H22: =MAX(AA13:AA20) -> 0
E23: SETOVI | F23: =SUM(V13:V20) -> 12 | G23: : | H23: =SUM(X13:X20) -> 4
E24: POENI | F24: =SUM(F13:F20, I13:I20, L13:L20, O13:O20, R13:R20) -> 162 | G24: : | H24: =SUM(H13:H20, K13:K20, N13:N20, Q13:Q20, T13:T20) -> 136

Sheet ZAPISNIK_2_1 (hidden)
A1: ŽUPANIJSKA LIGA STSIŽ 2025./2026 | AV1: EDIT
B2: GRAD DOMAĆIN | E2: DVORANA | J2: KOLO | N2: DATUM | T2: SAT
B3: KOROMAČNO | E3: Društveni dom Koromačno | J3: 2. | N3: 7. 10. 2025. | T3: 18:00:00
A4: Domaćin | B4: BROVINJE 2 | D4: Gost | E4: VAL SHARK
A5: A | B5: BENAZIĆ Sandro | D5: X | E5: HRVANOVIĆ Jasmin
A6: B | B6: STIPIĆ Matea | D6: Y | E6: INFANTOLINO Davide
A7: C | B7: BASIACO Leonida | D7: Z | E7: IVINIĆ Serđo
A8: R1 | D8: R1
A9: R2 | D9: R2
B11: DOMAĆIN | E11: GOST
B12: BROVINJE 2 | E12: VAL SHARK
B13: BENAZIĆ Sandro | C13: A | D13: X | E13: HRVANOVIĆ Jasmin | F13: 6 | G13: : | H13: 11 | I13: 11 | J13: : | K13: 9 | L13: 8 | M13: : | N13: 11 | O13: 9 | P13: : | Q13: 11 | S13: : | V13: =IF(COUNTA(F13:T13)=0,"",_xlfn.LET(_xlpm.h,CHOOSE({1,2,3,4,5},F13,I13,L13,O13,R13),_xlpm.a,CHOOSE({1,2,3,4,5},H13,K13,N13,Q13,T13),SUM((_xlpm.h>_xlpm.a)*(_xlpm.h<>"")*(_xlpm.a<>"")))) -> 1 | W13: : | X13: =IF(COUNTA(F13:T13)=0,"",_xlfn.LET(_xlpm.h,CHOOSE({1,2,3,4,5},F13,I13,L13,O13,R13),_xlpm.a,CHOOSE({1,2,3,4,5},H13,K13,N13,Q13,T13),SUM((_xlpm.a>_xlpm.h)*(_xlpm.h<>"")*(_xlpm.a<>"")))) -> 3 | Y13: =IF(OR(V13="",X13=""),"",IF(MAX(V13,X13)<3,"",SUMPRODUCT(--($V$13:V13>$X$13:X13),--(($V$13:V13>=3)+($X$13:X13>=3)>0)))) -> 0 | Z13: : | AA13: =IF(OR(V13="",X13=""),"",IF(MAX(V13,X13)<3,"",SUMPRODUCT(--($X$13:X13>$V$13:V13),--(($V$13:V13>=3)+($X$13:X13>=3)>0)))) -> 1
B14: STIPIĆ Matea | C14: B | D14: Y | E14: INFANTOLINO Davide | F14: 8 | G14: : | H14: 11 | I14: 2 | J14: : | K14: 11 | L14: 7 | M14: : | N14: 11 | P14: : | S14: : | V14: =IF(COUNTA(F14:T14)=0,"",_xlfn.LET(_xlpm.h,CHOOSE({1,2,3,4,5},F14,I14,L14,O14,R14),_xlpm.a,CHOOSE({1,2,3,4,5},H14,K14,N14,Q14,T14),SUM((_xlpm.h>_xlpm.a)*(_xlpm.h<>"")*(_xlpm.a<>"")))) -> 0 | W14: : | X14: =IF(COUNTA(F14:T14)=0,"",_xlfn.LET(_xlpm.h,CHOOSE({1,2,3,4,5},F14,I14,L14,O14,R14),_xlpm.a,CHOOSE({1,2,3,4,5},H14,K14,N14,Q14,T14),SUM((_xlpm.a>_xlpm.h)*(_xlpm.h<>"")*(_xlpm.a<>"")))) -> 3 | Y14: =IF(OR(V14="",X14=""),"",IF(MAX(V14,X14)<3,"",SUMPRODUCT(--($V$13:V14>$X$13:X14),--(($V$13:V14>=3)+($X$13:X14>=3)>0)))) -> 0 | Z14: : | AA14: =IF(OR(V14="",X14=""),"",IF(MAX(V14,X14)<3,"",SUMPRODUCT(--($X$13:X14>$V$13:V14),--(($V$13:V14>=3)+($X$13:X14>=3)>0)))) -> 2
B15: BASIACO Leonida | C15: C | D15: Z | E15: IVINIĆ Serđo | F15: 11 | G15: : | H15: 9 | I15: 11 | J15: : | K15: 5 | L15: 11 | M15: : | N15: 5 | P15: : | S15: : | V15: =IF(COUNTA(F15:T15)=0,"",_xlfn.LET(_xlpm.h,CHOOSE({1,2,3,4,5},F15,I15,L15,O15,R15),_xlpm.a,CHOOSE({1,2,3,4,5},H15,K15,N15,Q15,T15),SUM((_xlpm.h>_xlpm.a)*(_xlpm.h<>"")*(_xlpm.a<>"")))) -> 3 | W15: : | X15: =IF(COUNTA(F15:T15)=0,"",_xlfn.LET(_xlpm.h,CHOOSE({1,2,3,4,5},F15,I15,L15,O15,R15),_xlpm.a,CHOOSE({1,2,3,4,5},H15,K15,N15,Q15,T15),SUM((_xlpm.a>_xlpm.h)*(_xlpm.h<>"")*(_xlpm.a<>"")))) -> 0 | Y15: =IF(OR(V15="",X15=""),"",IF(MAX(V15,X15)<3,"",SUMPRODUCT(--($V$13:V15>$X$13:X15),--(($V$13:V15>=3)+($X$13:X15>=3)>0)))) -> 1 | Z15: : | AA15: =IF(OR(V15="",X15=""),"",IF(MAX(V15,X15)<3,"",SUMPRODUCT(--($X$13:X15>$V$13:V15),--(($V$13:V15>=3)+($X$13:X15>=3)>0)))) -> 2
B16: BENAZIĆ S., BASIACO L. | C16: PAR | D16: PAR | E16: HRVANOVIĆ J., IVINIĆ S. | F16: 11 | G16: : | H16: 6 | I16: 8 | J16: : | K16: 11 | L16: 9 | M16: : | N16: 11 | O16: 11 | P16: : | Q16: 9 | R16: 7 | S16: : | T16: 11 | V16: =IF(COUNTA(F16:T16)=0,"",_xlfn.LET(_xlpm.h,CHOOSE({1,2,3,4,5},F16,I16,L16,O16,R16),_xlpm.a,CHOOSE({1,2,3,4,5},H16,K16,N16,Q16,T16),SUM((_xlpm.h>_xlpm.a)*(_xlpm.h<>"")*(_xlpm.a<>"")))) -> 2 | W16: : | X16: =IF(COUNTA(F16:T16)=0,"",_xlfn.LET(_xlpm.h,CHOOSE({1,2,3,4,5},F16,I16,L16,O16,R16),_xlpm.a,CHOOSE({1,2,3,4,5},H16,K16,N16,Q16,T16),SUM((_xlpm.a>_xlpm.h)*(_xlpm.h<>"")*(_xlpm.a<>"")))) -> 3 | Y16: =IF(OR(V16="",X16=""),"",IF(MAX(V16,X16)<3,"",SUMPRODUCT(--($V$13:V16>$X$13:X16),--(($V$13:V16>=3)+($X$13:X16>=3)>0)))) -> 1 | Z16: : | AA16: =IF(OR(V16="",X16=""),"",IF(MAX(V16,X16)<3,"",SUMPRODUCT(--($X$13:X16>$V$13:V16),--(($V$13:V16>=3)+($X$13:X16>=3)>0)))) -> 3
G17: : | J17: : | M17: : | P17: : | S17: : | V17: =IF(COUNTA(F17:T17)=0,"",_xlfn.LET(_xlpm.h,CHOOSE({1,2,3,4,5},F17,I17,L17,O17,R17),_xlpm.a,CHOOSE({1,2,3,4,5},H17,K17,N17,Q17,T17),SUM((_xlpm.h>_xlpm.a)*(_xlpm.h<>"")*(_xlpm.a<>"")))) -> 0 | W17: : | X17: =IF(COUNTA(F17:T17)=0,"",_xlfn.LET(_xlpm.h,CHOOSE({1,2,3,4,5},F17,I17,L17,O17,R17),_xlpm.a,CHOOSE({1,2,3,4,5},H17,K17,N17,Q17,T17),SUM((_xlpm.a>_xlpm.h)*(_xlpm.h<>"")*(_xlpm.a<>"")))) -> 0 | Y17: =IF(OR(V17="",X17=""),"",IF(MAX(V17,X17)<3,"",SUMPRODUCT(--($V$13:V17>$X$13:X17),--(($V$13:V17>=3)+($X$13:X17>=3)>0)))) ->  | Z17: : | AA17: =IF(OR(V17="",X17=""),"",IF(MAX(V17,X17)<3,"",SUMPRODUCT(--($X$13:X17>$V$13:V17),--(($V$13:V17>=3)+($X$13:X17>=3)>0)))) -> 
B18: BENAZIĆ Sandro | C18: A | D18: Y | E18: INFANTOLINO Davide | F18: 11 | G18: : | H18: 9 | I18: 12 | J18: : | K18: 14 | L18: 7 | M18: : | N18: 11 | O18: 9 | P18: : | Q18: 11 | S18: : | V18: =IF(COUNTA(F18:T18)=0,"",_xlfn.LET(_xlpm.h,CHOOSE({1,2,3,4,5},F18,I18,L18,O18,R18),_xlpm.a,CHOOSE({1,2,3,4,5},H18,K18,N18,Q18,T18),SUM((_xlpm.h>_xlpm.a)*(_xlpm.h<>"")*(_xlpm.a<>"")))) -> 1 | W18: : | X18: =IF(COUNTA(F18:T18)=0,"",_xlfn.LET(_xlpm.h,CHOOSE({1,2,3,4,5},F18,I18,L18,O18,R18),_xlpm.a,CHOOSE({1,2,3,4,5},H18,K18,N18,Q18,T18),SUM((_xlpm.a>_xlpm.h)*(_xlpm.h<>"")*(_xlpm.a<>"")))) -> 3 | Y18: =IF(OR(V18="",X18=""),"",IF(MAX(V18,X18)<3,"",SUMPRODUCT(--($V$13:V18>$X$13:X18),--(($V$13:V18>=3)+($X$13:X18>=3)>0)))) -> 1 | Z18: : | AA18: =IF(OR(V18="",X18=""),"",IF(MAX(V18,X18)<3,"",SUMPRODUCT(--($X$13:X18>$V$13:V18),--(($V$13:V18>=3)+($X$13:X18>=3)>0)))) -> 4
C19: C | D19: X | G19: : | J19: : | M19: : | P19: : | S19: : | V19: =IF(COUNTA(F19:T19)=0,"",_xlfn.LET(_xlpm.h,CHOOSE({1,2,3,4,5},F19,I19,L19,O19,R19),_xlpm.a,CHOOSE({1,2,3,4,5},H19,K19,N19,Q19,T19),SUM((_xlpm.h>_xlpm.a)*(_xlpm.h<>"")*(_xlpm.a<>"")))) -> 0 | W19: : | X19: =IF(COUNTA(F19:T19)=0,"",_xlfn.LET(_xlpm.h,CHOOSE({1,2,3,4,5},F19,I19,L19,O19,R19),_xlpm.a,CHOOSE({1,2,3,4,5},H19,K19,N19,Q19,T19),SUM((_xlpm.a>_xlpm.h)*(_xlpm.h<>"")*(_xlpm.a<>"")))) -> 0 | Y19: =IF(OR(V19="",X19=""),"",IF(MAX(V19,X19)<3,"",SUMPRODUCT(--($V$13:V19>$X$13:X19),--(($V$13:V19>=3)+($X$13:X19>=3)>0)))) ->  | Z19: : | AA19: =IF(OR(V19="",X19=""),"",IF(MAX(V19,X19)<3,"",SUMPRODUCT(--($X$13:X19>$V$13:V19),--(($V$13:V19>=3)+($X$13:X19>=3)>0)))) -> 
C20: B | D20: Z | G20: : | J20: : | M20: : | P20: : | S20: : | V20: =IF(COUNTA(F20:T20)=0,"",_xlfn.LET(_xlpm.h,CHOOSE({1,2,3,4,5},F20,I20,L20,O20,R20),_xlpm.a,CHOOSE({1,2,3,4,5},H20,K20,N20,Q20,T20),SUM((_xlpm.h>_xlpm.a)*(_xlpm.h<>"")*(_xlpm.a<>"")))) -> 0 | W20: : | X20: =IF(COUNTA(F20:T20)=0,"",_xlfn.LET(_xlpm.h,CHOOSE({1,2,3,4,5},F20,I20,L20,O20,R20),_xlpm.a,CHOOSE({1,2,3,4,5},H20,K20,N20,Q20,T20),SUM((_xlpm.a>_xlpm.h)*(_xlpm.h<>"")*(_xlpm.a<>"")))) -> 0 | Y20: =IF(OR(V20="",X20=""),"",IF(MAX(V20,X20)<3,"",SUMPRODUCT(--($V$13:V20>$X$13:X20),--(($V$13:V20>=3)+($X$13:X20>=3)>0)))) ->  | Z20: : | AA20: =IF(OR(V20="",X20=""),"",IF(MAX(V20,X20)<3,"",SUMPRODUCT(--($X$13:X20>$V$13:V20),--(($V$13:V20>=3)+($X$13:X20>=3)>0)))) -> 
B22: =B4 -> BROVINJE 2 | C22: : | E22: =E4 -> VAL SHARK | F22: =MAX(Y13:Y20) -> 1 | G22: : | H22: =MAX(AA13:AA20) -> 4
E23: SETOVI | F23: =SUM(V13:V20) -> 7 | G23: : | H23: =SUM(X13:X20) -> 12
E24: POENI | F24: =SUM(F13:F20, I13:I20, L13:L20, O13:O20, R13:R20) -> 169 | G24: : | H24: =SUM(H13:H20, K13:K20, N13:N20, Q13:Q20, T13:T20) -> 187

Sheet ZAPISNIK_2_2 (hidden)
A1: ŽUPANIJSKA LIGA STSIŽ 2025./2026 | AV1: EDIT
B2: GRAD DOMAĆIN | E2: DVORANA | J2: KOLO | N2: DATUM | T2: SAT
B3: KOROMAČNO | E3: Društveni dom Koromačno | J3: 2. | N3: 7. 10. 2025. | T3: 18:00:00
A4: Domaćin | B4: BROVINJE 2 | D4: Gost | E4: ARENA FERRO
A5: A | B5: BASIACO Leonida | D5: X | E5: KRIŠTO Tomislav
A6: B | B6: BENAZIĆ Sandro | D6: Y | E6: CINKOPAN Kristijan
A7: C | B7: GASPARI HUDOLETNJAK Matija | D7: Z | E7: KELEMEN Mićo
A8: R1 | D8: R1
A9: R2 | D9: R2
B11: DOMAĆIN | E11: GOST
B12: BROVINJE 2 | E12: ARENA FERRO
B13: BASIACO Leonida | C13: A | D13: X | E13: KRIŠTO Tomislav | F13: 11 | G13: : | H13: 5 | I13: 11 | J13: : | K13: 5 | L13: 11 | M13: : | N13: 9 | P13: : | S13: : | V13: =IF(COUNTA(F13:T13)=0,"",_xlfn.LET(_xlpm.h,CHOOSE({1,2,3,4,5},F13,I13,L13,O13,R13),_xlpm.a,CHOOSE({1,2,3,4,5},H13,K13,N13,Q13,T13),SUM((_xlpm.h>_xlpm.a)*(_xlpm.h<>"")*(_xlpm.a<>"")))) -> 3 | W13: : | X13: =IF(COUNTA(F13:T13)=0,"",_xlfn.LET(_xlpm.h,CHOOSE({1,2,3,4,5},F13,I13,L13,O13,R13),_xlpm.a,CHOOSE({1,2,3,4,5},H13,K13,N13,Q13,T13),SUM((_xlpm.a>_xlpm.h)*(_xlpm.h<>"")*(_xlpm.a<>"")))) -> 0 | Y13: =IF(OR(V13="",X13=""),"",IF(MAX(V13,X13)<3,"",SUMPRODUCT(--($V$13:V13>$X$13:X13),--(($V$13:V13>=3)+($X$13:X13>=3)>0)))) -> 1 | Z13: : | AA13: =IF(OR(V13="",X13=""),"",IF(MAX(V13,X13)<3,"",SUMPRODUCT(--($X$13:X13>$V$13:V13),--(($V$13:V13>=3)+($X$13:X13>=3)>0)))) -> 0
B14: BENAZIĆ Sandro | C14: B | D14: Y | E14: CINKOPAN Kristijan | F14: 10 | G14: : | H14: 12 | I14: 12 | J14: : | K14: 14 | L14: 7 | M14: : | N14: 11 | P14: : | S14: : | V14: =IF(COUNTA(F14:T14)=0,"",_xlfn.LET(_xlpm.h,CHOOSE({1,2,3,4,5},F14,I14,L14,O14,R14),_xlpm.a,CHOOSE({1,2,3,4,5},H14,K14,N14,Q14,T14),SUM((_xlpm.h>_xlpm.a)*(_xlpm.h<>"")*(_xlpm.a<>"")))) -> 0 | W14: : | X14: =IF(COUNTA(F14:T14)=0,"",_xlfn.LET(_xlpm.h,CHOOSE({1,2,3,4,5},F14,I14,L14,O14,R14),_xlpm.a,CHOOSE({1,2,3,4,5},H14,K14,N14,Q14,T14),SUM((_xlpm.a>_xlpm.h)*(_xlpm.h<>"")*(_xlpm.a<>"")))) -> 3 | Y14: =IF(OR(V14="",X14=""),"",IF(MAX(V14,X14)<3,"",SUMPRODUCT(--($V$13:V14>$X$13:X14),--(($V$13:V14>=3)+($X$13:X14>=3)>0)))) -> 1 | Z14: : | AA14: =IF(OR(V14="",X14=""),"",IF(MAX(V14,X14)<3,"",SUMPRODUCT(--($X$13:X14>$V$13:V14),--(($V$13:V14>=3)+($X$13:X14>=3)>0)))) -> 1
B15: GASPARI HUDOLETNJAK Matija | C15: C | D15: Z | E15: KELEMEN Mićo | F15: 10 | G15: : | H15: 12 | I15: 11 | J15: : | K15: 2 | L15: 11 | M15: : | N15: 8 | O15: 11 | P15: : | Q15: 8 | S15: : | V15: =IF(COUNTA(F15:T15)=0,"",_xlfn.LET(_xlpm.h,CHOOSE({1,2,3,4,5},F15,I15,L15,O15,R15),_xlpm.a,CHOOSE({1,2,3,4,5},H15,K15,N15,Q15,T15),SUM((_xlpm.h>_xlpm.a)*(_xlpm.h<>"")*(_xlpm.a<>"")))) -> 3 | W15: : | X15: =IF(COUNTA(F15:T15)=0,"",_xlfn.LET(_xlpm.h,CHOOSE({1,2,3,4,5},F15,I15,L15,O15,R15),_xlpm.a,CHOOSE({1,2,3,4,5},H15,K15,N15,Q15,T15),SUM((_xlpm.a>_xlpm.h)*(_xlpm.h<>"")*(_xlpm.a<>"")))) -> 1 | Y15: =IF(OR(V15="",X15=""),"",IF(MAX(V15,X15)<3,"",SUMPRODUCT(--($V$13:V15>$X$13:X15),--(($V$13:V15>=3)+($X$13:X15>=3)>0)))) -> 2 | Z15: : | AA15: =IF(OR(V15="",X15=""),"",IF(MAX(V15,X15)<3,"",SUMPRODUCT(--($X$13:X15>$V$13:V15),--(($V$13:V15>=3)+($X$13:X15>=3)>0)))) -> 1
B16: BASIACO L., GASPARI HUDOLETNJAK | C16: PAR | D16: PAR | E16: CINKOPAN K., KELEMEN M. | F16: 7 | G16: : | H16: 11 | I16: 11 | J16: : | K16: 8 | L16: 8 | M16: : | N16: 11 | O16: 7 | P16: : | Q16: 11 | S16: : | V16: =IF(COUNTA(F16:T16)=0,"",_xlfn.LET(_xlpm.h,CHOOSE({1,2,3,4,5},F16,I16,L16,O16,R16),_xlpm.a,CHOOSE({1,2,3,4,5},H16,K16,N16,Q16,T16),SUM((_xlpm.h>_xlpm.a)*(_xlpm.h<>"")*(_xlpm.a<>"")))) -> 1 | W16: : | X16: =IF(COUNTA(F16:T16)=0,"",_xlfn.LET(_xlpm.h,CHOOSE({1,2,3,4,5},F16,I16,L16,O16,R16),_xlpm.a,CHOOSE({1,2,3,4,5},H16,K16,N16,Q16,T16),SUM((_xlpm.a>_xlpm.h)*(_xlpm.h<>"")*(_xlpm.a<>"")))) -> 3 | Y16: =IF(OR(V16="",X16=""),"",IF(MAX(V16,X16)<3,"",SUMPRODUCT(--($V$13:V16>$X$13:X16),--(($V$13:V16>=3)+($X$13:X16>=3)>0)))) -> 2 | Z16: : | AA16: =IF(OR(V16="",X16=""),"",IF(MAX(V16,X16)<3,"",SUMPRODUCT(--($X$13:X16>$V$13:V16),--(($V$13:V16>=3)+($X$13:X16>=3)>0)))) -> 2
G17: : | J17: : | M17: : | P17: : | S17: : | V17: =IF(COUNTA(F17:T17)=0,"",_xlfn.LET(_xlpm.h,CHOOSE({1,2,3,4,5},F17,I17,L17,O17,R17),_xlpm.a,CHOOSE({1,2,3,4,5},H17,K17,N17,Q17,T17),SUM((_xlpm.h>_xlpm.a)*(_xlpm.h<>"")*(_xlpm.a<>"")))) -> 0 | W17: : | X17: =IF(COUNTA(F17:T17)=0,"",_xlfn.LET(_xlpm.h,CHOOSE({1,2,3,4,5},F17,I17,L17,O17,R17),_xlpm.a,CHOOSE({1,2,3,4,5},H17,K17,N17,Q17,T17),SUM((_xlpm.a>_xlpm.h)*(_xlpm.h<>"")*(_xlpm.a<>"")))) -> 0 | Y17: =IF(OR(V17="",X17=""),"",IF(MAX(V17,X17)<3,"",SUMPRODUCT(--($V$13:V17>$X$13:X17),--(($V$13:V17>=3)+($X$13:X17>=3)>0)))) ->  | Z17: : | AA17: =IF(OR(V17="",X17=""),"",IF(MAX(V17,X17)<3,"",SUMPRODUCT(--($X$13:X17>$V$13:V17),--(($V$13:V17>=3)+($X$13:X17>=3)>0)))) -> 
B18: BASIACO Leonida | C18: A | D18: Y | E18: CINKOPAN Kristijan | F18: 11 | G18: : | H18: 8 | I18: 11 | J18: : | K18: 8 | L18: 9 | M18: : | N18: 11 | O18: 7 | P18: : | Q18: 11 | R18: 11 | S18: : | T18: 7 | V18: =IF(COUNTA(F18:T18)=0,"",_xlfn.LET(_xlpm.h,CHOOSE({1,2,3,4,5},F18,I18,L18,O18,R18),_xlpm.a,CHOOSE({1,2,3,4,5},H18,K18,N18,Q18,T18),SUM((_xlpm.h>_xlpm.a)*(_xlpm.h<>"")*(_xlpm.a<>"")))) -> 3 | W18: : | X18: =IF(COUNTA(F18:T18)=0,"",_xlfn.LET(_xlpm.h,CHOOSE({1,2,3,4,5},F18,I18,L18,O18,R18),_xlpm.a,CHOOSE({1,2,3,4,5},H18,K18,N18,Q18,T18),SUM((_xlpm.a>_xlpm.h)*(_xlpm.h<>"")*(_xlpm.a<>"")))) -> 2 | Y18: =IF(OR(V18="",X18=""),"",IF(MAX(V18,X18)<3,"",SUMPRODUCT(--($V$13:V18>$X$13:X18),--(($V$13:V18>=3)+($X$13:X18>=3)>0)))) -> 3 | Z18: : | AA18: =IF(OR(V18="",X18=""),"",IF(MAX(V18,X18)<3,"",SUMPRODUCT(--($X$13:X18>$V$13:V18),--(($V$13:V18>=3)+($X$13:X18>=3)>0)))) -> 2
B19: GASPARI HUDOLETNJAK Matija | C19: C | D19: X | E19: KRIŠTO Tomislav | F19: 11 | G19: : | H19: 8 | I19: 11 | J19: : | K19: 8 | L19: 6 | M19: : | N19: 11 | O19: 6 | P19: : | Q19: 11 | R19: 11 | S19: : | T19: 7 | V19: =IF(COUNTA(F19:T19)=0,"",_xlfn.LET(_xlpm.h,CHOOSE({1,2,3,4,5},F19,I19,L19,O19,R19),_xlpm.a,CHOOSE({1,2,3,4,5},H19,K19,N19,Q19,T19),SUM((_xlpm.h>_xlpm.a)*(_xlpm.h<>"")*(_xlpm.a<>"")))) -> 3 | W19: : | X19: =IF(COUNTA(F19:T19)=0,"",_xlfn.LET(_xlpm.h,CHOOSE({1,2,3,4,5},F19,I19,L19,O19,R19),_xlpm.a,CHOOSE({1,2,3,4,5},H19,K19,N19,Q19,T19),SUM((_xlpm.a>_xlpm.h)*(_xlpm.h<>"")*(_xlpm.a<>"")))) -> 2 | Y19: =IF(OR(V19="",X19=""),"",IF(MAX(V19,X19)<3,"",SUMPRODUCT(--($V$13:V19>$X$13:X19),--(($V$13:V19>=3)+($X$13:X19>=3)>0)))) -> 4 | Z19: : | AA19: =IF(OR(V19="",X19=""),"",IF(MAX(V19,X19)<3,"",SUMPRODUCT(--($X$13:X19>$V$13:V19),--(($V$13:V19>=3)+($X$13:X19>=3)>0)))) -> 2
C20: B | D20: Z | G20: : | J20: : | M20: : | P20: : | S20: : | V20: =IF(COUNTA(F20:T20)=0,"",_xlfn.LET(_xlpm.h,CHOOSE({1,2,3,4,5},F20,I20,L20,O20,R20),_xlpm.a,CHOOSE({1,2,3,4,5},H20,K20,N20,Q20,T20),SUM((_xlpm.h>_xlpm.a)*(_xlpm.h<>"")*(_xlpm.a<>"")))) -> 0 | W20: : | X20: =IF(COUNTA(F20:T20)=0,"",_xlfn.LET(_xlpm.h,CHOOSE({1,2,3,4,5},F20,I20,L20,O20,R20),_xlpm.a,CHOOSE({1,2,3,4,5},H20,K20,N20,Q20,T20),SUM((_xlpm.a>_xlpm.h)*(_xlpm.h<>"")*(_xlpm.a<>"")))) -> 0 | Y20: =IF(OR(V20="",X20=""),"",IF(MAX(V20,X20)<3,"",SUMPRODUCT(--($V$13:V20>$X$13:X20),--(($V$13:V20>=3)+($X$13:X20>=3)>0)))) ->  | Z20: : | AA20: =IF(OR(V20="",X20=""),"",IF(MAX(V20,X20)<3,"",SUMPRODUCT(--($X$13:X20>$V$13:V20),--(($V$13:V20>=3)+($X$13:X20>=3)>0)))) -> 
B22: =B4 -> BROVINJE 2 | C22: : | E22: =E4 -> ARENA FERRO | F22: =MAX(Y13:Y20) -> 4 | G22: : | H22: =MAX(AA13:AA20) -> 2
E23: SETOVI | F23: =SUM(V13:V20) -> 13 | G23: : | H23: =SUM(X13:X20) -> 11
E24: POENI | F24: =SUM(F13:F20, I13:I20, L13:L20, O13:O20, R13:R20) -> 232 | G24: : | H24: =SUM(H13:H20, K13:K20, N13:N20, Q13:Q20, T13:T20) -> 217

Sheet ZAPISNIK_2_3 (hidden)
A1: ŽUPANIJSKA LIGA STSIŽ 2025./2026 | AV1: EDIT
B2: GRAD DOMAĆIN | E2: DVORANA | J2: KOLO | N2: DATUM | T2: SAT
B3: PAZIN | E3: Sportska dvorana Pazin | J3: 2. | N3: 25. 10. 2025. | T3: 10:30:00
A4: Domaćin | B4: PAZIN | D4: Gost | E4: BUZET 2
A5: A | B5: FABIJAN Damir | D5: X | E5: DRAŠĆIĆ Petar
A6: B | B6: FABRIS Karlo | D6: Y | E6: PAVLETIĆ Guido
A7: C | B7: GLAVINIĆ Denis | D7: Z | E7: BOŠNJAKOVIĆ Dubravko
A8: R1 | D8: R1
A9: R2 | D9: R2
B11: DOMAĆIN | E11: GOST
B12: PAZIN | E12: BUZET 2
B13: FABIJAN Damir | C13: A | D13: X | E13: DRAŠĆIĆ Petar | F13: 3 | G13: : | H13: 11 | I13: 4 | J13: : | K13: 11 | L13: 7 | M13: : | N13: 11 | P13: : | S13: : | V13: =IF(COUNTA(F13:T13)=0,"",_xlfn.LET(_xlpm.h,CHOOSE({1,2,3,4,5},F13,I13,L13,O13,R13),_xlpm.a,CHOOSE({1,2,3,4,5},H13,K13,N13,Q13,T13),SUM((_xlpm.h>_xlpm.a)*(_xlpm.h<>"")*(_xlpm.a<>"")))) -> 0 | W13: : | X13: =IF(COUNTA(F13:T13)=0,"",_xlfn.LET(_xlpm.h,CHOOSE({1,2,3,4,5},F13,I13,L13,O13,R13),_xlpm.a,CHOOSE({1,2,3,4,5},H13,K13,N13,Q13,T13),SUM((_xlpm.a>_xlpm.h)*(_xlpm.h<>"")*(_xlpm.a<>"")))) -> 3 | Y13: =IF(OR(V13="",X13=""),"",IF(MAX(V13,X13)<3,"",SUMPRODUCT(--($V$13:V13>$X$13:X13),--(($V$13:V13>=3)+($X$13:X13>=3)>0)))) -> 0 | Z13: : | AA13: =IF(OR(V13="",X13=""),"",IF(MAX(V13,X13)<3,"",SUMPRODUCT(--($X$13:X13>$V$13:V13),--(($V$13:V13>=3)+($X$13:X13>=3)>0)))) -> 1
B14: FABRIS Karlo | C14: B | D14: Y | E14: PAVLETIĆ Guido | F14: 11 | G14: : | H14: 1 | I14: 11 | J14: : | K14: 6 | L14: 11 | M14: : | N14: 6 | P14: : | S14: : | V14: =IF(COUNTA(F14:T14)=0,"",_xlfn.LET(_xlpm.h,CHOOSE({1,2,3,4,5},F14,I14,L14,O14,R14),_xlpm.a,CHOOSE({1,2,3,4,5},H14,K14,N14,Q14,T14),SUM((_xlpm.h>_xlpm.a)*(_xlpm.h<>"")*(_xlpm.a<>"")))) -> 3 | W14: : | X14: =IF(COUNTA(F14:T14)=0,"",_xlfn.LET(_xlpm.h,CHOOSE({1,2,3,4,5},F14,I14,L14,O14,R14),_xlpm.a,CHOOSE({1,2,3,4,5},H14,K14,N14,Q14,T14),SUM((_xlpm.a>_xlpm.h)*(_xlpm.h<>"")*(_xlpm.a<>"")))) -> 0 | Y14: =IF(OR(V14="",X14=""),"",IF(MAX(V14,X14)<3,"",SUMPRODUCT(--($V$13:V14>$X$13:X14),--(($V$13:V14>=3)+($X$13:X14>=3)>0)))) -> 1 | Z14: : | AA14: =IF(OR(V14="",X14=""),"",IF(MAX(V14,X14)<3,"",SUMPRODUCT(--($X$13:X14>$V$13:V14),--(($V$13:V14>=3)+($X$13:X14>=3)>0)))) -> 1
B15: GLAVINIĆ Denis | C15: C | D15: Z | E15: BOŠNJAKOVIĆ Dubravko | F15: 11 | G15: : | H15: 3 | I15: 11 | J15: : | K15: 4 | L15: 11 | M15: : | N15: 4 | P15: : | S15: : | V15: =IF(COUNTA(F15:T15)=0,"",_xlfn.LET(_xlpm.h,CHOOSE({1,2,3,4,5},F15,I15,L15,O15,R15),_xlpm.a,CHOOSE({1,2,3,4,5},H15,K15,N15,Q15,T15),SUM((_xlpm.h>_xlpm.a)*(_xlpm.h<>"")*(_xlpm.a<>"")))) -> 3 | W15: : | X15: =IF(COUNTA(F15:T15)=0,"",_xlfn.LET(_xlpm.h,CHOOSE({1,2,3,4,5},F15,I15,L15,O15,R15),_xlpm.a,CHOOSE({1,2,3,4,5},H15,K15,N15,Q15,T15),SUM((_xlpm.a>_xlpm.h)*(_xlpm.h<>"")*(_xlpm.a<>"")))) -> 0 | Y15: =IF(OR(V15="",X15=""),"",IF(MAX(V15,X15)<3,"",SUMPRODUCT(--($V$13:V15>$X$13:X15),--(($V$13:V15>=3)+($X$13:X15>=3)>0)))) -> 2 | Z15: : | AA15: =IF(OR(V15="",X15=""),"",IF(MAX(V15,X15)<3,"",SUMPRODUCT(--($X$13:X15>$V$13:V15),--(($V$13:V15>=3)+($X$13:X15>=3)>0)))) -> 1
B16: GLAVINIĆ D., LUKEZ G. | C16: PAR | D16: PAR | E16: DRAŠĆIĆ P., PAVLETIĆ G. | F16: 11 | G16: : | H16: 8 | I16: 11 | J16: : | K16: 7 | L16: 11 | M16: : | N16: 5 | P16: : | S16: : | V16: =IF(COUNTA(F16:T16)=0,"",_xlfn.LET(_xlpm.h,CHOOSE({1,2,3,4,5},F16,I16,L16,O16,R16),_xlpm.a,CHOOSE({1,2,3,4,5},H16,K16,N16,Q16,T16),SUM((_xlpm.h>_xlpm.a)*(_xlpm.h<>"")*(_xlpm.a<>"")))) -> 3 | W16: : | X16: =IF(COUNTA(F16:T16)=0,"",_xlfn.LET(_xlpm.h,CHOOSE({1,2,3,4,5},F16,I16,L16,O16,R16),_xlpm.a,CHOOSE({1,2,3,4,5},H16,K16,N16,Q16,T16),SUM((_xlpm.a>_xlpm.h)*(_xlpm.h<>"")*(_xlpm.a<>"")))) -> 0 | Y16: =IF(OR(V16="",X16=""),"",IF(MAX(V16,X16)<3,"",SUMPRODUCT(--($V$13:V16>$X$13:X16),--(($V$13:V16>=3)+($X$13:X16>=3)>0)))) -> 3 | Z16: : | AA16: =IF(OR(V16="",X16=""),"",IF(MAX(V16,X16)<3,"",SUMPRODUCT(--($X$13:X16>$V$13:V16),--(($V$13:V16>=3)+($X$13:X16>=3)>0)))) -> 1
G17: : | J17: : | M17: : | P17: : | S17: : | V17: =IF(COUNTA(F17:T17)=0,"",_xlfn.LET(_xlpm.h,CHOOSE({1,2,3,4,5},F17,I17,L17,O17,R17),_xlpm.a,CHOOSE({1,2,3,4,5},H17,K17,N17,Q17,T17),SUM((_xlpm.h>_xlpm.a)*(_xlpm.h<>"")*(_xlpm.a<>"")))) -> 0 | W17: : | X17: =IF(COUNTA(F17:T17)=0,"",_xlfn.LET(_xlpm.h,CHOOSE({1,2,3,4,5},F17,I17,L17,O17,R17),_xlpm.a,CHOOSE({1,2,3,4,5},H17,K17,N17,Q17,T17),SUM((_xlpm.a>_xlpm.h)*(_xlpm.h<>"")*(_xlpm.a<>"")))) -> 0 | Y17: =IF(OR(V17="",X17=""),"",IF(MAX(V17,X17)<3,"",SUMPRODUCT(--($V$13:V17>$X$13:X17),--(($V$13:V17>=3)+($X$13:X17>=3)>0)))) ->  | Z17: : | AA17: =IF(OR(V17="",X17=""),"",IF(MAX(V17,X17)<3,"",SUMPRODUCT(--($X$13:X17>$V$13:V17),--(($V$13:V17>=3)+($X$13:X17>=3)>0)))) -> 
B18: FABIJAN Damir | C18: A | D18: Y | E18: PAVLETIĆ Guido | F18: 9 | G18: : | H18: 11 | I18: 6 | J18: : | K18: 11 | L18: 12 | M18: : | N18: 10 | O18: 11 | P18: : | Q18: 5 | R18: 11 | S18: : | T18: 9 | V18: =IF(COUNTA(F18:T18)=0,"",_xlfn.LET(_xlpm.h,CHOOSE({1,2,3,4,5},F18,I18,L18,O18,R18),_xlpm.a,CHOOSE({1,2,3,4,5},H18,K18,N18,Q18,T18),SUM((_xlpm.h>_xlpm.a)*(_xlpm.h<>"")*(_xlpm.a<>"")))) -> 3 | W18: : | X18: =IF(COUNTA(F18:T18)=0,"",_xlfn.LET(_xlpm.h,CHOOSE({1,2,3,4,5},F18,I18,L18,O18,R18),_xlpm.a,CHOOSE({1,2,3,4,5},H18,K18,N18,Q18,T18),SUM((_xlpm.a>_xlpm.h)*(_xlpm.h<>"")*(_xlpm.a<>"")))) -> 2 | Y18: =IF(OR(V18="",X18=""),"",IF(MAX(V18,X18)<3,"",SUMPRODUCT(--($V$13:V18>$X$13:X18),--(($V$13:V18>=3)+($X$13:X18>=3)>0)))) -> 4 | Z18: : | AA18: =IF(OR(V18="",X18=""),"",IF(MAX(V18,X18)<3,"",SUMPRODUCT(--($X$13:X18>$V$13:V18),--(($V$13:V18>=3)+($X$13:X18>=3)>0)))) -> 1
C19: C | D19: X | G19: : | J19: : | M19: : | P19: : | S19: : | V19: =IF(COUNTA(F19:T19)=0,"",_xlfn.LET(_xlpm.h,CHOOSE({1,2,3,4,5},F19,I19,L19,O19,R19),_xlpm.a,CHOOSE({1,2,3,4,5},H19,K19,N19,Q19,T19),SUM((_xlpm.h>_xlpm.a)*(_xlpm.h<>"")*(_xlpm.a<>"")))) -> 0 | W19: : | X19: =IF(COUNTA(F19:T19)=0,"",_xlfn.LET(_xlpm.h,CHOOSE({1,2,3,4,5},F19,I19,L19,O19,R19),_xlpm.a,CHOOSE({1,2,3,4,5},H19,K19,N19,Q19,T19),SUM((_xlpm.a>_xlpm.h)*(_xlpm.h<>"")*(_xlpm.a<>"")))) -> 0 | Y19: =IF(OR(V19="",X19=""),"",IF(MAX(V19,X19)<3,"",SUMPRODUCT(--($V$13:V19>$X$13:X19),--(($V$13:V19>=3)+($X$13:X19>=3)>0)))) ->  | Z19: : | AA19: =IF(OR(V19="",X19=""),"",IF(MAX(V19,X19)<3,"",SUMPRODUCT(--($X$13:X19>$V$13:V19),--(($V$13:V19>=3)+($X$13:X19>=3)>0)))) -> 
C20: B | D20: Z | G20: : | J20: : | M20: : | P20: : | S20: : | V20: =IF(COUNTA(F20:T20)=0,"",_xlfn.LET(_xlpm.h,CHOOSE({1,2,3,4,5},F20,I20,L20,O20,R20),_xlpm.a,CHOOSE({1,2,3,4,5},H20,K20,N20,Q20,T20),SUM((_xlpm.h>_xlpm.a)*(_xlpm.h<>"")*(_xlpm.a<>"")))) -> 0 | W20: : | X20: =IF(COUNTA(F20:T20)=0,"",_xlfn.LET(_xlpm.h,CHOOSE({1,2,3,4,5},F20,I20,L20,O20,R20),_xlpm.a,CHOOSE({1,2,3,4,5},H20,K20,N20,Q20,T20),SUM((_xlpm.a>_xlpm.h)*(_xlpm.h<>"")*(_xlpm.a<>"")))) -> 0 | Y20: =IF(OR(V20="",X20=""),"",IF(MAX(V20,X20)<3,"",SUMPRODUCT(--($V$13:V20>$X$13:X20),--(($V$13:V20>=3)+($X$13:X20>=3)>0)))) ->  | Z20: : | AA20: =IF(OR(V20="",X20=""),"",IF(MAX(V20,X20)<3,"",SUMPRODUCT(--($X$13:X20>$V$13:V20),--(($V$13:V20>=3)+($X$13:X20>=3)>0)))) -> 
B22: =B4 -> PAZIN | C22: : | E22: =E4 -> BUZET 2 | F22: =MAX(Y13:Y20) -> 4 | G22: : | H22: =MAX(AA13:AA20) -> 1
E23: SETOVI | F23: =SUM(V13:V20) -> 12 | G23: : | H23: =SUM(X13:X20) -> 5
E24: POENI | F24: =SUM(F13:F20, I13:I20, L13:L20, O13:O20, R13:R20) -> 162 | G24: : | H24: =SUM(H13:H20, K13:K20, N13:N20, Q13:Q20, T13:T20) -> 123

Sheet ZAPISNIK_2_4 (hidden)
A1: ŽUPANIJSKA LIGA STSIŽ 2025./2026 | AV1: EDIT
B2: GRAD DOMAĆIN | E2: DVORANA | J2: KOLO | N2: DATUM | T2: SAT
B3: PAZIN | E3: Sportska dvorana Pazin | J3: 2. | N3: 25. 10. 2025. | T3: 12:00:00
A4: Domaćin | B4: PAZIN | D4: Gost | E4: BUZET 1
A5: A | B5: GLAVINIĆ Denis | D5: X | E5: SIROTIĆ Aleš
A6: B | B6: LUKEZ Goran | D6: Y | E6: KRANČIĆ Filip
A7: C | B7: FABRIS Karlo | D7: Z | E7: BERDNYK Stanislav
A8: R1 | D8: R1
A9: R2 | D9: R2
B11: DOMAĆIN | E11: GOST
B12: PAZIN | E12: BUZET 1
B13: GLAVINIĆ Denis | C13: A | D13: X | E13: SIROTIĆ Aleš | F13: 11 | G13: : | H13: 1 | I13: 11 | J13: : | K13: 1 | L13: 11 | M13: : | N13: 9 | P13: : | S13: : | V13: =IF(COUNTA(F13:T13)=0,"",_xlfn.LET(_xlpm.h,CHOOSE({1,2,3,4,5},F13,I13,L13,O13,R13),_xlpm.a,CHOOSE({1,2,3,4,5},H13,K13,N13,Q13,T13),SUM((_xlpm.h>_xlpm.a)*(_xlpm.h<>"")*(_xlpm.a<>"")))) -> 3 | W13: : | X13: =IF(COUNTA(F13:T13)=0,"",_xlfn.LET(_xlpm.h,CHOOSE({1,2,3,4,5},F13,I13,L13,O13,R13),_xlpm.a,CHOOSE({1,2,3,4,5},H13,K13,N13,Q13,T13),SUM((_xlpm.a>_xlpm.h)*(_xlpm.h<>"")*(_xlpm.a<>"")))) -> 0 | Y13: =IF(OR(V13="",X13=""),"",IF(MAX(V13,X13)<3,"",SUMPRODUCT(--($V$13:V13>$X$13:X13),--(($V$13:V13>=3)+($X$13:X13>=3)>0)))) -> 1 | Z13: : | AA13: =IF(OR(V13="",X13=""),"",IF(MAX(V13,X13)<3,"",SUMPRODUCT(--($X$13:X13>$V$13:V13),--(($V$13:V13>=3)+($X$13:X13>=3)>0)))) -> 0
B14: LUKEZ Goran | C14: B | D14: Y | E14: KRANČIĆ Filip | F14: 11 | G14: : | H14: 6 | I14: 11 | J14: : | K14: 6 | L14: 3 | M14: : | N14: 11 | O14: 6 | P14: : | Q14: 11 | R14: 12 | S14: : | T14: 10 | V14: =IF(COUNTA(F14:T14)=0,"",_xlfn.LET(_xlpm.h,CHOOSE({1,2,3,4,5},F14,I14,L14,O14,R14),_xlpm.a,CHOOSE({1,2,3,4,5},H14,K14,N14,Q14,T14),SUM((_xlpm.h>_xlpm.a)*(_xlpm.h<>"")*(_xlpm.a<>"")))) -> 3 | W14: : | X14: =IF(COUNTA(F14:T14)=0,"",_xlfn.LET(_xlpm.h,CHOOSE({1,2,3,4,5},F14,I14,L14,O14,R14),_xlpm.a,CHOOSE({1,2,3,4,5},H14,K14,N14,Q14,T14),SUM((_xlpm.a>_xlpm.h)*(_xlpm.h<>"")*(_xlpm.a<>"")))) -> 2 | Y14: =IF(OR(V14="",X14=""),"",IF(MAX(V14,X14)<3,"",SUMPRODUCT(--($V$13:V14>$X$13:X14),--(($V$13:V14>=3)+($X$13:X14>=3)>0)))) -> 2 | Z14: : | AA14: =IF(OR(V14="",X14=""),"",IF(MAX(V14,X14)<3,"",SUMPRODUCT(--($X$13:X14>$V$13:V14),--(($V$13:V14>=3)+($X$13:X14>=3)>0)))) -> 0
B15: FABRIS Karlo | C15: C | D15: Z | E15: BERDNYK Stanislav | F15: 11 | G15: : | H15: 8 | I15: 11 | J15: : | K15: 6 | L15: 11 | M15: : | N15: 6 | P15: : | S15: : | V15: =IF(COUNTA(F15:T15)=0,"",_xlfn.LET(_xlpm.h,CHOOSE({1,2,3,4,5},F15,I15,L15,O15,R15),_xlpm.a,CHOOSE({1,2,3,4,5},H15,K15,N15,Q15,T15),SUM((_xlpm.h>_xlpm.a)*(_xlpm.h<>"")*(_xlpm.a<>"")))) -> 3 | W15: : | X15: =IF(COUNTA(F15:T15)=0,"",_xlfn.LET(_xlpm.h,CHOOSE({1,2,3,4,5},F15,I15,L15,O15,R15),_xlpm.a,CHOOSE({1,2,3,4,5},H15,K15,N15,Q15,T15),SUM((_xlpm.a>_xlpm.h)*(_xlpm.h<>"")*(_xlpm.a<>"")))) -> 0 | Y15: =IF(OR(V15="",X15=""),"",IF(MAX(V15,X15)<3,"",SUMPRODUCT(--($V$13:V15>$X$13:X15),--(($V$13:V15>=3)+($X$13:X15>=3)>0)))) -> 3 | Z15: : | AA15: =IF(OR(V15="",X15=""),"",IF(MAX(V15,X15)<3,"",SUMPRODUCT(--($X$13:X15>$V$13:V15),--(($V$13:V15>=3)+($X$13:X15>=3)>0)))) -> 0
B16: GLAVINIĆ D., LUKEZ G. | C16: PAR | D16: PAR | E16: SIROTIĆ A., KRANČIĆ F. | F16: 11 | G16: : | H16: 6 | I16: 7 | J16: : | K16: 11 | L16: 12 | M16: : | N16: 14 | O16: 2 | P16: : | Q16: 11 | S16: : | V16: =IF(COUNTA(F16:T16)=0,"",_xlfn.LET(_xlpm.h,CHOOSE({1,2,3,4,5},F16,I16,L16,O16,R16),_xlpm.a,CHOOSE({1,2,3,4,5},H16,K16,N16,Q16,T16),SUM((_xlpm.h>_xlpm.a)*(_xlpm.h<>"")*(_xlpm.a<>"")))) -> 1 | W16: : | X16: =IF(COUNTA(F16:T16)=0,"",_xlfn.LET(_xlpm.h,CHOOSE({1,2,3,4,5},F16,I16,L16,O16,R16),_xlpm.a,CHOOSE({1,2,3,4,5},H16,K16,N16,Q16,T16),SUM((_xlpm.a>_xlpm.h)*(_xlpm.h<>"")*(_xlpm.a<>"")))) -> 3 | Y16: =IF(OR(V16="",X16=""),"",IF(MAX(V16,X16)<3,"",SUMPRODUCT(--($V$13:V16>$X$13:X16),--(($V$13:V16>=3)+($X$13:X16>=3)>0)))) -> 3 | Z16: : | AA16: =IF(OR(V16="",X16=""),"",IF(MAX(V16,X16)<3,"",SUMPRODUCT(--($X$13:X16>$V$13:V16),--(($V$13:V16>=3)+($X$13:X16>=3)>0)))) -> 1
G17: : | J17: : | M17: : | P17: : | S17: : | V17: =IF(COUNTA(F17:T17)=0,"",_xlfn.LET(_xlpm.h,CHOOSE({1,2,3,4,5},F17,I17,L17,O17,R17),_xlpm.a,CHOOSE({1,2,3,4,5},H17,K17,N17,Q17,T17),SUM((_xlpm.h>_xlpm.a)*(_xlpm.h<>"")*(_xlpm.a<>"")))) -> 0 | W17: : | X17: =IF(COUNTA(F17:T17)=0,"",_xlfn.LET(_xlpm.h,CHOOSE({1,2,3,4,5},F17,I17,L17,O17,R17),_xlpm.a,CHOOSE({1,2,3,4,5},H17,K17,N17,Q17,T17),SUM((_xlpm.a>_xlpm.h)*(_xlpm.h<>"")*(_xlpm.a<>"")))) -> 0 | Y17: =IF(OR(V17="",X17=""),"",IF(MAX(V17,X17)<3,"",SUMPRODUCT(--($V$13:V17>$X$13:X17),--(($V$13:V17>=3)+($X$13:X17>=3)>0)))) ->  | Z17: : | AA17: =IF(OR(V17="",X17=""),"",IF(MAX(V17,X17)<3,"",SUMPRODUCT(--($X$13:X17>$V$13:V17),--(($V$13:V17>=3)+($X$13:X17>=3)>0)))) -> 
B18: GLAVINIĆ Denis | C18: A | D18: Y | E18: KRANČIĆ Filip | F18: 11 | G18: : | H18: 1 | I18: 11 | J18: : | K18: 6 | L18: 3 | M18: : | N18: 11 | O18: 11 | P18: : | Q18: 8 | S18: : | V18: =IF(COUNTA(F18:T18)=0,"",_xlfn.LET(_xlpm.h,CHOOSE({1,2,3,4,5},F18,I18,L18,O18,R18),_xlpm.a,CHOOSE({1,2,3,4,5},H18,K18,N18,Q18,T18),SUM((_xlpm.h>_xlpm.a)*(_xlpm.h<>"")*(_xlpm.a<>"")))) -> 3 | W18: : | X18: =IF(COUNTA(F18:T18)=0,"",_xlfn.LET(_xlpm.h,CHOOSE({1,2,3,4,5},F18,I18,L18,O18,R18),_xlpm.a,CHOOSE({1,2,3,4,5},H18,K18,N18,Q18,T18),SUM((_xlpm.a>_xlpm.h)*(_xlpm.h<>"")*(_xlpm.a<>"")))) -> 1 | Y18: =IF(OR(V18="",X18=""),"",IF(MAX(V18,X18)<3,"",SUMPRODUCT(--($V$13:V18>$X$13:X18),--(($V$13:V18>=3)+($X$13:X18>=3)>0)))) -> 4 | Z18: : | AA18: =IF(OR(V18="",X18=""),"",IF(MAX(V18,X18)<3,"",SUMPRODUCT(--($X$13:X18>$V$13:V18),--(($V$13:V18>=3)+($X$13:X18>=3)>0)))) -> 1
C19: C | D19: X | G19: : | J19: : | M19: : | P19: : | S19: : | V19: =IF(COUNTA(F19:T19)=0,"",_xlfn.LET(_xlpm.h,CHOOSE({1,2,3,4,5},F19,I19,L19,O19,R19),_xlpm.a,CHOOSE({1,2,3,4,5},H19,K19,N19,Q19,T19),SUM((_xlpm.h>_xlpm.a)*(_xlpm.h<>"")*(_xlpm.a<>"")))) -> 0 | W19: : | X19: =IF(COUNTA(F19:T19)=0,"",_xlfn.LET(_xlpm.h,CHOOSE({1,2,3,4,5},F19,I19,L19,O19,R19),_xlpm.a,CHOOSE({1,2,3,4,5},H19,K19,N19,Q19,T19),SUM((_xlpm.a>_xlpm.h)*(_xlpm.h<>"")*(_xlpm.a<>"")))) -> 0 | Y19: =IF(OR(V19="",X19=""),"",IF(MAX(V19,X19)<3,"",SUMPRODUCT(--($V$13:V19>$X$13:X19),--(($V$13:V19>=3)+($X$13:X19>=3)>0)))) ->  | Z19: : | AA19: =IF(OR(V19="",X19=""),"",IF(MAX(V19,X19)<3,"",SUMPRODUCT(--($X$13:X19>$V$13:V19),--(($V$13:V19>=3)+($X$13:X19>=3)>0)))) -> 
C20: B | D20: Z | G20: : | J20: : | M20: : | P20: : | S20: : | V20: =IF(COUNTA(F20:T20)=0,"",_xlfn.LET(_xlpm.h,CHOOSE({1,2,3,4,5},F20,I20,L20,O20,R20),_xlpm.a,CHOOSE({1,2,3,4,5},H20,K20,N20,Q20,T20),SUM((_xlpm.h>_xlpm.a)*(_xlpm.h<>"")*(_xlpm.a<>"")))) -> 0 | W20: : | X20: =IF(COUNTA(F20:T20)=0,"",_xlfn.LET(_xlpm.h,CHOOSE({1,2,3,4,5},F20,I20,L20,O20,R20),_xlpm.a,CHOOSE({1,2,3,4,5},H20,K20,N20,Q20,T20),SUM((_xlpm.a>_xlpm.h)*(_xlpm.h<>"")*(_xlpm.a<>"")))) -> 0 | Y20: =IF(OR(V20="",X20=""),"",IF(MAX(V20,X20)<3,"",SUMPRODUCT(--($V$13:V20>$X$13:X20),--(($V$13:V20>=3)+($X$13:X20>=3)>0)))) ->  | Z20: : | AA20: =IF(OR(V20="",X20=""),"",IF(MAX(V20,X20)<3,"",SUMPRODUCT(--($X$13:X20>$V$13:V20),--(($V$13:V20>=3)+($X$13:X20>=3)>0)))) -> 
B22: =B4 -> PAZIN | C22: : | E22: =E4 -> BUZET 1 | F22: =MAX(Y13:Y20) -> 4 | G22: : | H22: =MAX(AA13:AA20) -> 1
E23: SETOVI | F23: =SUM(V13:V20) -> 13 | G23: : | H23: =SUM(X13:X20) -> 6
E24: POENI | F24: =SUM(F13:F20, I13:I20, L13:L20, O13:O20, R13:R20) -> 177 | G24: : | H24: =SUM(H13:H20, K13:K20, N13:N20, Q13:Q20, T13:T20) -> 143

Sheet ZAPISNIK_3_1 (hidden)
A1: ŽUPANIJSKA LIGA STSIŽ 2025./2026 | AV1: EDIT
B2: GRAD DOMAĆIN | E2: DVORANA | J2: KOLO | N2: DATUM | T2: SAT
B3: PULA | E3: MZ Gregovica, Pula | J3: 3. | N3: 13. 11. 2025. | T3: 18:30:00
A4: Domaćin | B4: VAL SHARK | D4: Gost | E4: PAZIN
A5: A | B5: INFANTOLINO Davide | D5: X | E5: LUKEZ Goran
A6: B | B6: DELEVIĆ Predrag | D6: Y | E6: FABRIS Karlo
A7: C | B7: HRVANOVIĆ Jasmin | D7: Z | E7: GLAVINIĆ Denis
A8: R1 | D8: R1
A9: R2 | D9: R2
B11: DOMAĆIN | E11: GOST
B12: VAL SHARK | E12: PAZIN
B13: INFANTOLINO Davide | C13: A | D13: X | E13: LUKEZ Goran | F13: 11 | G13: : | H13: 7 | I13: 11 | J13: : | K13: 4 | L13: 11 | M13: : | N13: 8 | P13: : | S13: : | V13: =IF(COUNTA(F13:T13)=0,"",_xlfn.LET(_xlpm.h,CHOOSE({1,2,3,4,5},F13,I13,L13,O13,R13),_xlpm.a,CHOOSE({1,2,3,4,5},H13,K13,N13,Q13,T13),SUM((_xlpm.h>_xlpm.a)*(_xlpm.h<>"")*(_xlpm.a<>"")))) -> 3 | W13: : | X13: =IF(COUNTA(F13:T13)=0,"",_xlfn.LET(_xlpm.h,CHOOSE({1,2,3,4,5},F13,I13,L13,O13,R13),_xlpm.a,CHOOSE({1,2,3,4,5},H13,K13,N13,Q13,T13),SUM((_xlpm.a>_xlpm.h)*(_xlpm.h<>"")*(_xlpm.a<>"")))) -> 0 | Y13: =IF(OR(V13="",X13=""),"",IF(MAX(V13,X13)<3,"",SUMPRODUCT(--($V$13:V13>$X$13:X13),--(($V$13:V13>=3)+($X$13:X13>=3)>0)))) -> 1 | Z13: : | AA13: =IF(OR(V13="",X13=""),"",IF(MAX(V13,X13)<3,"",SUMPRODUCT(--($X$13:X13>$V$13:V13),--(($V$13:V13>=3)+($X$13:X13>=3)>0)))) -> 0
B14: DELEVIĆ Predrag | C14: B | D14: Y | E14: FABRIS Karlo | F14: 7 | G14: : | H14: 11 | I14: 11 | J14: : | K14: 9 | L14: 11 | M14: : | N14: 4 | O14: 5 | P14: : | Q14: 11 | R14: 5 | S14: : | T14: 11 | V14: =IF(COUNTA(F14:T14)=0,"",_xlfn.LET(_xlpm.h,CHOOSE({1,2,3,4,5},F14,I14,L14,O14,R14),_xlpm.a,CHOOSE({1,2,3,4,5},H14,K14,N14,Q14,T14),SUM((_xlpm.h>_xlpm.a)*(_xlpm.h<>"")*(_xlpm.a<>"")))) -> 2 | W14: : | X14: =IF(COUNTA(F14:T14)=0,"",_xlfn.LET(_xlpm.h,CHOOSE({1,2,3,4,5},F14,I14,L14,O14,R14),_xlpm.a,CHOOSE({1,2,3,4,5},H14,K14,N14,Q14,T14),SUM((_xlpm.a>_xlpm.h)*(_xlpm.h<>"")*(_xlpm.a<>"")))) -> 3 | Y14: =IF(OR(V14="",X14=""),"",IF(MAX(V14,X14)<3,"",SUMPRODUCT(--($V$13:V14>$X$13:X14),--(($V$13:V14>=3)+($X$13:X14>=3)>0)))) -> 1 | Z14: : | AA14: =IF(OR(V14="",X14=""),"",IF(MAX(V14,X14)<3,"",SUMPRODUCT(--($X$13:X14>$V$13:V14),--(($V$13:V14>=3)+($X$13:X14>=3)>0)))) -> 1
B15: HRVANOVIĆ Jasmin | C15: C | D15: Z | E15: GLAVINIĆ Denis | F15: 6 | G15: : | H15: 11 | I15: 11 | J15: : | K15: 5 | L15: 13 | M15: : | N15: 11 | O15: 8 | P15: : | Q15: 11 | R15: 11 | S15: : | T15: 5 | V15: =IF(COUNTA(F15:T15)=0,"",_xlfn.LET(_xlpm.h,CHOOSE({1,2,3,4,5},F15,I15,L15,O15,R15),_xlpm.a,CHOOSE({1,2,3,4,5},H15,K15,N15,Q15,T15),SUM((_xlpm.h>_xlpm.a)*(_xlpm.h<>"")*(_xlpm.a<>"")))) -> 3 | W15: : | X15: =IF(COUNTA(F15:T15)=0,"",_xlfn.LET(_xlpm.h,CHOOSE({1,2,3,4,5},F15,I15,L15,O15,R15),_xlpm.a,CHOOSE({1,2,3,4,5},H15,K15,N15,Q15,T15),SUM((_xlpm.a>_xlpm.h)*(_xlpm.h<>"")*(_xlpm.a<>"")))) -> 2 | Y15: =IF(OR(V15="",X15=""),"",IF(MAX(V15,X15)<3,"",SUMPRODUCT(--($V$13:V15>$X$13:X15),--(($V$13:V15>=3)+($X$13:X15>=3)>0)))) -> 2 | Z15: : | AA15: =IF(OR(V15="",X15=""),"",IF(MAX(V15,X15)<3,"",SUMPRODUCT(--($X$13:X15>$V$13:V15),--(($V$13:V15>=3)+($X$13:X15>=3)>0)))) -> 1
B16: INFANTOLINO D., HRVANOVIĆ J. | C16: PAR | D16: PAR | E16: GLAVINIĆ D., LUKEZ G. | F16: 8 | G16: : | H16: 11 | I16: 11 | J16: : | K16: 8 | L16: 9 | M16: : | N16: 11 | O16: 11 | P16: : | Q16: 6 | R16: 11 | S16: : | T16: 5 | V16: =IF(COUNTA(F16:T16)=0,"",_xlfn.LET(_xlpm.h,CHOOSE({1,2,3,4,5},F16,I16,L16,O16,R16),_xlpm.a,CHOOSE({1,2,3,4,5},H16,K16,N16,Q16,T16),SUM((_xlpm.h>_xlpm.a)*(_xlpm.h<>"")*(_xlpm.a<>"")))) -> 3 | W16: : | X16: =IF(COUNTA(F16:T16)=0,"",_xlfn.LET(_xlpm.h,CHOOSE({1,2,3,4,5},F16,I16,L16,O16,R16),_xlpm.a,CHOOSE({1,2,3,4,5},H16,K16,N16,Q16,T16),SUM((_xlpm.a>_xlpm.h)*(_xlpm.h<>"")*(_xlpm.a<>"")))) -> 2 | Y16: =IF(OR(V16="",X16=""),"",IF(MAX(V16,X16)<3,"",SUMPRODUCT(--($V$13:V16>$X$13:X16),--(($V$13:V16>=3)+($X$13:X16>=3)>0)))) -> 3 | Z16: : | AA16: =IF(OR(V16="",X16=""),"",IF(MAX(V16,X16)<3,"",SUMPRODUCT(--($X$13:X16>$V$13:V16),--(($V$13:V16>=3)+($X$13:X16>=3)>0)))) -> 1
G17: : | J17: : | M17: : | P17: : | S17: : | V17: =IF(COUNTA(F17:T17)=0,"",_xlfn.LET(_xlpm.h,CHOOSE({1,2,3,4,5},F17,I17,L17,O17,R17),_xlpm.a,CHOOSE({1,2,3,4,5},H17,K17,N17,Q17,T17),SUM((_xlpm.h>_xlpm.a)*(_xlpm.h<>"")*(_xlpm.a<>"")))) -> 0 | W17: : | X17: =IF(COUNTA(F17:T17)=0,"",_xlfn.LET(_xlpm.h,CHOOSE({1,2,3,4,5},F17,I17,L17,O17,R17),_xlpm.a,CHOOSE({1,2,3,4,5},H17,K17,N17,Q17,T17),SUM((_xlpm.a>_xlpm.h)*(_xlpm.h<>"")*(_xlpm.a<>"")))) -> 0 | Y17: =IF(OR(V17="",X17=""),"",IF(MAX(V17,X17)<3,"",SUMPRODUCT(--($V$13:V17>$X$13:X17),--(($V$13:V17>=3)+($X$13:X17>=3)>0)))) ->  | Z17: : | AA17: =IF(OR(V17="",X17=""),"",IF(MAX(V17,X17)<3,"",SUMPRODUCT(--($X$13:X17>$V$13:V17),--(($V$13:V17>=3)+($X$13:X17>=3)>0)))) -> 
B18: INFANTOLINO Davide | C18: A | D18: Y | E18: FABRIS Karlo | F18: 11 | G18: : | H18: 7 | I18: 11 | J18: : | K18: 3 | L18: 13 | M18: : | N18: 11 | P18: : | S18: : | V18: =IF(COUNTA(F18:T18)=0,"",_xlfn.LET(_xlpm.h,CHOOSE({1,2,3,4,5},F18,I18,L18,O18,R18),_xlpm.a,CHOOSE({1,2,3,4,5},H18,K18,N18,Q18,T18),SUM((_xlpm.h>_xlpm.a)*(_xlpm.h<>"")*(_xlpm.a<>"")))) -> 3 | W18: : | X18: =IF(COUNTA(F18:T18)=0,"",_xlfn.LET(_xlpm.h,CHOOSE({1,2,3,4,5},F18,I18,L18,O18,R18),_xlpm.a,CHOOSE({1,2,3,4,5},H18,K18,N18,Q18,T18),SUM((_xlpm.a>_xlpm.h)*(_xlpm.h<>"")*(_xlpm.a<>"")))) -> 0 | Y18: =IF(OR(V18="",X18=""),"",IF(MAX(V18,X18)<3,"",SUMPRODUCT(--($V$13:V18>$X$13:X18),--(($V$13:V18>=3)+($X$13:X18>=3)>0)))) -> 4 | Z18: : | AA18: =IF(OR(V18="",X18=""),"",IF(MAX(V18,X18)<3,"",SUMPRODUCT(--($X$13:X18>$V$13:V18),--(($V$13:V18>=3)+($X$13:X18>=3)>0)))) -> 1
C19: C | D19: X | G19: : | J19: : | M19: : | P19: : | S19: : | V19: =IF(COUNTA(F19:T19)=0,"",_xlfn.LET(_xlpm.h,CHOOSE({1,2,3,4,5},F19,I19,L19,O19,R19),_xlpm.a,CHOOSE({1,2,3,4,5},H19,K19,N19,Q19,T19),SUM((_xlpm.h>_xlpm.a)*(_xlpm.h<>"")*(_xlpm.a<>"")))) -> 0 | W19: : | X19: =IF(COUNTA(F19:T19)=0,"",_xlfn.LET(_xlpm.h,CHOOSE({1,2,3,4,5},F19,I19,L19,O19,R19),_xlpm.a,CHOOSE({1,2,3,4,5},H19,K19,N19,Q19,T19),SUM((_xlpm.a>_xlpm.h)*(_xlpm.h<>"")*(_xlpm.a<>"")))) -> 0 | Y19: =IF(OR(V19="",X19=""),"",IF(MAX(V19,X19)<3,"",SUMPRODUCT(--($V$13:V19>$X$13:X19),--(($V$13:V19>=3)+($X$13:X19>=3)>0)))) ->  | Z19: : | AA19: =IF(OR(V19="",X19=""),"",IF(MAX(V19,X19)<3,"",SUMPRODUCT(--($X$13:X19>$V$13:V19),--(($V$13:V19>=3)+($X$13:X19>=3)>0)))) -> 
C20: B | D20: Z | G20: : | J20: : | M20: : | P20: : | S20: : | V20: =IF(COUNTA(F20:T20)=0,"",_xlfn.LET(_xlpm.h,CHOOSE({1,2,3,4,5},F20,I20,L20,O20,R20),_xlpm.a,CHOOSE({1,2,3,4,5},H20,K20,N20,Q20,T20),SUM((_xlpm.h>_xlpm.a)*(_xlpm.h<>"")*(_xlpm.a<>"")))) -> 0 | W20: : | X20: =IF(COUNTA(F20:T20)=0,"",_xlfn.LET(_xlpm.h,CHOOSE({1,2,3,4,5},F20,I20,L20,O20,R20),_xlpm.a,CHOOSE({1,2,3,4,5},H20,K20,N20,Q20,T20),SUM((_xlpm.a>_xlpm.h)*(_xlpm.h<>"")*(_xlpm.a<>"")))) -> 0 | Y20: =IF(OR(V20="",X20=""),"",IF(MAX(V20,X20)<3,"",SUMPRODUCT(--($V$13:V20>$X$13:X20),--(($V$13:V20>=3)+($X$13:X20>=3)>0)))) ->  | Z20: : | AA20: =IF(OR(V20="",X20=""),"",IF(MAX(V20,X20)<3,"",SUMPRODUCT(--($X$13:X20>$V$13:V20),--(($V$13:V20>=3)+($X$13:X20>=3)>0)))) -> 
B22: =B4 -> VAL SHARK | C22: : | E22: =E4 -> PAZIN | F22: =MAX(Y13:Y20) -> 4 | G22: : | H22: =MAX(AA13:AA20) -> 1
E23: SETOVI | F23: =SUM(V13:V20) -> 14 | G23: : | H23: =SUM(X13:X20) -> 7
E24: POENI | F24: =SUM(F13:F20, I13:I20, L13:L20, O13:O20, R13:R20) -> 206 | G24: : | H24: =SUM(H13:H20, K13:K20, N13:N20, Q13:Q20, T13:T20) -> 170

Sheet ZAPISNIK_3_2 (hidden)
A1: ŽUPANIJSKA LIGA STSIŽ 2025./2026 | AV1: EDIT
B2: GRAD DOMAĆIN | E2: DVORANA | J2: KOLO | N2: DATUM | T2: SAT
B3: PULA | E3: Dvorana STK Arena Ferro, Rojc | J3: 3. | N3: 12. 11. 2025. | T3: 17:30:00
A4: Domaćin | B4: ARENA FERRO | D4: Gost | E4: PAZIN
A5: A | B5: CINKOPAN Kristijan | D5: X | E5: LUKEZ Goran
A6: B | B6: KELEMEN Mićo | D6: Y | E6: GLAVINIĆ Denis
A7: C | B7: KRANJC Dino | D7: Z | E7: FABIJAN Damir
A8: R1 | D8: R1
A9: R2 | D9: R2
B11: DOMAĆIN | E11: GOST
B12: ARENA FERRO | E12: PAZIN
B13: CINKOPAN Kristijan | C13: A | D13: X | E13: LUKEZ Goran | F13: 11 | G13: : | H13: 9 | I13: 11 | J13: : | K13: 13 | L13: 11 | M13: : | N13: 5 | O13: 11 | P13: : | Q13: 9 | S13: : | V13: =IF(COUNTA(F13:T13)=0,"",_xlfn.LET(_xlpm.h,CHOOSE({1,2,3,4,5},F13,I13,L13,O13,R13),_xlpm.a,CHOOSE({1,2,3,4,5},H13,K13,N13,Q13,T13),SUM((_xlpm.h>_xlpm.a)*(_xlpm.h<>"")*(_xlpm.a<>"")))) -> 3 | W13: : | X13: =IF(COUNTA(F13:T13)=0,"",_xlfn.LET(_xlpm.h,CHOOSE({1,2,3,4,5},F13,I13,L13,O13,R13),_xlpm.a,CHOOSE({1,2,3,4,5},H13,K13,N13,Q13,T13),SUM((_xlpm.a>_xlpm.h)*(_xlpm.h<>"")*(_xlpm.a<>"")))) -> 1 | Y13: =IF(OR(V13="",X13=""),"",IF(MAX(V13,X13)<3,"",SUMPRODUCT(--($V$13:V13>$X$13:X13),--(($V$13:V13>=3)+($X$13:X13>=3)>0)))) -> 1 | Z13: : | AA13: =IF(OR(V13="",X13=""),"",IF(MAX(V13,X13)<3,"",SUMPRODUCT(--($X$13:X13>$V$13:V13),--(($V$13:V13>=3)+($X$13:X13>=3)>0)))) -> 0
B14: KELEMEN Mićo | C14: B | D14: Y | E14: GLAVINIĆ Denis | F14: 3 | G14: : | H14: 11 | I14: 8 | J14: : | K14: 11 | L14: 3 | M14: : | N14: 11 | P14: : | S14: : | V14: =IF(COUNTA(F14:T14)=0,"",_xlfn.LET(_xlpm.h,CHOOSE({1,2,3,4,5},F14,I14,L14,O14,R14),_xlpm.a,CHOOSE({1,2,3,4,5},H14,K14,N14,Q14,T14),SUM((_xlpm.h>_xlpm.a)*(_xlpm.h<>"")*(_xlpm.a<>"")))) -> 0 | W14: : | X14: =IF(COUNTA(F14:T14)=0,"",_xlfn.LET(_xlpm.h,CHOOSE({1,2,3,4,5},F14,I14,L14,O14,R14),_xlpm.a,CHOOSE({1,2,3,4,5},H14,K14,N14,Q14,T14),SUM((_xlpm.a>_xlpm.h)*(_xlpm.h<>"")*(_xlpm.a<>"")))) -> 3 | Y14: =IF(OR(V14="",X14=""),"",IF(MAX(V14,X14)<3,"",SUMPRODUCT(--($V$13:V14>$X$13:X14),--(($V$13:V14>=3)+($X$13:X14>=3)>0)))) -> 1 | Z14: : | AA14: =IF(OR(V14="",X14=""),"",IF(MAX(V14,X14)<3,"",SUMPRODUCT(--($X$13:X14>$V$13:V14),--(($V$13:V14>=3)+($X$13:X14>=3)>0)))) -> 1
B15: KRANJC Dino | C15: C | D15: Z | E15: FABIJAN Damir | F15: 11 | G15: : | H15: 4 | I15: 11 | J15: : | K15: 4 | L15: 11 | M15: : | N15: 6 | P15: : | S15: : | V15: =IF(COUNTA(F15:T15)=0,"",_xlfn.LET(_xlpm.h,CHOOSE({1,2,3,4,5},F15,I15,L15,O15,R15),_xlpm.a,CHOOSE({1,2,3,4,5},H15,K15,N15,Q15,T15),SUM((_xlpm.h>_xlpm.a)*(_xlpm.h<>"")*(_xlpm.a<>"")))) -> 3 | W15: : | X15: =IF(COUNTA(F15:T15)=0,"",_xlfn.LET(_xlpm.h,CHOOSE({1,2,3,4,5},F15,I15,L15,O15,R15),_xlpm.a,CHOOSE({1,2,3,4,5},H15,K15,N15,Q15,T15),SUM((_xlpm.a>_xlpm.h)*(_xlpm.h<>"")*(_xlpm.a<>"")))) -> 0 | Y15: =IF(OR(V15="",X15=""),"",IF(MAX(V15,X15)<3,"",SUMPRODUCT(--($V$13:V15>$X$13:X15),--(($V$13:V15>=3)+($X$13:X15>=3)>0)))) -> 2 | Z15: : | AA15: =IF(OR(V15="",X15=""),"",IF(MAX(V15,X15)<3,"",SUMPRODUCT(--($X$13:X15>$V$13:V15),--(($V$13:V15>=3)+($X$13:X15>=3)>0)))) -> 1
B16: CINKOPAN K., KRANJC D. | C16: PAR | D16: PAR | E16: GLAVINIĆ D., FABIJAN D. | F16: 11 | G16: : | H16: 2 | I16: 11 | J16: : | K16: 8 | L16: 11 | M16: : | N16: 5 | P16: : | S16: : | V16: =IF(COUNTA(F16:T16)=0,"",_xlfn.LET(_xlpm.h,CHOOSE({1,2,3,4,5},F16,I16,L16,O16,R16),_xlpm.a,CHOOSE({1,2,3,4,5},H16,K16,N16,Q16,T16),SUM((_xlpm.h>_xlpm.a)*(_xlpm.h<>"")*(_xlpm.a<>"")))) -> 3 | W16: : | X16: =IF(COUNTA(F16:T16)=0,"",_xlfn.LET(_xlpm.h,CHOOSE({1,2,3,4,5},F16,I16,L16,O16,R16),_xlpm.a,CHOOSE({1,2,3,4,5},H16,K16,N16,Q16,T16),SUM((_xlpm.a>_xlpm.h)*(_xlpm.h<>"")*(_xlpm.a<>"")))) -> 0 | Y16: =IF(OR(V16="",X16=""),"",IF(MAX(V16,X16)<3,"",SUMPRODUCT(--($V$13:V16>$X$13:X16),--(($V$13:V16>=3)+($X$13:X16>=3)>0)))) -> 3 | Z16: : | AA16: =IF(OR(V16="",X16=""),"",IF(MAX(V16,X16)<3,"",SUMPRODUCT(--($X$13:X16>$V$13:V16),--(($V$13:V16>=3)+($X$13:X16>=3)>0)))) -> 1
G17: : | J17: : | M17: : | P17: : | S17: : | V17: =IF(COUNTA(F17:T17)=0,"",_xlfn.LET(_xlpm.h,CHOOSE({1,2,3,4,5},F17,I17,L17,O17,R17),_xlpm.a,CHOOSE({1,2,3,4,5},H17,K17,N17,Q17,T17),SUM((_xlpm.h>_xlpm.a)*(_xlpm.h<>"")*(_xlpm.a<>"")))) -> 0 | W17: : | X17: =IF(COUNTA(F17:T17)=0,"",_xlfn.LET(_xlpm.h,CHOOSE({1,2,3,4,5},F17,I17,L17,O17,R17),_xlpm.a,CHOOSE({1,2,3,4,5},H17,K17,N17,Q17,T17),SUM((_xlpm.a>_xlpm.h)*(_xlpm.h<>"")*(_xlpm.a<>"")))) -> 0 | Y17: =IF(OR(V17="",X17=""),"",IF(MAX(V17,X17)<3,"",SUMPRODUCT(--($V$13:V17>$X$13:X17),--(($V$13:V17>=3)+($X$13:X17>=3)>0)))) ->  | Z17: : | AA17: =IF(OR(V17="",X17=""),"",IF(MAX(V17,X17)<3,"",SUMPRODUCT(--($X$13:X17>$V$13:V17),--(($V$13:V17>=3)+($X$13:X17>=3)>0)))) -> 
B18: CINKOPAN Kristijan | C18: A | D18: Y | E18: GLAVINIĆ Denis | F18: 6 | G18: : | H18: 11 | I18: 11 | J18: : | K18: 7 | L18: 8 | M18: : | N18: 11 | O18: 11 | P18: : | Q18: 3 | R18: 6 | S18: : | T18: 11 | V18: =IF(COUNTA(F18:T18)=0,"",_xlfn.LET(_xlpm.h,CHOOSE({1,2,3,4,5},F18,I18,L18,O18,R18),_xlpm.a,CHOOSE({1,2,3,4,5},H18,K18,N18,Q18,T18),SUM((_xlpm.h>_xlpm.a)*(_xlpm.h<>"")*(_xlpm.a<>"")))) -> 2 | W18: : | X18: =IF(COUNTA(F18:T18)=0,"",_xlfn.LET(_xlpm.h,CHOOSE({1,2,3,4,5},F18,I18,L18,O18,R18),_xlpm.a,CHOOSE({1,2,3,4,5},H18,K18,N18,Q18,T18),SUM((_xlpm.a>_xlpm.h)*(_xlpm.h<>"")*(_xlpm.a<>"")))) -> 3 | Y18: =IF(OR(V18="",X18=""),"",IF(MAX(V18,X18)<3,"",SUMPRODUCT(--($V$13:V18>$X$13:X18),--(($V$13:V18>=3)+($X$13:X18>=3)>0)))) -> 3 | Z18: : | AA18: =IF(OR(V18="",X18=""),"",IF(MAX(V18,X18)<3,"",SUMPRODUCT(--($X$13:X18>$V$13:V18),--(($V$13:V18>=3)+($X$13:X18>=3)>0)))) -> 2
B19: KRANJC Dino | C19: C | D19: X | E19: LUKEZ Goran | F19: 4 | G19: : | H19: 11 | I19: 11 | J19: : | K19: 5 | L19: 11 | M19: : | N19: 13 | O19: 5 | P19: : | Q19: 11 | S19: : | V19: =IF(COUNTA(F19:T19)=0,"",_xlfn.LET(_xlpm.h,CHOOSE({1,2,3,4,5},F19,I19,L19,O19,R19),_xlpm.a,CHOOSE({1,2,3,4,5},H19,K19,N19,Q19,T19),SUM((_xlpm.h>_xlpm.a)*(_xlpm.h<>"")*(_xlpm.a<>"")))) -> 1 | W19: : | X19: =IF(COUNTA(F19:T19)=0,"",_xlfn.LET(_xlpm.h,CHOOSE({1,2,3,4,5},F19,I19,L19,O19,R19),_xlpm.a,CHOOSE({1,2,3,4,5},H19,K19,N19,Q19,T19),SUM((_xlpm.a>_xlpm.h)*(_xlpm.h<>"")*(_xlpm.a<>"")))) -> 3 | Y19: =IF(OR(V19="",X19=""),"",IF(MAX(V19,X19)<3,"",SUMPRODUCT(--($V$13:V19>$X$13:X19),--(($V$13:V19>=3)+($X$13:X19>=3)>0)))) -> 3 | Z19: : | AA19: =IF(OR(V19="",X19=""),"",IF(MAX(V19,X19)<3,"",SUMPRODUCT(--($X$13:X19>$V$13:V19),--(($V$13:V19>=3)+($X$13:X19>=3)>0)))) -> 3
B20: KELEMEN Mićo | C20: B | D20: Z | E20: FABIJAN Damir | F20: 11 | G20: : | H20: 9 | I20: 6 | J20: : | K20: 11 | L20: 11 | M20: : | N20: 2 | O20: 7 | P20: : | Q20: 11 | R20: 9 | S20: : | T20: 11 | V20: =IF(COUNTA(F20:T20)=0,"",_xlfn.LET(_xlpm.h,CHOOSE({1,2,3,4,5},F20,I20,L20,O20,R20),_xlpm.a,CHOOSE({1,2,3,4,5},H20,K20,N20,Q20,T20),SUM((_xlpm.h>_xlpm.a)*(_xlpm.h<>"")*(_xlpm.a<>"")))) -> 2 | W20: : | X20: =IF(COUNTA(F20:T20)=0,"",_xlfn.LET(_xlpm.h,CHOOSE({1,2,3,4,5},F20,I20,L20,O20,R20),_xlpm.a,CHOOSE({1,2,3,4,5},H20,K20,N20,Q20,T20),SUM((_xlpm.a>_xlpm.h)*(_xlpm.h<>"")*(_xlpm.a<>"")))) -> 3 | Y20: =IF(OR(V20="",X20=""),"",IF(MAX(V20,X20)<3,"",SUMPRODUCT(--($V$13:V20>$X$13:X20),--(($V$13:V20>=3)+($X$13:X20>=3)>0)))) -> 3 | Z20: : | AA20: =IF(OR(V20="",X20=""),"",IF(MAX(V20,X20)<3,"",SUMPRODUCT(--($X$13:X20>$V$13:V20),--(($V$13:V20>=3)+($X$13:X20>=3)>0)))) -> 4
B22: =B4 -> ARENA FERRO | C22: : | E22: =E4 -> PAZIN | F22: =MAX(Y13:Y20) -> 3 | G22: : | H22: =MAX(AA13:AA20) -> 4
E23: SETOVI | F23: =SUM(V13:V20) -> 14 | G23: : | H23: =SUM(X13:X20) -> 13
E24: POENI | F24: =SUM(F13:F20, I13:I20, L13:L20, O13:O20, R13:R20) -> 241 | G24: : | H24: =SUM(H13:H20, K13:K20, N13:N20, Q13:Q20, T13:T20) -> 225

Sheet ZAPISNIK_3_3 (hidden)
A1: ŽUPANIJSKA LIGA STSIŽ 2025./2026 | AV1: EDIT
B2: GRAD DOMAĆIN | E2: DVORANA | J2: KOLO | N2: DATUM | T2: SAT
B3: BUZET | E3: SD Buzet | J3: 3. | N3: 12. 11. 2025. | T3: 19:30:00
A4: Domaćin | B4: BUZET 2 | D4: Gost | E4: MAESTRAL 2
A5: A | B5: DRAŠĆIĆ Petar | D5: X | E5: KMET Teo
A6: B | B6: KOS Dino | D6: Y | E6: HANZL Tomislav
A7: C | B7: PAVLETIĆ Guido | D7: Z | E7: VIŽINTIN Marino
A8: R1 | D8: R1
A9: R2 | D9: R2
B11: DOMAĆIN | E11: GOST
B12: BUZET 2 | E12: MAESTRAL 2
B13: DRAŠĆIĆ Petar | C13: A | D13: X | E13: KMET Teo | F13: 11 | G13: : | H13: 13 | I13: 11 | J13: : | K13: 7 | L13: 11 | M13: : | N13: 6 | O13: 11 | P13: : | Q13: 7 | S13: : | V13: =IF(COUNTA(F13:T13)=0,"",_xlfn.LET(_xlpm.h,CHOOSE({1,2,3,4,5},F13,I13,L13,O13,R13),_xlpm.a,CHOOSE({1,2,3,4,5},H13,K13,N13,Q13,T13),SUM((_xlpm.h>_xlpm.a)*(_xlpm.h<>"")*(_xlpm.a<>"")))) -> 3 | W13: : | X13: =IF(COUNTA(F13:T13)=0,"",_xlfn.LET(_xlpm.h,CHOOSE({1,2,3,4,5},F13,I13,L13,O13,R13),_xlpm.a,CHOOSE({1,2,3,4,5},H13,K13,N13,Q13,T13),SUM((_xlpm.a>_xlpm.h)*(_xlpm.h<>"")*(_xlpm.a<>"")))) -> 1 | Y13: =IF(OR(V13="",X13=""),"",IF(MAX(V13,X13)<3,"",SUMPRODUCT(--($V$13:V13>$X$13:X13),--(($V$13:V13>=3)+($X$13:X13>=3)>0)))) -> 1 | Z13: : | AA13: =IF(OR(V13="",X13=""),"",IF(MAX(V13,X13)<3,"",SUMPRODUCT(--($X$13:X13>$V$13:V13),--(($V$13:V13>=3)+($X$13:X13>=3)>0)))) -> 0
B14: KOS Dino | C14: B | D14: Y | E14: HANZL Tomislav | F14: 11 | G14: : | H14: 8 | I14: 11 | J14: : | K14: 5 | L14: 7 | M14: : | N14: 11 | O14: 11 | P14: : | Q14: 9 | S14: : | V14: =IF(COUNTA(F14:T14)=0,"",_xlfn.LET(_xlpm.h,CHOOSE({1,2,3,4,5},F14,I14,L14,O14,R14),_xlpm.a,CHOOSE({1,2,3,4,5},H14,K14,N14,Q14,T14),SUM((_xlpm.h>_xlpm.a)*(_xlpm.h<>"")*(_xlpm.a<>"")))) -> 3 | W14: : | X14: =IF(COUNTA(F14:T14)=0,"",_xlfn.LET(_xlpm.h,CHOOSE({1,2,3,4,5},F14,I14,L14,O14,R14),_xlpm.a,CHOOSE({1,2,3,4,5},H14,K14,N14,Q14,T14),SUM((_xlpm.a>_xlpm.h)*(_xlpm.h<>"")*(_xlpm.a<>"")))) -> 1 | Y14: =IF(OR(V14="",X14=""),"",IF(MAX(V14,X14)<3,"",SUMPRODUCT(--($V$13:V14>$X$13:X14),--(($V$13:V14>=3)+($X$13:X14>=3)>0)))) -> 2 | Z14: : | AA14: =IF(OR(V14="",X14=""),"",IF(MAX(V14,X14)<3,"",SUMPRODUCT(--($X$13:X14>$V$13:V14),--(($V$13:V14>=3)+($X$13:X14>=3)>0)))) -> 0
B15: PAVLETIĆ Guido | C15: C | D15: Z | E15: VIŽINTIN Marino | F15: 11 | G15: : | H15: 7 | I15: 11 | J15: : | K15: 7 | L15: 13 | M15: : | N15: 11 | P15: : | S15: : | V15: =IF(COUNTA(F15:T15)=0,"",_xlfn.LET(_xlpm.h,CHOOSE({1,2,3,4,5},F15,I15,L15,O15,R15),_xlpm.a,CHOOSE({1,2,3,4,5},H15,K15,N15,Q15,T15),SUM((_xlpm.h>_xlpm.a)*(_xlpm.h<>"")*(_xlpm.a<>"")))) -> 3 | W15: : | X15: =IF(COUNTA(F15:T15)=0,"",_xlfn.LET(_xlpm.h,CHOOSE({1,2,3,4,5},F15,I15,L15,O15,R15),_xlpm.a,CHOOSE({1,2,3,4,5},H15,K15,N15,Q15,T15),SUM((_xlpm.a>_xlpm.h)*(_xlpm.h<>"")*(_xlpm.a<>"")))) -> 0 | Y15: =IF(OR(V15="",X15=""),"",IF(MAX(V15,X15)<3,"",SUMPRODUCT(--($V$13:V15>$X$13:X15),--(($V$13:V15>=3)+($X$13:X15>=3)>0)))) -> 3 | Z15: : | AA15: =IF(OR(V15="",X15=""),"",IF(MAX(V15,X15)<3,"",SUMPRODUCT(--($X$13:X15>$V$13:V15),--(($V$13:V15>=3)+($X$13:X15>=3)>0)))) -> 0
B16: KOS D., PAVLETIĆ G. | C16: PAR | D16: PAR | E16: KMET T., HANZL T. | F16: 14 | G16: : | H16: 12 | I16: 10 | J16: : | K16: 12 | L16: 11 | M16: : | N16: 5 | O16: 2 | P16: : | Q16: 11 | R16: 12 | S16: : | T16: 10 | V16: =IF(COUNTA(F16:T16)=0,"",_xlfn.LET(_xlpm.h,CHOOSE({1,2,3,4,5},F16,I16,L16,O16,R16),_xlpm.a,CHOOSE({1,2,3,4,5},H16,K16,N16,Q16,T16),SUM((_xlpm.h>_xlpm.a)*(_xlpm.h<>"")*(_xlpm.a<>"")))) -> 3 | W16: : | X16: =IF(COUNTA(F16:T16)=0,"",_xlfn.LET(_xlpm.h,CHOOSE({1,2,3,4,5},F16,I16,L16,O16,R16),_xlpm.a,CHOOSE({1,2,3,4,5},H16,K16,N16,Q16,T16),SUM((_xlpm.a>_xlpm.h)*(_xlpm.h<>"")*(_xlpm.a<>"")))) -> 2 | Y16: =IF(OR(V16="",X16=""),"",IF(MAX(V16,X16)<3,"",SUMPRODUCT(--($V$13:V16>$X$13:X16),--(($V$13:V16>=3)+($X$13:X16>=3)>0)))) -> 4 | Z16: : | AA16: =IF(OR(V16="",X16=""),"",IF(MAX(V16,X16)<3,"",SUMPRODUCT(--($X$13:X16>$V$13:V16),--(($V$13:V16>=3)+($X$13:X16>=3)>0)))) -> 0
G17: : | J17: : | M17: : | P17: : | S17: : | V17: =IF(COUNTA(F17:T17)=0,"",_xlfn.LET(_xlpm.h,CHOOSE({1,2,3,4,5},F17,I17,L17,O17,R17),_xlpm.a,CHOOSE({1,2,3,4,5},H17,K17,N17,Q17,T17),SUM((_xlpm.h>_xlpm.a)*(_xlpm.h<>"")*(_xlpm.a<>"")))) -> 0 | W17: : | X17: =IF(COUNTA(F17:T17)=0,"",_xlfn.LET(_xlpm.h,CHOOSE({1,2,3,4,5},F17,I17,L17,O17,R17),_xlpm.a,CHOOSE({1,2,3,4,5},H17,K17,N17,Q17,T17),SUM((_xlpm.a>_xlpm.h)*(_xlpm.h<>"")*(_xlpm.a<>"")))) -> 0 | Y17: =IF(OR(V17="",X17=""),"",IF(MAX(V17,X17)<3,"",SUMPRODUCT(--($V$13:V17>$X$13:X17),--(($V$13:V17>=3)+($X$13:X17>=3)>0)))) ->  | Z17: : | AA17: =IF(OR(V17="",X17=""),"",IF(MAX(V17,X17)<3,"",SUMPRODUCT(--($X$13:X17>$V$13:V17),--(($V$13:V17>=3)+($X$13:X17>=3)>0)))) -> 
C18: A | D18: Y | G18: : | J18: : | M18: : | P18: : | S18: : | V18: =IF(COUNTA(F18:T18)=0,"",_xlfn.LET(_xlpm.h,CHOOSE({1,2,3,4,5},F18,I18,L18,O18,R18),_xlpm.a,CHOOSE({1,2,3,4,5},H18,K18,N18,Q18,T18),SUM((_xlpm.h>_xlpm.a)*(_xlpm.h<>"")*(_xlpm.a<>"")))) -> 0 | W18: : | X18: =IF(COUNTA(F18:T18)=0,"",_xlfn.LET(_xlpm.h,CHOOSE({1,2,3,4,5},F18,I18,L18,O18,R18),_xlpm.a,CHOOSE({1,2,3,4,5},H18,K18,N18,Q18,T18),SUM((_xlpm.a>_xlpm.h)*(_xlpm.h<>"")*(_xlpm.a<>"")))) -> 0 | Y18: =IF(OR(V18="",X18=""),"",IF(MAX(V18,X18)<3,"",SUMPRODUCT(--($V$13:V18>$X$13:X18),--(($V$13:V18>=3)+($X$13:X18>=3)>0)))) ->  | Z18: : | AA18: =IF(OR(V18="",X18=""),"",IF(MAX(V18,X18)<3,"",SUMPRODUCT(--($X$13:X18>$V$13:V18),--(($V$13:V18>=3)+($X$13:X18>=3)>0)))) -> 
C19: C | D19: X | G19: : | J19: : | M19: : | P19: : | S19: : | V19: =IF(COUNTA(F19:T19)=0,"",_xlfn.LET(_xlpm.h,CHOOSE({1,2,3,4,5},F19,I19,L19,O19,R19),_xlpm.a,CHOOSE({1,2,3,4,5},H19,K19,N19,Q19,T19),SUM((_xlpm.h>_xlpm.a)*(_xlpm.h<>"")*(_xlpm.a<>"")))) -> 0 | W19: : | X19: =IF(COUNTA(F19:T19)=0,"",_xlfn.LET(_xlpm.h,CHOOSE({1,2,3,4,5},F19,I19,L19,O19,R19),_xlpm.a,CHOOSE({1,2,3,4,5},H19,K19,N19,Q19,T19),SUM((_xlpm.a>_xlpm.h)*(_xlpm.h<>"")*(_xlpm.a<>"")))) -> 0 | Y19: =IF(OR(V19="",X19=""),"",IF(MAX(V19,X19)<3,"",SUMPRODUCT(--($V$13:V19>$X$13:X19),--(($V$13:V19>=3)+($X$13:X19>=3)>0)))) ->  | Z19: : | AA19: =IF(OR(V19="",X19=""),"",IF(MAX(V19,X19)<3,"",SUMPRODUCT(--($X$13:X19>$V$13:V19),--(($V$13:V19>=3)+($X$13:X19>=3)>0)))) -> 
C20: B | D20: Z | G20: : | J20: : | M20: : | P20: : | S20: : | V20: =IF(COUNTA(F20:T20)=0,"",_xlfn.LET(_xlpm.h,CHOOSE({1,2,3,4,5},F20,I20,L20,O20,R20),_xlpm.a,CHOOSE({1,2,3,4,5},H20,K20,N20,Q20,T20),SUM((_xlpm.h>_xlpm.a)*(_xlpm.h<>"")*(_xlpm.a<>"")))) -> 0 | W20: : | X20: =IF(COUNTA(F20:T20)=0,"",_xlfn.LET(_xlpm.h,CHOOSE({1,2,3,4,5},F20,I20,L20,O20,R20),_xlpm.a,CHOOSE({1,2,3,4,5},H20,K20,N20,Q20,T20),SUM((_xlpm.a>_xlpm.h)*(_xlpm.h<>"")*(_xlpm.a<>"")))) -> 0 | Y20: =IF(OR(V20="",X20=""),"",IF(MAX(V20,X20)<3,"",SUMPRODUCT(--($V$13:V20>$X$13:X20),--(($V$13:V20>=3)+($X$13:X20>=3)>0)))) ->  | Z20: : | AA20: =IF(OR(V20="",X20=""),"",IF(MAX(V20,X20)<3,"",SUMPRODUCT(--($X$13:X20>$V$13:V20),--(($V$13:V20>=3)+($X$13:X20>=3)>0)))) -> 
B22: =B4 -> BUZET 2 | C22: : | E22: =E4 -> MAESTRAL 2 | F22: =MAX(Y13:Y20) -> 4 | G22: : | H22: =MAX(AA13:AA20) -> 0
E23: SETOVI | F23: =SUM(V13:V20) -> 12 | G23: : | H23: =SUM(X13:X20) -> 4
E24: POENI | F24: =SUM(F13:F20, I13:I20, L13:L20, O13:O20, R13:R20) -> 168 | G24: : | H24: =SUM(H13:H20, K13:K20, N13:N20, Q13:Q20, T13:T20) -> 141

Sheet ZAPISNIK_3_4 (hidden)
A1: ŽUPANIJSKA LIGA STSIŽ 2025./2026. | AV1: EDIT
B2: GRAD DOMAĆIN | E2: DVORANA | J2: KOLO | N2: DATUM | T2: SAT
B3: BUZET | E3: SD Buzet | J3: 3. | N3: 12. 11. 2025. | T3: 18:00:00
A4: Domaćin | B4: BUZET 1 | D4: Gost | E4: MAESTRAL 2
A5: A | B5: BERDNYK Stanislav | D5: X | E5: KMET Teo
A6: B | B6: SIROTIĆ Kevin | D6: Y | E6: VIŽINTIN Marino
A7: C | B7: SIROTIĆ Aleš | D7: Z | E7: SINČIĆ Luana
A8: R1 | D8: R1
A9: R2 | D9: R2
B11: DOMAĆIN | E11: GOST
B12: BUZET 1 | E12: MAESTRAL 2
B13: BERDNYK Stanislav | C13: A | D13: X | E13: KMET Teo | F13: 11 | G13: : | H13: 6 | I13: 11 | J13: : | K13: 1 | L13: 11 | M13: : | N13: 3 | P13: : | S13: : | V13: =IF(COUNTA(F13:T13)=0,"",_xlfn.LET(_xlpm.h,CHOOSE({1,2,3,4,5},F13,I13,L13,O13,R13),_xlpm.a,CHOOSE({1,2,3,4,5},H13,K13,N13,Q13,T13),SUM((_xlpm.h>_xlpm.a)*(_xlpm.h<>"")*(_xlpm.a<>"")))) -> 3 | W13: : | X13: =IF(COUNTA(F13:T13)=0,"",_xlfn.LET(_xlpm.h,CHOOSE({1,2,3,4,5},F13,I13,L13,O13,R13),_xlpm.a,CHOOSE({1,2,3,4,5},H13,K13,N13,Q13,T13),SUM((_xlpm.a>_xlpm.h)*(_xlpm.h<>"")*(_xlpm.a<>"")))) -> 0 | Y13: =IF(OR(V13="",X13=""),"",IF(MAX(V13,X13)<3,"",SUMPRODUCT(--($V$13:V13>$X$13:X13),--(($V$13:V13>=3)+($X$13:X13>=3)>0)))) -> 1 | Z13: : | AA13: =IF(OR(V13="",X13=""),"",IF(MAX(V13,X13)<3,"",SUMPRODUCT(--($X$13:X13>$V$13:V13),--(($V$13:V13>=3)+($X$13:X13>=3)>0)))) -> 0
B14: SIROTIĆ Kevin | C14: B | D14: Y | E14: VIŽINTIN Marino | F14: 11 | G14: : | H14: 6 | I14: 11 | J14: : | K14: 4 | L14: 11 | M14: : | N14: 5 | P14: : | S14: : | V14: =IF(COUNTA(F14:T14)=0,"",_xlfn.LET(_xlpm.h,CHOOSE({1,2,3,4,5},F14,I14,L14,O14,R14),_xlpm.a,CHOOSE({1,2,3,4,5},H14,K14,N14,Q14,T14),SUM((_xlpm.h>_xlpm.a)*(_xlpm.h<>"")*(_xlpm.a<>"")))) -> 3 | W14: : | X14: =IF(COUNTA(F14:T14)=0,"",_xlfn.LET(_xlpm.h,CHOOSE({1,2,3,4,5},F14,I14,L14,O14,R14),_xlpm.a,CHOOSE({1,2,3,4,5},H14,K14,N14,Q14,T14),SUM((_xlpm.a>_xlpm.h)*(_xlpm.h<>"")*(_xlpm.a<>"")))) -> 0 | Y14: =IF(OR(V14="",X14=""),"",IF(MAX(V14,X14)<3,"",SUMPRODUCT(--($V$13:V14>$X$13:X14),--(($V$13:V14>=3)+($X$13:X14>=3)>0)))) -> 2 | Z14: : | AA14: =IF(OR(V14="",X14=""),"",IF(MAX(V14,X14)<3,"",SUMPRODUCT(--($X$13:X14>$V$13:V14),--(($V$13:V14>=3)+($X$13:X14>=3)>0)))) -> 0
B15: SIROTIĆ Aleš | C15: C | D15: Z | E15: SINČIĆ Luana | F15: 11 | G15: : | H15: 8 | I15: 11 | J15: : | K15: 6 | L15: 12 | M15: : | N15: 10 | P15: : | S15: : | V15: =IF(COUNTA(F15:T15)=0,"",_xlfn.LET(_xlpm.h,CHOOSE({1,2,3,4,5},F15,I15,L15,O15,R15),_xlpm.a,CHOOSE({1,2,3,4,5},H15,K15,N15,Q15,T15),SUM((_xlpm.h>_xlpm.a)*(_xlpm.h<>"")*(_xlpm.a<>"")))) -> 3 | W15: : | X15: =IF(COUNTA(F15:T15)=0,"",_xlfn.LET(_xlpm.h,CHOOSE({1,2,3,4,5},F15,I15,L15,O15,R15),_xlpm.a,CHOOSE({1,2,3,4,5},H15,K15,N15,Q15,T15),SUM((_xlpm.a>_xlpm.h)*(_xlpm.h<>"")*(_xlpm.a<>"")))) -> 0 | Y15: =IF(OR(V15="",X15=""),"",IF(MAX(V15,X15)<3,"",SUMPRODUCT(--($V$13:V15>$X$13:X15),--(($V$13:V15>=3)+($X$13:X15>=3)>0)))) -> 3 | Z15: : | AA15: =IF(OR(V15="",X15=""),"",IF(MAX(V15,X15)<3,"",SUMPRODUCT(--($X$13:X15>$V$13:V15),--(($V$13:V15>=3)+($X$13:X15>=3)>0)))) -> 0
B16: SIROTIĆ K., BERDNYK S. | C16: PAR | D16: PAR | E16: KMET T., SINČIĆ L. | F16: 11 | G16: : | H16: 7 | I16: 11 | J16: : | K16: 4 | L16: 11 | M16: : | N16: 6 | P16: : | S16: : | V16: =IF(COUNTA(F16:T16)=0,"",_xlfn.LET(_xlpm.h,CHOOSE({1,2,3,4,5},F16,I16,L16,O16,R16),_xlpm.a,CHOOSE({1,2,3,4,5},H16,K16,N16,Q16,T16),SUM((_xlpm.h>_xlpm.a)*(_xlpm.h<>"")*(_xlpm.a<>"")))) -> 3 | W16: : | X16: =IF(COUNTA(F16:T16)=0,"",_xlfn.LET(_xlpm.h,CHOOSE({1,2,3,4,5},F16,I16,L16,O16,R16),_xlpm.a,CHOOSE({1,2,3,4,5},H16,K16,N16,Q16,T16),SUM((_xlpm.a>_xlpm.h)*(_xlpm.h<>"")*(_xlpm.a<>"")))) -> 0 | Y16: =IF(OR(V16="",X16=""),"",IF(MAX(V16,X16)<3,"",SUMPRODUCT(--($V$13:V16>$X$13:X16),--(($V$13:V16>=3)+($X$13:X16>=3)>0)))) -> 4 | Z16: : | AA16: =IF(OR(V16="",X16=""),"",IF(MAX(V16,X16)<3,"",SUMPRODUCT(--($X$13:X16>$V$13:V16),--(($V$13:V16>=3)+($X$13:X16>=3)>0)))) -> 0
G17: : | J17: : | M17: : | P17: : | S17: : | V17: =IF(COUNTA(F17:T17)=0,"",_xlfn.LET(_xlpm.h,CHOOSE({1,2,3,4,5},F17,I17,L17,O17,R17),_xlpm.a,CHOOSE({1,2,3,4,5},H17,K17,N17,Q17,T17),SUM((_xlpm.h>_xlpm.a)*(_xlpm.h<>"")*(_xlpm.a<>"")))) -> 0 | W17: : | X17: =IF(COUNTA(F17:T17)=0,"",_xlfn.LET(_xlpm.h,CHOOSE({1,2,3,4,5},F17,I17,L17,O17,R17),_xlpm.a,CHOOSE({1,2,3,4,5},H17,K17,N17,Q17,T17),SUM((_xlpm.a>_xlpm.h)*(_xlpm.h<>"")*(_xlpm.a<>"")))) -> 0 | Y17: =IF(OR(V17="",X17=""),"",IF(MAX(V17,X17)<3,"",SUMPRODUCT(--($V$13:V17>$X$13:X17),--(($V$13:V17>=3)+($X$13:X17>=3)>0)))) ->  | Z17: : | AA17: =IF(OR(V17="",X17=""),"",IF(MAX(V17,X17)<3,"",SUMPRODUCT(--($X$13:X17>$V$13:V17),--(($V$13:V17>=3)+($X$13:X17>=3)>0)))) -> 
C18: A | D18: Y | G18: : | J18: : | M18: : | P18: : | S18: : | V18: =IF(COUNTA(F18:T18)=0,"",_xlfn.LET(_xlpm.h,CHOOSE({1,2,3,4,5},F18,I18,L18,O18,R18),_xlpm.a,CHOOSE({1,2,3,4,5},H18,K18,N18,Q18,T18),SUM((_xlpm.h>_xlpm.a)*(_xlpm.h<>"")*(_xlpm.a<>"")))) -> 0 | W18: : | X18: =IF(COUNTA(F18:T18)=0,"",_xlfn.LET(_xlpm.h,CHOOSE({1,2,3,4,5},F18,I18,L18,O18,R18),_xlpm.a,CHOOSE({1,2,3,4,5},H18,K18,N18,Q18,T18),SUM((_xlpm.a>_xlpm.h)*(_xlpm.h<>"")*(_xlpm.a<>"")))) -> 0 | Y18: =IF(OR(V18="",X18=""),"",IF(MAX(V18,X18)<3,"",SUMPRODUCT(--($V$13:V18>$X$13:X18),--(($V$13:V18>=3)+($X$13:X18>=3)>0)))) ->  | Z18: : | AA18: =IF(OR(V18="",X18=""),"",IF(MAX(V18,X18)<3,"",SUMPRODUCT(--($X$13:X18>$V$13:V18),--(($V$13:V18>=3)+($X$13:X18>=3)>0)))) -> 
C19: C | D19: X | G19: : | J19: : | M19: : | P19: : | S19: : | V19: =IF(COUNTA(F19:T19)=0,"",_xlfn.LET(_xlpm.h,CHOOSE({1,2,3,4,5},F19,I19,L19,O19,R19),_xlpm.a,CHOOSE({1,2,3,4,5},H19,K19,N19,Q19,T19),SUM((_xlpm.h>_xlpm.a)*(_xlpm.h<>"")*(_xlpm.a<>"")))) -> 0 | W19: : | X19: =IF(COUNTA(F19:T19)=0,"",_xlfn.LET(_xlpm.h,CHOOSE({1,2,3,4,5},F19,I19,L19,O19,R19),_xlpm.a,CHOOSE({1,2,3,4,5},H19,K19,N19,Q19,T19),SUM((_xlpm.a>_xlpm.h)*(_xlpm.h<>"")*(_xlpm.a<>"")))) -> 0 | Y19: =IF(OR(V19="",X19=""),"",IF(MAX(V19,X19)<3,"",SUMPRODUCT(--($V$13:V19>$X$13:X19),--(($V$13:V19>=3)+($X$13:X19>=3)>0)))) ->  | Z19: : | AA19: =IF(OR(V19="",X19=""),"",IF(MAX(V19,X19)<3,"",SUMPRODUCT(--($X$13:X19>$V$13:V19),--(($V$13:V19>=3)+($X$13:X19>=3)>0)))) -> 
C20: B | D20: Z | G20: : | J20: : | M20: : | P20: : | S20: : | V20: =IF(COUNTA(F20:T20)=0,"",_xlfn.LET(_xlpm.h,CHOOSE({1,2,3,4,5},F20,I20,L20,O20,R20),_xlpm.a,CHOOSE({1,2,3,4,5},H20,K20,N20,Q20,T20),SUM((_xlpm.h>_xlpm.a)*(_xlpm.h<>"")*(_xlpm.a<>"")))) -> 0 | W20: : | X20: =IF(COUNTA(F20:T20)=0,"",_xlfn.LET(_xlpm.h,CHOOSE({1,2,3,4,5},F20,I20,L20,O20,R20),_xlpm.a,CHOOSE({1,2,3,4,5},H20,K20,N20,Q20,T20),SUM((_xlpm.a>_xlpm.h)*(_xlpm.h<>"")*(_xlpm.a<>"")))) -> 0 | Y20: =IF(OR(V20="",X20=""),"",IF(MAX(V20,X20)<3,"",SUMPRODUCT(--($V$13:V20>$X$13:X20),--(($V$13:V20>=3)+($X$13:X20>=3)>0)))) ->  | Z20: : | AA20: =IF(OR(V20="",X20=""),"",IF(MAX(V20,X20)<3,"",SUMPRODUCT(--($X$13:X20>$V$13:V20),--(($V$13:V20>=3)+($X$13:X20>=3)>0)))) -> 
B22: =B4 -> BUZET 1 | C22: : | E22: =E4 -> MAESTRAL 2 | F22: =MAX(Y13:Y20) -> 4 | G22: : | H22: =MAX(AA13:AA20) -> 0
E23: SETOVI | F23: =SUM(V13:V20) -> 12 | G23: : | H23: =SUM(X13:X20) -> 0
E24: POENI | F24: =SUM(F13:F20, I13:I20, L13:L20, O13:O20, R13:R20) -> 133 | G24: : | H24: =SUM(H13:H20, K13:K20, N13:N20, Q13:Q20, T13:T20) -> 66

Sheet ZAPISNIK_4_1 (hidden)
A1: ŽUPANIJSKA LIGA STSIŽ 2025./2026 | AV1: EDIT
B2: GRAD DOMAĆIN | E2: DVORANA | J2: KOLO | N2: DATUM | T2: SAT
B3: PULA | E3: Dvorana STK Arena Ferro, Rojc | J3: 4. | N3: 19. 11. 2025. | T3: 18:30:00
A4: Domaćin | B4: ARENA FERRO | D4: Gost | E4: BUZET 1
A5: A | B5: CINKOPAN Kristijan | D5: X | E5: BERDNYK Stanislav
A6: B | B6: KRIŠTO Tomislav | D6: Y | E6: SIROTIĆ Aleš
A7: C | B7: KRANJC Dino | D7: Z | E7: KRANČIĆ Filip
A8: R1 | D8: R1
A9: R2 | D9: R2
B11: DOMAĆIN | E11: GOST
B12: ARENA FERRO | E12: BUZET 1
B13: CINKOPAN Kristijan | C13: A | D13: X | E13: BERDNYK Stanislav | F13: 11 | G13: : | H13: 9 | I13: 11 | J13: : | K13: 3 | L13: 11 | M13: : | N13: 6 | P13: : | S13: : | V13: =IF(COUNTA(F13:T13)=0,"",_xlfn.LET(_xlpm.h,CHOOSE({1,2,3,4,5},F13,I13,L13,O13,R13),_xlpm.a,CHOOSE({1,2,3,4,5},H13,K13,N13,Q13,T13),SUM((_xlpm.h>_xlpm.a)*(_xlpm.h<>"")*(_xlpm.a<>"")))) -> 3 | W13: : | X13: =IF(COUNTA(F13:T13)=0,"",_xlfn.LET(_xlpm.h,CHOOSE({1,2,3,4,5},F13,I13,L13,O13,R13),_xlpm.a,CHOOSE({1,2,3,4,5},H13,K13,N13,Q13,T13),SUM((_xlpm.a>_xlpm.h)*(_xlpm.h<>"")*(_xlpm.a<>"")))) -> 0 | Y13: =IF(OR(V13="",X13=""),"",IF(MAX(V13,X13)<3,"",SUMPRODUCT(--($V$13:V13>$X$13:X13),--(($V$13:V13>=3)+($X$13:X13>=3)>0)))) -> 1 | Z13: : | AA13: =IF(OR(V13="",X13=""),"",IF(MAX(V13,X13)<3,"",SUMPRODUCT(--($X$13:X13>$V$13:V13),--(($V$13:V13>=3)+($X$13:X13>=3)>0)))) -> 0
B14: KRIŠTO Tomislav | C14: B | D14: Y | E14: SIROTIĆ Aleš | F14: 11 | G14: : | H14: 9 | I14: 12 | J14: : | K14: 10 | L14: 11 | M14: : | N14: 6 | P14: : | S14: : | V14: =IF(COUNTA(F14:T14)=0,"",_xlfn.LET(_xlpm.h,CHOOSE({1,2,3,4,5},F14,I14,L14,O14,R14),_xlpm.a,CHOOSE({1,2,3,4,5},H14,K14,N14,Q14,T14),SUM((_xlpm.h>_xlpm.a)*(_xlpm.h<>"")*(_xlpm.a<>"")))) -> 3 | W14: : | X14: =IF(COUNTA(F14:T14)=0,"",_xlfn.LET(_xlpm.h,CHOOSE({1,2,3,4,5},F14,I14,L14,O14,R14),_xlpm.a,CHOOSE({1,2,3,4,5},H14,K14,N14,Q14,T14),SUM((_xlpm.a>_xlpm.h)*(_xlpm.h<>"")*(_xlpm.a<>"")))) -> 0 | Y14: =IF(OR(V14="",X14=""),"",IF(MAX(V14,X14)<3,"",SUMPRODUCT(--($V$13:V14>$X$13:X14),--(($V$13:V14>=3)+($X$13:X14>=3)>0)))) -> 2 | Z14: : | AA14: =IF(OR(V14="",X14=""),"",IF(MAX(V14,X14)<3,"",SUMPRODUCT(--($X$13:X14>$V$13:V14),--(($V$13:V14>=3)+($X$13:X14>=3)>0)))) -> 0
B15: KRANJC Dino | C15: C | D15: Z | E15: KRANČIĆ Filip | F15: 9 | G15: : | H15: 11 | I15: 11 | J15: : | K15: 6 | L15: 11 | M15: : | N15: 8 | O15: 7 | P15: : | Q15: 11 | R15: 11 | S15: : | T15: 13 | V15: =IF(COUNTA(F15:T15)=0,"",_xlfn.LET(_xlpm.h,CHOOSE({1,2,3,4,5},F15,I15,L15,O15,R15),_xlpm.a,CHOOSE({1,2,3,4,5},H15,K15,N15,Q15,T15),SUM((_xlpm.h>_xlpm.a)*(_xlpm.h<>"")*(_xlpm.a<>"")))) -> 2 | W15: : | X15: =IF(COUNTA(F15:T15)=0,"",_xlfn.LET(_xlpm.h,CHOOSE({1,2,3,4,5},F15,I15,L15,O15,R15),_xlpm.a,CHOOSE({1,2,3,4,5},H15,K15,N15,Q15,T15),SUM((_xlpm.a>_xlpm.h)*(_xlpm.h<>"")*(_xlpm.a<>"")))) -> 3 | Y15: =IF(OR(V15="",X15=""),"",IF(MAX(V15,X15)<3,"",SUMPRODUCT(--($V$13:V15>$X$13:X15),--(($V$13:V15>=3)+($X$13:X15>=3)>0)))) -> 2 | Z15: : | AA15: =IF(OR(V15="",X15=""),"",IF(MAX(V15,X15)<3,"",SUMPRODUCT(--($X$13:X15>$V$13:V15),--(($V$13:V15>=3)+($X$13:X15>=3)>0)))) -> 1
B16: CINKOPAN K., KRANJC D. | C16: PAR | D16: PAR | E16: SIROTIĆ A., KRANČIĆ F. | F16: 11 | G16: : | H16: 6 | I16: 16 | J16: : | K16: 14 | L16: 8 | M16: : | N16: 11 | O16: 11 | P16: : | Q16: 5 | S16: : | V16: =IF(COUNTA(F16:T16)=0,"",_xlfn.LET(_xlpm.h,CHOOSE({1,2,3,4,5},F16,I16,L16,O16,R16),_xlpm.a,CHOOSE({1,2,3,4,5},H16,K16,N16,Q16,T16),SUM((_xlpm.h>_xlpm.a)*(_xlpm.h<>"")*(_xlpm.a<>"")))) -> 3 | W16: : | X16: =IF(COUNTA(F16:T16)=0,"",_xlfn.LET(_xlpm.h,CHOOSE({1,2,3,4,5},F16,I16,L16,O16,R16),_xlpm.a,CHOOSE({1,2,3,4,5},H16,K16,N16,Q16,T16),SUM((_xlpm.a>_xlpm.h)*(_xlpm.h<>"")*(_xlpm.a<>"")))) -> 1 | Y16: =IF(OR(V16="",X16=""),"",IF(MAX(V16,X16)<3,"",SUMPRODUCT(--($V$13:V16>$X$13:X16),--(($V$13:V16>=3)+($X$13:X16>=3)>0)))) -> 3 | Z16: : | AA16: =IF(OR(V16="",X16=""),"",IF(MAX(V16,X16)<3,"",SUMPRODUCT(--($X$13:X16>$V$13:V16),--(($V$13:V16>=3)+($X$13:X16>=3)>0)))) -> 1
G17: : | J17: : | M17: : | P17: : | S17: : | V17: =IF(COUNTA(F17:T17)=0,"",_xlfn.LET(_xlpm.h,CHOOSE({1,2,3,4,5},F17,I17,L17,O17,R17),_xlpm.a,CHOOSE({1,2,3,4,5},H17,K17,N17,Q17,T17),SUM((_xlpm.h>_xlpm.a)*(_xlpm.h<>"")*(_xlpm.a<>"")))) -> 0 | W17: : | X17: =IF(COUNTA(F17:T17)=0,"",_xlfn.LET(_xlpm.h,CHOOSE({1,2,3,4,5},F17,I17,L17,O17,R17),_xlpm.a,CHOOSE({1,2,3,4,5},H17,K17,N17,Q17,T17),SUM((_xlpm.a>_xlpm.h)*(_xlpm.h<>"")*(_xlpm.a<>"")))) -> 0 | Y17: =IF(OR(V17="",X17=""),"",IF(MAX(V17,X17)<3,"",SUMPRODUCT(--($V$13:V17>$X$13:X17),--(($V$13:V17>=3)+($X$13:X17>=3)>0)))) ->  | Z17: : | AA17: =IF(OR(V17="",X17=""),"",IF(MAX(V17,X17)<3,"",SUMPRODUCT(--($X$13:X17>$V$13:V17),--(($V$13:V17>=3)+($X$13:X17>=3)>0)))) -> 
B18: CINKOPAN Kristijan | C18: A | D18: Y | E18: SIROTIĆ Aleš | F18: 11 | G18: : | H18: 7 | I18: 14 | J18: : | K18: 12 | L18: 11 | M18: : | N18: 4 | P18: : | S18: : | V18: =IF(COUNTA(F18:T18)=0,"",_xlfn.LET(_xlpm.h,CHOOSE({1,2,3,4,5},F18,I18,L18,O18,R18),_xlpm.a,CHOOSE({1,2,3,4,5},H18,K18,N18,Q18,T18),SUM((_xlpm.h>_xlpm.a)*(_xlpm.h<>"")*(_xlpm.a<>"")))) -> 3 | W18: : | X18: =IF(COUNTA(F18:T18)=0,"",_xlfn.LET(_xlpm.h,CHOOSE({1,2,3,4,5},F18,I18,L18,O18,R18),_xlpm.a,CHOOSE({1,2,3,4,5},H18,K18,N18,Q18,T18),SUM((_xlpm.a>_xlpm.h)*(_xlpm.h<>"")*(_xlpm.a<>"")))) -> 0 | Y18: =IF(OR(V18="",X18=""),"",IF(MAX(V18,X18)<3,"",SUMPRODUCT(--($V$13:V18>$X$13:X18),--(($V$13:V18>=3)+($X$13:X18>=3)>0)))) -> 4 | Z18: : | AA18: =IF(OR(V18="",X18=""),"",IF(MAX(V18,X18)<3,"",SUMPRODUCT(--($X$13:X18>$V$13:V18),--(($V$13:V18>=3)+($X$13:X18>=3)>0)))) -> 1
C19: C | D19: X | G19: : | J19: : | M19: : | P19: : | S19: : | V19: =IF(COUNTA(F19:T19)=0,"",_xlfn.LET(_xlpm.h,CHOOSE({1,2,3,4,5},F19,I19,L19,O19,R19),_xlpm.a,CHOOSE({1,2,3,4,5},H19,K19,N19,Q19,T19),SUM((_xlpm.h>_xlpm.a)*(_xlpm.h<>"")*(_xlpm.a<>"")))) -> 0 | W19: : | X19: =IF(COUNTA(F19:T19)=0,"",_xlfn.LET(_xlpm.h,CHOOSE({1,2,3,4,5},F19,I19,L19,O19,R19),_xlpm.a,CHOOSE({1,2,3,4,5},H19,K19,N19,Q19,T19),SUM((_xlpm.a>_xlpm.h)*(_xlpm.h<>"")*(_xlpm.a<>"")))) -> 0 | Y19: =IF(OR(V19="",X19=""),"",IF(MAX(V19,X19)<3,"",SUMPRODUCT(--($V$13:V19>$X$13:X19),--(($V$13:V19>=3)+($X$13:X19>=3)>0)))) ->  | Z19: : | AA19: =IF(OR(V19="",X19=""),"",IF(MAX(V19,X19)<3,"",SUMPRODUCT(--($X$13:X19>$V$13:V19),--(($V$13:V19>=3)+($X$13:X19>=3)>0)))) -> 
C20: B | D20: Z | G20: : | J20: : | M20: : | P20: : | S20: : | V20: =IF(COUNTA(F20:T20)=0,"",_xlfn.LET(_xlpm.h,CHOOSE({1,2,3,4,5},F20,I20,L20,O20,R20),_xlpm.a,CHOOSE({1,2,3,4,5},H20,K20,N20,Q20,T20),SUM((_xlpm.h>_xlpm.a)*(_xlpm.h<>"")*(_xlpm.a<>"")))) -> 0 | W20: : | X20: =IF(COUNTA(F20:T20)=0,"",_xlfn.LET(_xlpm.h,CHOOSE({1,2,3,4,5},F20,I20,L20,O20,R20),_xlpm.a,CHOOSE({1,2,3,4,5},H20,K20,N20,Q20,T20),SUM((_xlpm.a>_xlpm.h)*(_xlpm.h<>"")*(_xlpm.a<>"")))) -> 0 | Y20: =IF(OR(V20="",X20=""),"",IF(MAX(V20,X20)<3,"",SUMPRODUCT(--($V$13:V20>$X$13:X20),--(($V$13:V20>=3)+($X$13:X20>=3)>0)))) ->  | Z20: : | AA20: =IF(OR(V20="",X20=""),"",IF(MAX(V20,X20)<3,"",SUMPRODUCT(--($X$13:X20>$V$13:V20),--(($V$13:V20>=3)+($X$13:X20>=3)>0)))) -> 
B22: =B4 -> ARENA FERRO | C22: : | E22: =E4 -> BUZET 1 | F22: =MAX(Y13:Y20) -> 4 | G22: : | H22: =MAX(AA13:AA20) -> 1
E23: SETOVI | F23: =SUM(V13:V20) -> 14 | G23: : | H23: =SUM(X13:X20) -> 4
E24: POENI | F24: =SUM(F13:F20, I13:I20, L13:L20, O13:O20, R13:R20) -> 198 | G24: : | H24: =SUM(H13:H20, K13:K20, N13:N20, Q13:Q20, T13:T20) -> 151

Sheet ZAPISNIK_4_2 (hidden)
A1: ŽUPANIJSKA LIGA STSIŽ 2025./2026 | AV1: EDIT
B2: GRAD DOMAĆIN | E2: DVORANA | J2: KOLO | N2: DATUM | T2: SAT
B3: PULA | E3: Dvorana STK Arena Ferro, Rojc | J3: 4. | N3: 19. 11. 2025. | T3: 17:00:00
A4: Domaćin | B4: ARENA FERRO | D4: Gost | E4: BUZET 2
A5: A | B5: VALE Damir | D5: X | E5: BOŠNJAKOVIĆ Dubravko
A6: B | B6: KRANJC Dino | D6: Y | E6: DRAŠĆIĆ Petar
A7: C | B7: KRIŠTO Tomislav | D7: Z | E7: PAVLETIĆ Guido
A8: R1 | D8: R1
A9: R2 | D9: R2
B11: DOMAĆIN | E11: GOST
B12: ARENA FERRO | E12: BUZET 2
B13: VALE Damir | C13: A | D13: X | E13: BOŠNJAKOVIĆ Dubravko | F13: 7 | G13: : | H13: 11 | I13: 11 | J13: : | K13: 7 | L13: 9 | M13: : | N13: 11 | O13: 11 | P13: : | Q13: 7 | R13: 11 | S13: : | T13: 7 | V13: =IF(COUNTA(F13:T13)=0,"",_xlfn.LET(_xlpm.h,CHOOSE({1,2,3,4,5},F13,I13,L13,O13,R13),_xlpm.a,CHOOSE({1,2,3,4,5},H13,K13,N13,Q13,T13),SUM((_xlpm.h>_xlpm.a)*(_xlpm.h<>"")*(_xlpm.a<>"")))) -> 3 | W13: : | X13: =IF(COUNTA(F13:T13)=0,"",_xlfn.LET(_xlpm.h,CHOOSE({1,2,3,4,5},F13,I13,L13,O13,R13),_xlpm.a,CHOOSE({1,2,3,4,5},H13,K13,N13,Q13,T13),SUM((_xlpm.a>_xlpm.h)*(_xlpm.h<>"")*(_xlpm.a<>"")))) -> 2 | Y13: =IF(OR(V13="",X13=""),"",IF(MAX(V13,X13)<3,"",SUMPRODUCT(--($V$13:V13>$X$13:X13),--(($V$13:V13>=3)+($X$13:X13>=3)>0)))) -> 1 | Z13: : | AA13: =IF(OR(V13="",X13=""),"",IF(MAX(V13,X13)<3,"",SUMPRODUCT(--($X$13:X13>$V$13:V13),--(($V$13:V13>=3)+($X$13:X13>=3)>0)))) -> 0
B14: KRANJC Dino | C14: B | D14: Y | E14: DRAŠĆIĆ Petar | F14: 11 | G14: : | H14: 9 | I14: 11 | J14: : | K14: 7 | L14: 11 | M14: : | N14: 9 | P14: : | S14: : | V14: =IF(COUNTA(F14:T14)=0,"",_xlfn.LET(_xlpm.h,CHOOSE({1,2,3,4,5},F14,I14,L14,O14,R14),_xlpm.a,CHOOSE({1,2,3,4,5},H14,K14,N14,Q14,T14),SUM((_xlpm.h>_xlpm.a)*(_xlpm.h<>"")*(_xlpm.a<>"")))) -> 3 | W14: : | X14: =IF(COUNTA(F14:T14)=0,"",_xlfn.LET(_xlpm.h,CHOOSE({1,2,3,4,5},F14,I14,L14,O14,R14),_xlpm.a,CHOOSE({1,2,3,4,5},H14,K14,N14,Q14,T14),SUM((_xlpm.a>_xlpm.h)*(_xlpm.h<>"")*(_xlpm.a<>"")))) -> 0 | Y14: =IF(OR(V14="",X14=""),"",IF(MAX(V14,X14)<3,"",SUMPRODUCT(--($V$13:V14>$X$13:X14),--(($V$13:V14>=3)+($X$13:X14>=3)>0)))) -> 2 | Z14: : | AA14: =IF(OR(V14="",X14=""),"",IF(MAX(V14,X14)<3,"",SUMPRODUCT(--($X$13:X14>$V$13:V14),--(($V$13:V14>=3)+($X$13:X14>=3)>0)))) -> 0
B15: KRIŠTO Tomislav | C15: C | D15: Z | E15: PAVLETIĆ Guido | F15: 11 | G15: : | H15: 7 | I15: 11 | J15: : | K15: 3 | L15: 11 | M15: : | N15: 6 | P15: : | S15: : | V15: =IF(COUNTA(F15:T15)=0,"",_xlfn.LET(_xlpm.h,CHOOSE({1,2,3,4,5},F15,I15,L15,O15,R15),_xlpm.a,CHOOSE({1,2,3,4,5},H15,K15,N15,Q15,T15),SUM((_xlpm.h>_xlpm.a)*(_xlpm.h<>"")*(_xlpm.a<>"")))) -> 3 | W15: : | X15: =IF(COUNTA(F15:T15)=0,"",_xlfn.LET(_xlpm.h,CHOOSE({1,2,3,4,5},F15,I15,L15,O15,R15),_xlpm.a,CHOOSE({1,2,3,4,5},H15,K15,N15,Q15,T15),SUM((_xlpm.a>_xlpm.h)*(_xlpm.h<>"")*(_xlpm.a<>"")))) -> 0 | Y15: =IF(OR(V15="",X15=""),"",IF(MAX(V15,X15)<3,"",SUMPRODUCT(--($V$13:V15>$X$13:X15),--(($V$13:V15>=3)+($X$13:X15>=3)>0)))) -> 3 | Z15: : | AA15: =IF(OR(V15="",X15=""),"",IF(MAX(V15,X15)<3,"",SUMPRODUCT(--($X$13:X15>$V$13:V15),--(($V$13:V15>=3)+($X$13:X15>=3)>0)))) -> 0
B16: KELEMEN M., KRANJC D. | C16: PAR | D16: PAR | E16: DRAŠĆIĆ P., PAVLETIĆ G. | F16: 11 | G16: : | H16: 6 | I16: 11 | J16: : | K16: 7 | L16: 11 | M16: : | N16: 9 | P16: : | S16: : | V16: =IF(COUNTA(F16:T16)=0,"",_xlfn.LET(_xlpm.h,CHOOSE({1,2,3,4,5},F16,I16,L16,O16,R16),_xlpm.a,CHOOSE({1,2,3,4,5},H16,K16,N16,Q16,T16),SUM((_xlpm.h>_xlpm.a)*(_xlpm.h<>"")*(_xlpm.a<>"")))) -> 3 | W16: : | X16: =IF(COUNTA(F16:T16)=0,"",_xlfn.LET(_xlpm.h,CHOOSE({1,2,3,4,5},F16,I16,L16,O16,R16),_xlpm.a,CHOOSE({1,2,3,4,5},H16,K16,N16,Q16,T16),SUM((_xlpm.a>_xlpm.h)*(_xlpm.h<>"")*(_xlpm.a<>"")))) -> 0 | Y16: =IF(OR(V16="",X16=""),"",IF(MAX(V16,X16)<3,"",SUMPRODUCT(--($V$13:V16>$X$13:X16),--(($V$13:V16>=3)+($X$13:X16>=3)>0)))) -> 4 | Z16: : | AA16: =IF(OR(V16="",X16=""),"",IF(MAX(V16,X16)<3,"",SUMPRODUCT(--($X$13:X16>$V$13:V16),--(($V$13:V16>=3)+($X$13:X16>=3)>0)))) -> 0
G17: : | J17: : | M17: : | P17: : | S17: : | V17: =IF(COUNTA(F17:T17)=0,"",_xlfn.LET(_xlpm.h,CHOOSE({1,2,3,4,5},F17,I17,L17,O17,R17),_xlpm.a,CHOOSE({1,2,3,4,5},H17,K17,N17,Q17,T17),SUM((_xlpm.h>_xlpm.a)*(_xlpm.h<>"")*(_xlpm.a<>"")))) -> 0 | W17: : | X17: =IF(COUNTA(F17:T17)=0,"",_xlfn.LET(_xlpm.h,CHOOSE({1,2,3,4,5},F17,I17,L17,O17,R17),_xlpm.a,CHOOSE({1,2,3,4,5},H17,K17,N17,Q17,T17),SUM((_xlpm.a>_xlpm.h)*(_xlpm.h<>"")*(_xlpm.a<>"")))) -> 0 | Y17: =IF(OR(V17="",X17=""),"",IF(MAX(V17,X17)<3,"",SUMPRODUCT(--($V$13:V17>$X$13:X17),--(($V$13:V17>=3)+($X$13:X17>=3)>0)))) ->  | Z17: : | AA17: =IF(OR(V17="",X17=""),"",IF(MAX(V17,X17)<3,"",SUMPRODUCT(--($X$13:X17>$V$13:V17),--(($V$13:V17>=3)+($X$13:X17>=3)>0)))) -> 
C18: A | D18: Y | G18: : | J18: : | M18: : | P18: : | S18: : | V18: =IF(COUNTA(F18:T18)=0,"",_xlfn.LET(_xlpm.h,CHOOSE({1,2,3,4,5},F18,I18,L18,O18,R18),_xlpm.a,CHOOSE({1,2,3,4,5},H18,K18,N18,Q18,T18),SUM((_xlpm.h>_xlpm.a)*(_xlpm.h<>"")*(_xlpm.a<>"")))) -> 0 | W18: : | X18: =IF(COUNTA(F18:T18)=0,"",_xlfn.LET(_xlpm.h,CHOOSE({1,2,3,4,5},F18,I18,L18,O18,R18),_xlpm.a,CHOOSE({1,2,3,4,5},H18,K18,N18,Q18,T18),SUM((_xlpm.a>_xlpm.h)*(_xlpm.h<>"")*(_xlpm.a<>"")))) -> 0 | Y18: =IF(OR(V18="",X18=""),"",IF(MAX(V18,X18)<3,"",SUMPRODUCT(--($V$13:V18>$X$13:X18),--(($V$13:V18>=3)+($X$13:X18>=3)>0)))) ->  | Z18: : | AA18: =IF(OR(V18="",X18=""),"",IF(MAX(V18,X18)<3,"",SUMPRODUCT(--($X$13:X18>$V$13:V18),--(($V$13:V18>=3)+($X$13:X18>=3)>0)))) -> 
C19: C | D19: X | G19: : | J19: : | M19: : | P19: : | S19: : | V19: =IF(COUNTA(F19:T19)=0,"",_xlfn.LET(_xlpm.h,CHOOSE({1,2,3,4,5},F19,I19,L19,O19,R19),_xlpm.a,CHOOSE({1,2,3,4,5},H19,K19,N19,Q19,T19),SUM((_xlpm.h>_xlpm.a)*(_xlpm.h<>"")*(_xlpm.a<>"")))) -> 0 | W19: : | X19: =IF(COUNTA(F19:T19)=0,"",_xlfn.LET(_xlpm.h,CHOOSE({1,2,3,4,5},F19,I19,L19,O19,R19),_xlpm.a,CHOOSE({1,2,3,4,5},H19,K19,N19,Q19,T19),SUM((_xlpm.a>_xlpm.h)*(_xlpm.h<>"")*(_xlpm.a<>"")))) -> 0 | Y19: =IF(OR(V19="",X19=""),"",IF(MAX(V19,X19)<3,"",SUMPRODUCT(--($V$13:V19>$X$13:X19),--(($V$13:V19>=3)+($X$13:X19>=3)>0)))) ->  | Z19: : | AA19: =IF(OR(V19="",X19=""),"",IF(MAX(V19,X19)<3,"",SUMPRODUCT(--($X$13:X19>$V$13:V19),--(($V$13:V19>=3)+($X$13:X19>=3)>0)))) -> 
C20: B | D20: Z | G20: : | J20: : | M20: : | P20: : | S20: : | V20: =IF(COUNTA(F20:T20)=0,"",_xlfn.LET(_xlpm.h,CHOOSE({1,2,3,4,5},F20,I20,L20,O20,R20),_xlpm.a,CHOOSE({1,2,3,4,5},H20,K20,N20,Q20,T20),SUM((_xlpm.h>_xlpm.a)*(_xlpm.h<>"")*(_xlpm.a<>"")))) -> 0 | W20: : | X20: =IF(COUNTA(F20:T20)=0,"",_xlfn.LET(_xlpm.h,CHOOSE({1,2,3,4,5},F20,I20,L20,O20,R20),_xlpm.a,CHOOSE({1,2,3,4,5},H20,K20,N20,Q20,T20),SUM((_xlpm.a>_xlpm.h)*(_xlpm.h<>"")*(_xlpm.a<>"")))) -> 0 | Y20: =IF(OR(V20="",X20=""),"",IF(MAX(V20,X20)<3,"",SUMPRODUCT(--($V$13:V20>$X$13:X20),--(($V$13:V20>=3)+($X$13:X20>=3)>0)))) ->  | Z20: : | AA20: =IF(OR(V20="",X20=""),"",IF(MAX(V20,X20)<3,"",SUMPRODUCT(--($X$13:X20>$V$13:V20),--(($V$13:V20>=3)+($X$13:X20>=3)>0)))) -> 
B22: =B4 -> ARENA FERRO | C22: : | E22: =E4 -> BUZET 2 | F22: =MAX(Y13:Y20) -> 4 | G22: : | H22: =MAX(AA13:AA20) -> 0
E23: SETOVI | F23: =SUM(V13:V20) -> 12 | G23: : | H23: =SUM(X13:X20) -> 2
E24: POENI | F24: =SUM(F13:F20, I13:I20, L13:L20, O13:O20, R13:R20) -> 148 | G24: : | H24: =SUM(H13:H20, K13:K20, N13:N20, Q13:Q20, T13:T20) -> 106

Sheet ZAPISNIK_4_3 (hidden)
A1: ŽUPANIJSKA LIGA STSIŽ 2025./2026 | AV1: EDIT
B2: GRAD DOMAĆIN | E2: DVORANA | J2: KOLO | N2: DATUM | T2: SAT
B3: PULA | E3: MZ Gregovica, Pula | J3: 4. | N3: 4. 12. 2025. | T3: 19:30:00
A4: Domaćin | B4: VAL SHARK | D4: Gost | E4: BUZET 2
A5: A | B5: INFANTOLINO Davide | D5: X | E5: KOS Dino
A6: B | B6: IVINIĆ Serđo | D6: Y | E6: DRAŠĆIĆ Petar
A7: C | B7: DELEVIĆ Predrag | D7: Z | E7: BOŠNJAKOVIĆ Dubravko
A8: R1 | D8: R1
A9: R2 | D9: R2
B11: DOMAĆIN | E11: GOST
B12: VAL SHARK | E12: BUZET 2
B13: INFANTOLINO Davide | C13: A | D13: X | E13: KOS Dino | F13: 11 | G13: : | H13: 5 | I13: 11 | J13: : | K13: 6 | L13: 11 | M13: : | N13: 6 | P13: : | S13: : | V13: =IF(COUNTA(F13:T13)=0,"",_xlfn.LET(_xlpm.h,CHOOSE({1,2,3,4,5},F13,I13,L13,O13,R13),_xlpm.a,CHOOSE({1,2,3,4,5},H13,K13,N13,Q13,T13),SUM((_xlpm.h>_xlpm.a)*(_xlpm.h<>"")*(_xlpm.a<>"")))) -> 3 | W13: : | X13: =IF(COUNTA(F13:T13)=0,"",_xlfn.LET(_xlpm.h,CHOOSE({1,2,3,4,5},F13,I13,L13,O13,R13),_xlpm.a,CHOOSE({1,2,3,4,5},H13,K13,N13,Q13,T13),SUM((_xlpm.a>_xlpm.h)*(_xlpm.h<>"")*(_xlpm.a<>"")))) -> 0 | Y13: =IF(OR(V13="",X13=""),"",IF(MAX(V13,X13)<3,"",SUMPRODUCT(--($V$13:V13>$X$13:X13),--(($V$13:V13>=3)+($X$13:X13>=3)>0)))) -> 1 | Z13: : | AA13: =IF(OR(V13="",X13=""),"",IF(MAX(V13,X13)<3,"",SUMPRODUCT(--($X$13:X13>$V$13:V13),--(($V$13:V13>=3)+($X$13:X13>=3)>0)))) -> 0
B14: IVINIĆ Serđo | C14: B | D14: Y | E14: DRAŠĆIĆ Petar | F14: 11 | G14: : | H14: 4 | I14: 11 | J14: : | K14: 7 | L14: 11 | M14: : | N14: 8 | P14: : | S14: : | V14: =IF(COUNTA(F14:T14)=0,"",_xlfn.LET(_xlpm.h,CHOOSE({1,2,3,4,5},F14,I14,L14,O14,R14),_xlpm.a,CHOOSE({1,2,3,4,5},H14,K14,N14,Q14,T14),SUM((_xlpm.h>_xlpm.a)*(_xlpm.h<>"")*(_xlpm.a<>"")))) -> 3 | W14: : | X14: =IF(COUNTA(F14:T14)=0,"",_xlfn.LET(_xlpm.h,CHOOSE({1,2,3,4,5},F14,I14,L14,O14,R14),_xlpm.a,CHOOSE({1,2,3,4,5},H14,K14,N14,Q14,T14),SUM((_xlpm.a>_xlpm.h)*(_xlpm.h<>"")*(_xlpm.a<>"")))) -> 0 | Y14: =IF(OR(V14="",X14=""),"",IF(MAX(V14,X14)<3,"",SUMPRODUCT(--($V$13:V14>$X$13:X14),--(($V$13:V14>=3)+($X$13:X14>=3)>0)))) -> 2 | Z14: : | AA14: =IF(OR(V14="",X14=""),"",IF(MAX(V14,X14)<3,"",SUMPRODUCT(--($X$13:X14>$V$13:V14),--(($V$13:V14>=3)+($X$13:X14>=3)>0)))) -> 0
B15: DELEVIĆ Predrag | C15: C | D15: Z | E15: BOŠNJAKOVIĆ Dubravko | F15: 11 | G15: : | H15: 5 | I15: 11 | J15: : | K15: 2 | L15: 11 | M15: : | N15: 4 | P15: : | S15: : | V15: =IF(COUNTA(F15:T15)=0,"",_xlfn.LET(_xlpm.h,CHOOSE({1,2,3,4,5},F15,I15,L15,O15,R15),_xlpm.a,CHOOSE({1,2,3,4,5},H15,K15,N15,Q15,T15),SUM((_xlpm.h>_xlpm.a)*(_xlpm.h<>"")*(_xlpm.a<>"")))) -> 3 | W15: : | X15: =IF(COUNTA(F15:T15)=0,"",_xlfn.LET(_xlpm.h,CHOOSE({1,2,3,4,5},F15,I15,L15,O15,R15),_xlpm.a,CHOOSE({1,2,3,4,5},H15,K15,N15,Q15,T15),SUM((_xlpm.a>_xlpm.h)*(_xlpm.h<>"")*(_xlpm.a<>"")))) -> 0 | Y15: =IF(OR(V15="",X15=""),"",IF(MAX(V15,X15)<3,"",SUMPRODUCT(--($V$13:V15>$X$13:X15),--(($V$13:V15>=3)+($X$13:X15>=3)>0)))) -> 3 | Z15: : | AA15: =IF(OR(V15="",X15=""),"",IF(MAX(V15,X15)<3,"",SUMPRODUCT(--($X$13:X15>$V$13:V15),--(($V$13:V15>=3)+($X$13:X15>=3)>0)))) -> 0
B16: DELEVIĆ P., IVINIĆ S. | C16: PAR | D16: PAR | E16: DRAŠĆIĆ P., KOS D. | F16: 12 | G16: : | H16: 10 | I16: 7 | J16: : | K16: 11 | L16: 11 | M16: : | N16: 8 | O16: 5 | P16: : | Q16: 11 | R16: 10 | S16: : | T16: 12 | V16: =IF(COUNTA(F16:T16)=0,"",_xlfn.LET(_xlpm.h,CHOOSE({1,2,3,4,5},F16,I16,L16,O16,R16),_xlpm.a,CHOOSE({1,2,3,4,5},H16,K16,N16,Q16,T16),SUM((_xlpm.h>_xlpm.a)*(_xlpm.h<>"")*(_xlpm.a<>"")))) -> 2 | W16: : | X16: =IF(COUNTA(F16:T16)=0,"",_xlfn.LET(_xlpm.h,CHOOSE({1,2,3,4,5},F16,I16,L16,O16,R16),_xlpm.a,CHOOSE({1,2,3,4,5},H16,K16,N16,Q16,T16),SUM((_xlpm.a>_xlpm.h)*(_xlpm.h<>"")*(_xlpm.a<>"")))) -> 3 | Y16: =IF(OR(V16="",X16=""),"",IF(MAX(V16,X16)<3,"",SUMPRODUCT(--($V$13:V16>$X$13:X16),--(($V$13:V16>=3)+($X$13:X16>=3)>0)))) -> 3 | Z16: : | AA16: =IF(OR(V16="",X16=""),"",IF(MAX(V16,X16)<3,"",SUMPRODUCT(--($X$13:X16>$V$13:V16),--(($V$13:V16>=3)+($X$13:X16>=3)>0)))) -> 1
G17: : | J17: : | M17: : | P17: : | S17: : | V17: =IF(COUNTA(F17:T17)=0,"",_xlfn.LET(_xlpm.h,CHOOSE({1,2,3,4,5},F17,I17,L17,O17,R17),_xlpm.a,CHOOSE({1,2,3,4,5},H17,K17,N17,Q17,T17),SUM((_xlpm.h>_xlpm.a)*(_xlpm.h<>"")*(_xlpm.a<>"")))) -> 0 | W17: : | X17: =IF(COUNTA(F17:T17)=0,"",_xlfn.LET(_xlpm.h,CHOOSE({1,2,3,4,5},F17,I17,L17,O17,R17),_xlpm.a,CHOOSE({1,2,3,4,5},H17,K17,N17,Q17,T17),SUM((_xlpm.a>_xlpm.h)*(_xlpm.h<>"")*(_xlpm.a<>"")))) -> 0 | Y17: =IF(OR(V17="",X17=""),"",IF(MAX(V17,X17)<3,"",SUMPRODUCT(--($V$13:V17>$X$13:X17),--(($V$13:V17>=3)+($X$13:X17>=3)>0)))) ->  | Z17: : | AA17: =IF(OR(V17="",X17=""),"",IF(MAX(V17,X17)<3,"",SUMPRODUCT(--($X$13:X17>$V$13:V17),--(($V$13:V17>=3)+($X$13:X17>=3)>0)))) -> 
B18: INFANTOLINO Davide | C18: A | D18: Y | E18: DRAŠĆIĆ Petar | F18: 11 | G18: : | H18: 7 | I18: 11 | J18: : | K18: 6 | L18: 11 | M18: : | N18: 5 | P18: : | S18: : | V18: =IF(COUNTA(F18:T18)=0,"",_xlfn.LET(_xlpm.h,CHOOSE({1,2,3,4,5},F18,I18,L18,O18,R18),_xlpm.a,CHOOSE({1,2,3,4,5},H18,K18,N18,Q18,T18),SUM((_xlpm.h>_xlpm.a)*(_xlpm.h<>"")*(_xlpm.a<>"")))) -> 3 | W18: : | X18: =IF(COUNTA(F18:T18)=0,"",_xlfn.LET(_xlpm.h,CHOOSE({1,2,3,4,5},F18,I18,L18,O18,R18),_xlpm.a,CHOOSE({1,2,3,4,5},H18,K18,N18,Q18,T18),SUM((_xlpm.a>_xlpm.h)*(_xlpm.h<>"")*(_xlpm.a<>"")))) -> 0 | Y18: =IF(OR(V18="",X18=""),"",IF(MAX(V18,X18)<3,"",SUMPRODUCT(--($V$13:V18>$X$13:X18),--(($V$13:V18>=3)+($X$13:X18>=3)>0)))) -> 4 | Z18: : | AA18: =IF(OR(V18="",X18=""),"",IF(MAX(V18,X18)<3,"",SUMPRODUCT(--($X$13:X18>$V$13:V18),--(($V$13:V18>=3)+($X$13:X18>=3)>0)))) -> 1
C19: C | D19: X | G19: : | J19: : | M19: : | P19: : | S19: : | V19: =IF(COUNTA(F19:T19)=0,"",_xlfn.LET(_xlpm.h,CHOOSE({1,2,3,4,5},F19,I19,L19,O19,R19),_xlpm.a,CHOOSE({1,2,3,4,5},H19,K19,N19,Q19,T19),SUM((_xlpm.h>_xlpm.a)*(_xlpm.h<>"")*(_xlpm.a<>"")))) -> 0 | W19: : | X19: =IF(COUNTA(F19:T19)=0,"",_xlfn.LET(_xlpm.h,CHOOSE({1,2,3,4,5},F19,I19,L19,O19,R19),_xlpm.a,CHOOSE({1,2,3,4,5},H19,K19,N19,Q19,T19),SUM((_xlpm.a>_xlpm.h)*(_xlpm.h<>"")*(_xlpm.a<>"")))) -> 0 | Y19: =IF(OR(V19="",X19=""),"",IF(MAX(V19,X19)<3,"",SUMPRODUCT(--($V$13:V19>$X$13:X19),--(($V$13:V19>=3)+($X$13:X19>=3)>0)))) ->  | Z19: : | AA19: =IF(OR(V19="",X19=""),"",IF(MAX(V19,X19)<3,"",SUMPRODUCT(--($X$13:X19>$V$13:V19),--(($V$13:V19>=3)+($X$13:X19>=3)>0)))) -> 
C20: B | D20: Z | G20: : | J20: : | M20: : | P20: : | S20: : | V20: =IF(COUNTA(F20:T20)=0,"",_xlfn.LET(_xlpm.h,CHOOSE({1,2,3,4,5},F20,I20,L20,O20,R20),_xlpm.a,CHOOSE({1,2,3,4,5},H20,K20,N20,Q20,T20),SUM((_xlpm.h>_xlpm.a)*(_xlpm.h<>"")*(_xlpm.a<>"")))) -> 0 | W20: : | X20: =IF(COUNTA(F20:T20)=0,"",_xlfn.LET(_xlpm.h,CHOOSE({1,2,3,4,5},F20,I20,L20,O20,R20),_xlpm.a,CHOOSE({1,2,3,4,5},H20,K20,N20,Q20,T20),SUM((_xlpm.a>_xlpm.h)*(_xlpm.h<>"")*(_xlpm.a<>"")))) -> 0 | Y20: =IF(OR(V20="",X20=""),"",IF(MAX(V20,X20)<3,"",SUMPRODUCT(--($V$13:V20>$X$13:X20),--(($V$13:V20>=3)+($X$13:X20>=3)>0)))) ->  | Z20: : | AA20: =IF(OR(V20="",X20=""),"",IF(MAX(V20,X20)<3,"",SUMPRODUCT(--($X$13:X20>$V$13:V20),--(($V$13:V20>=3)+($X$13:X20>=3)>0)))) -> 
B22: =B4 -> VAL SHARK | C22: : | E22: =E4 -> BUZET 2 | F22: =MAX(Y13:Y20) -> 4 | G22: : | H22: =MAX(AA13:AA20) -> 1
E23: SETOVI | F23: =SUM(V13:V20) -> 14 | G23: : | H23: =SUM(X13:X20) -> 3
E24: POENI | F24: =SUM(F13:F20, I13:I20, L13:L20, O13:O20, R13:R20) -> 177 | G24: : | H24: =SUM(H13:H20, K13:K20, N13:N20, Q13:Q20, T13:T20) -> 117

Sheet ZAPISNIK_4_4 (hidden)
A1: ŽUPANIJSKA LIGA STSIŽ 2025./2026 | AV1: EDIT
B2: GRAD DOMAĆIN | E2: DVORANA | J2: KOLO | N2: DATUM | T2: SAT
B3: PULA | E3: MZ Gregovica, Pula | J3: 4. | N3: 4. 12. 2025. | T3: 18:00:00
A4: Domaćin | B4: VAL SHARK | D4: Gost | E4: BUZET 1
A5: A | B5: INFANTOLINO Davide | D5: X | E5: PAULUS Michael
A6: B | B6: IVINIĆ Serđo | D6: Y | E6: BERDNYK Stanislav
A7: C | B7: HRVANOVIĆ Jasmin | D7: Z | E7: KRANČIĆ Filip
A8: R1 | D8: R1
A9: R2 | D9: R2
B11: DOMAĆIN | E11: GOST
B12: VAL SHARK | E12: BUZET 1
B13: INFANTOLINO Davide | C13: A | D13: X | E13: PAULUS Michael | F13: 11 | G13: : | H13: 4 | I13: 11 | J13: : | K13: 1 | L13: 11 | M13: : | N13: 6 | P13: : | S13: : | V13: =IF(COUNTA(F13:T13)=0,"",_xlfn.LET(_xlpm.h,CHOOSE({1,2,3,4,5},F13,I13,L13,O13,R13),_xlpm.a,CHOOSE({1,2,3,4,5},H13,K13,N13,Q13,T13),SUM((_xlpm.h>_xlpm.a)*(_xlpm.h<>"")*(_xlpm.a<>"")))) -> 3 | W13: : | X13: =IF(COUNTA(F13:T13)=0,"",_xlfn.LET(_xlpm.h,CHOOSE({1,2,3,4,5},F13,I13,L13,O13,R13),_xlpm.a,CHOOSE({1,2,3,4,5},H13,K13,N13,Q13,T13),SUM((_xlpm.a>_xlpm.h)*(_xlpm.h<>"")*(_xlpm.a<>"")))) -> 0 | Y13: =IF(OR(V13="",X13=""),"",IF(MAX(V13,X13)<3,"",SUMPRODUCT(--($V$13:V13>$X$13:X13),--(($V$13:V13>=3)+($X$13:X13>=3)>0)))) -> 1 | Z13: : | AA13: =IF(OR(V13="",X13=""),"",IF(MAX(V13,X13)<3,"",SUMPRODUCT(--($X$13:X13>$V$13:V13),--(($V$13:V13>=3)+($X$13:X13>=3)>0)))) -> 0
B14: IVINIĆ Serđo | C14: B | D14: Y | E14: BERDNYK Stanislav | F14: 11 | G14: : | H14: 8 | I14: 3 | J14: : | K14: 11 | L14: 8 | M14: : | N14: 11 | O14: 11 | P14: : | Q14: 8 | R14: 11 | S14: : | T14: 6 | V14: =IF(COUNTA(F14:T14)=0,"",_xlfn.LET(_xlpm.h,CHOOSE({1,2,3,4,5},F14,I14,L14,O14,R14),_xlpm.a,CHOOSE({1,2,3,4,5},H14,K14,N14,Q14,T14),SUM((_xlpm.h>_xlpm.a)*(_xlpm.h<>"")*(_xlpm.a<>"")))) -> 3 | W14: : | X14: =IF(COUNTA(F14:T14)=0,"",_xlfn.LET(_xlpm.h,CHOOSE({1,2,3,4,5},F14,I14,L14,O14,R14),_xlpm.a,CHOOSE({1,2,3,4,5},H14,K14,N14,Q14,T14),SUM((_xlpm.a>_xlpm.h)*(_xlpm.h<>"")*(_xlpm.a<>"")))) -> 2 | Y14: =IF(OR(V14="",X14=""),"",IF(MAX(V14,X14)<3,"",SUMPRODUCT(--($V$13:V14>$X$13:X14),--(($V$13:V14>=3)+($X$13:X14>=3)>0)))) -> 2 | Z14: : | AA14: =IF(OR(V14="",X14=""),"",IF(MAX(V14,X14)<3,"",SUMPRODUCT(--($X$13:X14>$V$13:V14),--(($V$13:V14>=3)+($X$13:X14>=3)>0)))) -> 0
B15: HRVANOVIĆ Jasmin | C15: C | D15: Z | E15: KRANČIĆ Filip | F15: 12 | G15: : | H15: 10 | I15: 4 | J15: : | K15: 11 | L15: 11 | M15: : | N15: 9 | O15: 8 | P15: : | Q15: 11 | R15: 11 | S15: : | T15: 3 | V15: =IF(COUNTA(F15:T15)=0,"",_xlfn.LET(_xlpm.h,CHOOSE({1,2,3,4,5},F15,I15,L15,O15,R15),_xlpm.a,CHOOSE({1,2,3,4,5},H15,K15,N15,Q15,T15),SUM((_xlpm.h>_xlpm.a)*(_xlpm.h<>"")*(_xlpm.a<>"")))) -> 3 | W15: : | X15: =IF(COUNTA(F15:T15)=0,"",_xlfn.LET(_xlpm.h,CHOOSE({1,2,3,4,5},F15,I15,L15,O15,R15),_xlpm.a,CHOOSE({1,2,3,4,5},H15,K15,N15,Q15,T15),SUM((_xlpm.a>_xlpm.h)*(_xlpm.h<>"")*(_xlpm.a<>"")))) -> 2 | Y15: =IF(OR(V15="",X15=""),"",IF(MAX(V15,X15)<3,"",SUMPRODUCT(--($V$13:V15>$X$13:X15),--(($V$13:V15>=3)+($X$13:X15>=3)>0)))) -> 3 | Z15: : | AA15: =IF(OR(V15="",X15=""),"",IF(MAX(V15,X15)<3,"",SUMPRODUCT(--($X$13:X15>$V$13:V15),--(($V$13:V15>=3)+($X$13:X15>=3)>0)))) -> 0
B16: HRVANOVIĆ J., IVINIĆ S. | C16: PAR | D16: PAR | E16: SIROTIĆ A., BERDNYK S. | F16: 11 | G16: : | H16: 9 | I16: 11 | J16: : | K16: 8 | L16: 11 | M16: : | N16: 8 | P16: : | S16: : | V16: =IF(COUNTA(F16:T16)=0,"",_xlfn.LET(_xlpm.h,CHOOSE({1,2,3,4,5},F16,I16,L16,O16,R16),_xlpm.a,CHOOSE({1,2,3,4,5},H16,K16,N16,Q16,T16),SUM((_xlpm.h>_xlpm.a)*(_xlpm.h<>"")*(_xlpm.a<>"")))) -> 3 | W16: : | X16: =IF(COUNTA(F16:T16)=0,"",_xlfn.LET(_xlpm.h,CHOOSE({1,2,3,4,5},F16,I16,L16,O16,R16),_xlpm.a,CHOOSE({1,2,3,4,5},H16,K16,N16,Q16,T16),SUM((_xlpm.a>_xlpm.h)*(_xlpm.h<>"")*(_xlpm.a<>"")))) -> 0 | Y16: =IF(OR(V16="",X16=""),"",IF(MAX(V16,X16)<3,"",SUMPRODUCT(--($V$13:V16>$X$13:X16),--(($V$13:V16>=3)+($X$13:X16>=3)>0)))) -> 4 | Z16: : | AA16: =IF(OR(V16="",X16=""),"",IF(MAX(V16,X16)<3,"",SUMPRODUCT(--($X$13:X16>$V$13:V16),--(($V$13:V16>=3)+($X$13:X16>=3)>0)))) -> 0
G17: : | J17: : | M17: : | P17: : | S17: : | V17: =IF(COUNTA(F17:T17)=0,"",_xlfn.LET(_xlpm.h,CHOOSE({1,2,3,4,5},F17,I17,L17,O17,R17),_xlpm.a,CHOOSE({1,2,3,4,5},H17,K17,N17,Q17,T17),SUM((_xlpm.h>_xlpm.a)*(_xlpm.h<>"")*(_xlpm.a<>"")))) -> 0 | W17: : | X17: =IF(COUNTA(F17:T17)=0,"",_xlfn.LET(_xlpm.h,CHOOSE({1,2,3,4,5},F17,I17,L17,O17,R17),_xlpm.a,CHOOSE({1,2,3,4,5},H17,K17,N17,Q17,T17),SUM((_xlpm.a>_xlpm.h)*(_xlpm.h<>"")*(_xlpm.a<>"")))) -> 0 | Y17: =IF(OR(V17="",X17=""),"",IF(MAX(V17,X17)<3,"",SUMPRODUCT(--($V$13:V17>$X$13:X17),--(($V$13:V17>=3)+($X$13:X17>=3)>0)))) ->  | Z17: : | AA17: =IF(OR(V17="",X17=""),"",IF(MAX(V17,X17)<3,"",SUMPRODUCT(--($X$13:X17>$V$13:V17),--(($V$13:V17>=3)+($X$13:X17>=3)>0)))) -> 
C18: A | D18: Y | G18: : | J18: : | M18: : | P18: : | S18: : | V18: =IF(COUNTA(F18:T18)=0,"",_xlfn.LET(_xlpm.h,CHOOSE({1,2,3,4,5},F18,I18,L18,O18,R18),_xlpm.a,CHOOSE({1,2,3,4,5},H18,K18,N18,Q18,T18),SUM((_xlpm.h>_xlpm.a)*(_xlpm.h<>"")*(_xlpm.a<>"")))) -> 0 | W18: : | X18: =IF(COUNTA(F18:T18)=0,"",_xlfn.LET(_xlpm.h,CHOOSE({1,2,3,4,5},F18,I18,L18,O18,R18),_xlpm.a,CHOOSE({1,2,3,4,5},H18,K18,N18,Q18,T18),SUM((_xlpm.a>_xlpm.h)*(_xlpm.h<>"")*(_xlpm.a<>"")))) -> 0 | Y18: =IF(OR(V18="",X18=""),"",IF(MAX(V18,X18)<3,"",SUMPRODUCT(--($V$13:V18>$X$13:X18),--(($V$13:V18>=3)+($X$13:X18>=3)>0)))) ->  | Z18: : | AA18: =IF(OR(V18="",X18=""),"",IF(MAX(V18,X18)<3,"",SUMPRODUCT(--($X$13:X18>$V$13:V18),--(($V$13:V18>=3)+($X$13:X18>=3)>0)))) -> 
C19: C | D19: X | G19: : | J19: : | M19: : | P19: : | S19: : | V19: =IF(COUNTA(F19:T19)=0,"",_xlfn.LET(_xlpm.h,CHOOSE({1,2,3,4,5},F19,I19,L19,O19,R19),_xlpm.a,CHOOSE({1,2,3,4,5},H19,K19,N19,Q19,T19),SUM((_xlpm.h>_xlpm.a)*(_xlpm.h<>"")*(_xlpm.a<>"")))) -> 0 | W19: : | X19: =IF(COUNTA(F19:T19)=0,"",_xlfn.LET(_xlpm.h,CHOOSE({1,2,3,4,5},F19,I19,L19,O19,R19),_xlpm.a,CHOOSE({1,2,3,4,5},H19,K19,N19,Q19,T19),SUM((_xlpm.a>_xlpm.h)*(_xlpm.h<>"")*(_xlpm.a<>"")))) -> 0 | Y19: =IF(OR(V19="",X19=""),"",IF(MAX(V19,X19)<3,"",SUMPRODUCT(--($V$13:V19>$X$13:X19),--(($V$13:V19>=3)+($X$13:X19>=3)>0)))) ->  | Z19: : | AA19: =IF(OR(V19="",X19=""),"",IF(MAX(V19,X19)<3,"",SUMPRODUCT(--($X$13:X19>$V$13:V19),--(($V$13:V19>=3)+($X$13:X19>=3)>0)))) -> 
C20: B | D20: Z | G20: : | J20: : | M20: : | P20: : | S20: : | V20: =IF(COUNTA(F20:T20)=0,"",_xlfn.LET(_xlpm.h,CHOOSE({1,2,3,4,5},F20,I20,L20,O20,R20),_xlpm.a,CHOOSE({1,2,3,4,5},H20,K20,N20,Q20,T20),SUM((_xlpm.h>_xlpm.a)*(_xlpm.h<>"")*(_xlpm.a<>"")))) -> 0 | W20: : | X20: =IF(COUNTA(F20:T20)=0,"",_xlfn.LET(_xlpm.h,CHOOSE({1,2,3,4,5},F20,I20,L20,O20,R20),_xlpm.a,CHOOSE({1,2,3,4,5},H20,K20,N20,Q20,T20),SUM((_xlpm.a>_xlpm.h)*(_xlpm.h<>"")*(_xlpm.a<>"")))) -> 0 | Y20: =IF(OR(V20="",X20=""),"",IF(MAX(V20,X20)<3,"",SUMPRODUCT(--($V$13:V20>$X$13:X20),--(($V$13:V20>=3)+($X$13:X20>=3)>0)))) ->  | Z20: : | AA20: =IF(OR(V20="",X20=""),"",IF(MAX(V20,X20)<3,"",SUMPRODUCT(--($X$13:X20>$V$13:V20),--(($V$13:V20>=3)+($X$13:X20>=3)>0)))) -> 
B22: =B4 -> VAL SHARK | C22: : | E22: =E4 -> BUZET 1 | F22: =MAX(Y13:Y20) -> 4 | G22: : | H22: =MAX(AA13:AA20) -> 0
E23: SETOVI | F23: =SUM(V13:V20) -> 12 | G23: : | H23: =SUM(X13:X20) -> 4
E24: POENI | F24: =SUM(F13:F20, I13:I20, L13:L20, O13:O20, R13:R20) -> 156 | G24: : | H24: =SUM(H13:H20, K13:K20, N13:N20, Q13:Q20, T13:T20) -> 124

Sheet ZAPISNIK_4_5 (hidden)
A1: ŽUPANIJSKA LIGA STSIŽ 2025./2026 | AV1: EDIT
B2: GRAD DOMAĆIN | E2: DVORANA | J2: KOLO | N2: DATUM | T2: SAT
B3: KOROMAČNO | E3: Društveni dom Koromačno | J3: 4. | N3: 27. 11. 2025. | T3: 17:30:00
A4: Domaćin | B4: BROVINJE 2 | D4: Gost | E4: PAZIN
A5: A | B5: BASIACO Leonida | D5: X | E5: FABRIS Karlo
A6: B | B6: BENAZIĆ Sandro | D6: Y | E6: GLAVINIĆ Denis
A7: C | B7: GASPARI HUDOLETNJAK Matija | D7: Z | E7: FABIJAN Damir
A8: R1 | D8: R1
A9: R2 | D9: R2
B11: DOMAĆIN | E11: GOST
B12: BROVINJE 2 | E12: PAZIN
B13: BASIACO Leonida | C13: A | D13: X | E13: FABRIS Karlo | F13: 7 | G13: : | H13: 11 | I13: 5 | J13: : | K13: 11 | L13: 8 | M13: : | N13: 11 | P13: : | S13: : | V13: =IF(COUNTA(F13:T13)=0,"",_xlfn.LET(_xlpm.h,CHOOSE({1,2,3,4,5},F13,I13,L13,O13,R13),_xlpm.a,CHOOSE({1,2,3,4,5},H13,K13,N13,Q13,T13),SUM((_xlpm.h>_xlpm.a)*(_xlpm.h<>"")*(_xlpm.a<>"")))) -> 0 | W13: : | X13: =IF(COUNTA(F13:T13)=0,"",_xlfn.LET(_xlpm.h,CHOOSE({1,2,3,4,5},F13,I13,L13,O13,R13),_xlpm.a,CHOOSE({1,2,3,4,5},H13,K13,N13,Q13,T13),SUM((_xlpm.a>_xlpm.h)*(_xlpm.h<>"")*(_xlpm.a<>"")))) -> 3 | Y13: =IF(OR(V13="",X13=""),"",IF(MAX(V13,X13)<3,"",SUMPRODUCT(--($V$13:V13>$X$13:X13),--(($V$13:V13>=3)+($X$13:X13>=3)>0)))) -> 0 | Z13: : | AA13: =IF(OR(V13="",X13=""),"",IF(MAX(V13,X13)<3,"",SUMPRODUCT(--($X$13:X13>$V$13:V13),--(($V$13:V13>=3)+($X$13:X13>=3)>0)))) -> 1
B14: BENAZIĆ Sandro | C14: B | D14: Y | E14: GLAVINIĆ Denis | F14: 4 | G14: : | H14: 11 | I14: 5 | J14: : | K14: 11 | L14: 8 | M14: : | N14: 11 | P14: : | S14: : | V14: =IF(COUNTA(F14:T14)=0,"",_xlfn.LET(_xlpm.h,CHOOSE({1,2,3,4,5},F14,I14,L14,O14,R14),_xlpm.a,CHOOSE({1,2,3,4,5},H14,K14,N14,Q14,T14),SUM((_xlpm.h>_xlpm.a)*(_xlpm.h<>"")*(_xlpm.a<>"")))) -> 0 | W14: : | X14: =IF(COUNTA(F14:T14)=0,"",_xlfn.LET(_xlpm.h,CHOOSE({1,2,3,4,5},F14,I14,L14,O14,R14),_xlpm.a,CHOOSE({1,2,3,4,5},H14,K14,N14,Q14,T14),SUM((_xlpm.a>_xlpm.h)*(_xlpm.h<>"")*(_xlpm.a<>"")))) -> 3 | Y14: =IF(OR(V14="",X14=""),"",IF(MAX(V14,X14)<3,"",SUMPRODUCT(--($V$13:V14>$X$13:X14),--(($V$13:V14>=3)+($X$13:X14>=3)>0)))) -> 0 | Z14: : | AA14: =IF(OR(V14="",X14=""),"",IF(MAX(V14,X14)<3,"",SUMPRODUCT(--($X$13:X14>$V$13:V14),--(($V$13:V14>=3)+($X$13:X14>=3)>0)))) -> 2
B15: GASPARI HUDOLETNJAK Matija | C15: C | D15: Z | E15: FABIJAN Damir | F15: 11 | G15: : | H15: 5 | I15: 11 | J15: : | K15: 3 | L15: 11 | M15: : | N15: 8 | P15: : | S15: : | V15: =IF(COUNTA(F15:T15)=0,"",_xlfn.LET(_xlpm.h,CHOOSE({1,2,3,4,5},F15,I15,L15,O15,R15),_xlpm.a,CHOOSE({1,2,3,4,5},H15,K15,N15,Q15,T15),SUM((_xlpm.h>_xlpm.a)*(_xlpm.h<>"")*(_xlpm.a<>"")))) -> 3 | W15: : | X15: =IF(COUNTA(F15:T15)=0,"",_xlfn.LET(_xlpm.h,CHOOSE({1,2,3,4,5},F15,I15,L15,O15,R15),_xlpm.a,CHOOSE({1,2,3,4,5},H15,K15,N15,Q15,T15),SUM((_xlpm.a>_xlpm.h)*(_xlpm.h<>"")*(_xlpm.a<>"")))) -> 0 | Y15: =IF(OR(V15="",X15=""),"",IF(MAX(V15,X15)<3,"",SUMPRODUCT(--($V$13:V15>$X$13:X15),--(($V$13:V15>=3)+($X$13:X15>=3)>0)))) -> 1 | Z15: : | AA15: =IF(OR(V15="",X15=""),"",IF(MAX(V15,X15)<3,"",SUMPRODUCT(--($X$13:X15>$V$13:V15),--(($V$13:V15>=3)+($X$13:X15>=3)>0)))) -> 2
B16: BASIACO L., GASPARI HUDOLETNJAK | C16: PAR | D16: PAR | E16: GLAVINIĆ D., FABIJAN D. | F16: 11 | G16: : | H16: 7 | I16: 11 | J16: : | K16: 5 | L16: 11 | M16: : | N16: 6 | P16: : | S16: : | V16: =IF(COUNTA(F16:T16)=0,"",_xlfn.LET(_xlpm.h,CHOOSE({1,2,3,4,5},F16,I16,L16,O16,R16),_xlpm.a,CHOOSE({1,2,3,4,5},H16,K16,N16,Q16,T16),SUM((_xlpm.h>_xlpm.a)*(_xlpm.h<>"")*(_xlpm.a<>"")))) -> 3 | W16: : | X16: =IF(COUNTA(F16:T16)=0,"",_xlfn.LET(_xlpm.h,CHOOSE({1,2,3,4,5},F16,I16,L16,O16,R16),_xlpm.a,CHOOSE({1,2,3,4,5},H16,K16,N16,Q16,T16),SUM((_xlpm.a>_xlpm.h)*(_xlpm.h<>"")*(_xlpm.a<>"")))) -> 0 | Y16: =IF(OR(V16="",X16=""),"",IF(MAX(V16,X16)<3,"",SUMPRODUCT(--($V$13:V16>$X$13:X16),--(($V$13:V16>=3)+($X$13:X16>=3)>0)))) -> 2 | Z16: : | AA16: =IF(OR(V16="",X16=""),"",IF(MAX(V16,X16)<3,"",SUMPRODUCT(--($X$13:X16>$V$13:V16),--(($V$13:V16>=3)+($X$13:X16>=3)>0)))) -> 2
G17: : | J17: : | M17: : | P17: : | S17: : | V17: =IF(COUNTA(F17:T17)=0,"",_xlfn.LET(_xlpm.h,CHOOSE({1,2,3,4,5},F17,I17,L17,O17,R17),_xlpm.a,CHOOSE({1,2,3,4,5},H17,K17,N17,Q17,T17),SUM((_xlpm.h>_xlpm.a)*(_xlpm.h<>"")*(_xlpm.a<>"")))) -> 0 | W17: : | X17: =IF(COUNTA(F17:T17)=0,"",_xlfn.LET(_xlpm.h,CHOOSE({1,2,3,4,5},F17,I17,L17,O17,R17),_xlpm.a,CHOOSE({1,2,3,4,5},H17,K17,N17,Q17,T17),SUM((_xlpm.a>_xlpm.h)*(_xlpm.h<>"")*(_xlpm.a<>"")))) -> 0 | Y17: =IF(OR(V17="",X17=""),"",IF(MAX(V17,X17)<3,"",SUMPRODUCT(--($V$13:V17>$X$13:X17),--(($V$13:V17>=3)+($X$13:X17>=3)>0)))) ->  | Z17: : | AA17: =IF(OR(V17="",X17=""),"",IF(MAX(V17,X17)<3,"",SUMPRODUCT(--($X$13:X17>$V$13:V17),--(($V$13:V17>=3)+($X$13:X17>=3)>0)))) -> 
B18: BASIACO Leonida | C18: A | D18: Y | E18: GLAVINIĆ Denis | F18: 11 | G18: : | H18: 13 | I18: 11 | J18: : | K18: 8 | L18: 9 | M18: : | N18: 11 | O18: 6 | P18: : | Q18: 11 | S18: : | V18: =IF(COUNTA(F18:T18)=0,"",_xlfn.LET(_xlpm.h,CHOOSE({1,2,3,4,5},F18,I18,L18,O18,R18),_xlpm.a,CHOOSE({1,2,3,4,5},H18,K18,N18,Q18,T18),SUM((_xlpm.h>_xlpm.a)*(_xlpm.h<>"")*(_xlpm.a<>"")))) -> 1 | W18: : | X18: =IF(COUNTA(F18:T18)=0,"",_xlfn.LET(_xlpm.h,CHOOSE({1,2,3,4,5},F18,I18,L18,O18,R18),_xlpm.a,CHOOSE({1,2,3,4,5},H18,K18,N18,Q18,T18),SUM((_xlpm.a>_xlpm.h)*(_xlpm.h<>"")*(_xlpm.a<>"")))) -> 3 | Y18: =IF(OR(V18="",X18=""),"",IF(MAX(V18,X18)<3,"",SUMPRODUCT(--($V$13:V18>$X$13:X18),--(($V$13:V18>=3)+($X$13:X18>=3)>0)))) -> 2 | Z18: : | AA18: =IF(OR(V18="",X18=""),"",IF(MAX(V18,X18)<3,"",SUMPRODUCT(--($X$13:X18>$V$13:V18),--(($V$13:V18>=3)+($X$13:X18>=3)>0)))) -> 3
B19: GASPARI HUDOLETNJAK Matija | C19: C | D19: X | E19: FABRIS Karlo | F19: 7 | G19: : | H19: 11 | I19: 6 | J19: : | K19: 11 | L19: 11 | M19: : | N19: 6 | O19: 11 | P19: : | Q19: 2 | R19: 11 | S19: : | T19: 3 | V19: =IF(COUNTA(F19:T19)=0,"",_xlfn.LET(_xlpm.h,CHOOSE({1,2,3,4,5},F19,I19,L19,O19,R19),_xlpm.a,CHOOSE({1,2,3,4,5},H19,K19,N19,Q19,T19),SUM((_xlpm.h>_xlpm.a)*(_xlpm.h<>"")*(_xlpm.a<>"")))) -> 3 | W19: : | X19: =IF(COUNTA(F19:T19)=0,"",_xlfn.LET(_xlpm.h,CHOOSE({1,2,3,4,5},F19,I19,L19,O19,R19),_xlpm.a,CHOOSE({1,2,3,4,5},H19,K19,N19,Q19,T19),SUM((_xlpm.a>_xlpm.h)*(_xlpm.h<>"")*(_xlpm.a<>"")))) -> 2 | Y19: =IF(OR(V19="",X19=""),"",IF(MAX(V19,X19)<3,"",SUMPRODUCT(--($V$13:V19>$X$13:X19),--(($V$13:V19>=3)+($X$13:X19>=3)>0)))) -> 3 | Z19: : | AA19: =IF(OR(V19="",X19=""),"",IF(MAX(V19,X19)<3,"",SUMPRODUCT(--($X$13:X19>$V$13:V19),--(($V$13:V19>=3)+($X$13:X19>=3)>0)))) -> 3
B20: BENAZIĆ Sandro | C20: B | D20: Z | E20: FABIJAN Damir | F20: 11 | G20: : | H20: 7 | I20: 11 | J20: : | K20: 5 | L20: 13 | M20: : | N20: 15 | O20: 5 | P20: : | Q20: 11 | R20: 6 | S20: : | T20: 11 | V20: =IF(COUNTA(F20:T20)=0,"",_xlfn.LET(_xlpm.h,CHOOSE({1,2,3,4,5},F20,I20,L20,O20,R20),_xlpm.a,CHOOSE({1,2,3,4,5},H20,K20,N20,Q20,T20),SUM((_xlpm.h>_xlpm.a)*(_xlpm.h<>"")*(_xlpm.a<>"")))) -> 2 | W20: : | X20: =IF(COUNTA(F20:T20)=0,"",_xlfn.LET(_xlpm.h,CHOOSE({1,2,3,4,5},F20,I20,L20,O20,R20),_xlpm.a,CHOOSE({1,2,3,4,5},H20,K20,N20,Q20,T20),SUM((_xlpm.a>_xlpm.h)*(_xlpm.h<>"")*(_xlpm.a<>"")))) -> 3 | Y20: =IF(OR(V20="",X20=""),"",IF(MAX(V20,X20)<3,"",SUMPRODUCT(--($V$13:V20>$X$13:X20),--(($V$13:V20>=3)+($X$13:X20>=3)>0)))) -> 3 | Z20: : | AA20: =IF(OR(V20="",X20=""),"",IF(MAX(V20,X20)<3,"",SUMPRODUCT(--($X$13:X20>$V$13:V20),--(($V$13:V20>=3)+($X$13:X20>=3)>0)))) -> 4
B22: =B4 -> BROVINJE 2 | C22: : | E22: =E4 -> PAZIN | F22: =MAX(Y13:Y20) -> 3 | G22: : | H22: =MAX(AA13:AA20) -> 4
E23: SETOVI | F23: =SUM(V13:V20) -> 12 | G23: : | H23: =SUM(X13:X20) -> 14
E24: POENI | F24: =SUM(F13:F20, I13:I20, L13:L20, O13:O20, R13:R20) -> 232 | G24: : | H24: =SUM(H13:H20, K13:K20, N13:N20, Q13:Q20, T13:T20) -> 225

Sheet ZAPISNIK_4_6 (hidden)
A1: ŽUPANIJSKA LIGA STSIŽ 2025./2026. | AV1: EDIT
B2: GRAD DOMAĆIN | E2: DVORANA | J2: KOLO | N2: DATUM | T2: SAT
B3: - | E3: - | J3: - | N3: 1. 9. 2025.
A4: Domaćin | B4: BROVINJE 2 | D4: Gost | E4: MAESTRAL 2 | N4: Gost
A5: A | B5: GASPARI HUDOLETNJAK Matija | D5: X | E5: KMET Teo
A6: B | B6: BENAZIĆ Sandro | D6: Y | E6: VIŽINTIN Marino
A7: C | B7: BASIACO Leonida | D7: Z | E7: SMAIĆ Bruno
A8: R1 | D8: R1
A9: R2 | D9: R2
B11: DOMAĆIN | E11: GOST
B12: BROVINJE 2 | E12: MAESTRAL 2
B13: GASPARI HUDOLETNJAK Matija | C13: A | D13: X | E13: KMET Teo | F13: 11 | G13: : | H13: 5 | I13: 11 | J13: : | K13: 4 | L13: 11 | M13: : | N13: 4 | P13: : | S13: : | V13: =IF(COUNTA(F13:T13)=0,"",_xlfn.LET(_xlpm.h,CHOOSE({1,2,3,4,5},F13,I13,L13,O13,R13),_xlpm.a,CHOOSE({1,2,3,4,5},H13,K13,N13,Q13,T13),SUM((_xlpm.h>_xlpm.a)*(_xlpm.h<>"")*(_xlpm.a<>"")))) -> 3 | W13: : | X13: =IF(COUNTA(F13:T13)=0,"",_xlfn.LET(_xlpm.h,CHOOSE({1,2,3,4,5},F13,I13,L13,O13,R13),_xlpm.a,CHOOSE({1,2,3,4,5},H13,K13,N13,Q13,T13),SUM((_xlpm.a>_xlpm.h)*(_xlpm.h<>"")*(_xlpm.a<>"")))) -> 0 | Y13: =IF(OR(V13="",X13=""),"",IF(MAX(V13,X13)<3,"",SUMPRODUCT(--($V$13:V13>$X$13:X13),--(($V$13:V13>=3)+($X$13:X13>=3)>0)))) -> 1 | Z13: : | AA13: =IF(OR(V13="",X13=""),"",IF(MAX(V13,X13)<3,"",SUMPRODUCT(--($X$13:X13>$V$13:V13),--(($V$13:V13>=3)+($X$13:X13>=3)>0)))) -> 0
B14: BENAZIĆ Sandro | C14: B | D14: Y | E14: VIŽINTIN Marino | F14: 11 | G14: : | H14: 2 | I14: 11 | J14: : | K14: 7 | L14: 11 | M14: : | N14: 2 | P14: : | S14: : | V14: =IF(COUNTA(F14:T14)=0,"",_xlfn.LET(_xlpm.h,CHOOSE({1,2,3,4,5},F14,I14,L14,O14,R14),_xlpm.a,CHOOSE({1,2,3,4,5},H14,K14,N14,Q14,T14),SUM((_xlpm.h>_xlpm.a)*(_xlpm.h<>"")*(_xlpm.a<>"")))) -> 3 | W14: : | X14: =IF(COUNTA(F14:T14)=0,"",_xlfn.LET(_xlpm.h,CHOOSE({1,2,3,4,5},F14,I14,L14,O14,R14),_xlpm.a,CHOOSE({1,2,3,4,5},H14,K14,N14,Q14,T14),SUM((_xlpm.a>_xlpm.h)*(_xlpm.h<>"")*(_xlpm.a<>"")))) -> 0 | Y14: =IF(OR(V14="",X14=""),"",IF(MAX(V14,X14)<3,"",SUMPRODUCT(--($V$13:V14>$X$13:X14),--(($V$13:V14>=3)+($X$13:X14>=3)>0)))) -> 2 | Z14: : | AA14: =IF(OR(V14="",X14=""),"",IF(MAX(V14,X14)<3,"",SUMPRODUCT(--($X$13:X14>$V$13:V14),--(($V$13:V14>=3)+($X$13:X14>=3)>0)))) -> 0
B15: BASIACO Leonida | C15: C | D15: Z | E15: SMAIĆ Bruno | F15: 11 | G15: : | H15: 5 | I15: 11 | J15: : | K15: 4 | L15: 11 | M15: : | N15: 5 | P15: : | S15: : | V15: =IF(COUNTA(F15:T15)=0,"",_xlfn.LET(_xlpm.h,CHOOSE({1,2,3,4,5},F15,I15,L15,O15,R15),_xlpm.a,CHOOSE({1,2,3,4,5},H15,K15,N15,Q15,T15),SUM((_xlpm.h>_xlpm.a)*(_xlpm.h<>"")*(_xlpm.a<>"")))) -> 3 | W15: : | X15: =IF(COUNTA(F15:T15)=0,"",_xlfn.LET(_xlpm.h,CHOOSE({1,2,3,4,5},F15,I15,L15,O15,R15),_xlpm.a,CHOOSE({1,2,3,4,5},H15,K15,N15,Q15,T15),SUM((_xlpm.a>_xlpm.h)*(_xlpm.h<>"")*(_xlpm.a<>"")))) -> 0 | Y15: =IF(OR(V15="",X15=""),"",IF(MAX(V15,X15)<3,"",SUMPRODUCT(--($V$13:V15>$X$13:X15),--(($V$13:V15>=3)+($X$13:X15>=3)>0)))) -> 3 | Z15: : | AA15: =IF(OR(V15="",X15=""),"",IF(MAX(V15,X15)<3,"",SUMPRODUCT(--($X$13:X15>$V$13:V15),--(($V$13:V15>=3)+($X$13:X15>=3)>0)))) -> 0
B16: BENAZIĆ S., GASPARI HUDOLETNJAK | C16: PAR | D16: PAR | E16: KMET T., VIŽINTIN M. | F16: 9 | G16: : | H16: 11 | I16: 11 | J16: : | K16: 5 | L16: 10 | M16: : | N16: 12 | O16: 11 | P16: : | Q16: 6 | R16: 5 | S16: : | T16: 11 | V16: =IF(COUNTA(F16:T16)=0,"",_xlfn.LET(_xlpm.h,CHOOSE({1,2,3,4,5},F16,I16,L16,O16,R16),_xlpm.a,CHOOSE({1,2,3,4,5},H16,K16,N16,Q16,T16),SUM((_xlpm.h>_xlpm.a)*(_xlpm.h<>"")*(_xlpm.a<>"")))) -> 2 | W16: : | X16: =IF(COUNTA(F16:T16)=0,"",_xlfn.LET(_xlpm.h,CHOOSE({1,2,3,4,5},F16,I16,L16,O16,R16),_xlpm.a,CHOOSE({1,2,3,4,5},H16,K16,N16,Q16,T16),SUM((_xlpm.a>_xlpm.h)*(_xlpm.h<>"")*(_xlpm.a<>"")))) -> 3 | Y16: =IF(OR(V16="",X16=""),"",IF(MAX(V16,X16)<3,"",SUMPRODUCT(--($V$13:V16>$X$13:X16),--(($V$13:V16>=3)+($X$13:X16>=3)>0)))) -> 3 | Z16: : | AA16: =IF(OR(V16="",X16=""),"",IF(MAX(V16,X16)<3,"",SUMPRODUCT(--($X$13:X16>$V$13:V16),--(($V$13:V16>=3)+($X$13:X16>=3)>0)))) -> 1
G17: : | J17: : | M17: : | P17: : | S17: : | V17: =IF(COUNTA(F17:T17)=0,"",_xlfn.LET(_xlpm.h,CHOOSE({1,2,3,4,5},F17,I17,L17,O17,R17),_xlpm.a,CHOOSE({1,2,3,4,5},H17,K17,N17,Q17,T17),SUM((_xlpm.h>_xlpm.a)*(_xlpm.h<>"")*(_xlpm.a<>"")))) -> 0 | W17: : | X17: =IF(COUNTA(F17:T17)=0,"",_xlfn.LET(_xlpm.h,CHOOSE({1,2,3,4,5},F17,I17,L17,O17,R17),_xlpm.a,CHOOSE({1,2,3,4,5},H17,K17,N17,Q17,T17),SUM((_xlpm.a>_xlpm.h)*(_xlpm.h<>"")*(_xlpm.a<>"")))) -> 0 | Y17: =IF(OR(V17="",X17=""),"",IF(MAX(V17,X17)<3,"",SUMPRODUCT(--($V$13:V17>$X$13:X17),--(($V$13:V17>=3)+($X$13:X17>=3)>0)))) ->  | Z17: : | AA17: =IF(OR(V17="",X17=""),"",IF(MAX(V17,X17)<3,"",SUMPRODUCT(--($X$13:X17>$V$13:V17),--(($V$13:V17>=3)+($X$13:X17>=3)>0)))) -> 
B18: GASPARI HUDOLETNJAK Matija | C18: A | D18: Y | E18: VIŽINTIN Marino | F18: 11 | G18: : | H18: 9 | I18: 8 | J18: : | K18: 11 | L18: 11 | M18: : | N18: 3 | O18: 13 | P18: : | Q18: 11 | S18: : | V18: =IF(COUNTA(F18:T18)=0,"",_xlfn.LET(_xlpm.h,CHOOSE({1,2,3,4,5},F18,I18,L18,O18,R18),_xlpm.a,CHOOSE({1,2,3,4,5},H18,K18,N18,Q18,T18),SUM((_xlpm.h>_xlpm.a)*(_xlpm.h<>"")*(_xlpm.a<>"")))) -> 3 | W18: : | X18: =IF(COUNTA(F18:T18)=0,"",_xlfn.LET(_xlpm.h,CHOOSE({1,2,3,4,5},F18,I18,L18,O18,R18),_xlpm.a,CHOOSE({1,2,3,4,5},H18,K18,N18,Q18,T18),SUM((_xlpm.a>_xlpm.h)*(_xlpm.h<>"")*(_xlpm.a<>"")))) -> 1 | Y18: =IF(OR(V18="",X18=""),"",IF(MAX(V18,X18)<3,"",SUMPRODUCT(--($V$13:V18>$X$13:X18),--(($V$13:V18>=3)+($X$13:X18>=3)>0)))) -> 4 | Z18: : | AA18: =IF(OR(V18="",X18=""),"",IF(MAX(V18,X18)<3,"",SUMPRODUCT(--($X$13:X18>$V$13:V18),--(($V$13:V18>=3)+($X$13:X18>=3)>0)))) -> 1
C19: C | D19: X | G19: : | J19: : | M19: : | P19: : | S19: : | V19: =IF(COUNTA(F19:T19)=0,"",_xlfn.LET(_xlpm.h,CHOOSE({1,2,3,4,5},F19,I19,L19,O19,R19),_xlpm.a,CHOOSE({1,2,3,4,5},H19,K19,N19,Q19,T19),SUM((_xlpm.h>_xlpm.a)*(_xlpm.h<>"")*(_xlpm.a<>"")))) -> 0 | W19: : | X19: =IF(COUNTA(F19:T19)=0,"",_xlfn.LET(_xlpm.h,CHOOSE({1,2,3,4,5},F19,I19,L19,O19,R19),_xlpm.a,CHOOSE({1,2,3,4,5},H19,K19,N19,Q19,T19),SUM((_xlpm.a>_xlpm.h)*(_xlpm.h<>"")*(_xlpm.a<>"")))) -> 0 | Y19: =IF(OR(V19="",X19=""),"",IF(MAX(V19,X19)<3,"",SUMPRODUCT(--($V$13:V19>$X$13:X19),--(($V$13:V19>=3)+($X$13:X19>=3)>0)))) ->  | Z19: : | AA19: =IF(OR(V19="",X19=""),"",IF(MAX(V19,X19)<3,"",SUMPRODUCT(--($X$13:X19>$V$13:V19),--(($V$13:V19>=3)+($X$13:X19>=3)>0)))) -> 
C20: B | D20: Z | G20: : | J20: : | M20: : | P20: : | S20: : | V20: =IF(COUNTA(F20:T20)=0,"",_xlfn.LET(_xlpm.h,CHOOSE({1,2,3,4,5},F20,I20,L20,O20,R20),_xlpm.a,CHOOSE({1,2,3,4,5},H20,K20,N20,Q20,T20),SUM((_xlpm.h>_xlpm.a)*(_xlpm.h<>"")*(_xlpm.a<>"")))) -> 0 | W20: : | X20: =IF(COUNTA(F20:T20)=0,"",_xlfn.LET(_xlpm.h,CHOOSE({1,2,3,4,5},F20,I20,L20,O20,R20),_xlpm.a,CHOOSE({1,2,3,4,5},H20,K20,N20,Q20,T20),SUM((_xlpm.a>_xlpm.h)*(_xlpm.h<>"")*(_xlpm.a<>"")))) -> 0 | Y20: =IF(OR(V20="",X20=""),"",IF(MAX(V20,X20)<3,"",SUMPRODUCT(--($V$13:V20>$X$13:X20),--(($V$13:V20>=3)+($X$13:X20>=3)>0)))) ->  | Z20: : | AA20: =IF(OR(V20="",X20=""),"",IF(MAX(V20,X20)<3,"",SUMPRODUCT(--($X$13:X20>$V$13:V20),--(($V$13:V20>=3)+($X$13:X20>=3)>0)))) -> 
B22: =B4 -> BROVINJE 2 | C22: : | E22: =E4 -> MAESTRAL 2 | F22: =MAX(Y13:Y20) -> 4 | G22: : | H22: =MAX(AA13:AA20) -> 1
E23: SETOVI | F23: =SUM(V13:V20) -> 14 | G23: : | H23: =SUM(X13:X20) -> 4
E24: POENI | F24: =SUM(F13:F20, I13:I20, L13:L20, O13:O20, R13:R20) -> 188 | G24: : | H24: =SUM(H13:H20, K13:K20, N13:N20, Q13:Q20, T13:T20) -> 117

Sheet ZAPISNIK_5_1 (hidden)
A1: ŽUPANIJSKA LIGA STSIŽ 2025./2026. | AV1: EDIT
B2: GRAD DOMAĆIN | E2: DVORANA | J2: KOLO | N2: DATUM | T2: SAT
B3: BUZET | E3: SD Buzet | J3: 5. | N3: 7. 12. 2025. | T3: 11:00:00
A4: Domaćin | B4: BUZET 1 | D4: Gost | E4: BROVINJE 2
A5: A | B5: SIROTIĆ Aleš | D5: X | E5: GASPARI HUDOLETNJAK Matija
A6: B | B6: BERDNYK Stanislav | D6: Y | E6: BASIACO Leonida
A7: C | B7: PAULUS Michael | D7: Z | E7: BENAZIĆ Sandro
A8: R1 | D8: R1
A9: R2 | D9: R2
B11: DOMAĆIN | E11: GOST
B12: BUZET 1 | E12: BROVINJE 2
B13: SIROTIĆ Aleš | C13: A | D13: X | E13: GASPARI HUDOLETNJAK Matija | F13: 6 | G13: : | H13: 11 | I13: 8 | J13: : | K13: 11 | L13: 9 | M13: : | N13: 11 | P13: : | S13: : | V13: =IF(COUNTA(F13:T13)=0,"",_xlfn.LET(_xlpm.h,CHOOSE({1,2,3,4,5},F13,I13,L13,O13,R13),_xlpm.a,CHOOSE({1,2,3,4,5},H13,K13,N13,Q13,T13),SUM((_xlpm.h>_xlpm.a)*(_xlpm.h<>"")*(_xlpm.a<>"")))) -> 0 | W13: : | X13: =IF(COUNTA(F13:T13)=0,"",_xlfn.LET(_xlpm.h,CHOOSE({1,2,3,4,5},F13,I13,L13,O13,R13),_xlpm.a,CHOOSE({1,2,3,4,5},H13,K13,N13,Q13,T13),SUM((_xlpm.a>_xlpm.h)*(_xlpm.h<>"")*(_xlpm.a<>"")))) -> 3 | Y13: =IF(OR(V13="",X13=""),"",IF(MAX(V13,X13)<3,"",SUMPRODUCT(--($V$13:V13>$X$13:X13),--(($V$13:V13>=3)+($X$13:X13>=3)>0)))) -> 0 | Z13: : | AA13: =IF(OR(V13="",X13=""),"",IF(MAX(V13,X13)<3,"",SUMPRODUCT(--($X$13:X13>$V$13:V13),--(($V$13:V13>=3)+($X$13:X13>=3)>0)))) -> 1
B14: BERDNYK Stanislav | C14: B | D14: Y | E14: BASIACO Leonida | F14: 11 | G14: : | H14: 8 | I14: 11 | J14: : | K14: 7 | L14: 4 | M14: : | N14: 11 | O14: 11 | P14: : | Q14: 13 | R14: 11 | S14: : | T14: 8 | V14: =IF(COUNTA(F14:T14)=0,"",_xlfn.LET(_xlpm.h,CHOOSE({1,2,3,4,5},F14,I14,L14,O14,R14),_xlpm.a,CHOOSE({1,2,3,4,5},H14,K14,N14,Q14,T14),SUM((_xlpm.h>_xlpm.a)*(_xlpm.h<>"")*(_xlpm.a<>"")))) -> 3 | W14: : | X14: =IF(COUNTA(F14:T14)=0,"",_xlfn.LET(_xlpm.h,CHOOSE({1,2,3,4,5},F14,I14,L14,O14,R14),_xlpm.a,CHOOSE({1,2,3,4,5},H14,K14,N14,Q14,T14),SUM((_xlpm.a>_xlpm.h)*(_xlpm.h<>"")*(_xlpm.a<>"")))) -> 2 | Y14: =IF(OR(V14="",X14=""),"",IF(MAX(V14,X14)<3,"",SUMPRODUCT(--($V$13:V14>$X$13:X14),--(($V$13:V14>=3)+($X$13:X14>=3)>0)))) -> 1 | Z14: : | AA14: =IF(OR(V14="",X14=""),"",IF(MAX(V14,X14)<3,"",SUMPRODUCT(--($X$13:X14>$V$13:V14),--(($V$13:V14>=3)+($X$13:X14>=3)>0)))) -> 1
B15: PAULUS Michael | C15: C | D15: Z | E15: BENAZIĆ Sandro | F15: 11 | G15: : | H15: 6 | I15: 11 | J15: : | K15: 9 | L15: 11 | M15: : | N15: 13 | O15: 11 | P15: : | Q15: 8 | S15: : | V15: =IF(COUNTA(F15:T15)=0,"",_xlfn.LET(_xlpm.h,CHOOSE({1,2,3,4,5},F15,I15,L15,O15,R15),_xlpm.a,CHOOSE({1,2,3,4,5},H15,K15,N15,Q15,T15),SUM((_xlpm.h>_xlpm.a)*(_xlpm.h<>"")*(_xlpm.a<>"")))) -> 3 | W15: : | X15: =IF(COUNTA(F15:T15)=0,"",_xlfn.LET(_xlpm.h,CHOOSE({1,2,3,4,5},F15,I15,L15,O15,R15),_xlpm.a,CHOOSE({1,2,3,4,5},H15,K15,N15,Q15,T15),SUM((_xlpm.a>_xlpm.h)*(_xlpm.h<>"")*(_xlpm.a<>"")))) -> 1 | Y15: =IF(OR(V15="",X15=""),"",IF(MAX(V15,X15)<3,"",SUMPRODUCT(--($V$13:V15>$X$13:X15),--(($V$13:V15>=3)+($X$13:X15>=3)>0)))) -> 2 | Z15: : | AA15: =IF(OR(V15="",X15=""),"",IF(MAX(V15,X15)<3,"",SUMPRODUCT(--($X$13:X15>$V$13:V15),--(($V$13:V15>=3)+($X$13:X15>=3)>0)))) -> 1
B16: BERDNYK S., PAULUS M. | C16: PAR | D16: PAR | E16: BASIACO L., GASPARI HUDOLETNJAK | F16: 10 | G16: : | H16: 12 | I16: 11 | J16: : | K16: 4 | L16: 11 | M16: : | N16: 8 | O16: 11 | P16: : | Q16: 3 | S16: : | V16: =IF(COUNTA(F16:T16)=0,"",_xlfn.LET(_xlpm.h,CHOOSE({1,2,3,4,5},F16,I16,L16,O16,R16),_xlpm.a,CHOOSE({1,2,3,4,5},H16,K16,N16,Q16,T16),SUM((_xlpm.h>_xlpm.a)*(_xlpm.h<>"")*(_xlpm.a<>"")))) -> 3 | W16: : | X16: =IF(COUNTA(F16:T16)=0,"",_xlfn.LET(_xlpm.h,CHOOSE({1,2,3,4,5},F16,I16,L16,O16,R16),_xlpm.a,CHOOSE({1,2,3,4,5},H16,K16,N16,Q16,T16),SUM((_xlpm.a>_xlpm.h)*(_xlpm.h<>"")*(_xlpm.a<>"")))) -> 1 | Y16: =IF(OR(V16="",X16=""),"",IF(MAX(V16,X16)<3,"",SUMPRODUCT(--($V$13:V16>$X$13:X16),--(($V$13:V16>=3)+($X$13:X16>=3)>0)))) -> 3 | Z16: : | AA16: =IF(OR(V16="",X16=""),"",IF(MAX(V16,X16)<3,"",SUMPRODUCT(--($X$13:X16>$V$13:V16),--(($V$13:V16>=3)+($X$13:X16>=3)>0)))) -> 1
G17: : | J17: : | M17: : | P17: : | S17: : | V17: =IF(COUNTA(F17:T17)=0,"",_xlfn.LET(_xlpm.h,CHOOSE({1,2,3,4,5},F17,I17,L17,O17,R17),_xlpm.a,CHOOSE({1,2,3,4,5},H17,K17,N17,Q17,T17),SUM((_xlpm.h>_xlpm.a)*(_xlpm.h<>"")*(_xlpm.a<>"")))) -> 0 | W17: : | X17: =IF(COUNTA(F17:T17)=0,"",_xlfn.LET(_xlpm.h,CHOOSE({1,2,3,4,5},F17,I17,L17,O17,R17),_xlpm.a,CHOOSE({1,2,3,4,5},H17,K17,N17,Q17,T17),SUM((_xlpm.a>_xlpm.h)*(_xlpm.h<>"")*(_xlpm.a<>"")))) -> 0 | Y17: =IF(OR(V17="",X17=""),"",IF(MAX(V17,X17)<3,"",SUMPRODUCT(--($V$13:V17>$X$13:X17),--(($V$13:V17>=3)+($X$13:X17>=3)>0)))) ->  | Z17: : | AA17: =IF(OR(V17="",X17=""),"",IF(MAX(V17,X17)<3,"",SUMPRODUCT(--($X$13:X17>$V$13:V17),--(($V$13:V17>=3)+($X$13:X17>=3)>0)))) -> 
B18: SIROTIĆ Aleš | C18: A | D18: Y | E18: BASIACO Leonida | F18: 7 | G18: : | H18: 11 | I18: 11 | J18: : | K18: 9 | L18: 9 | M18: : | N18: 11 | O18: 7 | P18: : | Q18: 11 | S18: : | V18: =IF(COUNTA(F18:T18)=0,"",_xlfn.LET(_xlpm.h,CHOOSE({1,2,3,4,5},F18,I18,L18,O18,R18),_xlpm.a,CHOOSE({1,2,3,4,5},H18,K18,N18,Q18,T18),SUM((_xlpm.h>_xlpm.a)*(_xlpm.h<>"")*(_xlpm.a<>"")))) -> 1 | W18: : | X18: =IF(COUNTA(F18:T18)=0,"",_xlfn.LET(_xlpm.h,CHOOSE({1,2,3,4,5},F18,I18,L18,O18,R18),_xlpm.a,CHOOSE({1,2,3,4,5},H18,K18,N18,Q18,T18),SUM((_xlpm.a>_xlpm.h)*(_xlpm.h<>"")*(_xlpm.a<>"")))) -> 3 | Y18: =IF(OR(V18="",X18=""),"",IF(MAX(V18,X18)<3,"",SUMPRODUCT(--($V$13:V18>$X$13:X18),--(($V$13:V18>=3)+($X$13:X18>=3)>0)))) -> 3 | Z18: : | AA18: =IF(OR(V18="",X18=""),"",IF(MAX(V18,X18)<3,"",SUMPRODUCT(--($X$13:X18>$V$13:V18),--(($V$13:V18>=3)+($X$13:X18>=3)>0)))) -> 2
B19: PAULUS Michael | C19: C | D19: X | E19: GASPARI HUDOLETNJAK Matija | F19: 7 | G19: : | H19: 11 | I19: 11 | J19: : | K19: 2 | L19: 10 | M19: : | N19: 12 | O19: 7 | P19: : | Q19: 11 | S19: : | V19: =IF(COUNTA(F19:T19)=0,"",_xlfn.LET(_xlpm.h,CHOOSE({1,2,3,4,5},F19,I19,L19,O19,R19),_xlpm.a,CHOOSE({1,2,3,4,5},H19,K19,N19,Q19,T19),SUM((_xlpm.h>_xlpm.a)*(_xlpm.h<>"")*(_xlpm.a<>"")))) -> 1 | W19: : | X19: =IF(COUNTA(F19:T19)=0,"",_xlfn.LET(_xlpm.h,CHOOSE({1,2,3,4,5},F19,I19,L19,O19,R19),_xlpm.a,CHOOSE({1,2,3,4,5},H19,K19,N19,Q19,T19),SUM((_xlpm.a>_xlpm.h)*(_xlpm.h<>"")*(_xlpm.a<>"")))) -> 3 | Y19: =IF(OR(V19="",X19=""),"",IF(MAX(V19,X19)<3,"",SUMPRODUCT(--($V$13:V19>$X$13:X19),--(($V$13:V19>=3)+($X$13:X19>=3)>0)))) -> 3 | Z19: : | AA19: =IF(OR(V19="",X19=""),"",IF(MAX(V19,X19)<3,"",SUMPRODUCT(--($X$13:X19>$V$13:V19),--(($V$13:V19>=3)+($X$13:X19>=3)>0)))) -> 3
B20: BERDNYK Stanislav | C20: B | D20: Z | E20: BENAZIĆ Sandro | F20: 8 | G20: : | H20: 11 | I20: 1 | J20: : | K20: 11 | L20: 4 | M20: : | N20: 11 | P20: : | S20: : | V20: =IF(COUNTA(F20:T20)=0,"",_xlfn.LET(_xlpm.h,CHOOSE({1,2,3,4,5},F20,I20,L20,O20,R20),_xlpm.a,CHOOSE({1,2,3,4,5},H20,K20,N20,Q20,T20),SUM((_xlpm.h>_xlpm.a)*(_xlpm.h<>"")*(_xlpm.a<>"")))) -> 0 | W20: : | X20: =IF(COUNTA(F20:T20)=0,"",_xlfn.LET(_xlpm.h,CHOOSE({1,2,3,4,5},F20,I20,L20,O20,R20),_xlpm.a,CHOOSE({1,2,3,4,5},H20,K20,N20,Q20,T20),SUM((_xlpm.a>_xlpm.h)*(_xlpm.h<>"")*(_xlpm.a<>"")))) -> 3 | Y20: =IF(OR(V20="",X20=""),"",IF(MAX(V20,X20)<3,"",SUMPRODUCT(--($V$13:V20>$X$13:X20),--(($V$13:V20>=3)+($X$13:X20>=3)>0)))) -> 3 | Z20: : | AA20: =IF(OR(V20="",X20=""),"",IF(MAX(V20,X20)<3,"",SUMPRODUCT(--($X$13:X20>$V$13:V20),--(($V$13:V20>=3)+($X$13:X20>=3)>0)))) -> 4
B22: =B4 -> BUZET 1 | C22: : | E22: =E4 -> BROVINJE 2 | F22: =MAX(Y13:Y20) -> 3 | G22: : | H22: =MAX(AA13:AA20) -> 4
E23: SETOVI | F23: =SUM(V13:V20) -> 11 | G23: : | H23: =SUM(X13:X20) -> 16
E24: POENI | F24: =SUM(F13:F20, I13:I20, L13:L20, O13:O20, R13:R20) -> 240 | G24: : | H24: =SUM(H13:H20, K13:K20, N13:N20, Q13:Q20, T13:T20) -> 254

Sheet ZAPISNIK_5_2 (hidden)
A1: ŽUPANIJSKA LIGA STSIŽ 2025./2026. | AV1: EDIT
B2: GRAD DOMAĆIN | E2: DVORANA | J2: KOLO | N2: DATUM | T2: SAT
B3: BUZET | E3: SD Buzet | J3: 5. | N3: 7. 12. 2025. | T3: 12:30:00
A4: Domaćin | B4: BUZET 2 | D4: Gost | E4: BROVINJE 2
A5: A | B5: FLEGO Valter | D5: X | E5: BASIACO Leonida
A6: B | B6: KOS Dino | D6: Y | E6: GASPARI HUDOLETNJAK Matija
A7: C | B7: PAVLETIĆ Guido | D7: Z | E7: BENAZIĆ Sandro
A8: R1 | D8: R1
A9: R2 | D9: R2
B11: DOMAĆIN | E11: GOST
B12: BUZET 2 | E12: BROVINJE 2
B13: FLEGO Valter | C13: A | D13: X | E13: BASIACO Leonida | F13: 9 | G13: : | H13: 11 | I13: 3 | J13: : | K13: 11 | L13: 11 | M13: : | N13: 6 | O13: 5 | P13: : | Q13: 11 | S13: : | V13: =IF(COUNTA(F13:T13)=0,"",_xlfn.LET(_xlpm.h,CHOOSE({1,2,3,4,5},F13,I13,L13,O13,R13),_xlpm.a,CHOOSE({1,2,3,4,5},H13,K13,N13,Q13,T13),SUM((_xlpm.h>_xlpm.a)*(_xlpm.h<>"")*(_xlpm.a<>"")))) -> 1 | W13: : | X13: =IF(COUNTA(F13:T13)=0,"",_xlfn.LET(_xlpm.h,CHOOSE({1,2,3,4,5},F13,I13,L13,O13,R13),_xlpm.a,CHOOSE({1,2,3,4,5},H13,K13,N13,Q13,T13),SUM((_xlpm.a>_xlpm.h)*(_xlpm.h<>"")*(_xlpm.a<>"")))) -> 3 | Y13: =IF(OR(V13="",X13=""),"",IF(MAX(V13,X13)<3,"",SUMPRODUCT(--($V$13:V13>$X$13:X13),--(($V$13:V13>=3)+($X$13:X13>=3)>0)))) -> 0 | Z13: : | AA13: =IF(OR(V13="",X13=""),"",IF(MAX(V13,X13)<3,"",SUMPRODUCT(--($X$13:X13>$V$13:V13),--(($V$13:V13>=3)+($X$13:X13>=3)>0)))) -> 1
B14: KOS Dino | C14: B | D14: Y | E14: GASPARI HUDOLETNJAK Matija | F14: 7 | G14: : | H14: 11 | I14: 11 | J14: : | K14: 13 | L14: 4 | M14: : | N14: 11 | P14: : | S14: : | V14: =IF(COUNTA(F14:T14)=0,"",_xlfn.LET(_xlpm.h,CHOOSE({1,2,3,4,5},F14,I14,L14,O14,R14),_xlpm.a,CHOOSE({1,2,3,4,5},H14,K14,N14,Q14,T14),SUM((_xlpm.h>_xlpm.a)*(_xlpm.h<>"")*(_xlpm.a<>"")))) -> 0 | W14: : | X14: =IF(COUNTA(F14:T14)=0,"",_xlfn.LET(_xlpm.h,CHOOSE({1,2,3,4,5},F14,I14,L14,O14,R14),_xlpm.a,CHOOSE({1,2,3,4,5},H14,K14,N14,Q14,T14),SUM((_xlpm.a>_xlpm.h)*(_xlpm.h<>"")*(_xlpm.a<>"")))) -> 3 | Y14: =IF(OR(V14="",X14=""),"",IF(MAX(V14,X14)<3,"",SUMPRODUCT(--($V$13:V14>$X$13:X14),--(($V$13:V14>=3)+($X$13:X14>=3)>0)))) -> 0 | Z14: : | AA14: =IF(OR(V14="",X14=""),"",IF(MAX(V14,X14)<3,"",SUMPRODUCT(--($X$13:X14>$V$13:V14),--(($V$13:V14>=3)+($X$13:X14>=3)>0)))) -> 2
B15: PAVLETIĆ Guido | C15: C | D15: Z | E15: BENAZIĆ Sandro | F15: 11 | G15: : | H15: 9 | I15: 6 | J15: : | K15: 11 | L15: 9 | M15: : | N15: 11 | O15: 8 | P15: : | Q15: 11 | S15: : | V15: =IF(COUNTA(F15:T15)=0,"",_xlfn.LET(_xlpm.h,CHOOSE({1,2,3,4,5},F15,I15,L15,O15,R15),_xlpm.a,CHOOSE({1,2,3,4,5},H15,K15,N15,Q15,T15),SUM((_xlpm.h>_xlpm.a)*(_xlpm.h<>"")*(_xlpm.a<>"")))) -> 1 | W15: : | X15: =IF(COUNTA(F15:T15)=0,"",_xlfn.LET(_xlpm.h,CHOOSE({1,2,3,4,5},F15,I15,L15,O15,R15),_xlpm.a,CHOOSE({1,2,3,4,5},H15,K15,N15,Q15,T15),SUM((_xlpm.a>_xlpm.h)*(_xlpm.h<>"")*(_xlpm.a<>"")))) -> 3 | Y15: =IF(OR(V15="",X15=""),"",IF(MAX(V15,X15)<3,"",SUMPRODUCT(--($V$13:V15>$X$13:X15),--(($V$13:V15>=3)+($X$13:X15>=3)>0)))) -> 0 | Z15: : | AA15: =IF(OR(V15="",X15=""),"",IF(MAX(V15,X15)<3,"",SUMPRODUCT(--($X$13:X15>$V$13:V15),--(($V$13:V15>=3)+($X$13:X15>=3)>0)))) -> 3
B16: FLEGO V., KOS D. | C16: PAR | D16: PAR | E16: BASIACO L., GASPARI HUDOLETNJAK | F16: 15 | G16: : | H16: 13 | I16: 7 | J16: : | K16: 11 | L16: 5 | M16: : | N16: 11 | O16: 7 | P16: : | Q16: 11 | S16: : | V16: =IF(COUNTA(F16:T16)=0,"",_xlfn.LET(_xlpm.h,CHOOSE({1,2,3,4,5},F16,I16,L16,O16,R16),_xlpm.a,CHOOSE({1,2,3,4,5},H16,K16,N16,Q16,T16),SUM((_xlpm.h>_xlpm.a)*(_xlpm.h<>"")*(_xlpm.a<>"")))) -> 1 | W16: : | X16: =IF(COUNTA(F16:T16)=0,"",_xlfn.LET(_xlpm.h,CHOOSE({1,2,3,4,5},F16,I16,L16,O16,R16),_xlpm.a,CHOOSE({1,2,3,4,5},H16,K16,N16,Q16,T16),SUM((_xlpm.a>_xlpm.h)*(_xlpm.h<>"")*(_xlpm.a<>"")))) -> 3 | Y16: =IF(OR(V16="",X16=""),"",IF(MAX(V16,X16)<3,"",SUMPRODUCT(--($V$13:V16>$X$13:X16),--(($V$13:V16>=3)+($X$13:X16>=3)>0)))) -> 0 | Z16: : | AA16: =IF(OR(V16="",X16=""),"",IF(MAX(V16,X16)<3,"",SUMPRODUCT(--($X$13:X16>$V$13:V16),--(($V$13:V16>=3)+($X$13:X16>=3)>0)))) -> 4
G17: : | J17: : | M17: : | P17: : | S17: : | V17: =IF(COUNTA(F17:T17)=0,"",_xlfn.LET(_xlpm.h,CHOOSE({1,2,3,4,5},F17,I17,L17,O17,R17),_xlpm.a,CHOOSE({1,2,3,4,5},H17,K17,N17,Q17,T17),SUM((_xlpm.h>_xlpm.a)*(_xlpm.h<>"")*(_xlpm.a<>"")))) -> 0 | W17: : | X17: =IF(COUNTA(F17:T17)=0,"",_xlfn.LET(_xlpm.h,CHOOSE({1,2,3,4,5},F17,I17,L17,O17,R17),_xlpm.a,CHOOSE({1,2,3,4,5},H17,K17,N17,Q17,T17),SUM((_xlpm.a>_xlpm.h)*(_xlpm.h<>"")*(_xlpm.a<>"")))) -> 0 | Y17: =IF(OR(V17="",X17=""),"",IF(MAX(V17,X17)<3,"",SUMPRODUCT(--($V$13:V17>$X$13:X17),--(($V$13:V17>=3)+($X$13:X17>=3)>0)))) ->  | Z17: : | AA17: =IF(OR(V17="",X17=""),"",IF(MAX(V17,X17)<3,"",SUMPRODUCT(--($X$13:X17>$V$13:V17),--(($V$13:V17>=3)+($X$13:X17>=3)>0)))) -> 
C18: A | D18: Y | G18: : | J18: : | M18: : | P18: : | S18: : | V18: =IF(COUNTA(F18:T18)=0,"",_xlfn.LET(_xlpm.h,CHOOSE({1,2,3,4,5},F18,I18,L18,O18,R18),_xlpm.a,CHOOSE({1,2,3,4,5},H18,K18,N18,Q18,T18),SUM((_xlpm.h>_xlpm.a)*(_xlpm.h<>"")*(_xlpm.a<>"")))) -> 0 | W18: : | X18: =IF(COUNTA(F18:T18)=0,"",_xlfn.LET(_xlpm.h,CHOOSE({1,2,3,4,5},F18,I18,L18,O18,R18),_xlpm.a,CHOOSE({1,2,3,4,5},H18,K18,N18,Q18,T18),SUM((_xlpm.a>_xlpm.h)*(_xlpm.h<>"")*(_xlpm.a<>"")))) -> 0 | Y18: =IF(OR(V18="",X18=""),"",IF(MAX(V18,X18)<3,"",SUMPRODUCT(--($V$13:V18>$X$13:X18),--(($V$13:V18>=3)+($X$13:X18>=3)>0)))) ->  | Z18: : | AA18: =IF(OR(V18="",X18=""),"",IF(MAX(V18,X18)<3,"",SUMPRODUCT(--($X$13:X18>$V$13:V18),--(($V$13:V18>=3)+($X$13:X18>=3)>0)))) -> 
C19: C | D19: X | G19: : | J19: : | M19: : | P19: : | S19: : | V19: =IF(COUNTA(F19:T19)=0,"",_xlfn.LET(_xlpm.h,CHOOSE({1,2,3,4,5},F19,I19,L19,O19,R19),_xlpm.a,CHOOSE({1,2,3,4,5},H19,K19,N19,Q19,T19),SUM((_xlpm.h>_xlpm.a)*(_xlpm.h<>"")*(_xlpm.a<>"")))) -> 0 | W19: : | X19: =IF(COUNTA(F19:T19)=0,"",_xlfn.LET(_xlpm.h,CHOOSE({1,2,3,4,5},F19,I19,L19,O19,R19),_xlpm.a,CHOOSE({1,2,3,4,5},H19,K19,N19,Q19,T19),SUM((_xlpm.a>_xlpm.h)*(_xlpm.h<>"")*(_xlpm.a<>"")))) -> 0 | Y19: =IF(OR(V19="",X19=""),"",IF(MAX(V19,X19)<3,"",SUMPRODUCT(--($V$13:V19>$X$13:X19),--(($V$13:V19>=3)+($X$13:X19>=3)>0)))) ->  | Z19: : | AA19: =IF(OR(V19="",X19=""),"",IF(MAX(V19,X19)<3,"",SUMPRODUCT(--($X$13:X19>$V$13:V19),--(($V$13:V19>=3)+($X$13:X19>=3)>0)))) -> 
C20: B | D20: Z | G20: : | J20: : | M20: : | P20: : | S20: : | V20: =IF(COUNTA(F20:T20)=0,"",_xlfn.LET(_xlpm.h,CHOOSE({1,2,3,4,5},F20,I20,L20,O20,R20),_xlpm.a,CHOOSE({1,2,3,4,5},H20,K20,N20,Q20,T20),SUM((_xlpm.h>_xlpm.a)*(_xlpm.h<>"")*(_xlpm.a<>"")))) -> 0 | W20: : | X20: =IF(COUNTA(F20:T20)=0,"",_xlfn.LET(_xlpm.h,CHOOSE({1,2,3,4,5},F20,I20,L20,O20,R20),_xlpm.a,CHOOSE({1,2,3,4,5},H20,K20,N20,Q20,T20),SUM((_xlpm.a>_xlpm.h)*(_xlpm.h<>"")*(_xlpm.a<>"")))) -> 0 | Y20: =IF(OR(V20="",X20=""),"",IF(MAX(V20,X20)<3,"",SUMPRODUCT(--($V$13:V20>$X$13:X20),--(($V$13:V20>=3)+($X$13:X20>=3)>0)))) ->  | Z20: : | AA20: =IF(OR(V20="",X20=""),"",IF(MAX(V20,X20)<3,"",SUMPRODUCT(--($X$13:X20>$V$13:V20),--(($V$13:V20>=3)+($X$13:X20>=3)>0)))) -> 
B22: =B4 -> BUZET 2 | C22: : | E22: =E4 -> BROVINJE 2 | F22: =MAX(Y13:Y20) -> 0 | G22: : | H22: =MAX(AA13:AA20) -> 4
E23: SETOVI | F23: =SUM(V13:V20) -> 3 | G23: : | H23: =SUM(X13:X20) -> 12
E24: POENI | F24: =SUM(F13:F20, I13:I20, L13:L20, O13:O20, R13:R20) -> 118 | G24: : | H24: =SUM(H13:H20, K13:K20, N13:N20, Q13:Q20, T13:T20) -> 162

Sheet ZAPISNIK_5_3 (hidden)
A1: ŽUPANIJSKA LIGA STSIŽ 2025./2026. | AV1: EDIT
B2: GRAD DOMAĆIN | E2: DVORANA | J2: KOLO | N2: DATUM | T2: SAT
B3: UMAG | E3: SD Juraj Radovčić Umag | J3: 5. | N3: 16. 12. 2025. | T3: 18:00:00
A4: Domaćin | B4: MAESTRAL 2 | D4: Gost | E4: VAL SHARK
A5: A | B5: PEROŠ Ana | D5: X | E5: IVINIĆ Serđo
A6: B | B6: KMET Teo | D6: Y | E6: INFANTOLINO Davide
A7: C | B7: SINČIĆ Luana | D7: Z | E7: HRVANOVIĆ Jasmin
A8: R1 | D8: R1
A9: R2 | D9: R2
B11: DOMAĆIN | E11: GOST
B12: MAESTRAL 2 | E12: VAL SHARK
B13: PEROŠ Ana | C13: A | D13: X | E13: IVINIĆ Serđo | F13: 12 | G13: : | H13: 10 | I13: 9 | J13: : | K13: 11 | L13: 12 | M13: : | N13: 10 | O13: 11 | P13: : | Q13: 9 | S13: : | V13: =IF(COUNTA(F13:T13)=0,"",_xlfn.LET(_xlpm.h,CHOOSE({1,2,3,4,5},F13,I13,L13,O13,R13),_xlpm.a,CHOOSE({1,2,3,4,5},H13,K13,N13,Q13,T13),SUM((_xlpm.h>_xlpm.a)*(_xlpm.h<>"")*(_xlpm.a<>"")))) -> 3 | W13: : | X13: =IF(COUNTA(F13:T13)=0,"",_xlfn.LET(_xlpm.h,CHOOSE({1,2,3,4,5},F13,I13,L13,O13,R13),_xlpm.a,CHOOSE({1,2,3,4,5},H13,K13,N13,Q13,T13),SUM((_xlpm.a>_xlpm.h)*(_xlpm.h<>"")*(_xlpm.a<>"")))) -> 1 | Y13: =IF(OR(V13="",X13=""),"",IF(MAX(V13,X13)<3,"",SUMPRODUCT(--($V$13:V13>$X$13:X13),--(($V$13:V13>=3)+($X$13:X13>=3)>0)))) -> 1 | Z13: : | AA13: =IF(OR(V13="",X13=""),"",IF(MAX(V13,X13)<3,"",SUMPRODUCT(--($X$13:X13>$V$13:V13),--(($V$13:V13>=3)+($X$13:X13>=3)>0)))) -> 0
B14: KMET Teo | C14: B | D14: Y | E14: INFANTOLINO Davide | F14: 6 | G14: : | H14: 11 | I14: 4 | J14: : | K14: 11 | L14: 9 | M14: : | N14: 11 | P14: : | S14: : | V14: =IF(COUNTA(F14:T14)=0,"",_xlfn.LET(_xlpm.h,CHOOSE({1,2,3,4,5},F14,I14,L14,O14,R14),_xlpm.a,CHOOSE({1,2,3,4,5},H14,K14,N14,Q14,T14),SUM((_xlpm.h>_xlpm.a)*(_xlpm.h<>"")*(_xlpm.a<>"")))) -> 0 | W14: : | X14: =IF(COUNTA(F14:T14)=0,"",_xlfn.LET(_xlpm.h,CHOOSE({1,2,3,4,5},F14,I14,L14,O14,R14),_xlpm.a,CHOOSE({1,2,3,4,5},H14,K14,N14,Q14,T14),SUM((_xlpm.a>_xlpm.h)*(_xlpm.h<>"")*(_xlpm.a<>"")))) -> 3 | Y14: =IF(OR(V14="",X14=""),"",IF(MAX(V14,X14)<3,"",SUMPRODUCT(--($V$13:V14>$X$13:X14),--(($V$13:V14>=3)+($X$13:X14>=3)>0)))) -> 1 | Z14: : | AA14: =IF(OR(V14="",X14=""),"",IF(MAX(V14,X14)<3,"",SUMPRODUCT(--($X$13:X14>$V$13:V14),--(($V$13:V14>=3)+($X$13:X14>=3)>0)))) -> 1
B15: SINČIĆ Luana | C15: C | D15: Z | E15: HRVANOVIĆ Jasmin | F15: 11 | G15: : | H15: 7 | I15: 11 | J15: : | K15: 9 | L15: 6 | M15: : | N15: 11 | O15: 8 | P15: : | Q15: 11 | R15: 11 | S15: : | T15: 4 | V15: =IF(COUNTA(F15:T15)=0,"",_xlfn.LET(_xlpm.h,CHOOSE({1,2,3,4,5},F15,I15,L15,O15,R15),_xlpm.a,CHOOSE({1,2,3,4,5},H15,K15,N15,Q15,T15),SUM((_xlpm.h>_xlpm.a)*(_xlpm.h<>"")*(_xlpm.a<>"")))) -> 3 | W15: : | X15: =IF(COUNTA(F15:T15)=0,"",_xlfn.LET(_xlpm.h,CHOOSE({1,2,3,4,5},F15,I15,L15,O15,R15),_xlpm.a,CHOOSE({1,2,3,4,5},H15,K15,N15,Q15,T15),SUM((_xlpm.a>_xlpm.h)*(_xlpm.h<>"")*(_xlpm.a<>"")))) -> 2 | Y15: =IF(OR(V15="",X15=""),"",IF(MAX(V15,X15)<3,"",SUMPRODUCT(--($V$13:V15>$X$13:X15),--(($V$13:V15>=3)+($X$13:X15>=3)>0)))) -> 2 | Z15: : | AA15: =IF(OR(V15="",X15=""),"",IF(MAX(V15,X15)<3,"",SUMPRODUCT(--($X$13:X15>$V$13:V15),--(($V$13:V15>=3)+($X$13:X15>=3)>0)))) -> 1
B16: SINČIĆ L., PEROŠ A. | C16: PAR | D16: PAR | E16: HRVANOVIĆ J., IVINIĆ S. | F16: 18 | G16: : | H16: 16 | I16: 11 | J16: : | K16: 8 | L16: 12 | M16: : | N16: 10 | P16: : | S16: : | V16: =IF(COUNTA(F16:T16)=0,"",_xlfn.LET(_xlpm.h,CHOOSE({1,2,3,4,5},F16,I16,L16,O16,R16),_xlpm.a,CHOOSE({1,2,3,4,5},H16,K16,N16,Q16,T16),SUM((_xlpm.h>_xlpm.a)*(_xlpm.h<>"")*(_xlpm.a<>"")))) -> 3 | W16: : | X16: =IF(COUNTA(F16:T16)=0,"",_xlfn.LET(_xlpm.h,CHOOSE({1,2,3,4,5},F16,I16,L16,O16,R16),_xlpm.a,CHOOSE({1,2,3,4,5},H16,K16,N16,Q16,T16),SUM((_xlpm.a>_xlpm.h)*(_xlpm.h<>"")*(_xlpm.a<>"")))) -> 0 | Y16: =IF(OR(V16="",X16=""),"",IF(MAX(V16,X16)<3,"",SUMPRODUCT(--($V$13:V16>$X$13:X16),--(($V$13:V16>=3)+($X$13:X16>=3)>0)))) -> 3 | Z16: : | AA16: =IF(OR(V16="",X16=""),"",IF(MAX(V16,X16)<3,"",SUMPRODUCT(--($X$13:X16>$V$13:V16),--(($V$13:V16>=3)+($X$13:X16>=3)>0)))) -> 1
G17: : | J17: : | M17: : | P17: : | S17: : | V17: =IF(COUNTA(F17:T17)=0,"",_xlfn.LET(_xlpm.h,CHOOSE({1,2,3,4,5},F17,I17,L17,O17,R17),_xlpm.a,CHOOSE({1,2,3,4,5},H17,K17,N17,Q17,T17),SUM((_xlpm.h>_xlpm.a)*(_xlpm.h<>"")*(_xlpm.a<>"")))) -> 0 | W17: : | X17: =IF(COUNTA(F17:T17)=0,"",_xlfn.LET(_xlpm.h,CHOOSE({1,2,3,4,5},F17,I17,L17,O17,R17),_xlpm.a,CHOOSE({1,2,3,4,5},H17,K17,N17,Q17,T17),SUM((_xlpm.a>_xlpm.h)*(_xlpm.h<>"")*(_xlpm.a<>"")))) -> 0 | Y17: =IF(OR(V17="",X17=""),"",IF(MAX(V17,X17)<3,"",SUMPRODUCT(--($V$13:V17>$X$13:X17),--(($V$13:V17>=3)+($X$13:X17>=3)>0)))) ->  | Z17: : | AA17: =IF(OR(V17="",X17=""),"",IF(MAX(V17,X17)<3,"",SUMPRODUCT(--($X$13:X17>$V$13:V17),--(($V$13:V17>=3)+($X$13:X17>=3)>0)))) -> 
B18: PEROŠ Ana | C18: A | D18: Y | E18: INFANTOLINO Davide | F18: 11 | G18: : | H18: 9 | I18: 7 | J18: : | K18: 11 | L18: 4 | M18: : | N18: 11 | O18: 3 | P18: : | Q18: 11 | S18: : | V18: =IF(COUNTA(F18:T18)=0,"",_xlfn.LET(_xlpm.h,CHOOSE({1,2,3,4,5},F18,I18,L18,O18,R18),_xlpm.a,CHOOSE({1,2,3,4,5},H18,K18,N18,Q18,T18),SUM((_xlpm.h>_xlpm.a)*(_xlpm.h<>"")*(_xlpm.a<>"")))) -> 1 | W18: : | X18: =IF(COUNTA(F18:T18)=0,"",_xlfn.LET(_xlpm.h,CHOOSE({1,2,3,4,5},F18,I18,L18,O18,R18),_xlpm.a,CHOOSE({1,2,3,4,5},H18,K18,N18,Q18,T18),SUM((_xlpm.a>_xlpm.h)*(_xlpm.h<>"")*(_xlpm.a<>"")))) -> 3 | Y18: =IF(OR(V18="",X18=""),"",IF(MAX(V18,X18)<3,"",SUMPRODUCT(--($V$13:V18>$X$13:X18),--(($V$13:V18>=3)+($X$13:X18>=3)>0)))) -> 3 | Z18: : | AA18: =IF(OR(V18="",X18=""),"",IF(MAX(V18,X18)<3,"",SUMPRODUCT(--($X$13:X18>$V$13:V18),--(($V$13:V18>=3)+($X$13:X18>=3)>0)))) -> 2
B19: SINČIĆ Luana | C19: C | D19: X | E19: IVINIĆ Serđo | F19: 10 | G19: : | H19: 12 | I19: 11 | J19: : | K19: 9 | L19: 9 | M19: : | N19: 11 | O19: 12 | P19: : | Q19: 10 | R19: 11 | S19: : | T19: 6 | V19: =IF(COUNTA(F19:T19)=0,"",_xlfn.LET(_xlpm.h,CHOOSE({1,2,3,4,5},F19,I19,L19,O19,R19),_xlpm.a,CHOOSE({1,2,3,4,5},H19,K19,N19,Q19,T19),SUM((_xlpm.h>_xlpm.a)*(_xlpm.h<>"")*(_xlpm.a<>"")))) -> 3 | W19: : | X19: =IF(COUNTA(F19:T19)=0,"",_xlfn.LET(_xlpm.h,CHOOSE({1,2,3,4,5},F19,I19,L19,O19,R19),_xlpm.a,CHOOSE({1,2,3,4,5},H19,K19,N19,Q19,T19),SUM((_xlpm.a>_xlpm.h)*(_xlpm.h<>"")*(_xlpm.a<>"")))) -> 2 | Y19: =IF(OR(V19="",X19=""),"",IF(MAX(V19,X19)<3,"",SUMPRODUCT(--($V$13:V19>$X$13:X19),--(($V$13:V19>=3)+($X$13:X19>=3)>0)))) -> 4 | Z19: : | AA19: =IF(OR(V19="",X19=""),"",IF(MAX(V19,X19)<3,"",SUMPRODUCT(--($X$13:X19>$V$13:V19),--(($V$13:V19>=3)+($X$13:X19>=3)>0)))) -> 2
C20: B | D20: Z | G20: : | J20: : | M20: : | P20: : | S20: : | V20: =IF(COUNTA(F20:T20)=0,"",_xlfn.LET(_xlpm.h,CHOOSE({1,2,3,4,5},F20,I20,L20,O20,R20),_xlpm.a,CHOOSE({1,2,3,4,5},H20,K20,N20,Q20,T20),SUM((_xlpm.h>_xlpm.a)*(_xlpm.h<>"")*(_xlpm.a<>"")))) -> 0 | W20: : | X20: =IF(COUNTA(F20:T20)=0,"",_xlfn.LET(_xlpm.h,CHOOSE({1,2,3,4,5},F20,I20,L20,O20,R20),_xlpm.a,CHOOSE({1,2,3,4,5},H20,K20,N20,Q20,T20),SUM((_xlpm.a>_xlpm.h)*(_xlpm.h<>"")*(_xlpm.a<>"")))) -> 0 | Y20: =IF(OR(V20="",X20=""),"",IF(MAX(V20,X20)<3,"",SUMPRODUCT(--($V$13:V20>$X$13:X20),--(($V$13:V20>=3)+($X$13:X20>=3)>0)))) ->  | Z20: : | AA20: =IF(OR(V20="",X20=""),"",IF(MAX(V20,X20)<3,"",SUMPRODUCT(--($X$13:X20>$V$13:V20),--(($V$13:V20>=3)+($X$13:X20>=3)>0)))) -> 
B22: =B4 -> MAESTRAL 2 | C22: : | E22: =E4 -> VAL SHARK | F22: =MAX(Y13:Y20) -> 4 | G22: : | H22: =MAX(AA13:AA20) -> 2
E23: SETOVI | F23: =SUM(V13:V20) -> 13 | G23: : | H23: =SUM(X13:X20) -> 11
E24: POENI | F24: =SUM(F13:F20, I13:I20, L13:L20, O13:O20, R13:R20) -> 229 | G24: : | H24: =SUM(H13:H20, K13:K20, N13:N20, Q13:Q20, T13:T20) -> 239

Sheet ZAPISNIK_5_4 (hidden)
A1: ŽUPANIJSKA LIGA STSIŽ 2025./2026. | AV1: EDIT
B2: GRAD DOMAĆIN | E2: DVORANA | J2: KOLO | N2: DATUM | T2: SAT
B3: UMAG | E3: SD Juraj Radovčić Umag | J3: 5. | N3: 29. 12. 2025. | T3: 17:00:00
A4: Domaćin | B4: MAESTRAL 2 | D4: Gost | E4: ARENA FERRO
A5: A | B5: PEROŠ Ana | D5: X | E5: CINKOPAN Kristijan
A6: B | B6: SMAIĆ Bruno | D6: Y | E6: VINOVRŠKI Jenisej
A7: C | B7: SINČIĆ Luana | D7: Z | E7: KRANJC Dino
A8: R1 | D8: R1
A9: R2 | D9: R2
B11: DOMAĆIN | E11: GOST
B12: MAESTRAL 2 | E12: ARENA FERRO
B13: PEROŠ Ana | C13: A | D13: X | E13: CINKOPAN Kristijan | F13: 11 | G13: : | H13: 6 | I13: 6 | J13: : | K13: 11 | L13: 10 | M13: : | N13: 12 | O13: 12 | P13: : | Q13: 10 | R13: 9 | S13: : | T13: 11 | V13: =IF(COUNTA(F13:T13)=0,"",_xlfn.LET(_xlpm.h,CHOOSE({1,2,3,4,5},F13,I13,L13,O13,R13),_xlpm.a,CHOOSE({1,2,3,4,5},H13,K13,N13,Q13,T13),SUM((_xlpm.h>_xlpm.a)*(_xlpm.h<>"")*(_xlpm.a<>"")))) -> 2 | W13: : | X13: =IF(COUNTA(F13:T13)=0,"",_xlfn.LET(_xlpm.h,CHOOSE({1,2,3,4,5},F13,I13,L13,O13,R13),_xlpm.a,CHOOSE({1,2,3,4,5},H13,K13,N13,Q13,T13),SUM((_xlpm.a>_xlpm.h)*(_xlpm.h<>"")*(_xlpm.a<>"")))) -> 3 | Y13: =IF(OR(V13="",X13=""),"",IF(MAX(V13,X13)<3,"",SUMPRODUCT(--($V$13:V13>$X$13:X13),--(($V$13:V13>=3)+($X$13:X13>=3)>0)))) -> 0 | Z13: : | AA13: =IF(OR(V13="",X13=""),"",IF(MAX(V13,X13)<3,"",SUMPRODUCT(--($X$13:X13>$V$13:V13),--(($V$13:V13>=3)+($X$13:X13>=3)>0)))) -> 1
B14: SMAIĆ Bruno | C14: B | D14: Y | E14: VINOVRŠKI Jenisej | F14: 7 | G14: : | H14: 11 | I14: 5 | J14: : | K14: 11 | L14: 4 | M14: : | N14: 11 | P14: : | S14: : | V14: =IF(COUNTA(F14:T14)=0,"",_xlfn.LET(_xlpm.h,CHOOSE({1,2,3,4,5},F14,I14,L14,O14,R14),_xlpm.a,CHOOSE({1,2,3,4,5},H14,K14,N14,Q14,T14),SUM((_xlpm.h>_xlpm.a)*(_xlpm.h<>"")*(_xlpm.a<>"")))) -> 0 | W14: : | X14: =IF(COUNTA(F14:T14)=0,"",_xlfn.LET(_xlpm.h,CHOOSE({1,2,3,4,5},F14,I14,L14,O14,R14),_xlpm.a,CHOOSE({1,2,3,4,5},H14,K14,N14,Q14,T14),SUM((_xlpm.a>_xlpm.h)*(_xlpm.h<>"")*(_xlpm.a<>"")))) -> 3 | Y14: =IF(OR(V14="",X14=""),"",IF(MAX(V14,X14)<3,"",SUMPRODUCT(--($V$13:V14>$X$13:X14),--(($V$13:V14>=3)+($X$13:X14>=3)>0)))) -> 0 | Z14: : | AA14: =IF(OR(V14="",X14=""),"",IF(MAX(V14,X14)<3,"",SUMPRODUCT(--($X$13:X14>$V$13:V14),--(($V$13:V14>=3)+($X$13:X14>=3)>0)))) -> 2
B15: SINČIĆ Luana | C15: C | D15: Z | E15: KRANJC Dino | F15: 11 | G15: : | H15: 6 | I15: 6 | J15: : | K15: 11 | L15: 11 | M15: : | N15: 9 | O15: 11 | P15: : | Q15: 13 | R15: 11 | S15: : | T15: 7 | V15: =IF(COUNTA(F15:T15)=0,"",_xlfn.LET(_xlpm.h,CHOOSE({1,2,3,4,5},F15,I15,L15,O15,R15),_xlpm.a,CHOOSE({1,2,3,4,5},H15,K15,N15,Q15,T15),SUM((_xlpm.h>_xlpm.a)*(_xlpm.h<>"")*(_xlpm.a<>"")))) -> 3 | W15: : | X15: =IF(COUNTA(F15:T15)=0,"",_xlfn.LET(_xlpm.h,CHOOSE({1,2,3,4,5},F15,I15,L15,O15,R15),_xlpm.a,CHOOSE({1,2,3,4,5},H15,K15,N15,Q15,T15),SUM((_xlpm.a>_xlpm.h)*(_xlpm.h<>"")*(_xlpm.a<>"")))) -> 2 | Y15: =IF(OR(V15="",X15=""),"",IF(MAX(V15,X15)<3,"",SUMPRODUCT(--($V$13:V15>$X$13:X15),--(($V$13:V15>=3)+($X$13:X15>=3)>0)))) -> 1 | Z15: : | AA15: =IF(OR(V15="",X15=""),"",IF(MAX(V15,X15)<3,"",SUMPRODUCT(--($X$13:X15>$V$13:V15),--(($V$13:V15>=3)+($X$13:X15>=3)>0)))) -> 2
B16: SINČIĆ L., PEROŠ A. | C16: PAR | D16: PAR | E16: CINKOPAN K., KRANJC D. | F16: 11 | G16: : | H16: 5 | I16: 7 | J16: : | K16: 11 | L16: 10 | M16: : | N16: 12 | O16: 11 | P16: : | Q16: 3 | R16: 4 | S16: : | T16: 11 | V16: =IF(COUNTA(F16:T16)=0,"",_xlfn.LET(_xlpm.h,CHOOSE({1,2,3,4,5},F16,I16,L16,O16,R16),_xlpm.a,CHOOSE({1,2,3,4,5},H16,K16,N16,Q16,T16),SUM((_xlpm.h>_xlpm.a)*(_xlpm.h<>"")*(_xlpm.a<>"")))) -> 2 | W16: : | X16: =IF(COUNTA(F16:T16)=0,"",_xlfn.LET(_xlpm.h,CHOOSE({1,2,3,4,5},F16,I16,L16,O16,R16),_xlpm.a,CHOOSE({1,2,3,4,5},H16,K16,N16,Q16,T16),SUM((_xlpm.a>_xlpm.h)*(_xlpm.h<>"")*(_xlpm.a<>"")))) -> 3 | Y16: =IF(OR(V16="",X16=""),"",IF(MAX(V16,X16)<3,"",SUMPRODUCT(--($V$13:V16>$X$13:X16),--(($V$13:V16>=3)+($X$13:X16>=3)>0)))) -> 1 | Z16: : | AA16: =IF(OR(V16="",X16=""),"",IF(MAX(V16,X16)<3,"",SUMPRODUCT(--($X$13:X16>$V$13:V16),--(($V$13:V16>=3)+($X$13:X16>=3)>0)))) -> 3
G17: : | J17: : | M17: : | P17: : | S17: : | V17: =IF(COUNTA(F17:T17)=0,"",_xlfn.LET(_xlpm.h,CHOOSE({1,2,3,4,5},F17,I17,L17,O17,R17),_xlpm.a,CHOOSE({1,2,3,4,5},H17,K17,N17,Q17,T17),SUM((_xlpm.h>_xlpm.a)*(_xlpm.h<>"")*(_xlpm.a<>"")))) -> 0 | W17: : | X17: =IF(COUNTA(F17:T17)=0,"",_xlfn.LET(_xlpm.h,CHOOSE({1,2,3,4,5},F17,I17,L17,O17,R17),_xlpm.a,CHOOSE({1,2,3,4,5},H17,K17,N17,Q17,T17),SUM((_xlpm.a>_xlpm.h)*(_xlpm.h<>"")*(_xlpm.a<>"")))) -> 0 | Y17: =IF(OR(V17="",X17=""),"",IF(MAX(V17,X17)<3,"",SUMPRODUCT(--($V$13:V17>$X$13:X17),--(($V$13:V17>=3)+($X$13:X17>=3)>0)))) ->  | Z17: : | AA17: =IF(OR(V17="",X17=""),"",IF(MAX(V17,X17)<3,"",SUMPRODUCT(--($X$13:X17>$V$13:V17),--(($V$13:V17>=3)+($X$13:X17>=3)>0)))) -> 
B18: PEROŠ Ana | C18: A | D18: Y | E18: VINOVRŠKI Jenisej | F18: 10 | G18: : | H18: 12 | I18: 11 | J18: : | K18: 4 | L18: 11 | M18: : | N18: 5 | O18: 7 | P18: : | Q18: 11 | R18: 11 | S18: : | T18: 5 | V18: =IF(COUNTA(F18:T18)=0,"",_xlfn.LET(_xlpm.h,CHOOSE({1,2,3,4,5},F18,I18,L18,O18,R18),_xlpm.a,CHOOSE({1,2,3,4,5},H18,K18,N18,Q18,T18),SUM((_xlpm.h>_xlpm.a)*(_xlpm.h<>"")*(_xlpm.a<>"")))) -> 3 | W18: : | X18: =IF(COUNTA(F18:T18)=0,"",_xlfn.LET(_xlpm.h,CHOOSE({1,2,3,4,5},F18,I18,L18,O18,R18),_xlpm.a,CHOOSE({1,2,3,4,5},H18,K18,N18,Q18,T18),SUM((_xlpm.a>_xlpm.h)*(_xlpm.h<>"")*(_xlpm.a<>"")))) -> 2 | Y18: =IF(OR(V18="",X18=""),"",IF(MAX(V18,X18)<3,"",SUMPRODUCT(--($V$13:V18>$X$13:X18),--(($V$13:V18>=3)+($X$13:X18>=3)>0)))) -> 2 | Z18: : | AA18: =IF(OR(V18="",X18=""),"",IF(MAX(V18,X18)<3,"",SUMPRODUCT(--($X$13:X18>$V$13:V18),--(($V$13:V18>=3)+($X$13:X18>=3)>0)))) -> 3
B19: SINČIĆ Luana | C19: C | D19: X | E19: CINKOPAN Kristijan | F19: 11 | G19: : | H19: 6 | I19: 6 | J19: : | K19: 11 | L19: 8 | M19: : | N19: 11 | O19: 11 | P19: : | Q19: 9 | R19: 10 | S19: : | T19: 12 | V19: =IF(COUNTA(F19:T19)=0,"",_xlfn.LET(_xlpm.h,CHOOSE({1,2,3,4,5},F19,I19,L19,O19,R19),_xlpm.a,CHOOSE({1,2,3,4,5},H19,K19,N19,Q19,T19),SUM((_xlpm.h>_xlpm.a)*(_xlpm.h<>"")*(_xlpm.a<>"")))) -> 2 | W19: : | X19: =IF(COUNTA(F19:T19)=0,"",_xlfn.LET(_xlpm.h,CHOOSE({1,2,3,4,5},F19,I19,L19,O19,R19),_xlpm.a,CHOOSE({1,2,3,4,5},H19,K19,N19,Q19,T19),SUM((_xlpm.a>_xlpm.h)*(_xlpm.h<>"")*(_xlpm.a<>"")))) -> 3 | Y19: =IF(OR(V19="",X19=""),"",IF(MAX(V19,X19)<3,"",SUMPRODUCT(--($V$13:V19>$X$13:X19),--(($V$13:V19>=3)+($X$13:X19>=3)>0)))) -> 2 | Z19: : | AA19: =IF(OR(V19="",X19=""),"",IF(MAX(V19,X19)<3,"",SUMPRODUCT(--($X$13:X19>$V$13:V19),--(($V$13:V19>=3)+($X$13:X19>=3)>0)))) -> 4
C20: B | D20: Z | G20: : | J20: : | M20: : | P20: : | S20: : | V20: =IF(COUNTA(F20:T20)=0,"",_xlfn.LET(_xlpm.h,CHOOSE({1,2,3,4,5},F20,I20,L20,O20,R20),_xlpm.a,CHOOSE({1,2,3,4,5},H20,K20,N20,Q20,T20),SUM((_xlpm.h>_xlpm.a)*(_xlpm.h<>"")*(_xlpm.a<>"")))) -> 0 | W20: : | X20: =IF(COUNTA(F20:T20)=0,"",_xlfn.LET(_xlpm.h,CHOOSE({1,2,3,4,5},F20,I20,L20,O20,R20),_xlpm.a,CHOOSE({1,2,3,4,5},H20,K20,N20,Q20,T20),SUM((_xlpm.a>_xlpm.h)*(_xlpm.h<>"")*(_xlpm.a<>"")))) -> 0 | Y20: =IF(OR(V20="",X20=""),"",IF(MAX(V20,X20)<3,"",SUMPRODUCT(--($V$13:V20>$X$13:X20),--(($V$13:V20>=3)+($X$13:X20>=3)>0)))) ->  | Z20: : | AA20: =IF(OR(V20="",X20=""),"",IF(MAX(V20,X20)<3,"",SUMPRODUCT(--($X$13:X20>$V$13:V20),--(($V$13:V20>=3)+($X$13:X20>=3)>0)))) -> 
B22: =B4 -> MAESTRAL 2 | C22: : | E22: =E4 -> ARENA FERRO | F22: =MAX(Y13:Y20) -> 2 | G22: : | H22: =MAX(AA13:AA20) -> 4
E23: SETOVI | F23: =SUM(V13:V20) -> 12 | G23: : | H23: =SUM(X13:X20) -> 16
E24: POENI | F24: =SUM(F13:F20, I13:I20, L13:L20, O13:O20, R13:R20) -> 253 | G24: : | H24: =SUM(H13:H20, K13:K20, N13:N20, Q13:Q20, T13:T20) -> 257

Sheet ZAPISNIK MEČA_PRINT (hidden)
A1: ŽUPANIJSKA LIGA STSIŽ 2025./2026
B2: GRAD DOMAĆIN | E2: DVORANA | N2: DATUM | T2: SAT
A4: Domaćin | D4: Gost
A5: A | D5: X
A6: B | D6: Y
A7: C | D7: Z
A8: R1 | D8: R1
A9: R2 | D9: R2
B11: DOMAĆIN | E11: GOST
F12: 1. SET | I12: 2. SET | L12: 3. SET | O12: 4. SET | R12: 5. SET | V12: REZULTAT | Y12: UKUPNO
C13: A | D13: X
C14: B | D14: Y
C15: C | D15: Z
C16: PAR | D16: PAR
C18: A | D18: Y
C19: Z | D19: X
C20: B | D20: Z
B22: POBJEDNIK | K22: POTPIS KAPETANA DOMAĆINA | T22: POTPIS KAPETANA GOSTIJU | U22: POTPIS KAPETANA GOSTIJU
B23: REZULTAT
B24: SUDAC

Sheet KOLA (hidden)
A1: Popis zapisnika (unesi imena listova sa zapisnicima, npr. ZAPISNIK MEČA, ZAPISNIK 2, ...)
A2: ZAPISNIK_1_1 | B2: =IFERROR(INDIRECT("'"&$A2&"'!B12"),"") -> PAZIN | C2: =IFERROR(INDIRECT("'"&$A2&"'!E12"),"") -> MAESTRAL 2 | D2: =IFERROR(VALUE(INDIRECT("'"&$A2&"'!F22")),0) -> 4 | E2: =IFERROR(VALUE(INDIRECT("'"&$A2&"'!H22")),0) -> 0 | F2: =IFERROR(VALUE(INDIRECT("'"&$A2&"'!F23")),0) -> 12 | G2: =IFERROR(VALUE(INDIRECT("'"&$A2&"'!H23")),0) -> 2 | H2: =IFERROR(VALUE(INDIRECT("'"&$A2&"'!F24")),0) -> 148 | I2: =IFERROR(VALUE(INDIRECT("'"&$A2&"'!H24")),0) -> 92 | J2: =IFERROR(INDIRECT("'"&$A2&"'!AE22"),"") -> 0 | K2: =IFERROR(INDIRECT("'"&$A2&"'!AF22"),"") -> 0
A3: ZAPISNIK_1_2 | B3: =IFERROR(INDIRECT("'"&$A3&"'!B12"),"") -> BUZET 1 | C3: =IFERROR(INDIRECT("'"&$A3&"'!E12"),"") -> BUZET 2 | D3: =IFERROR(VALUE(INDIRECT("'"&$A3&"'!F22")),0) -> 4 | E3: =IFERROR(VALUE(INDIRECT("'"&$A3&"'!H22")),0) -> 1 | F3: =IFERROR(VALUE(INDIRECT("'"&$A3&"'!F23")),0) -> 12 | G3: =IFERROR(VALUE(INDIRECT("'"&$A3&"'!H23")),0) -> 4 | H3: =IFERROR(VALUE(INDIRECT("'"&$A3&"'!F24")),0) -> 168 | I3: =IFERROR(VALUE(INDIRECT("'"&$A3&"'!H24")),0) -> 128 | J3: =IFERROR(INDIRECT("'"&$A3&"'!AE22"),"") -> 0 | K3: =IFERROR(INDIRECT("'"&$A3&"'!AF22"),"") -> 0
A4: ZAPISNIK_1_3 | B4: =IFERROR(INDIRECT("'"&$A4&"'!B12"),"") -> ARENA FERRO | C4: =IFERROR(INDIRECT("'"&$A4&"'!E12"),"") -> VAL SHARK | D4: =IFERROR(VALUE(INDIRECT("'"&$A4&"'!F22")),0) -> 4 | E4: =IFERROR(VALUE(INDIRECT("'"&$A4&"'!H22")),0) -> 0 | F4: =IFERROR(VALUE(INDIRECT("'"&$A4&"'!F23")),0) -> 12 | G4: =IFERROR(VALUE(INDIRECT("'"&$A4&"'!H23")),0) -> 4 | H4: =IFERROR(VALUE(INDIRECT("'"&$A4&"'!F24")),0) -> 162 | I4: =IFERROR(VALUE(INDIRECT("'"&$A4&"'!H24")),0) -> 136 | J4: =IFERROR(INDIRECT("'"&$A4&"'!AE22"),"") -> 0 | K4: =IFERROR(INDIRECT("'"&$A4&"'!AF22"),"") -> 0
A5: ZAPISNIK_2_1 | B5: =IFERROR(INDIRECT("'"&$A5&"'!B12"),"") -> BROVINJE 2 | C5: =IFERROR(INDIRECT("'"&$A5&"'!E12"),"") -> VAL SHARK | D5: =IFERROR(VALUE(INDIRECT("'"&$A5&"'!F22")),0) -> 1 | E5: =IFERROR(VALUE(INDIRECT("'"&$A5&"'!H22")),0) -> 4 | F5: =IFERROR(VALUE(INDIRECT("'"&$A5&"'!F23")),0) -> 7 | G5: =IFERROR(VALUE(INDIRECT("'"&$A5&"'!H23")),0) -> 12 | H5: =IFERROR(VALUE(INDIRECT("'"&$A5&"'!F24")),0) -> 169 | I5: =IFERROR(VALUE(INDIRECT("'"&$A5&"'!H24")),0) -> 187 | J5: =IFERROR(INDIRECT("'"&$A5&"'!AE22"),"") -> 0 | K5: =IFERROR(INDIRECT("'"&$A5&"'!AF22"),"") -> 0
A6: ZAPISNIK_2_2 | B6: =IFERROR(INDIRECT("'"&$A6&"'!B12"),"") -> BROVINJE 2 | C6: =IFERROR(INDIRECT("'"&$A6&"'!E12"),"") -> ARENA FERRO | D6: =IFERROR(VALUE(INDIRECT("'"&$A6&"'!F22")),0) -> 4 | E6: =IFERROR(VALUE(INDIRECT("'"&$A6&"'!H22")),0) -> 2 | F6: =IFERROR(VALUE(INDIRECT("'"&$A6&"'!F23")),0) -> 13 | G6: =IFERROR(VALUE(INDIRECT("'"&$A6&"'!H23")),0) -> 11 | H6: =IFERROR(VALUE(INDIRECT("'"&$A6&"'!F24")),0) -> 232 | I6: =IFERROR(VALUE(INDIRECT("'"&$A6&"'!H24")),0) -> 217 | J6: =IFERROR(INDIRECT("'"&$A6&"'!AE22"),"") -> 0 | K6: =IFERROR(INDIRECT("'"&$A6&"'!AF22"),"") -> 0
A7: ZAPISNIK_2_3 | B7: =IFERROR(INDIRECT("'"&$A7&"'!B12"),"") -> PAZIN | C7: =IFERROR(INDIRECT("'"&$A7&"'!E12"),"") -> BUZET 2 | D7: =IFERROR(VALUE(INDIRECT("'"&$A7&"'!F22")),0) -> 4 | E7: =IFERROR(VALUE(INDIRECT("'"&$A7&"'!H22")),0) -> 1 | F7: =IFERROR(VALUE(INDIRECT("'"&$A7&"'!F23")),0) -> 12 | G7: =IFERROR(VALUE(INDIRECT("'"&$A7&"'!H23")),0) -> 5 | H7: =IFERROR(VALUE(INDIRECT("'"&$A7&"'!F24")),0) -> 162 | I7: =IFERROR(VALUE(INDIRECT("'"&$A7&"'!H24")),0) -> 123 | J7: =IFERROR(INDIRECT("'"&$A7&"'!AE22"),"") -> 0 | K7: =IFERROR(INDIRECT("'"&$A7&"'!AF22"),"") -> 0
A8: ZAPISNIK_2_4 | B8: =IFERROR(INDIRECT("'"&$A8&"'!B12"),"") -> PAZIN | C8: =IFERROR(INDIRECT("'"&$A8&"'!E12"),"") -> BUZET 1 | D8: =IFERROR(VALUE(INDIRECT("'"&$A8&"'!F22")),0) -> 4 | E8: =IFERROR(VALUE(INDIRECT("'"&$A8&"'!H22")),0) -> 1 | F8: =IFERROR(VALUE(INDIRECT("'"&$A8&"'!F23")),0) -> 13 | G8: =IFERROR(VALUE(INDIRECT("'"&$A8&"'!H23")),0) -> 6 | H8: =IFERROR(VALUE(INDIRECT("'"&$A8&"'!F24")),0) -> 177 | I8: =IFERROR(VALUE(INDIRECT("'"&$A8&"'!H24")),0) -> 143 | J8: =IFERROR(INDIRECT("'"&$A8&"'!AE22"),"") -> 0 | K8: =IFERROR(INDIRECT("'"&$A8&"'!AF22"),"") -> 0
A9: ZAPISNIK_3_1 | B9: =IFERROR(INDIRECT("'"&$A9&"'!B12"),"") -> VAL SHARK | C9: =IFERROR(INDIRECT("'"&$A9&"'!E12"),"") -> PAZIN | D9: =IFERROR(VALUE(INDIRECT("'"&$A9&"'!F22")),0) -> 4 | E9: =IFERROR(VALUE(INDIRECT("'"&$A9&"'!H22")),0) -> 1 | F9: =IFERROR(VALUE(INDIRECT("'"&$A9&"'!F23")),0) -> 14 | G9: =IFERROR(VALUE(INDIRECT("'"&$A9&"'!H23")),0) -> 7 | H9: =IFERROR(VALUE(INDIRECT("'"&$A9&"'!F24")),0) -> 206 | I9: =IFERROR(VALUE(INDIRECT("'"&$A9&"'!H24")),0) -> 170 | J9: =IFERROR(INDIRECT("'"&$A9&"'!AE22"),"") -> 0 | K9: =IFERROR(INDIRECT("'"&$A9&"'!AF22"),"") -> 0
A10: ZAPISNIK_3_2 | B10: =IFERROR(INDIRECT("'"&$A10&"'!B12"),"") -> ARENA FERRO | C10: =IFERROR(INDIRECT("'"&$A10&"'!E12"),"") -> PAZIN | D10: =IFERROR(VALUE(INDIRECT("'"&$A10&"'!F22")),0) -> 3 | E10: =IFERROR(VALUE(INDIRECT("'"&$A10&"'!H22")),0) -> 4 | F10: =IFERROR(VALUE(INDIRECT("'"&$A10&"'!F23")),0) -> 14 | G10: =IFERROR(VALUE(INDIRECT("'"&$A10&"'!H23")),0) -> 13 | H10: =IFERROR(VALUE(INDIRECT("'"&$A10&"'!F24")),0) -> 241 | I10: =IFERROR(VALUE(INDIRECT("'"&$A10&"'!H24")),0) -> 225 | J10: =IFERROR(INDIRECT("'"&$A10&"'!AE22"),"") -> 0 | K10: =IFERROR(INDIRECT("'"&$A10&"'!AF22"),"") -> 0
A11: ZAPISNIK_3_3 | B11: =IFERROR(INDIRECT("'"&$A11&"'!B12"),"") -> BUZET 2 | C11: =IFERROR(INDIRECT("'"&$A11&"'!E12"),"") -> MAESTRAL 2 | D11: =IFERROR(VALUE(INDIRECT("'"&$A11&"'!F22")),0) -> 4 | E11: =IFERROR(VALUE(INDIRECT("'"&$A11&"'!H22")),0) -> 0 | F11: =IFERROR(VALUE(INDIRECT("'"&$A11&"'!F23")),0) -> 12 | G11: =IFERROR(VALUE(INDIRECT("'"&$A11&"'!H23")),0) -> 4 | H11: =IFERROR(VALUE(INDIRECT("'"&$A11&"'!F24")),0) -> 168 | I11: =IFERROR(VALUE(INDIRECT("'"&$A11&"'!H24")),0) -> 141 | J11: =IFERROR(INDIRECT("'"&$A11&"'!AE22"),"") -> 0 | K11: =IFERROR(INDIRECT("'"&$A11&"'!AF22"),"") -> 0
A12: ZAPISNIK_3_4 | B12: =IFERROR(INDIRECT("'"&$A12&"'!B12"),"") -> BUZET 1 | C12: =IFERROR(INDIRECT("'"&$A12&"'!E12"),"") -> MAESTRAL 2 | D12: =IFERROR(VALUE(INDIRECT("'"&$A12&"'!F22")),0) -> 4 | E12: =IFERROR(VALUE(INDIRECT("'"&$A12&"'!H22")),0) -> 0 | F12: =IFERROR(VALUE(INDIRECT("'"&$A12&"'!F23")),0) -> 12 | G12: =IFERROR(VALUE(INDIRECT("'"&$A12&"'!H23")),0) -> 0 | H12: =IFERROR(VALUE(INDIRECT("'"&$A12&"'!F24")),0) -> 133 | I12: =IFERROR(VALUE(INDIRECT("'"&$A12&"'!H24")),0) -> 66 | J12: =IFERROR(INDIRECT("'"&$A12&"'!AE22"),"") -> 0 | K12: =IFERROR(INDIRECT("'"&$A12&"'!AF22"),"") -> 0
A13: ZAPISNIK_4_1 | B13: =IFERROR(INDIRECT("'"&$A13&"'!B12"),"") -> ARENA FERRO | C13: =IFERROR(INDIRECT("'"&$A13&"'!E12"),"") -> BUZET 1 | D13: =IFERROR(VALUE(INDIRECT("'"&$A13&"'!F22")),0) -> 4 | E13: =IFERROR(VALUE(INDIRECT("'"&$A13&"'!H22")),0) -> 1 | F13: =IFERROR(VALUE(INDIRECT("'"&$A13&"'!F23")),0) -> 14 | G13: =IFERROR(VALUE(INDIRECT("'"&$A13&"'!H23")),0) -> 4 | H13: =IFERROR(VALUE(INDIRECT("'"&$A13&"'!F24")),0) -> 198 | I13: =IFERROR(VALUE(INDIRECT("'"&$A13&"'!H24")),0) -> 151 | J13: =IFERROR(INDIRECT("'"&$A13&"'!AE22"),"") -> 0 | K13: =IFERROR(INDIRECT("'"&$A13&"'!AF22"),"") -> 0
A14: ZAPISNIK_4_2 | B14: =IFERROR(INDIRECT("'"&$A14&"'!B12"),"") -> ARENA FERRO | C14: =IFERROR(INDIRECT("'"&$A14&"'!E12"),"") -> BUZET 2 | D14: =IFERROR(VALUE(INDIRECT("'"&$A14&"'!F22")),0) -> 4 | E14: =IFERROR(VALUE(INDIRECT("'"&$A14&"'!H22")),0) -> 0 | F14: =IFERROR(VALUE(INDIRECT("'"&$A14&"'!F23")),0) -> 12 | G14: =IFERROR(VALUE(INDIRECT("'"&$A14&"'!H23")),0) -> 2 | H14: =IFERROR(VALUE(INDIRECT("'"&$A14&"'!F24")),0) -> 148 | I14: =IFERROR(VALUE(INDIRECT("'"&$A14&"'!H24")),0) -> 106 | J14: =IFERROR(INDIRECT("'"&$A14&"'!AE22"),"") -> 0 | K14: =IFERROR(INDIRECT("'"&$A14&"'!AF22"),"") -> 0
A15: ZAPISNIK_4_3 | B15: =IFERROR(INDIRECT("'"&$A15&"'!B12"),"") -> VAL SHARK | C15: =IFERROR(INDIRECT("'"&$A15&"'!E12"),"") -> BUZET 2 | D15: =IFERROR(VALUE(INDIRECT("'"&$A15&"'!F22")),0) -> 4 | E15: =IFERROR(VALUE(INDIRECT("'"&$A15&"'!H22")),0) -> 1 | F15: =IFERROR(VALUE(INDIRECT("'"&$A15&"'!F23")),0) -> 14 | G15: =IFERROR(VALUE(INDIRECT("'"&$A15&"'!H23")),0) -> 3 | H15: =IFERROR(VALUE(INDIRECT("'"&$A15&"'!F24")),0) -> 177 | I15: =IFERROR(VALUE(INDIRECT("'"&$A15&"'!H24")),0) -> 117 | J15: =IFERROR(INDIRECT("'"&$A15&"'!AE22"),"") -> 0 | K15: =IFERROR(INDIRECT("'"&$A15&"'!AF22"),"") -> 0
A16: ZAPISNIK_4_4 | B16: =IFERROR(INDIRECT("'"&$A16&"'!B12"),"") -> VAL SHARK | C16: =IFERROR(INDIRECT("'"&$A16&"'!E12"),"") -> BUZET 1 | D16: =IFERROR(VALUE(INDIRECT("'"&$A16&"'!F22")),0) -> 4 | E16: =IFERROR(VALUE(INDIRECT("'"&$A16&"'!H22")),0) -> 0 | F16: =IFERROR(VALUE(INDIRECT("'"&$A16&"'!F23")),0) -> 12 | G16: =IFERROR(VALUE(INDIRECT("'"&$A16&"'!H23")),0) -> 4 | H16: =IFERROR(VALUE(INDIRECT("'"&$A16&"'!F24")),0) -> 156 | I16: =IFERROR(VALUE(INDIRECT("'"&$A16&"'!H24")),0) -> 124 | J16: =IFERROR(INDIRECT("'"&$A16&"'!AE22"),"") -> 0 | K16: =IFERROR(INDIRECT("'"&$A16&"'!AF22"),"") -> 0
A17: ZAPISNIK_4_5 | B17: =IFERROR(INDIRECT("'"&$A17&"'!B12"),"") -> BROVINJE 2 | C17: =IFERROR(INDIRECT("'"&$A17&"'!E12"),"") -> PAZIN | D17: =IFERROR(VALUE(INDIRECT("'"&$A17&"'!F22")),0) -> 3 | E17: =IFERROR(VALUE(INDIRECT("'"&$A17&"'!H22")),0) -> 4 | F17: =IFERROR(VALUE(INDIRECT("'"&$A17&"'!F23")),0) -> 12 | G17: =IFERROR(VALUE(INDIRECT("'"&$A17&"'!H23")),0) -> 14 | H17: =IFERROR(VALUE(INDIRECT("'"&$A17&"'!F24")),0) -> 232 | I17: =IFERROR(VALUE(INDIRECT("'"&$A17&"'!H24")),0) -> 225 | J17: =IFERROR(INDIRECT("'"&$A17&"'!AE22"),"") -> 0 | K17: =IFERROR(INDIRECT("'"&$A17&"'!AF22"),"") -> 0
A18: ZAPISNIK_4_6 | B18: =IFERROR(INDIRECT("'"&$A18&"'!B12"),"") -> BROVINJE 2 | C18: =IFERROR(INDIRECT("'"&$A18&"'!E12"),"") -> MAESTRAL 2 | D18: =IFERROR(VALUE(INDIRECT("'"&$A18&"'!F22")),0) -> 4 | E18: =IFERROR(VALUE(INDIRECT("'"&$A18&"'!H22")),0) -> 1 | F18: =IFERROR(VALUE(INDIRECT("'"&$A18&"'!F23")),0) -> 14 | G18: =IFERROR(VALUE(INDIRECT("'"&$A18&"'!H23")),0) -> 4 | H18: =IFERROR(VALUE(INDIRECT("'"&$A18&"'!F24")),0) -> 188 | I18: =IFERROR(VALUE(INDIRECT("'"&$A18&"'!H24")),0) -> 117 | J18: =IFERROR(INDIRECT("'"&$A18&"'!AE22"),"") -> 0 | K18: =IFERROR(INDIRECT("'"&$A18&"'!AF22"),"") -> 0
A19: ZAPISNIK_5_1 | B19: =IFERROR(INDIRECT("'"&$A19&"'!B12"),"") -> BUZET 1 | C19: =IFERROR(INDIRECT("'"&$A19&"'!E12"),"") -> BROVINJE 2 | D19: =IFERROR(VALUE(INDIRECT("'"&$A19&"'!F22")),0) -> 3 | E19: =IFERROR(VALUE(INDIRECT("'"&$A19&"'!H22")),0) -> 4 | F19: =IFERROR(VALUE(INDIRECT("'"&$A19&"'!F23")),0) -> 11 | G19: =IFERROR(VALUE(INDIRECT("'"&$A19&"'!H23")),0) -> 16 | H19: =IFERROR(VALUE(INDIRECT("'"&$A19&"'!F24")),0) -> 240 | I19: =IFERROR(VALUE(INDIRECT("'"&$A19&"'!H24")),0) -> 254 | J19: =IFERROR(INDIRECT("'"&$A19&"'!AE22"),"") -> 0 | K19: =IFERROR(INDIRECT("'"&$A19&"'!AF22"),"") -> 0
A20: ZAPISNIK_5_2 | B20: =IFERROR(INDIRECT("'"&$A20&"'!B12"),"") -> BUZET 2 | C20: =IFERROR(INDIRECT("'"&$A20&"'!E12"),"") -> BROVINJE 2 | D20: =IFERROR(VALUE(INDIRECT("'"&$A20&"'!F22")),0) -> 0 | E20: =IFERROR(VALUE(INDIRECT("'"&$A20&"'!H22")),0) -> 4 | F20: =IFERROR(VALUE(INDIRECT("'"&$A20&"'!F23")),0) -> 3 | G20: =IFERROR(VALUE(INDIRECT("'"&$A20&"'!H23")),0) -> 12 | H20: =IFERROR(VALUE(INDIRECT("'"&$A20&"'!F24")),0) -> 118 | I20: =IFERROR(VALUE(INDIRECT("'"&$A20&"'!H24")),0) -> 162 | J20: =IFERROR(INDIRECT("'"&$A20&"'!AE22"),"") -> 0 | K20: =IFERROR(INDIRECT("'"&$A20&"'!AF22"),"") -> 0
A21: ZAPISNIK_5_3 | B21: =IFERROR(INDIRECT("'"&$A21&"'!B12"),"") -> MAESTRAL 2 | C21: =IFERROR(INDIRECT("'"&$A21&"'!E12"),"") -> VAL SHARK | D21: =IFERROR(VALUE(INDIRECT("'"&$A21&"'!F22")),0) -> 4 | E21: =IFERROR(VALUE(INDIRECT("'"&$A21&"'!H22")),0) -> 2 | F21: =IFERROR(VALUE(INDIRECT("'"&$A21&"'!F23")),0) -> 13 | G21: =IFERROR(VALUE(INDIRECT("'"&$A21&"'!H23")),0) -> 11 | H21: =IFERROR(VALUE(INDIRECT("'"&$A21&"'!F24")),0) -> 229 | I21: =IFERROR(VALUE(INDIRECT("'"&$A21&"'!H24")),0) -> 239 | J21: =IFERROR(INDIRECT("'"&$A21&"'!AE22"),"") -> 0 | K21: =IFERROR(INDIRECT("'"&$A21&"'!AF22"),"") -> 0
A22: ZAPISNIK_5_4 | B22: =IFERROR(INDIRECT("'"&$A22&"'!B12"),"") -> MAESTRAL 2 | C22: =IFERROR(INDIRECT("'"&$A22&"'!E12"),"") -> ARENA FERRO | D22: =IFERROR(VALUE(INDIRECT("'"&$A22&"'!F22")),0) -> 2 | E22: =IFERROR(VALUE(INDIRECT("'"&$A22&"'!H22")),0) -> 4 | F22: =IFERROR(VALUE(INDIRECT("'"&$A22&"'!F23")),0) -> 12 | G22: =IFERROR(VALUE(INDIRECT("'"&$A22&"'!H23")),0) -> 16 | H22: =IFERROR(VALUE(INDIRECT("'"&$A22&"'!F24")),0) -> 253 | I22: =IFERROR(VALUE(INDIRECT("'"&$A22&"'!H24")),0) -> 257 | J22: =IFERROR(INDIRECT("'"&$A22&"'!AE22"),"") -> 0 | K22: =IFERROR(INDIRECT("'"&$A22&"'!AF22"),"") -> 0
A23: ZAPISNIK_6_1 | B23: =IFERROR(INDIRECT("'"&$A23&"'!B12"),"") ->  | C23: =IFERROR(INDIRECT("'"&$A23&"'!E12"),"") ->  | D23: =IFERROR(VALUE(INDIRECT("'"&$A23&"'!F22")),0) -> 0 | E23: =IFERROR(VALUE(INDIRECT("'"&$A23&"'!H22")),0) -> 0 | F23: =IFERROR(VALUE(INDIRECT("'"&$A23&"'!F23")),0) -> 0 | G23: =IFERROR(VALUE(INDIRECT("'"&$A23&"'!H23")),0) -> 0 | H23: =IFERROR(VALUE(INDIRECT("'"&$A23&"'!F24")),0) -> 0 | I23: =IFERROR(VALUE(INDIRECT("'"&$A23&"'!H24")),0) -> 0 | J23: =IFERROR(INDIRECT("'"&$A23&"'!AE22"),"") ->  | K23: =IFERROR(INDIRECT("'"&$A23&"'!AF22"),"") -> 
A24: ZAPISNIK_6_2 | B24: =IFERROR(INDIRECT("'"&$A24&"'!B12"),"") ->  | C24: =IFERROR(INDIRECT("'"&$A24&"'!E12"),"") ->  | D24: =IFERROR(VALUE(INDIRECT("'"&$A24&"'!F22")),0) -> 0 | E24: =IFERROR(VALUE(INDIRECT("'"&$A24&"'!H22")),0) -> 0 | F24: =IFERROR(VALUE(INDIRECT("'"&$A24&"'!F23")),0) -> 0 | G24: =IFERROR(VALUE(INDIRECT("'"&$A24&"'!H23")),0) -> 0 | H24: =IFERROR(VALUE(INDIRECT("'"&$A24&"'!F24")),0) -> 0 | I24: =IFERROR(VALUE(INDIRECT("'"&$A24&"'!H24")),0) -> 0 | J24: =IFERROR(INDIRECT("'"&$A24&"'!AE22"),"") ->  | K24: =IFERROR(INDIRECT("'"&$A24&"'!AF22"),"") -> 
A25: ZAPISNIK_6_3 | B25: =IFERROR(INDIRECT("'"&$A25&"'!B12"),"") ->  | C25: =IFERROR(INDIRECT("'"&$A25&"'!E12"),"") ->  | D25: =IFERROR(VALUE(INDIRECT("'"&$A25&"'!F22")),0) -> 0 | E25: =IFERROR(VALUE(INDIRECT("'"&$A25&"'!H22")),0) -> 0 | F25: =IFERROR(VALUE(INDIRECT("'"&$A25&"'!F23")),0) -> 0 | G25: =IFERROR(VALUE(INDIRECT("'"&$A25&"'!H23")),0) -> 0 | H25: =IFERROR(VALUE(INDIRECT("'"&$A25&"'!F24")),0) -> 0 | I25: =IFERROR(VALUE(INDIRECT("'"&$A25&"'!H24")),0) -> 0 | J25: =IFERROR(INDIRECT("'"&$A25&"'!AE22"),"") ->  | K25: =IFERROR(INDIRECT("'"&$A25&"'!AF22"),"") -> 
A26: ZAPISNIK_7_1 | B26: =IFERROR(INDIRECT("'"&$A26&"'!B12"),"") ->  | C26: =IFERROR(INDIRECT("'"&$A26&"'!E12"),"") ->  | D26: =IFERROR(VALUE(INDIRECT("'"&$A26&"'!F22")),0) -> 0 | E26: =IFERROR(VALUE(INDIRECT("'"&$A26&"'!H22")),0) -> 0 | F26: =IFERROR(VALUE(INDIRECT("'"&$A26&"'!F23")),0) -> 0 | G26: =IFERROR(VALUE(INDIRECT("'"&$A26&"'!H23")),0) -> 0 | H26: =IFERROR(VALUE(INDIRECT("'"&$A26&"'!F24")),0) -> 0 | I26: =IFERROR(VALUE(INDIRECT("'"&$A26&"'!H24")),0) -> 0 | J26: =IFERROR(INDIRECT("'"&$A26&"'!AE22"),"") ->  | K26: =IFERROR(INDIRECT("'"&$A26&"'!AF22"),"") -> 
A27: ZAPISNIK_7_2 | B27: =IFERROR(INDIRECT("'"&$A27&"'!B12"),"") ->  | C27: =IFERROR(INDIRECT("'"&$A27&"'!E12"),"") ->  | D27: =IFERROR(VALUE(INDIRECT("'"&$A27&"'!F22")),0) -> 0 | E27: =IFERROR(VALUE(INDIRECT("'"&$A27&"'!H22")),0) -> 0 | F27: =IFERROR(VALUE(INDIRECT("'"&$A27&"'!F23")),0) -> 0 | G27: =IFERROR(VALUE(INDIRECT("'"&$A27&"'!H23")),0) -> 0 | H27: =IFERROR(VALUE(INDIRECT("'"&$A27&"'!F24")),0) -> 0 | I27: =IFERROR(VALUE(INDIRECT("'"&$A27&"'!H24")),0) -> 0 | J27: =IFERROR(INDIRECT("'"&$A27&"'!AE22"),"") ->  | K27: =IFERROR(INDIRECT("'"&$A27&"'!AF22"),"") -> 
A28: ZAPISNIK_7_3 | B28: =IFERROR(INDIRECT("'"&$A28&"'!B12"),"") ->  | C28: =IFERROR(INDIRECT("'"&$A28&"'!E12"),"") ->  | D28: =IFERROR(VALUE(INDIRECT("'"&$A28&"'!F22")),0) -> 0 | E28: =IFERROR(VALUE(INDIRECT("'"&$A28&"'!H22")),0) -> 0 | F28: =IFERROR(VALUE(INDIRECT("'"&$A28&"'!F23")),0) -> 0 | G28: =IFERROR(VALUE(INDIRECT("'"&$A28&"'!H23")),0) -> 0 | H28: =IFERROR(VALUE(INDIRECT("'"&$A28&"'!F24")),0) -> 0 | I28: =IFERROR(VALUE(INDIRECT("'"&$A28&"'!H24")),0) -> 0 | J28: =IFERROR(INDIRECT("'"&$A28&"'!AE22"),"") ->  | K28: =IFERROR(INDIRECT("'"&$A28&"'!AF22"),"") -> 
A29: ZAPISNIK_8_1 | B29: =IFERROR(INDIRECT("'"&$A29&"'!B12"),"") ->  | C29: =IFERROR(INDIRECT("'"&$A29&"'!E12"),"") ->  | D29: =IFERROR(VALUE(INDIRECT("'"&$A29&"'!F22")),0) -> 0 | E29: =IFERROR(VALUE(INDIRECT("'"&$A29&"'!H22")),0) -> 0 | F29: =IFERROR(VALUE(INDIRECT("'"&$A29&"'!F23")),0) -> 0 | G29: =IFERROR(VALUE(INDIRECT("'"&$A29&"'!H23")),0) -> 0 | H29: =IFERROR(VALUE(INDIRECT("'"&$A29&"'!F24")),0) -> 0 | I29: =IFERROR(VALUE(INDIRECT("'"&$A29&"'!H24")),0) -> 0 | J29: =IFERROR(INDIRECT("'"&$A29&"'!AE22"),"") ->  | K29: =IFERROR(INDIRECT("'"&$A29&"'!AF22"),"") -> 
A30: ZAPISNIK_8_2 | B30: =IFERROR(INDIRECT("'"&$A30&"'!B12"),"") ->  | C30: =IFERROR(INDIRECT("'"&$A30&"'!E12"),"") ->  | D30: =IFERROR(VALUE(INDIRECT("'"&$A30&"'!F22")),0) -> 0 | E30: =IFERROR(VALUE(INDIRECT("'"&$A30&"'!H22")),0) -> 0 | F30: =IFERROR(VALUE(INDIRECT("'"&$A30&"'!F23")),0) -> 0 | G30: =IFERROR(VALUE(INDIRECT("'"&$A30&"'!H23")),0) -> 0 | H30: =IFERROR(VALUE(INDIRECT("'"&$A30&"'!F24")),0) -> 0 | I30: =IFERROR(VALUE(INDIRECT("'"&$A30&"'!H24")),0) -> 0 | J30: =IFERROR(INDIRECT("'"&$A30&"'!AE22"),"") ->  | K30: =IFERROR(INDIRECT("'"&$A30&"'!AF22"),"") -> 
A31: ZAPISNIK_8_3 | B31: =IFERROR(INDIRECT("'"&$A31&"'!B12"),"") ->  | C31: =IFERROR(INDIRECT("'"&$A31&"'!E12"),"") ->  | D31: =IFERROR(VALUE(INDIRECT("'"&$A31&"'!F22")),0) -> 0 | E31: =IFERROR(VALUE(INDIRECT("'"&$A31&"'!H22")),0) -> 0 | F31: =IFERROR(VALUE(INDIRECT("'"&$A31&"'!F23")),0) -> 0 | G31: =IFERROR(VALUE(INDIRECT("'"&$A31&"'!H23")),0) -> 0 | H31: =IFERROR(VALUE(INDIRECT("'"&$A31&"'!F24")),0) -> 0 | I31: =IFERROR(VALUE(INDIRECT("'"&$A31&"'!H24")),0) -> 0 | J31: =IFERROR(INDIRECT("'"&$A31&"'!AE22"),"") ->  | K31: =IFERROR(INDIRECT("'"&$A31&"'!AF22"),"") -> 
A32: ZAPISNIK_9_1 | B32: =IFERROR(INDIRECT("'"&$A32&"'!B12"),"") ->  | C32: =IFERROR(INDIRECT("'"&$A32&"'!E12"),"") ->  | D32: =IFERROR(VALUE(INDIRECT("'"&$A32&"'!F22")),0) -> 0 | E32: =IFERROR(VALUE(INDIRECT("'"&$A32&"'!H22")),0) -> 0 | F32: =IFERROR(VALUE(INDIRECT("'"&$A32&"'!F23")),0) -> 0 | G32: =IFERROR(VALUE(INDIRECT("'"&$A32&"'!H23")),0) -> 0 | H32: =IFERROR(VALUE(INDIRECT("'"&$A32&"'!F24")),0) -> 0 | I32: =IFERROR(VALUE(INDIRECT("'"&$A32&"'!H24")),0) -> 0 | J32: =IFERROR(INDIRECT("'"&$A32&"'!AE22"),"") ->  | K32: =IFERROR(INDIRECT("'"&$A32&"'!AF22"),"") -> 
A33: ZAPISNIK_9_2 | B33: =IFERROR(INDIRECT("'"&$A33&"'!B12"),"") ->  | C33: =IFERROR(INDIRECT("'"&$A33&"'!E12"),"") ->  | D33: =IFERROR(VALUE(INDIRECT("'"&$A33&"'!F22")),0) -> 0 | E33: =IFERROR(VALUE(INDIRECT("'"&$A33&"'!H22")),0) -> 0 | F33: =IFERROR(VALUE(INDIRECT("'"&$A33&"'!F23")),0) -> 0 | G33: =IFERROR(VALUE(INDIRECT("'"&$A33&"'!H23")),0) -> 0 | H33: =IFERROR(VALUE(INDIRECT("'"&$A33&"'!F24")),0) -> 0 | I33: =IFERROR(VALUE(INDIRECT("'"&$A33&"'!H24")),0) -> 0 | J33: =IFERROR(INDIRECT("'"&$A33&"'!AE22"),"") ->  | K33: =IFERROR(INDIRECT("'"&$A33&"'!AF22"),"") -> 
A34: ZAPISNIK_9_3 | B34: =IFERROR(INDIRECT("'"&$A34&"'!B12"),"") ->  | C34: =IFERROR(INDIRECT("'"&$A34&"'!E12"),"") ->  | D34: =IFERROR(VALUE(INDIRECT("'"&$A34&"'!F22")),0) -> 0 | E34: =IFERROR(VALUE(INDIRECT("'"&$A34&"'!H22")),0) -> 0 | F34: =IFERROR(VALUE(INDIRECT("'"&$A34&"'!F23")),0) -> 0 | G34: =IFERROR(VALUE(INDIRECT("'"&$A34&"'!H23")),0) -> 0 | H34: =IFERROR(VALUE(INDIRECT("'"&$A34&"'!F24")),0) -> 0 | I34: =IFERROR(VALUE(INDIRECT("'"&$A34&"'!H24")),0) -> 0 | J34: =IFERROR(INDIRECT("'"&$A34&"'!AE22"),"") ->  | K34: =IFERROR(INDIRECT("'"&$A34&"'!AF22"),"") -> 
A35: ZAPISNIK_10_1 | B35: =IFERROR(INDIRECT("'"&$A35&"'!B12"),"") ->  | C35: =IFERROR(INDIRECT("'"&$A35&"'!E12"),"") ->  | D35: =IFERROR(VALUE(INDIRECT("'"&$A35&"'!F22")),0) -> 0 | E35: =IFERROR(VALUE(INDIRECT("'"&$A35&"'!H22")),0) -> 0 | F35: =IFERROR(VALUE(INDIRECT("'"&$A35&"'!F23")),0) -> 0 | G35: =IFERROR(VALUE(INDIRECT("'"&$A35&"'!H23")),0) -> 0 | H35: =IFERROR(VALUE(INDIRECT("'"&$A35&"'!F24")),0) -> 0 | I35: =IFERROR(VALUE(INDIRECT("'"&$A35&"'!H24")),0) -> 0 | J35: =IFERROR(INDIRECT("'"&$A35&"'!AE22"),"") ->  | K35: =IFERROR(INDIRECT("'"&$A35&"'!AF22"),"") -> 
A36: ZAPISNIK_10_2 | B36: =IFERROR(INDIRECT("'"&$A36&"'!B12"),"") ->  | C36: =IFERROR(INDIRECT("'"&$A36&"'!E12"),"") ->  | D36: =IFERROR(VALUE(INDIRECT("'"&$A36&"'!F22")),0) -> 0 | E36: =IFERROR(VALUE(INDIRECT("'"&$A36&"'!H22")),0) -> 0 | F36: =IFERROR(VALUE(INDIRECT("'"&$A36&"'!F23")),0) -> 0 | G36: =IFERROR(VALUE(INDIRECT("'"&$A36&"'!H23")),0) -> 0 | H36: =IFERROR(VALUE(INDIRECT("'"&$A36&"'!F24")),0) -> 0 | I36: =IFERROR(VALUE(INDIRECT("'"&$A36&"'!H24")),0) -> 0 | J36: =IFERROR(INDIRECT("'"&$A36&"'!AE22"),"") ->  | K36: =IFERROR(INDIRECT("'"&$A36&"'!AF22"),"") -> 
A37: ZAPISNIK_10_3 | B37: =IFERROR(INDIRECT("'"&$A37&"'!B12"),"") ->  | C37: =IFERROR(INDIRECT("'"&$A37&"'!E12"),"") ->  | D37: =IFERROR(VALUE(INDIRECT("'"&$A37&"'!F22")),0) -> 0 | E37: =IFERROR(VALUE(INDIRECT("'"&$A37&"'!H22")),0) -> 0 | F37: =IFERROR(VALUE(INDIRECT("'"&$A37&"'!F23")),0) -> 0 | G37: =IFERROR(VALUE(INDIRECT("'"&$A37&"'!H23")),0) -> 0 | H37: =IFERROR(VALUE(INDIRECT("'"&$A37&"'!F24")),0) -> 0 | I37: =IFERROR(VALUE(INDIRECT("'"&$A37&"'!H24")),0) -> 0 | J37: =IFERROR(INDIRECT("'"&$A37&"'!AE22"),"") ->  | K37: =IFERROR(INDIRECT("'"&$A37&"'!AF22"),"") -> 

Sheet POREDAK (hidden)
A1: ŽUPANIJSKA LIGA STSIŽ – 2025./2026. | M1: Broj ekipa
A2: RANG | B2: KLUB | C2: ODIGRANO | D2: SKOR | F2: MEČ RAZLIKA | H2: SET RAZLIKA | J2: POEN RAZLIKA | L2: BOD | M2: =IFERROR('EKIPE I IGRAČI'!$B$2,0) -> 7
A3: 1 | B3: ='EKIPE I IGRAČI'!A7 -> PAZIN | C3: =COUNTIF(KOLA!B$2:B$37,B3)+COUNTIF(KOLA!C$2:C$37,B3) -> 6 | D3: =SUMPRODUCT((KOLA!B$2:B$37=B3)*(KOLA!J$2:J$37<>"N")*(KOLA!D$2:D$37>KOLA!E$2:E$37)) + SUMPRODUCT((KOLA!C$2:C$37=B3)*(KOLA!K$2:K$37<>"N")*(KOLA!E$2:E$37>KOLA!D$2:D$37)) -> 5 | E3: =SUMPRODUCT((KOLA!B$2:B$37=B3)*(KOLA!J$2:J$37<>"N")*(KOLA!D$2:D$37<KOLA!E$2:E$37)) + SUMPRODUCT((KOLA!C$2:C$37=B3)*(KOLA!K$2:K$37<>"N")*(KOLA!E$2:E$37<KOLA!D$2:D$37)) -> 1 | F3: =SUMIF(KOLA!B$2:B$37,B3,KOLA!D$2:D$37)+SUMIF(KOLA!C$2:C$37,B3,KOLA!E$2:E$37) -> 21 | G3: =SUMIF(KOLA!B$2:B$37,B3,KOLA!E$2:E$37)+SUMIF(KOLA!C$2:C$37,B3,KOLA!D$2:D$37) -> 12 | H3: =SUMIF(KOLA!B$2:B$37,B3,KOLA!F$2:F$37)+SUMIF(KOLA!C$2:C$37,B3,KOLA!G$2:G$37) -> 71 | I3: =SUMIF(KOLA!B$2:B$37,B3,KOLA!G$2:G$37)+SUMIF(KOLA!C$2:C$37,B3,KOLA!F$2:F$37) -> 53 | J3: =SUMIF(KOLA!B$2:B$37,B3,KOLA!H$2:H$37)+SUMIF(KOLA!C$2:C$37,B3,KOLA!I$2:I$37) -> 1107 | K3: =SUMIF(KOLA!B$2:B$37,B3,KOLA!I$2:I$37)+SUMIF(KOLA!C$2:C$37,B3,KOLA!H$2:H$37) -> 1037 | L3: =D3*2+E3 -> 11 | M3: 0 | N3: 11 | O3: 0 | P3: 0 | Q3: 0 | R3: 11 | S3: MEČ+ | T3: MEČ- | U3: SET+ | V3: SET- | W3: POEN+ | X3: POEN- | Y3: BOD
A4: 2 | B4: ='EKIPE I IGRAČI'!A2 -> ARENA FERRO | C4: =COUNTIF(KOLA!B$2:B$37,B4)+COUNTIF(KOLA!C$2:C$37,B4) -> 6 | D4: =SUMPRODUCT((KOLA!B$2:B$37=B4)*(KOLA!J$2:J$37<>"N")*(KOLA!D$2:D$37>KOLA!E$2:E$37)) + SUMPRODUCT((KOLA!C$2:C$37=B4)*(KOLA!K$2:K$37<>"N")*(KOLA!E$2:E$37>KOLA!D$2:D$37)) -> 4 | E4: =SUMPRODUCT((KOLA!B$2:B$37=B4)*(KOLA!J$2:J$37<>"N")*(KOLA!D$2:D$37<KOLA!E$2:E$37)) + SUMPRODUCT((KOLA!C$2:C$37=B4)*(KOLA!K$2:K$37<>"N")*(KOLA!E$2:E$37<KOLA!D$2:D$37)) -> 2 | F4: =SUMIF(KOLA!B$2:B$37,B4,KOLA!D$2:D$37)+SUMIF(KOLA!C$2:C$37,B4,KOLA!E$2:E$37) -> 21 | G4: =SUMIF(KOLA!B$2:B$37,B4,KOLA!E$2:E$37)+SUMIF(KOLA!C$2:C$37,B4,KOLA!D$2:D$37) -> 11 | H4: =SUMIF(KOLA!B$2:B$37,B4,KOLA!F$2:F$37)+SUMIF(KOLA!C$2:C$37,B4,KOLA!G$2:G$37) -> 79 | I4: =SUMIF(KOLA!B$2:B$37,B4,KOLA!G$2:G$37)+SUMIF(KOLA!C$2:C$37,B4,KOLA!F$2:F$37) -> 48 | J4: =SUMIF(KOLA!B$2:B$37,B4,KOLA!H$2:H$37)+SUMIF(KOLA!C$2:C$37,B4,KOLA!I$2:I$37) -> 1223 | K4: =SUMIF(KOLA!B$2:B$37,B4,KOLA!I$2:I$37)+SUMIF(KOLA!C$2:C$37,B4,KOLA!H$2:H$37) -> 1103 | L4: 10 | M4: 0 | N4: 10 | O4: 2 | P4: 6 | Q4: 11 | R4: 10
A5: 3 | B5: ='EKIPE I IGRAČI'!A3 -> BROVINJE 2 | C5: =COUNTIF(KOLA!B$2:B$37,B5)+COUNTIF(KOLA!C$2:C$37,B5) -> 6 | D5: =SUMPRODUCT((KOLA!B$2:B$37=B5)*(KOLA!J$2:J$37<>"N")*(KOLA!D$2:D$37>KOLA!E$2:E$37)) + SUMPRODUCT((KOLA!C$2:C$37=B5)*(KOLA!K$2:K$37<>"N")*(KOLA!E$2:E$37>KOLA!D$2:D$37)) -> 4 | E5: =SUMPRODUCT((KOLA!B$2:B$37=B5)*(KOLA!J$2:J$37<>"N")*(KOLA!D$2:D$37<KOLA!E$2:E$37)) + SUMPRODUCT((KOLA!C$2:C$37=B5)*(KOLA!K$2:K$37<>"N")*(KOLA!E$2:E$37<KOLA!D$2:D$37)) -> 2 | F5: =SUMIF(KOLA!B$2:B$37,B5,KOLA!D$2:D$37)+SUMIF(KOLA!C$2:C$37,B5,KOLA!E$2:E$37) -> 20 | G5: =SUMIF(KOLA!B$2:B$37,B5,KOLA!E$2:E$37)+SUMIF(KOLA!C$2:C$37,B5,KOLA!D$2:D$37) -> 14 | H5: =SUMIF(KOLA!B$2:B$37,B5,KOLA!F$2:F$37)+SUMIF(KOLA!C$2:C$37,B5,KOLA!G$2:G$37) -> 74 | I5: =SUMIF(KOLA!B$2:B$37,B5,KOLA!G$2:G$37)+SUMIF(KOLA!C$2:C$37,B5,KOLA!F$2:F$37) -> 55 | J5: =SUMIF(KOLA!B$2:B$37,B5,KOLA!H$2:H$37)+SUMIF(KOLA!C$2:C$37,B5,KOLA!I$2:I$37) -> 1237 | K5: =SUMIF(KOLA!B$2:B$37,B5,KOLA!I$2:I$37)+SUMIF(KOLA!C$2:C$37,B5,KOLA!H$2:H$37) -> 1104 | L5: 10 | M5: 0 | N5: 10 | O5: -1 | P5: -3 | Q5: -3 | R5: 10
A6: 4 | B6: ='EKIPE I IGRAČI'!A8 -> VAL SHARK | C6: =COUNTIF(KOLA!B$2:B$37,B6)+COUNTIF(KOLA!C$2:C$37,B6) -> 6 | D6: =SUMPRODUCT((KOLA!B$2:B$37=B6)*(KOLA!J$2:J$37<>"N")*(KOLA!D$2:D$37>KOLA!E$2:E$37)) + SUMPRODUCT((KOLA!C$2:C$37=B6)*(KOLA!K$2:K$37<>"N")*(KOLA!E$2:E$37>KOLA!D$2:D$37)) -> 4 | E6: =SUMPRODUCT((KOLA!B$2:B$37=B6)*(KOLA!J$2:J$37<>"N")*(KOLA!D$2:D$37<KOLA!E$2:E$37)) + SUMPRODUCT((KOLA!C$2:C$37=B6)*(KOLA!K$2:K$37<>"N")*(KOLA!E$2:E$37<KOLA!D$2:D$37)) -> 2 | F6: =SUMIF(KOLA!B$2:B$37,B6,KOLA!D$2:D$37)+SUMIF(KOLA!C$2:C$37,B6,KOLA!E$2:E$37) -> 18 | G6: =SUMIF(KOLA!B$2:B$37,B6,KOLA!E$2:E$37)+SUMIF(KOLA!C$2:C$37,B6,KOLA!D$2:D$37) -> 11 | H6: =SUMIF(KOLA!B$2:B$37,B6,KOLA!F$2:F$37)+SUMIF(KOLA!C$2:C$37,B6,KOLA!G$2:G$37) -> 67 | I6: =SUMIF(KOLA!B$2:B$37,B6,KOLA!G$2:G$37)+SUMIF(KOLA!C$2:C$37,B6,KOLA!F$2:F$37) -> 46 | J6: =SUMIF(KOLA!B$2:B$37,B6,KOLA!H$2:H$37)+SUMIF(KOLA!C$2:C$37,B6,KOLA!I$2:I$37) -> 1101 | K6: =SUMIF(KOLA!B$2:B$37,B6,KOLA!I$2:I$37)+SUMIF(KOLA!C$2:C$37,B6,KOLA!H$2:H$37) -> 971 | L6: 10 | M6: 0 | N6: 10 | O6: -1 | P6: -3 | Q6: -8 | R6: 10
A7: 5 | B7: ='EKIPE I IGRAČI'!A4 -> BUZET 1 | C7: =COUNTIF(KOLA!B$2:B$37,B7)+COUNTIF(KOLA!C$2:C$37,B7) -> 6 | D7: =SUMPRODUCT((KOLA!B$2:B$37=B7)*(KOLA!J$2:J$37<>"N")*(KOLA!D$2:D$37>KOLA!E$2:E$37)) + SUMPRODUCT((KOLA!C$2:C$37=B7)*(KOLA!K$2:K$37<>"N")*(KOLA!E$2:E$37>KOLA!D$2:D$37)) -> 2 | E7: =SUMPRODUCT((KOLA!B$2:B$37=B7)*(KOLA!J$2:J$37<>"N")*(KOLA!D$2:D$37<KOLA!E$2:E$37)) + SUMPRODUCT((KOLA!C$2:C$37=B7)*(KOLA!K$2:K$37<>"N")*(KOLA!E$2:E$37<KOLA!D$2:D$37)) -> 4 | F7: =SUMIF(KOLA!B$2:B$37,B7,KOLA!D$2:D$37)+SUMIF(KOLA!C$2:C$37,B7,KOLA!E$2:E$37) -> 13 | G7: =SUMIF(KOLA!B$2:B$37,B7,KOLA!E$2:E$37)+SUMIF(KOLA!C$2:C$37,B7,KOLA!D$2:D$37) -> 17 | H7: =SUMIF(KOLA!B$2:B$37,B7,KOLA!F$2:F$37)+SUMIF(KOLA!C$2:C$37,B7,KOLA!G$2:G$37) -> 49 | I7: =SUMIF(KOLA!B$2:B$37,B7,KOLA!G$2:G$37)+SUMIF(KOLA!C$2:C$37,B7,KOLA!F$2:F$37) -> 59 | J7: =SUMIF(KOLA!B$2:B$37,B7,KOLA!H$2:H$37)+SUMIF(KOLA!C$2:C$37,B7,KOLA!I$2:I$37) -> 959 | K7: =SUMIF(KOLA!B$2:B$37,B7,KOLA!I$2:I$37)+SUMIF(KOLA!C$2:C$37,B7,KOLA!H$2:H$37) -> 979 | L7: 8 | M7: 0 | N7: 8 | O7: 0 | P7: 0 | Q7: 0 | R7: 8
A8: 6 | B8: ='EKIPE I IGRAČI'!A5 -> BUZET 2 | C8: =COUNTIF(KOLA!B$2:B$37,B8)+COUNTIF(KOLA!C$2:C$37,B8) -> 6 | D8: =SUMPRODUCT((KOLA!B$2:B$37=B8)*(KOLA!J$2:J$37<>"N")*(KOLA!D$2:D$37>KOLA!E$2:E$37)) + SUMPRODUCT((KOLA!C$2:C$37=B8)*(KOLA!K$2:K$37<>"N")*(KOLA!E$2:E$37>KOLA!D$2:D$37)) -> 1 | E8: =SUMPRODUCT((KOLA!B$2:B$37=B8)*(KOLA!J$2:J$37<>"N")*(KOLA!D$2:D$37<KOLA!E$2:E$37)) + SUMPRODUCT((KOLA!C$2:C$37=B8)*(KOLA!K$2:K$37<>"N")*(KOLA!E$2:E$37<KOLA!D$2:D$37)) -> 5 | F8: =SUMIF(KOLA!B$2:B$37,B8,KOLA!D$2:D$37)+SUMIF(KOLA!C$2:C$37,B8,KOLA!E$2:E$37) -> 7 | G8: =SUMIF(KOLA!B$2:B$37,B8,KOLA!E$2:E$37)+SUMIF(KOLA!C$2:C$37,B8,KOLA!D$2:D$37) -> 20 | H8: =SUMIF(KOLA!B$2:B$37,B8,KOLA!F$2:F$37)+SUMIF(KOLA!C$2:C$37,B8,KOLA!G$2:G$37) -> 29 | I8: =SUMIF(KOLA!B$2:B$37,B8,KOLA!G$2:G$37)+SUMIF(KOLA!C$2:C$37,B8,KOLA!F$2:F$37) -> 66 | J8: =SUMIF(KOLA!B$2:B$37,B8,KOLA!H$2:H$37)+SUMIF(KOLA!C$2:C$37,B8,KOLA!I$2:I$37) -> 760 | K8: =SUMIF(KOLA!B$2:B$37,B8,KOLA!I$2:I$37)+SUMIF(KOLA!C$2:C$37,B8,KOLA!H$2:H$37) -> 958 | L8: 7 | M8: 0 | N8: 7 | O8: 4 | P8: 8 | Q8: 27 | R8: 7
A9: 7 | B9: ='EKIPE I IGRAČI'!A6 -> MAESTRAL 2 | C9: =COUNTIF(KOLA!B$2:B$37,B9)+COUNTIF(KOLA!C$2:C$37,B9) -> 6 | D9: =SUMPRODUCT((KOLA!B$2:B$37=B9)*(KOLA!J$2:J$37<>"N")*(KOLA!D$2:D$37>KOLA!E$2:E$37)) + SUMPRODUCT((KOLA!C$2:C$37=B9)*(KOLA!K$2:K$37<>"N")*(KOLA!E$2:E$37>KOLA!D$2:D$37)) -> 1 | E9: =SUMPRODUCT((KOLA!B$2:B$37=B9)*(KOLA!J$2:J$37<>"N")*(KOLA!D$2:D$37<KOLA!E$2:E$37)) + SUMPRODUCT((KOLA!C$2:C$37=B9)*(KOLA!K$2:K$37<>"N")*(KOLA!E$2:E$37<KOLA!D$2:D$37)) -> 5 | F9: =SUMIF(KOLA!B$2:B$37,B9,KOLA!D$2:D$37)+SUMIF(KOLA!C$2:C$37,B9,KOLA!E$2:E$37) -> 7 | G9: =SUMIF(KOLA!B$2:B$37,B9,KOLA!E$2:E$37)+SUMIF(KOLA!C$2:C$37,B9,KOLA!D$2:D$37) -> 22 | H9: =SUMIF(KOLA!B$2:B$37,B9,KOLA!F$2:F$37)+SUMIF(KOLA!C$2:C$37,B9,KOLA!G$2:G$37) -> 35 | I9: =SUMIF(KOLA!B$2:B$37,B9,KOLA!G$2:G$37)+SUMIF(KOLA!C$2:C$37,B9,KOLA!F$2:F$37) -> 77 | J9: =SUMIF(KOLA!B$2:B$37,B9,KOLA!H$2:H$37)+SUMIF(KOLA!C$2:C$37,B9,KOLA!I$2:I$37) -> 898 | K9: =SUMIF(KOLA!B$2:B$37,B9,KOLA!I$2:I$37)+SUMIF(KOLA!C$2:C$37,B9,KOLA!H$2:H$37) -> 1133 | L9: 7 | M9: 0 | N9: 7 | O9: -4 | P9: -8 | Q9: -27 | R9: 7
O10: =_xludf.LET( t,$B$10, sh,Zapisnici, ht,_xludf.MAP(sh,_xludf.LAMBDA(s,INDIRECT("'"&s&"'!A12"))), at,_xludf.MAP(sh,_xludf.LAMBDA(s,INDIRECT("'"&s&"'!C12"))), hw,_xludf.MAP(sh,_xludf.LAMBDA(s,INDIRECT("'"&s&"'!E12"))), aw,_xludf.MAP(sh,_xludf.LAMBDA(s,INDIRECT("'"&s&"'!H12"))), hN,_xludf.MAP(sh,_xludf.LAMBDA(s,INDIRECT("'"&s&"'!F12"))), aN,_xludf.MAP(sh,_xludf.LAMBDA(s,INDIRECT("'"&s&"'!I12"))), hs,_xludf.MAP(sh,_xludf.LAMBDA(s,INDIRECT("'"&s&"'!J12"))), as,_xludf.MAP(sh,_xludf.LAMBDA(s,INDIRECT("'"&s&"'!L12"))), hp,_xludf.MAP(sh,_xludf.LAMBDA(s,INDIRECT("'"&s&"'!N12"))), ap,_xludf.MAP(sh,_xludf.LAMBDA(s,INDIRECT("'"&s&"'!P12"))), played,SUM((ht=t)*(hN<>"N") + (at=t)*(aN<>"N")), wins,SUM((ht=t)*(hN<>"N")*(hw>aw) + (at=t)*(aN<>"N")*(aw>hw)), loss,SUM((ht=t)*(hN<>"N")*(hw<aw) + (at=t)*(aN<>"N")*(aw<hw)), match_for,SUM((ht=t)*hw + (at=t)*aw), match_ag,SUM((ht=t)*aw + (at=t)*hw), set_for,SUM((ht=t)*hs + (at=t)*as), set_ag,SUM((ht=t)*as + (at=t)*hs), pt_for,SUM((ht=t)*hp + (at=t)*ap), pt_ag,SUM((ht=t)*ap + (at=t)*hp), bod,SUM( (ht=t)*(hN<>"N")*IF(hw>aw,2,1) + (at=t)*(aN<>"N")*IF(aw>hw,2,1) ), CHOOSE({1},t,played,wins,loss,match_for,match_ag,set_for,set_ag,pt_for,pt_ag,bod) ) -> 

Sheet DASHBOARD (hidden)
A1: DASHBOARD – FORMA PO KOLIMA
A2: Odaberi ekipu: | B2: VAL SHARK | AA2: PAZIN
AA3: ARENA FERRO
A4: KLUB | B4: K1 | C4: K2 | D4: K3 | E4: K4 | F4: K5 | G4: K6 | H4: K7 | I4: K8 | J4: K9 | K4: K10 | L4: STREAK | AA4: BROVINJE 2
A5: PAZIN | B5: W 4:0 | C5: W 4:1 | D5: W 4:3 | E5: W 4:3 | L5: W4 | AA5: VAL SHARK
A6: ARENA FERRO | B6: W 4:0 | C6: L 2:4 | D6: L 3:4 | E6: W 4:0 | F6: W 4:2 | L6: W2 | AA6: BUZET 1
A7: BROVINJE 2 | C7: W 4:2 | E7: W 4:1 | F7: W 4:0 | L7: W3 | AA7: BUZET 2
A8: VAL SHARK | B8: L 0:4 | C8: W 4:1 | D8: W 4:1 | E8: W 4:0 | F8: L 2:4 | L8: L1 | AA8: MAESTRAL 2
A9: BUZET 1 | B9: W 4:1 | C9: L 1:4 | D9: W 4:0 | E9: L 0:4 | F9: L 3:4 | L9: L2
A10: BUZET 2 | B10: L 1:4 | C10: L 1:4 | D10: W 4:0 | E10: L 1:4 | F10: L 0:4 | L10: L2
A11: MAESTRAL 2 | B11: L 0:4 | D11: L 0:4 | E11: L 1:4 | F11: L 2:4 | L11: L4
A20: Kolo | B20: Kumulativni bodovi
A21: 1 | B21: 1
A22: 2 | B22: 3
A23: 3 | B23: 5
A24: 4 | B24: 7
A25: 5 | B25: 8
A26: 6 | B26: 8
A27: 7 | B27: 8
A28: 8 | B28: 8
A29: 9 | B29: 8
A30: 10 | B30: 8

Sheet SKOROVI IGRAČA POJEDINAČNO (hidden)
A1: ŽUPANIJSKA LIGA 25./26. - SKOROVI IGRAČA POJEDINAČNO
A2: RANG | B2: PREZIME I IME | C2: KLUB | D2: ODIGRANO | E2: POBJEDA | F2: PORAZ | G2: %
A3: 1 | B3: GASPARI HUDOLETNJAK Matija | C3: BROVINJE 2 | D3: 9 | E3: 9 | F3: 0 | G3: 1
A4: 2 | B4: INFANTOLINO Davide | C4: VAL SHARK | D4: 10 | E4: 9 | F4: 1 | G4: 0.9
A5: 3 | B5: GLAVINIĆ Denis | C5: PAZIN | D5: 9 | E5: 8 | F5: 1 | G5: 0.8888888889
A6: 4 | B6: CINKOPAN Kristijan | C6: ARENA FERRO | D6: 9 | E6: 7 | F6: 2 | G6: 0.7777777778
A7: 5 | B7: BASIACO Leonida | C7: BROVINJE 2 | D7: 9 | E7: 6 | F7: 3 | G7: 0.6666666667
A8: 6 | B8: FABRIS Karlo | C8: PAZIN | D8: 7 | E8: 5 | F8: 2 | G8: 0.7142857143
A9: 7 | B9: HRVANOVIĆ Jasmin | C9: VAL SHARK | D9: 5 | E9: 3 | F9: 2 | G9: 0.6
A10: 8 | B10: LUKEZ Goran | C10: PAZIN | D10: 5 | E10: 3 | F10: 2 | G10: 0.6
A11: 9 | B11: DRAŠĆIĆ Petar | C11: BUZET 2 | D11: 6 | E11: 3 | F11: 3 | G11: 0.5
A12: 10 | B12: FABIJAN Damir | C12: PAZIN | D12: 6 | E12: 3 | F12: 3 | G12: 0.5
A13: 11 | B13: KRANJC Dino | C13: ARENA FERRO | D13: 6 | E13: 3 | F13: 3 | G13: 0.5
A14: 12 | B14: SINČIĆ Luana | C14: MAESTRAL 2 | D14: 6 | E14: 3 | F14: 3 | G14: 0.5
A15: 13 | B15: BERDNYK Stanislav | C15: BUZET 1 | D15: 7 | E15: 3 | F15: 4 | G15: 0.4285714286
A16: 14 | B16: BENAZIĆ Sandro | C16: BROVINJE 2 | D16: 9 | E16: 3 | F16: 6 | G16: 0.3333333333
A17: 15 | B17: SIROTIĆ Kevin | C17: BUZET 1 | D17: 2 | E17: 2 | F17: 0 | G17: 1
A18: 16 | B18: KRIŠTO Tomislav | C18: ARENA FERRO | D18: 4 | E18: 2 | F18: 2 | G18: 0.5
A19: 17 | B19: PEROŠ Ana | C19: MAESTRAL 2 | D19: 4 | E19: 2 | F19: 2 | G19: 0.5
A20: 18 | B20: PAULUS Michael | C20: BUZET 1 | D20: 5 | E20: 2 | F20: 3 | G20: 0.4
A21: 19 | B21: IVINIĆ Serđo | C21: VAL SHARK | D21: 6 | E21: 2 | F21: 4 | G21: 0.3333333333
A22: 20 | B22: PEKICA Bartol | C22: ARENA FERRO | D22: 1 | E22: 1 | F22: 0 | G22: 1
A23: 21 | B23: VALE Damir | C23: ARENA FERRO | D23: 1 | E23: 1 | F23: 0 | G23: 1
A24: 22 | B24: DELEVIĆ Predrag | C24: VAL SHARK | D24: 2 | E24: 1 | F24: 1 | G24: 0.5
A25: 23 | B25: VINOVRŠKI Jenisej | C25: ARENA FERRO | D25: 2 | E25: 1 | F25: 1 | G25: 0.5
A26: 24 | B26: KOS Dino | C26: BUZET 2 | D26: 4 | E26: 1 | F26: 3 | G26: 0.25
A27: 25 | B27: KRANČIĆ Filip | C27: BUZET 1 | D27: 4 | E27: 1 | F27: 3 | G27: 0.25
A28: 26 | B28: SIROTIĆ Aleš | C28: BUZET 1 | D28: 6 | E28: 1 | F28: 5 | G28: 0.1666666667
A29: 27 | B29: PAVLETIĆ Guido | C29: BUZET 2 | D29: 7 | E29: 1 | F29: 6 | G29: 0.1428571429
A30: 28 | B30: KMET Teo | C30: MAESTRAL 2 | D30: 4 | E30: 0 | F30: 4 | G30: 0
A31: 29 | B31: VIŽINTIN Marino | C31: MAESTRAL 2 | D31: 4 | E31: 0 | F31: 4 | G31: 0
A32: 30 | B32: BOŠNJAKOVIĆ Dubravko | C32: BUZET 2 | D32: 3 | E32: 0 | F32: 3 | G32: 0
A33: 31 | B33: KELEMEN Mićo | C33: ARENA FERRO | D33: 3 | E33: 0 | F33: 3 | G33: 0
A34: 32 | B34: SMAIĆ Bruno | C34: MAESTRAL 2 | D34: 3 | E34: 0 | F34: 3 | G34: 0
A35: 33 | B35: FLEGO Valter | C35: BUZET 2 | D35: 1 | E35: 0 | F35: 1 | G35: 0
A36: 34 | B36: HANZL Tomislav | C36: MAESTRAL 2 | D36: 1 | E36: 0 | F36: 1 | G36: 0
A37: 35 | B37: MILAKOVIĆ Borna | C37: MAESTRAL 2 | D37: 1 | E37: 0 | F37: 1 | G37: 0
A38: 36 | B38: STIPIĆ Matea | C38: BROVINJE 2 | D38: 1 | E38: 0 | F38: 1 | G38: 0

Sheet SKOROVI PAROVA (hidden)
A1: ŽUPANIJSKA LIGA 25./26. - SKOROVI PAROVA
A2: RANG | B2: PAR | C2: KLUB | D2: ODIGRANO | E2: POBJEDA | F2: PORAZ | G2: %
A3: 1 | B3: CINKOPAN K. + KRANJC D. | C3: ARENA FERRO | D3: 3 | E3: 3 | F3: 0 | G3: 1
A4: 2 | B4: BERDNYK S. + PAULUS M. | C4: BUZET 1 | D4: 2 | E4: 2 | F4: 0 | G4: 1
A5: 3 | B5: BASIACO L. + GASPARI HUDOLETNJAK | C5: BROVINJE 2 | D5: 4 | E5: 2 | F5: 2 | G5: 0.5
A6: 4 | B6: GLAVINIĆ D. + LUKEZ G. | C6: PAZIN | D6: 4 | E6: 2 | F6: 2 | G6: 0.5
A7: 5 | B7: HRVANOVIĆ J. + IVINIĆ S. | C7: VAL SHARK | D7: 4 | E7: 2 | F7: 2 | G7: 0.5
A8: 6 | B8: BERDNYK S. + SIROTIĆ K. | C8: BUZET 1 | D8: 1 | E8: 1 | F8: 0 | G8: 1
A9: 7 | B9: CINKOPAN K. + KELEMEN M. | C9: ARENA FERRO | D9: 1 | E9: 1 | F9: 0 | G9: 1
A10: 8 | B10: CINKOPAN K. + PEKICA B. | C10: ARENA FERRO | D10: 1 | E10: 1 | F10: 0 | G10: 1
A11: 9 | B11: DRAŠĆIĆ P. + KOS D. | C11: BUZET 2 | D11: 1 | E11: 1 | F11: 0 | G11: 1
A12: 10 | B12: HRVANOVIĆ J. + INFANTOLINO D. | C12: VAL SHARK | D12: 1 | E12: 1 | F12: 0 | G12: 1
A13: 11 | B13: KELEMEN M. + KRANJC D. | C13: ARENA FERRO | D13: 1 | E13: 1 | F13: 0 | G13: 1
A14: 12 | B14: KMET T. + VIŽINTIN M. | C14: MAESTRAL 2 | D14: 1 | E14: 1 | F14: 0 | G14: 1
A15: 13 | B15: KOS D. + PAVLETIĆ G. | C15: BUZET 2 | D15: 1 | E15: 1 | F15: 0 | G15: 1
A16: 14 | B16: KRANČIĆ F. + SIROTIĆ A. | C16: BUZET 1 | D16: 2 | E16: 1 | F16: 1 | G16: 0.5
A17: 15 | B17: PEROŠ A. + SINČIĆ L. | C17: MAESTRAL 2 | D17: 2 | E17: 1 | F17: 1 | G17: 0.5
A18: 16 | B18: DRAŠĆIĆ P. + PAVLETIĆ G. | C18: BUZET 2 | D18: 3 | E18: 0 | F18: 3 | G18: 0
A19: 17 | B19: FABIJAN D. + GLAVINIĆ D. | C19: PAZIN | D19: 2 | E19: 0 | F19: 2 | G19: 0
A20: 18 | B20: BASIACO L. + BENAZIĆ S. | C20: BROVINJE 2 | D20: 1 | E20: 0 | F20: 1 | G20: 0
A21: 19 | B21: BENAZIĆ S. + GASPARI HUDOLETNJAK | C21: BROVINJE 2 | D21: 1 | E21: 0 | F21: 1 | G21: 0
A22: 20 | B22: BERDNYK S. + SIROTIĆ A. | C22: BUZET 1 | D22: 1 | E22: 0 | F22: 1 | G22: 0
A23: 21 | B23: DELEVIĆ P. + IVINIĆ S. | C23: VAL SHARK | D23: 1 | E23: 0 | F23: 1 | G23: 0
A24: 22 | B24: FLEGO V. + KOS D. | C24: BUZET 2 | D24: 1 | E24: 0 | F24: 1 | G24: 0
A25: 23 | B25: HANZL T. + KMET T. | C25: MAESTRAL 2 | D25: 1 | E25: 0 | F25: 1 | G25: 0
A26: 24 | B26: KMET T. + SINČIĆ L. | C26: MAESTRAL 2 | D26: 1 | E26: 0 | F26: 1 | G26: 0
A27: 25 | B27: MILAKOVIĆ B. + SINČIĆ L. | C27: MAESTRAL 2 | D27: 1 | E27: 0 | F27: 1 | G27: 0

Sheet VRIJEME (hidden)
A1: 09:00:00
A2: 09:30:00
A3: 10:00:00
A4: 10:30:00
A5: 11:00:00
A6: 11:30:00
A7: 12:00:00
A8: 12:30:00
A9: 13:00:00
A10: 13:30:00
A11: 14:00:00
A12: 14:30:00
A13: 15:00:00
A14: 15:30:00
A15: 16:00:00
A16: 16:30:00
A17: 17:00:00
A18: 17:30:00
A19: 18:00:00
A20: 18:30:00
A21: 19:00:00
A22: 19:30:00
A23: 20:00:00
A24: 20:30:00
A25: 21:00:00

Sheet KALENDAR (hidden)
A1: 1. 9. 2025.
A2: 2. 9. 2025.
A3: 3. 9. 2025.
A4: 4. 9. 2025.
A5: 5. 9. 2025.
A6: 6. 9. 2025.
A7: 7. 9. 2025.
A8: 8. 9. 2025.
A9: 9. 9. 2025.
A10: 10. 9. 2025.
A11: 11. 9. 2025.
A12: 12. 9. 2025.
A13: 13. 9. 2025.
A14: 14. 9. 2025.
A15: 15. 9. 2025.
A16: 16. 9. 2025.
A17: 17. 9. 2025.
A18: 18. 9. 2025.
A19: 19. 9. 2025.
A20: 20. 9. 2025.
A21: 21. 9. 2025.
A22: 22. 9. 2025.
A23: 23. 9. 2025.
A24: 24. 9. 2025.
A25: 25. 9. 2025.
A26: 26. 9. 2025.
A27: 27. 9. 2025.
A28: 28. 9. 2025.
A29: 29. 9. 2025.
A30: 30. 9. 2025.
A31: 1. 10. 2025.
A32: 2. 10. 2025.
A33: 3. 10. 2025.
A34: 4. 10. 2025.
A35: 5. 10. 2025.
A36: 6. 10. 2025.
A37: 7. 10. 2025.
A38: 8. 10. 2025.
A39: 9. 10. 2025.
A40: 10. 10. 2025.
A41: 11. 10. 2025.
A42: 12. 10. 2025.
A43: 13. 10. 2025.
A44: 14. 10. 2025.
A45: 15. 10. 2025.
A46: 16. 10. 2025.
A47: 17. 10. 2025.
A48: 18. 10. 2025.
A49: 19. 10. 2025.
A50: 20. 10. 2025.
A51: 21. 10. 2025.
A52: 22. 10. 2025.
A53: 23. 10. 2025.
A54: 24. 10. 2025.
A55: 25. 10. 2025.
A56: 26. 10. 2025.
A57: 27. 10. 2025.
A58: 28. 10. 2025.
A59: 29. 10. 2025.
A60: 30. 10. 2025.
A61: 31. 10. 2025.
A62: 1. 11. 2025.
A63: 2. 11. 2025.
A64: 3. 11. 2025.
A65: 4. 11. 2025.
A66: 5. 11. 2025.
A67: 6. 11. 2025.
A68: 7. 11. 2025.
A69: 8. 11. 2025.
A70: 9. 11. 2025.
A71: 10. 11. 2025.
A72: 11. 11. 2025.
A73: 12. 11. 2025.
A74: 13. 11. 2025.
A75: 14. 11. 2025.
A76: 15. 11. 2025.
A77: 16. 11. 2025.
A78: 17. 11. 2025.
A79: 18. 11. 2025.
A80: 19. 11. 2025.
A81: 20. 11. 2025.
A82: 21. 11. 2025.
A83: 22. 11. 2025.
A84: 23. 11. 2025.
A85: 24. 11. 2025.
A86: 25. 11. 2025.
A87: 26. 11. 2025.
A88: 27. 11. 2025.
A89: 28. 11. 2025.
A90: 29. 11. 2025.
A91: 30. 11. 2025.
A92: 1. 12. 2025.
A93: 2. 12. 2025.
A94: 3. 12. 2025.
A95: 4. 12. 2025.
A96: 5. 12. 2025.
A97: 6. 12. 2025.
A98: 7. 12. 2025.
A99: 8. 12. 2025.
A100: 9. 12. 2025.
A101: 10. 12. 2025.
A102: 11. 12. 2025.
A103: 12. 12. 2025.
A104: 13. 12. 2025.
A105: 14. 12. 2025.
A106: 15. 12. 2025.
A107: 16. 12. 2025.
A108: 17. 12. 2025.
A109: 18. 12. 2025.
A110: 19. 12. 2025.
A111: 20. 12. 2025.
A112: 21. 12. 2025.
A113: 22. 12. 2025.
A114: 23. 12. 2025.
A115: 24. 12. 2025.
A116: 25. 12. 2025.
A117: 26. 12. 2025.
A118: 27. 12. 2025.
A119: 28. 12. 2025.
A120: 29. 12. 2025.
A121: 30. 12. 2025.
A122: 31. 12. 2025.
A123: 1. 1. 2026.
A124: 2. 1. 2026.
A125: 3. 1. 2026.
A126: 4. 1. 2026.
A127: 5. 1. 2026.
A128: 6. 1. 2026.
A129: 7. 1. 2026.
A130: 8. 1. 2026.
A131: 9. 1. 2026.
A132: 10. 1. 2026.
A133: 11. 1. 2026.
A134: 12. 1. 2026.
A135: 13. 1. 2026.
A136: 14. 1. 2026.
A137: 15. 1. 2026.
A138: 16. 1. 2026.
A139: 17. 1. 2026.
A140: 18. 1. 2026.
A141: 19. 1. 2026.
A142: 20. 1. 2026.
A143: 21. 1. 2026.
A144: 22. 1. 2026.
A145: 23. 1. 2026.
A146: 24. 1. 2026.
A147: 25. 1. 2026.
A148: 26. 1. 2026.
A149: 27. 1. 2026.
A150: 28. 1. 2026.
A151: 29. 1. 2026.
A152: 30. 1. 2026.
A153: 31. 1. 2026.
A154: 1. 2. 2026.
A155: 2. 2. 2026.
A156: 3. 2. 2026.
A157: 4. 2. 2026.
A158: 5. 2. 2026.
A159: 6. 2. 2026.
A160: 7. 2. 2026.
A161: 8. 2. 2026.
A162: 9. 2. 2026.
A163: 10. 2. 2026.
A164: 11. 2. 2026.
A165: 12. 2. 2026.
A166: 13. 2. 2026.
A167: 14. 2. 2026.
A168: 15. 2. 2026.
A169: 16. 2. 2026.
A170: 17. 2. 2026.
A171: 18. 2. 2026.
A172: 19. 2. 2026.
A173: 20. 2. 2026.
A174: 21. 2. 2026.
A175: 22. 2. 2026.
A176: 23. 2. 2026.
A177: 24. 2. 2026.
A178: 25. 2. 2026.
A179: 26. 2. 2026.
A180: 27. 2. 2026.
A181: 28. 2. 2026.
A182: 1. 3. 2026.
A183: 2. 3. 2026.
A184: 3. 3. 2026.
A185: 4. 3. 2026.
A186: 5. 3. 2026.
A187: 6. 3. 2026.
A188: 7. 3. 2026.
A189: 8. 3. 2026.
A190: 9. 3. 2026.
A191: 10. 3. 2026.
A192: 11. 3. 2026.
A193: 12. 3. 2026.
A194: 13. 3. 2026.
A195: 14. 3. 2026.
A196: 15. 3. 2026.
A197: 16. 3. 2026.
A198: 17. 3. 2026.
A199: 18. 3. 2026.
A200: 19. 3. 2026.
... 103 more rows

Sheet BILTEN_1_1 (hidden)
A1: ŽUPANIJSKA LIGA STSIŽ 2025./2026 - 1. kolo — 21.11.2025.
B2: GRAD DOMAĆIN | E2: DVORANA | J2: KOLO | N2: DATUM | T2: SAT
B3: PAZIN | E3: Sportska dvorana Pazin | J3: 1. | N3: 18. 10. 2025. | T3: 17:00:00
A4: Domaćin | B4: PAZIN | D4: Gost | E4: MAESTRAL 2
A5: A | B5: GLAVINIĆ Denis | D5: X | E5: MILAKOVIĆ Borna
A6: B | B6: FABRIS Karlo | D6: Y | E6: SINČIĆ Luana
A7: C | B7: LUKEZ Goran | D7: Z | E7: SMAIĆ Bruno
A8: R1 | D8: R1
A9: R2 | D9: R2
B11: DOMAĆIN | E11: GOST
B12: PAZIN | E12: MAESTRAL 2
B13: GLAVINIĆ Denis | C13: A | D13: X | E13: MILAKOVIĆ Borna | F13: 12 | H13: 10 | I13: 11 | K13: 6 | L13: 11 | N13: 9 | V13: 3 | W13: : | X13: 0 | Y13: 1 | Z13: : | AA13: 0
B14: FABRIS Karlo | C14: B | D14: Y | E14: SINČIĆ Luana | F14: 6 | H14: 11 | I14: 11 | K14: 5 | L14: 11 | N14: 5 | O14: 11 | Q14: 2 | V14: 3 | W14: : | X14: 1 | Y14: 2 | Z14: : | AA14: 0
B15: LUKEZ Goran | C15: C | D15: Z | E15: SMAIĆ Bruno | F15: 9 | H15: 11 | I15: 11 | K15: 2 | L15: 11 | N15: 8 | O15: 11 | Q15: 5 | V15: 3 | W15: : | X15: 1 | Y15: 3 | Z15: : | AA15: 0
B16: GLAVINIĆ D., LUKEZ G. | C16: PAR | D16: PAR | E16: MILAKOVIĆ B., SINČIĆ L. | F16: 11 | H16: 6 | I16: 11 | K16: 7 | L16: 11 | N16: 5 | V16: 3 | W16: : | X16: 0 | Y16: 4 | Z16: : | AA16: 0
W17: : | Z17: :
C18: A | D18: Y | W18: : | Z18: :
C19: C | D19: X | W19: : | Z19: :
C20: B | D20: Z | W20: : | Z20: :
B22: PAZIN | C22: : | E22: MAESTRAL 2 | F22: 4 | G22: : | H22: 0
E23: SETOVI | F23: 12 | G23: : | H23: 2
E24: POENI | F24: 148 | G24: : | H24: 92

Sheet BILTEN_1_2 (hidden)
A1: ŽUPANIJSKA LIGA STSIŽ 2025./2026 - 1. kolo — 21.11.2025.
B2: GRAD DOMAĆIN | E2: DVORANA | J2: KOLO | N2: DATUM | T2: SAT
B3: BUZET | E3: SD Buzet | J3: 1. | N3: 7. 10. 2025. | T3: 20:30:00
A4: Domaćin | B4: BUZET 1 | D4: Gost | E4: BUZET 2
A5: A | B5: PAULUS Michael | D5: X | E5: DRAŠĆIĆ Petar
A6: B | B6: BERDNYK Stanislav | D6: Y | E6: PAVLETIĆ Guido
A7: C | B7: SIROTIĆ Kevin | D7: Z | E7: KOS Dino
A8: R1 | D8: R1
A9: R2 | D9: R2
B11: DOMAĆIN | E11: GOST
B12: BUZET 1 | E12: BUZET 2
B13: PAULUS Michael | C13: A | D13: X | E13: DRAŠĆIĆ Petar | F13: 11 | G13: : | H13: 13 | I13: 7 | J13: : | K13: 11 | L13: 5 | M13: : | N13: 11 | P13: : | S13: : | V13: 0 | W13: : | X13: 3 | Y13: 0 | Z13: : | AA13: 1
B14: BERDNYK Stanislav | C14: B | D14: Y | E14: PAVLETIĆ Guido | F14: 11 | G14: : | H14: 4 | I14: 11 | J14: : | K14: 8 | L14: 11 | M14: : | N14: 7 | P14: : | S14: : | V14: 3 | W14: : | X14: 0 | Y14: 1 | Z14: : | AA14: 1
B15: SIROTIĆ Kevin | C15: C | D15: Z | E15: KOS Dino | F15: 11 | G15: : | H15: 6 | I15: 13 | J15: : | K15: 11 | L15: 11 | M15: : | N15: 8 | P15: : | S15: : | V15: 3 | W15: : | X15: 0 | Y15: 2 | Z15: : | AA15: 1
B16: BERDNYK S., PAULUS M. | C16: PAR | D16: PAR | E16: DRAŠĆIĆ P., PAVLETIĆ G. | F16: 11 | G16: : | H16: 4 | I16: 12 | J16: : | K16: 10 | L16: 11 | M16: : | N16: 5 | P16: : | S16: : | V16: 3 | W16: : | X16: 0 | Y16: 3 | Z16: : | AA16: 1
W17: : | Z17: :
B18: PAULUS Michael | C18: A | D18: Y | E18: PAVLETIĆ Guido | F18: 10 | G18: : | H18: 12 | I18: 11 | J18: : | K18: 5 | L18: 11 | M18: : | N18: 9 | O18: 11 | P18: : | Q18: 4 | S18: : | V18: 3 | W18: : | X18: 1 | Y18: 4 | Z18: : | AA18: 1
C19: C | D19: X | G19: : | J19: : | M19: : | P19: : | S19: : | V19: 0 | W19: : | X19: 0 | Z19: :
C20: B | D20: Z | G20: : | J20: : | M20: : | P20: : | S20: : | V20: 0 | W20: : | X20: 0 | Z20: :
B22: BUZET 1 | C22: : | E22: BUZET 2 | F22: 4 | G22: : | H22: 1
E23: SETOVI | F23: 12 | G23: : | H23: 4
E24: POENI | F24: 168 | G24: : | H24: 128

Sheet BILTEN_1_3 (hidden)
A1: ŽUPANIJSKA LIGA STSIŽ 2025./2026 - 1. kolo — 21.11.2025.
B2: GRAD DOMAĆIN | E2: DVORANA | J2: KOLO | N2: DATUM | T2: SAT
B3: PULA | E3: Dvorana STK Arena Ferro, Rojc | J3: 1. | N3: 15. 10. 2025. | T3: 17:30:00
A4: Domaćin | B4: ARENA FERRO | D4: Gost | E4: VAL SHARK
A5: A | B5: CINKOPAN Kristijan | D5: X | E5: INFANTOLINO Davide
A6: B | B6: KRANJC Dino | D6: Y | E6: HRVANOVIĆ Jasmin
A7: C | B7: PEKICA Bartol | D7: Z | E7: IVINIĆ Serđo
A8: R1 | D8: R1
A9: R2 | D9: R2
B11: DOMAĆIN | E11: GOST
B12: ARENA FERRO | E12: VAL SHARK
B13: CINKOPAN Kristijan | C13: A | D13: X | E13: INFANTOLINO Davide | F13: 9 | G13: : | H13: 11 | I13: 11 | J13: : | K13: 4 | L13: 1 | M13: : | N13: 11 | O13: 20 | P13: : | Q13: 18 | R13: 11 | S13: : | T13: 9 | V13: 3 | W13: : | X13: 2 | Y13: 1 | Z13: : | AA13: 0
B14: KRANJC Dino | C14: B | D14: Y | E14: HRVANOVIĆ Jasmin | F14: 11 | G14: : | H14: 6 | I14: 11 | J14: : | K14: 9 | L14: 11 | M14: : | N14: 3 | P14: : | S14: : | V14: 3 | W14: : | X14: 0 | Y14: 2 | Z14: : | AA14: 0
B15: PEKICA Bartol | C15: C | D15: Z | E15: IVINIĆ Serđo | F15: 11 | G15: : | H15: 9 | I15: 5 | J15: : | K15: 11 | L15: 11 | M15: : | N15: 6 | O15: 11 | P15: : | Q15: 8 | S15: : | V15: 3 | W15: : | X15: 1 | Y15: 3 | Z15: : | AA15: 0
B16: CINKOPAN K., PEKICA B. | C16: PAR | D16: PAR | E16: HRVANOVIĆ J., IVINIĆ S. | F16: 11 | G16: : | H16: 9 | I16: 6 | J16: : | K16: 11 | L16: 11 | M16: : | N16: 7 | O16: 11 | P16: : | Q16: 4 | S16: : | V16: 3 | W16: : | X16: 1 | Y16: 4 | Z16: : | AA16: 0
W17: : | Z17: :
C18: A | D18: Y | G18: : | J18: : | M18: : | P18: : | S18: : | V18: 0 | W18: : | X18: 0 | Z18: :
C19: C | D19: X | G19: : | J19: : | M19: : | P19: : | S19: : | V19: 0 | W19: : | X19: 0 | Z19: :
C20: B | D20: Z | G20: : | J20: : | M20: : | P20: : | S20: : | V20: 0 | W20: : | X20: 0 | Z20: :
B22: ARENA FERRO | C22: : | E22: VAL SHARK | F22: 4 | G22: : | H22: 0
E23: SETOVI | F23: 12 | G23: : | H23: 4
E24: POENI | F24: 162 | G24: : | H24: 136

Sheet BILTEN_1_POREDAK (hidden)
A1: DRUGA HSTL - PIG REGIJA - 1. kolo — 21.11.2025.
A2: RANG | B2: KLUB | C2: ODIGRANO | D2: SKOR | F2: MEČ RAZLIKA | H2: SET RAZLIKA | J2: POEN RAZLIKA | L2: BOD | M2: 7
A3: 1 | B3: PAZIN | C3: 5 | D3: 4 | E3: 1 | F3: 17 | G3: 9 | H3: 57 | I3: 41 | J3: 882 | K3: 805 | L3: 9 | M3: 0 | N3: 0
A4: 2 | B4: ARENA FERRO | C4: 5 | D4: 3 | E4: 2 | F4: 17 | G4: 9 | H4: 63 | I4: 36 | J4: 966 | K4: 850 | L4: 8 | M4: 0 | N4: 0
A5: 3 | B5: VAL SHARK | C5: 3 | D5: 2 | E5: 1 | F5: 8 | G5: 6 | H5: 30 | I5: 26 | J5: 529 | K5: 501 | L5: 5 | M5: 0 | N5: 0
A6: 4 | B6: BUZET 1 | C6: 3 | D6: 1 | E6: 2 | F6: 6 | G6: 9 | H6: 22 | I6: 31 | J6: 462 | K6: 503 | L6: 4 | M6: 0 | N6: 0
A7: 5 | B7: BROVINJE 2 | C7: 2 | D7: 1 | E7: 1 | F7: 5 | G7: 6 | H7: 20 | I7: 23 | J7: 401 | K7: 404 | L7: 3 | M7: 0 | N7: 0
A8: 6 | B8: BUZET 2 | C8: 3 | D8: 0 | E8: 3 | F8: 2 | G8: 12 | H8: 11 | I8: 36 | J8: 357 | K8: 478 | L8: 3 | M8: 0 | N8: 0

Sheet BILTEN_2_1 (hidden)
A1: ŽUPANIJSKA LIGA STSIŽ 2025./2026 - 2. kolo — 21.11.2025.
B2: GRAD DOMAĆIN | E2: DVORANA | J2: KOLO | N2: DATUM | T2: SAT
B3: KOROMAČNO | E3: Društveni dom Koromačno | J3: 2. | N3: 7. 10. 2025. | T3: 18:00:00
A4: Domaćin | B4: BROVINJE 2 | D4: Gost | E4: VAL SHARK
A5: A | B5: BENAZIĆ Sandro | D5: X | E5: HRVANOVIĆ Jasmin
A6: B | B6: STIPIĆ Matea | D6: Y | E6: INFANTOLINO Davide
A7: C | B7: BASIACO Leonida | D7: Z | E7: IVINIĆ Serđo
A8: R1 | D8: R1
A9: R2 | D9: R2
B11: DOMAĆIN | E11: GOST
B12: BROVINJE 2 | E12: VAL SHARK
B13: BENAZIĆ Sandro | C13: A | D13: X | E13: HRVANOVIĆ Jasmin | F13: 6 | G13: : | H13: 11 | I13: 11 | J13: : | K13: 9 | L13: 8 | M13: : | N13: 11 | O13: 9 | P13: : | Q13: 11 | S13: : | V13: 1 | W13: : | X13: 3 | Y13: 0 | Z13: : | AA13: 1
B14: STIPIĆ Matea | C14: B | D14: Y | E14: INFANTOLINO Davide | F14: 8 | G14: : | H14: 11 | I14: 2 | J14: : | K14: 11 | L14: 7 | M14: : | N14: 11 | P14: : | S14: : | V14: 0 | W14: : | X14: 3 | Y14: 0 | Z14: : | AA14: 2
B15: BASIACO Leonida | C15: C | D15: Z | E15: IVINIĆ Serđo | F15: 11 | G15: : | H15: 9 | I15: 11 | J15: : | K15: 5 | L15: 11 | M15: : | N15: 5 | P15: : | S15: : | V15: 3 | W15: : | X15: 0 | Y15: 1 | Z15: : | AA15: 2
B16: BENAZIĆ S., BASIACO L. | C16: PAR | D16: PAR | E16: HRVANOVIĆ J., IVINIĆ S. | F16: 11 | G16: : | H16: 6 | I16: 8 | J16: : | K16: 11 | L16: 9 | M16: : | N16: 11 | O16: 11 | P16: : | Q16: 9 | R16: 7 | S16: : | T16: 11 | V16: 2 | W16: : | X16: 3 | Y16: 1 | Z16: : | AA16: 3
G17: : | J17: : | M17: : | P17: : | S17: : | V17: 0 | W17: : | X17: 0 | Z17: :
B18: BENAZIĆ Sandro | C18: A | D18: Y | E18: INFANTOLINO Davide | F18: 11 | G18: : | H18: 9 | I18: 12 | J18: : | K18: 14 | L18: 7 | M18: : | N18: 11 | O18: 9 | P18: : | Q18: 11 | S18: : | V18: 1 | W18: : | X18: 3 | Y18: 1 | Z18: : | AA18: 4
C19: C | D19: X | G19: : | J19: : | M19: : | P19: : | S19: : | V19: 0 | W19: : | X19: 0 | Z19: :
C20: B | D20: Z | G20: : | J20: : | M20: : | P20: : | S20: : | V20: 0 | W20: : | X20: 0 | Z20: :
B22: BROVINJE 2 | C22: : | E22: VAL SHARK | F22: 1 | G22: : | H22: 4
E23: SETOVI | F23: 7 | G23: : | H23: 12
E24: POENI | F24: 169 | G24: : | H24: 187

Sheet BILTEN_2_2 (hidden)
A1: ŽUPANIJSKA LIGA STSIŽ 2025./2026 - 2. kolo — 21.11.2025.
B2: GRAD DOMAĆIN | E2: DVORANA | J2: KOLO | N2: DATUM | T2: SAT
B3: KOROMAČNO | E3: Društveni dom Koromačno | J3: 2. | N3: 7. 10. 2025. | T3: 18:00:00
A4: Domaćin | B4: BROVINJE 2 | D4: Gost | E4: ARENA FERRO
A5: A | B5: BASIACO Leonida | D5: X | E5: KRIŠTO Tomislav
A6: B | B6: BENAZIĆ Sandro | D6: Y | E6: CINKOPAN Kristijan
A7: C | B7: GASPARI HUDOLETNJAK Matija | D7: Z | E7: KELEMEN Mićo
A8: R1 | D8: R1
A9: R2 | D9: R2
B11: DOMAĆIN | E11: GOST
B12: BROVINJE 2 | E12: ARENA FERRO
B13: BASIACO Leonida | C13: A | D13: X | E13: KRIŠTO Tomislav | F13: 11 | G13: : | H13: 5 | I13: 11 | J13: : | K13: 5 | L13: 11 | M13: : | N13: 9 | P13: : | S13: : | V13: 3 | W13: : | X13: 0 | Y13: 1 | Z13: : | AA13: 0
B14: BENAZIĆ Sandro | C14: B | D14: Y | E14: CINKOPAN Kristijan | F14: 10 | G14: : | H14: 12 | I14: 12 | J14: : | K14: 14 | L14: 7 | M14: : | N14: 11 | P14: : | S14: : | V14: 0 | W14: : | X14: 3 | Y14: 1 | Z14: : | AA14: 1
B15: GASPARI HUDOLETNJAK Matija | C15: C | D15: Z | E15: KELEMEN Mićo | F15: 10 | G15: : | H15: 12 | I15: 11 | J15: : | K15: 2 | L15: 11 | M15: : | N15: 8 | O15: 11 | P15: : | Q15: 8 | S15: : | V15: 3 | W15: : | X15: 1 | Y15: 2 | Z15: : | AA15: 1
B16: BASIACO L., GASPARI HUDOLETNJAK | C16: PAR | D16: PAR | E16: CINKOPAN K., KELEMEN M. | F16: 7 | G16: : | H16: 11 | I16: 11 | J16: : | K16: 8 | L16: 8 | M16: : | N16: 11 | O16: 7 | P16: : | Q16: 11 | S16: : | V16: 1 | W16: : | X16: 3 | Y16: 2 | Z16: : | AA16: 2
G17: : | J17: : | M17: : | P17: : | S17: : | V17: 0 | W17: : | X17: 0 | Z17: :
B18: BASIACO Leonida | C18: A | D18: Y | E18: CINKOPAN Kristijan | F18: 11 | G18: : | H18: 8 | I18: 11 | J18: : | K18: 8 | L18: 9 | M18: : | N18: 11 | O18: 7 | P18: : | Q18: 11 | R18: 11 | S18: : | T18: 7 | V18: 3 | W18: : | X18: 2 | Y18: 3 | Z18: : | AA18: 2
B19: GASPARI HUDOLETNJAK Matija | C19: C | D19: X | E19: KRIŠTO Tomislav | F19: 11 | G19: : | H19: 8 | I19: 11 | J19: : | K19: 8 | L19: 6 | M19: : | N19: 11 | O19: 6 | P19: : | Q19: 11 | R19: 11 | S19: : | T19: 7 | V19: 3 | W19: : | X19: 2 | Y19: 4 | Z19: : | AA19: 2
C20: B | D20: Z | G20: : | J20: : | M20: : | P20: : | S20: : | V20: 0 | W20: : | X20: 0 | Z20: :
B22: BROVINJE 2 | C22: : | E22: ARENA FERRO | F22: 4 | G22: : | H22: 2
E23: SETOVI | F23: 13 | G23: : | H23: 11
E24: POENI | F24: 232 | G24: : | H24: 217

Sheet BILTEN_2_3 (hidden)
A1: ŽUPANIJSKA LIGA STSIŽ 2025./2026 - 2. kolo — 21.11.2025.
B2: GRAD DOMAĆIN | E2: DVORANA | J2: KOLO | N2: DATUM | T2: SAT
B3: PAZIN | E3: Sportska dvorana Pazin | J3: 2. | N3: 25. 10. 2025. | T3: 10:30:00
A4: Domaćin | B4: PAZIN | D4: Gost | E4: BUZET 2
A5: A | B5: FABIJAN Damir | D5: X | E5: DRAŠĆIĆ Petar
A6: B | B6: FABRIS Karlo | D6: Y | E6: PAVLETIĆ Guido
A7: C | B7: GLAVINIĆ Denis | D7: Z | E7: BOŠNJAKOVIĆ Dubravko
A8: R1 | D8: R1
A9: R2 | D9: R2
B11: DOMAĆIN | E11: GOST
B12: PAZIN | E12: BUZET 2
B13: FABIJAN Damir | C13: A | D13: X | E13: DRAŠĆIĆ Petar | F13: 3 | G13: : | H13: 11 | I13: 4 | J13: : | K13: 11 | L13: 7 | M13: : | N13: 11 | P13: : | S13: : | V13: 0 | W13: : | X13: 3 | Y13: 0 | Z13: : | AA13: 1
B14: FABRIS Karlo | C14: B | D14: Y | E14: PAVLETIĆ Guido | F14: 11 | G14: : | H14: 1 | I14: 11 | J14: : | K14: 6 | L14: 11 | M14: : | N14: 6 | P14: : | S14: : | V14: 3 | W14: : | X14: 0 | Y14: 1 | Z14: : | AA14: 1
B15: GLAVINIĆ Denis | C15: C | D15: Z | E15: BOŠNJAKOVIĆ Dubravko | F15: 11 | G15: : | H15: 3 | I15: 11 | J15: : | K15: 4 | L15: 11 | M15: : | N15: 4 | P15: : | S15: : | V15: 3 | W15: : | X15: 0 | Y15: 2 | Z15: : | AA15: 1
B16: GLAVINIĆ D., LUKEZ G. | C16: PAR | D16: PAR | E16: DRAŠĆIĆ P., PAVLETIĆ G. | F16: 11 | G16: : | H16: 8 | I16: 11 | J16: : | K16: 7 | L16: 11 | M16: : | N16: 5 | P16: : | S16: : | V16: 3 | W16: : | X16: 0 | Y16: 3 | Z16: : | AA16: 1
G17: : | J17: : | M17: : | P17: : | S17: : | V17: 0 | W17: : | X17: 0 | Z17: :
B18: FABIJAN Damir | C18: A | D18: Y | E18: PAVLETIĆ Guido | F18: 9 | G18: : | H18: 11 | I18: 6 | J18: : | K18: 11 | L18: 12 | M18: : | N18: 10 | O18: 11 | P18: : | Q18: 5 | R18: 11 | S18: : | T18: 9 | V18: 3 | W18: : | X18: 2 | Y18: 4 | Z18: : | AA18: 1
C19: C | D19: X | G19: : | J19: : | M19: : | P19: : | S19: : | V19: 0 | W19: : | X19: 0 | Z19: :
C20: B | D20: Z | G20: : | J20: : | M20: : | P20: : | S20: : | V20: 0 | W20: : | X20: 0 | Z20: :
B22: PAZIN | C22: : | E22: BUZET 2 | F22: 4 | G22: : | H22: 1
E23: SETOVI | F23: 12 | G23: : | H23: 5
E24: POENI | F24: 162 | G24: : | H24: 123

Sheet BILTEN_2_4 (hidden)
A1: ŽUPANIJSKA LIGA STSIŽ 2025./2026 - 2. kolo — 21.11.2025.
B2: GRAD DOMAĆIN | E2: DVORANA | J2: KOLO | N2: DATUM | T2: SAT
B3: PAZIN | E3: Sportska dvorana Pazin | J3: 2. | N3: 25. 10. 2025. | T3: 12:00:00
A4: Domaćin | B4: PAZIN | D4: Gost | E4: BUZET 1
A5: A | B5: GLAVINIĆ Denis | D5: X | E5: SIROTIĆ Aleš
A6: B | B6: LUKEZ Goran | D6: Y | E6: KRANČIĆ Filip
A7: C | B7: FABRIS Karlo | D7: Z | E7: BERDNYK Stanislav
A8: R1 | D8: R1
A9: R2 | D9: R2
B11: DOMAĆIN | E11: GOST
B12: PAZIN | E12: BUZET 1
B13: GLAVINIĆ Denis | C13: A | D13: X | E13: SIROTIĆ Aleš | F13: 11 | G13: : | H13: 1 | I13: 11 | J13: : | K13: 1 | L13: 11 | M13: : | N13: 9 | P13: : | S13: : | V13: 3 | W13: : | X13: 0 | Y13: 1 | Z13: : | AA13: 0
B14: LUKEZ Goran | C14: B | D14: Y | E14: KRANČIĆ Filip | F14: 11 | G14: : | H14: 6 | I14: 11 | J14: : | K14: 6 | L14: 3 | M14: : | N14: 11 | O14: 6 | P14: : | Q14: 11 | R14: 12 | S14: : | T14: 10 | V14: 3 | W14: : | X14: 2 | Y14: 2 | Z14: : | AA14: 0
B15: FABRIS Karlo | C15: C | D15: Z | E15: BERDNYK Stanislav | F15: 11 | G15: : | H15: 8 | I15: 11 | J15: : | K15: 6 | L15: 11 | M15: : | N15: 6 | P15: : | S15: : | V15: 3 | W15: : | X15: 0 | Y15: 3 | Z15: : | AA15: 0
B16: GLAVINIĆ D., LUKEZ G. | C16: PAR | D16: PAR | E16: SIROTIĆ A., KRANČIĆ F. | F16: 11 | G16: : | H16: 6 | I16: 7 | J16: : | K16: 11 | L16: 12 | M16: : | N16: 14 | O16: 2 | P16: : | Q16: 11 | S16: : | V16: 1 | W16: : | X16: 3 | Y16: 3 | Z16: : | AA16: 1
G17: : | J17: : | M17: : | P17: : | S17: : | V17: 0 | W17: : | X17: 0 | Z17: :
B18: GLAVINIĆ Denis | C18: A | D18: Y | E18: KRANČIĆ Filip | F18: 11 | G18: : | H18: 1 | I18: 11 | J18: : | K18: 6 | L18: 3 | M18: : | N18: 11 | O18: 11 | P18: : | Q18: 8 | S18: : | V18: 3 | W18: : | X18: 1 | Y18: 4 | Z18: : | AA18: 1
C19: C | D19: X | G19: : | J19: : | M19: : | P19: : | S19: : | V19: 0 | W19: : | X19: 0 | Z19: :
C20: B | D20: Z | G20: : | J20: : | M20: : | P20: : | S20: : | V20: 0 | W20: : | X20: 0 | Z20: :
B22: PAZIN | C22: : | E22: BUZET 1 | F22: 4 | G22: : | H22: 1
E23: SETOVI | F23: 13 | G23: : | H23: 6
E24: POENI | F24: 177 | G24: : | H24: 143

Sheet BILTEN_2_POREDAK (hidden)
A1: ŽUPANIJSKA LIGA STSIŽ - 2. kolo — 21.11.2025.
A2: RANG | B2: KLUB | C2: ODIGRANO | D2: SKOR | F2: MEČ RAZLIKA | H2: SET RAZLIKA | J2: POEN RAZLIKA | L2: BOD | M2: 7
A3: 1 | B3: PAZIN | C3: 5 | D3: 4 | E3: 1 | F3: 17 | G3: 9 | H3: 57 | I3: 41 | J3: 882 | K3: 805 | L3: 9 | M3: 0 | N3: 0
A4: 2 | B4: ARENA FERRO | C4: 5 | D4: 3 | E4: 2 | F4: 17 | G4: 9 | H4: 63 | I4: 36 | J4: 966 | K4: 850 | L4: 8 | M4: 0 | N4: 0
A5: 3 | B5: VAL SHARK | C5: 3 | D5: 2 | E5: 1 | F5: 8 | G5: 6 | H5: 30 | I5: 26 | J5: 529 | K5: 501 | L5: 5 | M5: 0 | N5: 0
A6: 4 | B6: BUZET 1 | C6: 3 | D6: 1 | E6: 2 | F6: 6 | G6: 9 | H6: 22 | I6: 31 | J6: 462 | K6: 503 | L6: 4 | M6: 0 | N6: 0
A7: 5 | B7: BROVINJE 2 | C7: 2 | D7: 1 | E7: 1 | F7: 5 | G7: 6 | H7: 20 | I7: 23 | J7: 401 | K7: 404 | L7: 3 | M7: 0 | N7: 0
A8: 6 | B8: BUZET 2 | C8: 3 | D8: 0 | E8: 3 | F8: 2 | G8: 12 | H8: 11 | I8: 36 | J8: 357 | K8: 478 | L8: 3 | M8: 0 | N8: 0

Sheet WEB_DATA (hidden)
A1: team | B1: match_no | C1: wl | D1: points | E1: cum_points | F1: score | G1: k_index
A2: PAZIN | B2: 1 | C2: W | D2: 2 | E2: 2 | F2: 04:00:00 | G2: 2
A3: PAZIN | B3: 2 | C3: W | D3: 2 | E3: 4 | F3: 04:01:00 | G3: 7
A4: PAZIN | B4: 3 | C4: W | D4: 2 | E4: 6 | F4: 04:01:00 | G4: 8
A5: PAZIN | B5: 4 | C5: L | D5: 1 | E5: 7 | F5: 01:04:00 | G5: 9
A6: PAZIN | B6: 5 | C6: W | D6: 2 | E6: 9 | F6: 04:03:00 | G6: 10
A7: PAZIN | B7: 6 | C7: W | D7: 2 | E7: 11 | F7: 04:03:00 | G7: 17
A8: ARENA FERRO | B8: 1 | C8: W | D8: 2 | E8: 2 | F8: 04:00:00 | G8: 4
A9: ARENA FERRO | B9: 2 | C9: L | D9: 1 | E9: 3 | F9: 02:04:00 | G9: 6
A10: ARENA FERRO | B10: 3 | C10: L | D10: 1 | E10: 4 | F10: 03:04:00 | G10: 10
A11: ARENA FERRO | B11: 4 | C11: W | D11: 2 | E11: 6 | F11: 04:01:00 | G11: 13
A12: ARENA FERRO | B12: 5 | C12: W | D12: 2 | E12: 8 | F12: 04:00:00 | G12: 14
A13: ARENA FERRO | B13: 6 | C13: W | D13: 2 | E13: 10 | F13: 04:02:00 | G13: 22
A14: BROVINJE 2 | B14: 1 | C14: L | D14: 1 | E14: 1 | F14: 01:04:00 | G14: 5
A15: BROVINJE 2 | B15: 2 | C15: W | D15: 2 | E15: 3 | F15: 04:02:00 | G15: 6
A16: BROVINJE 2 | B16: 3 | C16: L | D16: 1 | E16: 4 | F16: 03:04:00 | G16: 17
A17: BROVINJE 2 | B17: 4 | C17: W | D17: 2 | E17: 6 | F17: 04:01:00 | G17: 18
A18: BROVINJE 2 | B18: 5 | C18: W | D18: 2 | E18: 8 | F18: 04:03:00 | G18: 19
A19: BROVINJE 2 | B19: 6 | C19: W | D19: 2 | E19: 10 | F19: 04:00:00 | G19: 20
A20: VAL SHARK | B20: 1 | C20: L | D20: 1 | E20: 1 | F20: 00:04:00 | G20: 4
A21: VAL SHARK | B21: 2 | C21: W | D21: 2 | E21: 3 | F21: 04:01:00 | G21: 5
A22: VAL SHARK | B22: 3 | C22: W | D22: 2 | E22: 5 | F22: 04:01:00 | G22: 9
A23: VAL SHARK | B23: 4 | C23: W | D23: 2 | E23: 7 | F23: 04:01:00 | G23: 15
A24: VAL SHARK | B24: 5 | C24: W | D24: 2 | E24: 9 | F24: 04:00:00 | G24: 16
A25: VAL SHARK | B25: 6 | C25: L | D25: 1 | E25: 10 | F25: 02:04:00 | G25: 21
A26: BUZET 1 | B26: 1 | C26: W | D26: 2 | E26: 2 | F26: 04:01:00 | G26: 3
A27: BUZET 1 | B27: 2 | C27: L | D27: 1 | E27: 3 | F27: 01:04:00 | G27: 8
A28: BUZET 1 | B28: 3 | C28: W | D28: 2 | E28: 5 | F28: 04:00:00 | G28: 12
A29: BUZET 1 | B29: 4 | C29: L | D29: 1 | E29: 6 | F29: 01:04:00 | G29: 13
A30: BUZET 1 | B30: 5 | C30: L | D30: 1 | E30: 7 | F30: 00:04:00 | G30: 16
A31: BUZET 1 | B31: 6 | C31: L | D31: 1 | E31: 8 | F31: 03:04:00 | G31: 19
A32: BUZET 2 | B32: 1 | C32: L | D32: 1 | E32: 1 | F32: 01:04:00 | G32: 3
A33: BUZET 2 | B33: 2 | C33: L | D33: 1 | E33: 2 | F33: 01:04:00 | G33: 7
A34: BUZET 2 | B34: 3 | C34: W | D34: 2 | E34: 4 | F34: 04:00:00 | G34: 11
A35: BUZET 2 | B35: 4 | C35: L | D35: 1 | E35: 5 | F35: 00:04:00 | G35: 14
A36: BUZET 2 | B36: 5 | C36: L | D36: 1 | E36: 6 | F36: 01:04:00 | G36: 15
A37: BUZET 2 | B37: 6 | C37: L | D37: 1 | E37: 7 | F37: 00:04:00 | G37: 20
A38: MAESTRAL 2 | B38: 1 | C38: L | D38: 1 | E38: 1 | F38: 00:04:00 | G38: 2
A39: MAESTRAL 2 | B39: 2 | C39: L | D39: 1 | E39: 2 | F39: 00:04:00 | G39: 11
A40: MAESTRAL 2 | B40: 3 | C40: L | D40: 1 | E40: 3 | F40: 00:04:00 | G40: 12
A41: MAESTRAL 2 | B41: 4 | C41: L | D41: 1 | E41: 4 | F41: 01:04:00 | G41: 18
A42: MAESTRAL 2 | B42: 5 | C42: W | D42: 2 | E42: 6 | F42: 04:02:00 | G42: 21
A43: MAESTRAL 2 | B43: 6 | C43: L | D43: 1 | E43: 7 | F43: 02:04:00 | G43: 22

Sheet WEB_JSON (hidden)
A1: Kopiraj sadržaj A3 u datoteku web-data.json i upload na hosting.
A2: Generirano: | B2: 2026-01-03T14:42:26.752Z
A3: [{"team":"PAZIN","match_no":1,"wl":"W","points":2,"cum_points":2,"score":"4:0"},{"team":"PAZIN","match_no":2,"wl":"W","points":2,"cum_points":4,"score":"4:1"},{"team":"PAZIN","match_no":3,"wl":"W","points":2,"cum_points":6,"score":"4:1"},{"team":"PAZIN","match_no":4,"wl":"L","points":1,"cum_points":7,"score":"1:4"},{"team":"PAZIN","match_no":5,"wl":"W","points":2,"cum_points":9,"score":"4:3"},{"team":"PAZIN","match_no":6,"wl":"W","points":2,"cum_points":11,"score":"4:3"},{"team":"ARENA FERRO","match_no":1,"wl":"W","points":2,"cum_points":2,"score":"4:0"},{"team":"ARENA FERRO","match_no":2,"wl":"L","points":1,"cum_points":3,"score":"2:4"},{"team":"ARENA FERRO","match_no":3,"wl":"L","points":1,"cum_points":4,"score":"3:4"},{"team":"ARENA FERRO","match_no":4,"wl":"W","points":2,"cum_points":6,"score":"4:1"},{"team":"ARENA FERRO","match_no":5,"wl":"W","points":2,"cum_points":8,"score":"4:0"},{"team":"ARENA FERRO","match_no":6,"wl":"W","points":2,"cum_points":10,"score":"4:2"},{"team":"BROVINJE 2","match_no":1,"wl":"L","points":1,"cum_points":1,"score":"1:4"},{"team":"BROVINJE 2","match_no":2,"wl":"W","points":2,"cum_points":3,"score":"4:2"},{"team":"BROVINJE 2","match_no":3,"wl":"L","points":1,"cum_points":4,"score":"3:4"},{"team":"BROVINJE 2","match_no":4,"wl":"W","points":2,"cum_points":6,"score":"4:1"},{"team":"BROVINJE 2","match_no":5,"wl":"W","points":2,"cum_points":8,"score":"4:3"},{"team":"BROVINJE 2","match_no":6,"wl":"W","points":2,"cum_points":10,"score":"4:0"},{"team":"VAL SHARK","match_no":1,"wl":"L","points":1,"cum_points":1,"score":"0:4"},{"team":"VAL SHARK","match_no":2,"wl":"W","points":2,"cum_points":3,"score":"4:1"},{"team":"VAL SHARK","match_no":3,"wl":"W","points":2,"cum_points":5,"score":"4:1"},{"team":"VAL SHARK","match_no":4,"wl":"W","points":2,"cum_points":7,"score":"4:1"},{"team":"VAL SHARK","match_no":5,"wl":"W","points":2,"cum_points":9,"score":"4:0"},{"team":"VAL SHARK","match_no":6,"wl":"L","points":1,"cum_points":10,"score":"2:4"},{"team":"BUZET 1","match_no":1,"wl":"W","points":2,"cum_points":2,"score":"4:1"},{"team":"BUZET 1","match_no":2,"wl":"L","points":1,"cum_points":3,"score":"1:4"},{"team":"BUZET 1","match_no":3,"wl":"W","points":2,"cum_points":5,"score":"4:0"},{"team":"BUZET 1","match_no":4,"wl":"L","points":1,"cum_points":6,"score":"1:4"},{"team":"BUZET 1","match_no":5,"wl":"L","points":1,"cum_points":7,"score":"0:4"},{"team":"BUZET 1","match_no":6,"wl":"L","points":1,"cum_points":8,"score":"3:4"},{"team":"BUZET 2","match_no":1,"wl":"L","points":1,"cum_points":1,"score":"1:4"},{"team":"BUZET 2","match_no":2,"wl":"L","points":1,"cum_points":2,"score":"1:4"},{"team":"BUZET 2","match_no":3,"wl":"W","points":2,"cum_points":4,"score":"4:0"},{"team":"BUZET 2","match_no":4,"wl":"L","points":1,"cum_points":5,"score":"0:4"},{"team":"BUZET 2","match_no":5,"wl":"L","points":1,"cum_points":6,"score":"1:4"},{"team":"BUZET 2","match_no":6,"wl":"L","points":1,"cum_points":7,"score":"0:4"},{"team":"MAESTRAL 2","match_no":1,"wl":"L","points":1,"cum_points":1,"score":"0:4"},{"team":"MAESTRAL 2","match_no":2,"wl":"L","points":1,"cum_points":2,"score":"0:4"},{"team":"MAESTRAL 2","match_no":3,"wl":"L","points":1,"cum_points":3,"score":"0:4"},{"team":"MAESTRAL 2","match_no":4,"wl":"L","points":1,"cum_points":4,"score":"1:4"},{"team":"MAESTRAL 2","match_no":5,"wl":"W","points":2,"cum_points":6,"score":"4:2"},{"team":"MAESTRAL 2","match_no":6,"wl":"L","points":1,"cum_points":7,"score":"2:4"}]
